Workbook

Sheet Rev History
A2: Date | B2: Revision | C2: Changes
A3: 2017-03-16 | B3: 1 | C3: Updated Production Days at Nexteer Automotive from 235 to 240
A4: 2018-08-02 | B4: 2 | C4: Updated Form Number from Appendix 15 to F1019 Run at Rate
A5: 2019-06-27 | B5: 3 | C5: Added Navigational Buttons and hid extra tabs to organize the document
A6: 2019-06-28 | B6: 4 | C6: Changed name of column to "Daily QTC" to make it easier to understand
A7: 2019-06-28 | B7: 5 | C7: Added a color key so the person filling it out can understand what the colors mean
A8: 7/1/12019 | B8: 6 | C8: Added the column "Operators" because knowing how many operators there are can be useful
A9: 2019-07-02 | B9: 7 | C9: Added the columns "Op Number" and "Number of Identical Machines" because they provide important information
A10: 2019-07-03 | B10: 8 | C10: Updated formula for "Constraint on QTC?" to =IF(J21="","",IF(AC21<1,"NO","YES")) from =IF(J21="","",IF(Z21>AD21,"NO","YES")) because it needed to be changed to fit with the new formulas
A11: 2019-07-03 | B11: 9 | C11: Added extra rows to the capacity plan to allow the person filling it out to have enough room for their different machines (30)
A12: 2019-07-08 | B12: 10 | C12: Changed the description on the column "Machine Loading Allocated For Other Parts" to make it flow smoother
A13: 2019-07-09 | B13: 11 | C13: Reformatted the "Key Items to Consider" box to organize it
A14: 2019-07-10 | B14: 12 | C14: Set up a color scheme to trigger the column "Daily QTC" to turn orange when there are 2 or more repeating tools/machines
A15: 2019-07-15 | B15: 13 | C15: Changed formula for "Production time used for QTC (hrs/wk)" to =Z21*AC21 from =IF(G21="",0,(($AA21/$AH21)/(1-$U21))) to make it more simple
A16: 2019-07-16 | B16: 14 | C16: Added a formula to hide/unhide the tab "Extended R@R" which helps with organization
A17: 2019-07-16 | B17: 15 | C17: Changed the description on "Duration" to make it easier to understand
A18: 2019-07-16 | B18: 16 | C18: Created formula to count number of identical operations =COUNTIF($B$21:$B$50,B21) because this number factors into other formulas
A19: 2019-07-17 | B19: 17 | C19: Deleted both volumes and changed the cell to "Quoted Tool Capacity" to make it less confusing for the person filling it out
A20: 2019-07-17 | B20: 18 | C20: Added a note to remind the supplier to double check the volume from the nomination letter so they don't forget
A21: 2019-07-17 | B21: 19 | C21: Changed formula for column "Daily QTC" to =(IFERROR(ROUNDUP(AA21/SUMIF($B$21:$B$50,B21,$AA$21:$AA$50)*$AD$21,),"")) from =IF(H21="","",(AC21/AH$12/A21)) to fix the issue of getting the wrong numbers for duplicate machines
A22: 2019-07-17 | B22: 20 | C22: Changed formula for column "Production time used for 15% above QTC (hrs/wk)" to =Z21*AC21*1.15 from =IF(I21="",0,(($AF21)/$AI21/A21))/(1-$V21) to make it more simple
A23: 2019-07-17 | B23: 21 | C23: Changed color key into an image to avoid problems with changing cells and altering the text. If you need to change or update the color key do so here and then put the new image in the capacity plan. Directions: Directly to the right of this cell is the color key. After making your changes highlight the color key and under the home tab on the far left click the copy button dropdown and select "copy as picture" then click "ok". Click over to the capacity plan and paste the image in the same spot it originally was. | E23: Color Key
A24: 2019-07-18 | B24: 22 | C24: Added iferror formulas into columns to eliminate them from looking sloppy (#Div/0!) | E24: Yellow | F24: Filled out by supplier
A25: 2019-07-18 | B25: 23 | C25: Added the column "Overall required OEE" because it is necessry for calculations and shows how efficent they are being with their machines | E25: White | F25: Calculated automatically
A26: 2019-07-25 | B26: 24 | C26: Changed the formula for "Planned % Up Time" to =((J21*60)-SUM(O21:S21))/(J21*60) from =IF(J48="","",1-((P48+Q48+S48)/((J48*60)-O48-R48))) because the previous forumla was incorrect | E26: Light Blue | F26: This column determines if there is a constraint on the MSV
A27: 2019-07-25 | B27: 25 | C27: Added the column "Total Daily Material with time losses" with the formula =(((J21*60*60)/(L21/M21))*T21)*I21 | E27: Orange | F27: Shows the user that this row is part of a duplicate machine
A28: 2019-07-25 | B28: 26 | C28: Changed the column "Sum all down stream operations scrap rate %'s" from a manual entry to a formula so the supplier can't enter it wrong | E28: Green | F28: The operation or process will be able to meet the MSV (pass)
A29: 2019-07-25 | B29: 27 | C29: Added the column "Percentage of total parts that are good for operation" because it is necessary for calculations | E29: Red | F29: The operation or process will not be able to meet the MSV and/or the 15% MSV (fail)
A30: 2019-07-25 | B30: 28 | C30: Added the column "Amount of parts required to make the quota including scrap" because it is necessary for calculations | E30: Light Pink | F30: If "Machine loading allocated for other parts" is greater than 50% the extended R@R needs to be completed. Batch processes like heat treatment, plating, etc. do not need the extended R&R.
A31: 2019-07-30 | B31: 29 | C31: Added questions to the status form tab | E31: Purple | F31: If production time used for 15% MSV is above 100 and less than 120 hours (High Risk / HR)
A32: 2019-07-30 | B32: 30 | C32: Made a formula to change the actual scrap percentage red if it is greater than the planned percentage | E32: Salmon | F32: This color indicates that the actual downtime is higher than the planned.
A33: 2019-07-31 | B33: 31 | C33: Made a formula to calculate the lower and upper constraints for OEE
A34: 2019-08-01 | B34: 32 | C34: The Code for hidding and unhiding the Extended R@R is: (Column AA is hidden) Private Sub Worksheet_Change(ByVal Target As Range) If [AA17] = "Yes" Then Sheets("Extended R@R").Visible = True Else Sheets("Extended R@R").Visible = False End If End Sub
A35: 2019-08-02 | B35: 33 | C35: The Code for a button is: Sub Process1() ' ' Process1 Macro ' Sheets("Process 1 - Actual Run Data").Visible = True Sheets("Process 1 - Actual Run Data").Select End Sub
A36: 2019-08-13 | B36: 34 | C36: Added Hyperlinks to replace the buttons
A37: 2019-08-14 | B37: 35 | C37: Added an Instructions tab
A38: 2019-08-27 | B38: 36 | C38: Deleted the formula to hide/unhide the Extended R@R
A39: 2019-08-27 | B39: 37 | C39: Added the column "calculation column" to help calculate downstream scrap
A40: 2019-08-27 | B40: 38 | C40: Added the column "% scrap parts per operation" to help calculate downstream scrap
A41: 2019-08-27 | B41: 39 | C41: Added the columns "K and L" to the status tab to hide/undide the questions
A42: 2019-12-13 | B42: 40 | C42: Added instructions tab
A43: 2020-02-08 | B43: 41 | C43: Corrected calculation issue when Run at Rate is completed over more than one shift.
A44: 2020-02-08 | B44: 42 | C44: Corrected process 2 actual run data which was missing some calculations that other sheets had.
A45: 2020-02-08 | B45: 43 | C45: Added HR for High Risk when calculating the +15% over QTC, this is now the Purple color.
A46: 2020-02-08 | B46: 44 | C46: Adjusted calculation for both "Constraint on QTC?" and "Constraint on 15% above QTC?" to reflect % allocated.
A47: 2020-02-08 | B47: 45 | C47: Adjusted Color Code block wording and Color.
A48: 2020-02-08 | B48: 46 | C48: Added note that for those Batch Processes like heat treat, plating, etc. do not need to complete the Extended R&R.
A49: 2020-02-08 | B49: 47 | C49: Removed "Old Instructions" from file.
A50: 2020-03-04 | B50: 48 | C50: Update page sizes for printing
A51: 2020-11-11 | B51: 49 | C51: Updated date format on Run@Rate Summary Data Tab and Run@Rate Status Form Tab.
B52: 50
B53: 51
B54: 52
B55: 53
B56: 54
B57: 55
B58: 56
B59: 57
B60: 58
B61: 59
B62: 60
B63: 61
B64: 62
B65: 63
B66: 64
B67: 65
B68: 66
B69: 67
B70: 68
B71: 69
B72: 70
B73: 71
B74: 72
B75: 73
B76: 74
B77: 75
B78: 76
B79: 77

Sheet Instructions
A1: Capacity Plan Instructions
B31: Balloon 1 | C31: Fill out details on top of Capacity Plan sheet | T31: Balloon 2 | U31: Fill out all yellow fields in the Capacity Plan sheet. When filling out the Op Number column, create numbers in ascending order and put duplicate numbers next to each other (10,10). White columns are calculated and blue columns let you know if QTC constraints are present.
T34: Balloon 3 | U34: Use the hyperlinks in the Op Number column to easily navigate between sheets.
T37: Balloon 4 | U37: If single part process is allocated over 50%, must do an extended Run @ Rate. If bulk part process is allocated over 50%, may be asked to do an extended Run @ Rate.
A42: Actual Run Data Sheet Instructions
B74: Balloon 1 | C74: Fill out highlighted areas for who completed the Run at Rate. Other fields will be filled out automatically from the other sheets | U74: Balloon 2 | V74: Use the hyperlinks to easily navigate to the summary sheet or the capacity plan sheet | AO74: Balloon 3 | AP74: Time per part and pieces per hour will be filled out automatically from other sheets | BI74: Balloon 4 | BJ74: Fill out columns highlighted in yellow. All white columns will be calculated based off input form yellow columns. | BZ74: Balloon 5 | CA74: Values below table will be calculated based off input from yellow columns. | CM74: Balloon 6 | CN74: Place detailed comments regarding scrap/rework and downtime in specified area.
B78: NOTE: Run @ Rate data sheet cannot run over midnight because it breaks the calculations.
A83: Summary Sheet Instructions
C121: Balloon 1 | D121: Summary Sheet will automatically pull in all data and perform calculations to fill the table.
A129: Status Form Sheet Instructions
F160: Balloon 1 | G160: All fields except highlighted ones will be pulled in automatically | O160: Balloon 2 | P160: Fill out type of Run@Rate field | Y160: Balloon 3 | Z160: Fill out highlighted fields and remaining white fields will be calculated/filled out automatically | AI160: Balloon 4 | AJ160: Enter detailed comments in comments section | AR160: Balloon 5 | AS160: These items are to help flag possible issues that have been hidden by part specific run-at-rates
A166: Extended Run at Rate Sheet Instructions
A171: To be used when needed, when a process is 50% or over allocated to another part/supplier (Unless it is a Batch Process like Heat Treat, Plating, etc.).
E191: Extended Run at Rate sheet will only be used if machine loading allocation is greater than 50%. Batch operations such as Heat Treat and Planting do not need to complete Extended Run at Rate.
A197: Run at Rate Exemption Sheet Instructions
A202: Can be used when the Quoted Tooling Capacity is only 40% or less of the over all Supplier Tooling Capacity available.
D233: Balloon 1 | E233: Fill in highlighted reason for exemption section. Other fields will be filled automatically. | R233: Balloon 2 | S233: Fill in highlighted comment and other sections. Non-highlighted fields will be filled automatically.

Sheet Capacity Plan
B1: Production Capacity Plan
B3: Supplier Name: | L3: Nexteer Part Number:
B4: Supplier Duns Code: | L4: Nexteer Part Name:
B5: Plant (Mfg) Location: | L5: Nexteer Revision Level:
L6: Nexteer Program Name(s):
B7: Supplier Contact:
B8: Phone:
L9: Production days at Nexteer (days/yr): | S9: 240
B10: Nexteer Monitored: | L10: Production days at Supplier (days/yr):
B11: Supplier Monitored:
B12: Duration: | O12: Maximum Scheduled Volumes (MSV):
B14: Planned Run@Rate Completion Date:
B16: Run @ Rate Summary Data
AA17: =IF(SUM(AA21:AA50)>=1,"Yes","") -> 
A18: Number of Identical Machines | B18: Op Number | C18: Process Name: List each separate production line or machine | H18: Operators per shift | I18: shifts / day | J18: hours / shift | K18: days / wk | L18: Planned Cycle Time (sec) | M18: parts / cycle | N18: Daily Process Capacity | O18: Scheduled breaks & lunch per shift (min) | P18: Planned Tool change time per shift (min) | Q18: Planned Changeover time per shift (min) | R18: Other planned downtime per shift (min) | S18: Historical unscheduled downtime per shift (min) | T18: Planned % up time | U18: Planned % scrap at this process operation | V18: % scrap parts per operation | W18: Calculation Colum | X18: Sum of all down stream operations scrap rate %'s | Y18: Planned Daily Capacity | Z18: Machine loading allocated for other parts | AA18: Column for Opening Extended R@R | AB18: Hours per week allocated for this part | AC18: Planned Daily Capacity with allocation | AD18: Daily MSV | AE18: Overall required OEE | AF18: Daily Quoted Tool Capacity | AG18: Planned Weekly Capacity Allocated to this Part | AH18: Annual Capacity | AI18: Weekly MSV | AJ18: Annual MSV | AK18: Constraint on MSV? | AL18: OEE For 15% Above MSV | AM18: 15% above Daily MSV | AN18: 15% above Weekly MSV | AO18: 15% above Yearly MSV | AP18: Constraint on 15% above MSV? | AQ18: Net Good Parts / hour | AR18: Production time used for MSV (hrs/wk) | AS18: Production time used for 15% above MSV (hrs/wk)
A21: =COUNTIF($B$21:$B$50,B21) -> 0 | C21: 1 | N21: =IFERROR(((I21*(J21-((O21+R21)/60))*3600)/L21)*M21,"") ->  | T21: =IFERROR(1-(P21+Q21+S21)/(J21*60-(O21+R21)),"") ->  | V21: =IFERROR(SUMIF(B$21:B$50,B21,U$21:U$50)/A21,"") ->  | W21: =IF(B22=0,V21,IF(B21<B22,(SUMIF(B$21:B$50,B21,V$21:V$50)/A21)+W22,W22)) ->  | X21: =$W21 ->  | Y21: =IF(T21="","",ROUNDUP(N21*(1-X21)*T21,0)) ->  | AA21: =IF(A21=1,IF(Z21>=0.5,1,0),0) -> 0 | AB21: =IF(H21="","",I21*(1-Z21)*K21*(J21-((O21+R21)/60))) ->  | AC21: =IFERROR(IF(Y21*(1-Z21)=0,"",ROUNDUP(Y21*(1-Z21),0)),"") ->  | AD21: =(IFERROR(ROUNDUP(AC21/SUMIF($B$21:$B$50,B21,$AC$21:$AC$50)*$AF$21,),"")) ->  | AE21: =IFERROR(ROUNDUP(AD21/AC21,4),"") ->  | AF21: =IF(K21="","",S12/S9) ->  | AG21: =IFERROR(IF(K21="","",AC21*K21),"") ->  | AH21: =IF(J21="","",$S$10*AD21) ->  | AI21: =IFERROR(IF(K21="","",AD21*K21),"") ->  | AJ21: =IFERROR(IF(A21=1,S$12,AD21*240),"") ->  | AK21: =IF(J21="","",IF(AE21<1,"NO","YES")) ->  | AL21: =IFERROR(AM21/AC21,"") ->  | AM21: =IFERROR(IF(AD21*1.15=0,"",ROUNDUP(AD21*1.15,0)),"") ->  | AN21: =IFERROR(IF(K21="","",AM21*K21),"") ->  | AO21: =IF(AJ21="","",AJ21*1.15) ->  | AP21: =IF(J21="","",IF(AL21>1.2,"YES",IF(AL21>1,"HR",IF(AL21<1,"No",IF(AL21=1.001,"","NO"))))) ->  | AQ21: =IF(J21="","",(3600/L21)*M21*(1-X21)*T21) ->  | AR21: =IFERROR(AE21*AB21,"") ->  | AS21: =IFERROR(AB21*AE21*1.15,"") -> 
A22: 0 | C22: 2 | N22: =IFERROR(((I22*(J22-((O22+R22)/60))*3600)/L22)*M22,"") ->  | T22: =IFERROR(1-(P22+Q22+S22)/(J22*60-(O22+R22)),"") ->  | V22: =IFERROR(SUMIF(B$21:B$50,B22,U$21:U$50)/A22,"") ->  | W22: =IF(B23=0,V22,IF(B22<B23,(SUMIF(B$21:B$50,B22,V$21:V$50)/A22)+W23,W23)) ->  | Y22: =IF(T22="","",ROUNDUP(N22*(1-X22)*T22,0)) ->  | AA22: =IF(A22=1,IF(Z22>=0.5,1,0),0) -> 0 | AB22: =IF(H22="","",I22*(1-Z22)*K22*(J22-((O22+R22)/60))) ->  | AC22: =IFERROR(IF(Y22*(1-Z22)=0,"",ROUNDUP(Y22*(1-Z22),0)),"") ->  | AD22: =(IFERROR(ROUNDUP(AC22/SUMIF($B$21:$B$50,B22,$AC$21:$AC$50)*$AF$21,),"")) ->  | AE22: =IFERROR(ROUNDUP(AD22/AC22,4),"") ->  | AF22: =IF(K22="","",S13/S10) ->  | AG22: =IFERROR(IF(K22="","",AC22*K22),"") ->  | AH22: =IF(J22="","",$S$10*AD22) ->  | AI22: =IFERROR(IF(K22="","",AD22*K22),"") ->  | AJ22: =IFERROR(IF(A22=1,S$12,AD22*240),"") ->  | AK22: =IF(J22="","",IF(AE22<1,"NO","YES")) ->  | AL22: =IFERROR(AM22/AC22,"") ->  | AM22: =IFERROR(IF(AD22*1.15=0,"",ROUNDUP(AD22*1.15,0)),"") ->  | AN22: =IFERROR(IF(K22="","",AM22*K22),"") ->  | AO22: =IF(AJ22="","",AJ22*1.15) ->  | AP22: =IF(J22="","",IF(AL22>1.2,"YES",IF(AL22>1,"HR",IF(AL22<1,"No",IF(AL22=1.001,"","NO"))))) ->  | AQ22: =IF(J22="","",(3600/L22)*M22*(1-X22)*T22) ->  | AR22: =IFERROR(AE22*AB22,"") ->  | AS22: =IFERROR(AB22*AE22*1.15,"") -> 
A23: 0 | C23: 3 | AA23: 0
A24: 0 | C24: 4 | AA24: 0
A25: 0 | C25: 5 | AA25: 0
A26: 0 | C26: 6 | AA26: 0
A27: 0 | C27: 7 | AA27: 0
A28: 0 | C28: 8 | AA28: 0
A29: 0 | C29: 9 | AA29: 0
A30: 0 | C30: 10 | AA30: 0
A31: 0 | C31: 11 | AA31: 0
A32: 0 | C32: 12 | AA32: 0
A33: 0 | C33: 13 | AA33: 0
A34: 0 | C34: 14 | AA34: 0
A35: 0 | C35: 15 | AA35: 0
A36: 0 | C36: 16 | AA36: 0
A37: 0 | C37: 17 | AA37: 0
A38: 0 | C38: 18 | AA38: 0
A39: 0 | C39: 19 | AA39: 0
A40: 0 | C40: 20 | AA40: 0
A41: 0 | C41: 21 | AA41: 0
A42: 0 | C42: 22 | AA42: 0
A43: 0 | C43: 23 | AA43: 0
A44: 0 | C44: 24 | AA44: 0
A45: 0 | C45: 25 | AA45: 0
A46: 0 | C46: 26 | AA46: 0
A47: 0 | C47: 27 | AA47: 0
A48: 0 | C48: 28 | AA48: 0
A49: 0 | C49: 29 | AA49: 0
A50: 0 | C50: 30 | AA50: 0
V53: Comments:

Sheet Condensed (hidden)
B1: Production Capacity Plan
B3: Supplier Name: | L3: Nexteer Part Number:
B4: Supplier Duns Code: | L4: Nexteer Part Name:
B5: Plant (Mfg) Location: | L5: Nexteer Revision Level:
L6: Nexteer Program Name(s):
B7: Supplier Contact:
B8: Phone:
L9: Production days at Nexteer (days/yr): | S9: 240
B10: Nexteer Monitored: | L10: Production days at Supplier (days/yr): | S10: 240
B11: Supplier Monitored:
B12: Duration: | P12: Quoted Tool Capacity (QTC): | S12: 1000000 | V12: *Match volume to nomination letter(s)
C14: Planned Run@Rate Completion Date: | U14: =ROUNDUP(IF(B21<>B20,$AG21/PRODUCT(Z21:Z$50),AG21/(AG20/AF20)),0) -> 1399
Y17: System Effects | AC17: =IF(SUM(AC21:AC50)>=1,"Yes","") -> 
A18: Number of Identical Machines | B18: Op Number | C18: Process Name: List each separate production line or machine | H18: Operators | I18: shifts / day | J18: hours / shift | K18: days / wk | L18: Planned Cycle Time (sec) | M18: parts / cycle | N18: Daily Process Capacity | O18: Scheduled breaks & lunch per shift (min) | P18: Planned Tool change time per shift (min) | Q18: Planned Changeover time per shift (min) | R18: Other planned downtime per shift (min) | S18: Historical unscheduled downtime per shift (min) | T18: Planned % up time | U18: Total Daily Material with time losses | V18: Planned % scrap at this process operation | W18: Planned Scrap Product per day | X18: % scrap parts per operation | Y18: Sum of all down stream operations scrap rate %'s | Z18: Percentage of total parts that are good for operation | AA18: Planned Daily Capacity | AB18: Machine loading allocated for other parts | AC18: Column for Opening Extended R@R | AD18: Hours per week allocated for this part | AE18: Planned Daily Capacity allocated to this part | AF18: Amount of parts required to reach QTC including scrap | AG18: Daily QTC not including scrap | AH18: Overall required OEE | AI18: Daily Quoted Tool Capacity | AJ18: Planned Weekly Capacity Allocated to this Part | AK18: Annual Capacity | AL18: Weekly QTC | AM18: QTC | AN18: Constraint on QTC? | AO18: Total good and bad parts that can be made daily at above 15% | AP18: Scrap compensation at 15% above QTC | AQ18: 15% above Daily QTC | AR18: 15% above Weekly QTC | AS18: 15% above Yearly QTC | AT18: Constraint on 15% above QTC? | AU18: Net Good Parts / hour | AV18: Production time used for QTC (hrs/wk) | AW18: Production time used for 15% above QTC (hrs/wk)
A21: =COUNTIF($B$21:$B$50,B21) -> 3 | B21: 10 | C21: 1 | D21: Lathe | H21: 1 | I21: 3 | J21: 8 | K21: 5 | L21: 40 | M21: 1 | N21: =((I21*(J21-((O21+R21)/60))*3600)/L21)*M21 -> 1980 | O21: 30 | P21: 10 | Q21: 10 | R21: 10 | S21: 10 | T21: =IFERROR(((J21*60)-SUM(O21:S21))/(J21*60),"") -> 0.8541666667 | U21: =(((J21*60*60)/(L21/M21))*T21)*I21 -> 1845 | V21: 0 | W21: =U21*V21 -> 0 | X21: =SUMIF(B$21:B$50,B21,V$21:V$50)/A21 -> 0.006666666667 | Y21: =IF(B21<B22,(SUMIF(B$21:B$50,B21,X$21:X$50)/A21)+Y22,Y22) -> 0.006666666667 | Z21: =(1-SUMIF($B$21:$B$50,B21,$V$21:$V$50)/A21^2) -> 0.9977777778 | AA21: =IF(T21="","",U21*(1-Y21)) -> 1832.7 | AB21: 0 | AC21: =IF(AB21>=0.5,1,0) -> 0 | AD21: =IF(J21="","",I21*K21*(1-AB21)*(J21-((O21+R21)/60))) -> 110 | AE21: =IFERROR(IF(AA21*(1-AB21)=0,"",AA21*(1-AB21)),"") -> 1832.7 | AF21: =IFERROR(ROUNDUP($AG21/(PRODUCT(INDIRECT("Z"&MATCH(B21,B:B,0)&":Z50"))),0),"") -> 1399 | AG21: =(IFERROR(ROUNDUP(AE21/SUMIF($B$21:$B$50,B21,$AE$21:$AE$50)*$AI$21,),"")) -> 1389 | AH21: =IFERROR(ROUNDUP(AG21/AE21,4),"") -> 0.7579 | AI21: =IF(K21="","",S12/S9) -> 4166.666667 | AJ21: =IF(K21="","",AG21*K21) -> 6945 | AK21: =IF(J21="","",#REF!*#REF!) ->  | AL21: =IF(K21="","",AG21*5) -> 6945 | AM21: =IF(J21="","",AG21*240) -> 333360 | AN21: =IF(J21="","",IF(AH21<1,"NO","YES")) -> NO | AO21: =IFERROR(ROUNDUP(AE21*1.15,0),"") -> 2108 | AP21: =IFERROR(ROUNDUP(AF21*1.15,0),"") -> 1609 | AQ21: =IFERROR(IF(AG21*1.15=0,"",(AG21*1.15)),"") -> 1597.35 | AR21: =IF(K21="","",AQ21*5) -> 7986.75 | AS21: =IF(AM21="","",AM21*1.15) -> 383364 | AT21: =IF(J21="","",IF(AO21>AP21,"NO","YES")) -> NO | AU21: =IF(J21="","",(3600/L21)*M21*(1-Y21)*T21) -> 76.3625 | AV21: =IFERROR(AD21*AH21,"") -> 83.369 | AW21: =IFERROR(AD21*AH21*1.15,"") -> 95.87435
A22: 3 | B22: 10 | C22: 2 | D22: Lathe | H22: 1 | I22: 3 | J22: 8 | K22: 5 | L22: 40 | M22: 1 | N22: =((I22*(J22-((O22+R22)/60))*3600)/L22)*M22 -> 1980 | O22: 30 | P22: 10 | Q22: 10 | R22: 10 | S22: 10 | T22: =IFERROR(((J22*60)-SUM(O22:S22))/(J22*60),"") -> 0.8541666667 | U22: 1845 | V22: 0.02 | W22: 36.9 | X22: 0.006666666667 | Y22: 0.006666666667 | Z22: =(1-SUMIF($B$21:$B$50,B22,$V$21:$V$50)/A22^2) -> 0.9977777778 | AA22: 1832.7 | AB22: 0 | AC22: =IF(AB22>=0.5,1,0) -> 0 | AD22: 110 | AE22: =IFERROR(IF(AA22*(1-AB22)=0,"",AA22*(1-AB22)),"") -> 1832.7 | AF22: 1399 | AG22: 1389 | AH22: =IFERROR(ROUNDUP(AG22/AE22,4),"") -> 0.7579 | AI22: =IF(K22="","",S12/S9) -> 4166.666667 | AJ22: 6945 | AK22: =IF(J22="","",#REF!*#REF!) ->  | AL22: 6945 | AM22: 333360 | AN22: NO | AO22: =IFERROR(ROUNDUP(AE22*1.15,0),"") -> 2108 | AP22: 1609 | AQ22: 1597.35 | AR22: 7986.75 | AS22: 383364 | AT22: NO | AU22: 76.3625 | AV22: 83.369 | AW22: 95.87435
A23: =COUNTIF($B$21:$B$50,B23) -> 3 | B23: 10 | C23: 3 | D23: Lathe | H23: 1 | I23: 3 | J23: 8 | K23: 5 | L23: 40 | M23: 1 | N23: 1980 | O23: 30 | P23: 10 | Q23: 10 | R23: 10 | S23: 10 | T23: 0.8541666667 | U23: 1845 | V23: 0 | W23: =U23*V23 -> 0 | X23: 0.006666666667 | Y23: 0.006666666667 | Z23: =(1-SUMIF($B$21:$B$50,B23,$V$21:$V$50)/A23^2) -> 0.9977777778 | AA23: 1832.7 | AB23: 0 | AC23: 0 | AD23: 110 | AE23: 1832.7 | AF23: 1399 | AG23: 1389 | AH23: =IFERROR(ROUNDUP(AG23/AE23,4),"") -> 0.7579 | AI23: =IF(K23="","",S12/S9) -> 4166.666667 | AJ23: 6945 | AK23: =IF(J23="","",#REF!*#REF!) ->  | AL23: 6945 | AM23: 333360 | AN23: NO | AO23: 2108 | AP23: 1609 | AQ23: 1597.35 | AR23: 7986.75 | AS23: 383364 | AT23: NO | AU23: 76.3625 | AV23: 83.369 | AW23: 95.87435
A24: 2 | B24: 20 | C24: 4 | D24: Saw | H24: 1 | I24: 3 | J24: 8 | K24: 5 | L24: 50 | M24: 2 | N24: 3168 | O24: 30 | P24: 10 | Q24: 10 | R24: 10 | S24: 10 | T24: 0.8541666667 | U24: 2952 | V24: 0 | W24: 0 | X24: 0 | Y24: 0 | Z24: =ROUNDDOWN(1-SUMIF($B$21:$B$50,B24,$V$21:$V$50)/A24^2,3) -> 1 | AA24: 2952 | AB24: 0 | AC24: 0 | AD24: 110 | AE24: 2952 | AF24: 2084 | AG24: 2084 | AH24: 0.706 | AI24: =IF(K24="","",S12/S9) -> 4166.666667 | AJ24: 10420 | AK24: =IF(J24="","",#REF!*#REF!) ->  | AL24: 10420 | AM24: 500160 | AN24: NO | AO24: 3395 | AP24: 2397 | AQ24: 2396.6 | AR24: 11983 | AS24: 575184 | AT24: NO | AU24: 123 | AV24: 77.66 | AW24: 89.309
A25: 2 | B25: 20 | C25: 5 | D25: Saw | H25: 1 | I25: 3 | J25: 8 | K25: 5 | L25: 50 | M25: 2 | N25: 3168 | O25: 30 | P25: 10 | Q25: 10 | R25: 10 | S25: 10 | T25: 0.8541666667 | U25: 2952 | V25: 0 | W25: 0 | X25: 0 | Y25: 0 | Z25: =ROUNDDOWN(1-SUMIF($B$21:$B$50,B25,$V$21:$V$50)/A25^2,3) -> 1 | AA25: 2952 | AB25: 0 | AC25: 0 | AD25: 110 | AE25: 2952 | AF25: 2084 | AG25: 2084 | AH25: =IFERROR(ROUNDUP(AG25/AE25,4),"") -> 0.706 | AI25: =IF(K25="","",S12/S9) -> 4166.666667 | AJ25: 10420 | AK25: =IF(J25="","",#REF!*#REF!) ->  | AL25: 10420 | AM25: 500160 | AN25: NO | AO25: 3395 | AP25: 2397 | AQ25: 2396.6 | AR25: 11983 | AS25: 575184 | AT25: NO | AU25: 123 | AV25: 77.66 | AW25: 89.309
A26: 1 | B26: 30 | C26: 6 | D26: Mill | H26: 1 | I26: 3 | J26: 8 | K26: 5 | L26: 29 | M26: 12 | N26: 32772.41379 | O26: 30 | P26: 10 | Q26: 10 | R26: 10 | S26: 10 | T26: 0.8541666667 | U26: 30537.93103 | V26: 0 | W26: 0 | X26: 0 | Y26: 0 | Z26: =ROUNDDOWN(1-SUMIF($B$21:$B$50,B26,$V$21:$V$50)/A26^2,3) -> 1 | AA26: 30537.93103 | AB26: 0 | AC26: 0 | AD26: 110 | AE26: 30537.93103 | AF26: 4167 | AG26: 4167 | AH26: 0.1365 | AI26: =IF(K26="","",S12/S9) -> 4166.666667 | AJ26: 20835 | AK26: =IF(J26="","",#REF!*#REF!) ->  | AL26: 20835 | AM26: 1000080 | AN26: NO | AO26: 35119 | AP26: 4793 | AQ26: 4792.05 | AR26: 23960.25 | AS26: 1150092 | AT26: NO | AU26: 1272.413793 | AV26: 15.015 | AW26: 17.26725
A27: 1 | B27: 40 | C27: 7 | AG27: =(IFERROR(ROUNDUP(AE27/SUMIF($B$21:$B$50,B27,$AE$21:$AE$50)*$AI$21,),"")) ->  | AI27: =IF(K27="","",S12/S9) ->  | AK27: =IF(J27="","",#REF!*#REF!) ->  | AM27: =IF(J27="","",AG27*240) ->  | AQ27: =IFERROR(IF(AG27*1.15=0,"",(AG27*1.15)),"") ->  | AT27: =IF(J27="","",IF(AG27>AQ27,"NO","YES")) -> 
A28: 1 | B28: 50 | C28: 8 | AI28: =IF(K28="","",S12/S9) ->  | AK28: =IF(J28="","",#REF!*#REF!) ->  | AQ28: =IFERROR(IF(AG28*1.15=0,"",(AG28*1.15)),"") ->  | AV28: =IFERROR(AD28*AH28,"") -> 
A29: 1 | B29: 60 | C29: 9 | AI29: =IF(K29="","",S12/S9) ->  | AK29: =IF(J29="","",#REF!*#REF!) -> 
A30: 1 | B30: 70 | C30: 10 | AI30: =IF(K30="","",S12/S9) ->  | AK30: =IF(J30="","",#REF!*#REF!) -> 
A31: 1 | B31: 80 | C31: 11 | AI31: =IF(K31="","",S12/S9) ->  | AK31: =IF(J31="","",#REF!*#REF!) -> 
A32: 1 | B32: 90 | C32: 12 | AI32: =IF(K32="","",S12/S9) ->  | AK32: =IF(J32="","",#REF!*#REF!) -> 
A33: 1 | B33: 100 | C33: 13 | AI33: =IF(K33="","",S12/S9) ->  | AK33: =IF(J33="","",#REF!*#REF!) -> 
A34: 1 | B34: 110 | C34: 14 | AI34: =IF(K34="","",S12/S9) ->  | AK34: =IF(J34="","",#REF!*#REF!) -> 
A35: 1 | B35: 120 | C35: 15 | AI35: =IF(K35="","",S12/S9) ->  | AK35: =IF(J35="","",#REF!*#REF!) -> 
A36: 1 | B36: 130 | C36: 16 | Z36: =IF(1-SUMIF($B$21:$B$50,B36,$V$21:$V$50)/A36^2=1,"",1-SUMIF($B$21:$B$50,B36,$V$21:$V$50)/A36^2=1) ->  | AA36: =IF(T36="","",N36*T36*(1-#REF!)) ->  | AC36: 0 | AD36: =IF(J36="","",I36*K36*(1-AB36)*(J36-((O36+R36)/60))) ->  | AI36: =IF(K36="","",S12/S9) ->  | AK36: =IF(J36="","",#REF!*#REF!) ->  | AV36: =IFERROR(AD36*AH36,"") -> 
A37: 1 | B37: 140 | C37: 17 | AA37: =IF(T37="","",N37*T37*(1-#REF!)) ->  | AC37: 0 | AI37: =IF(K37="","",S12/S9) ->  | AK37: =IF(J37="","",#REF!*#REF!) -> 
A38: 1 | B38: 150 | C38: 18 | AA38: =IF(T38="","",N38*T38*(1-#REF!)) ->  | AC38: 0 | AI38: =IF(K38="","",S12/S9) ->  | AK38: =IF(J38="","",#REF!*#REF!) -> 
A39: 1 | B39: 160 | C39: 19 | AA39: =IF(T39="","",N39*T39*(1-#REF!)) ->  | AC39: 0 | AI39: =IF(K39="","",S12/S9) ->  | AK39: =IF(J39="","",#REF!*#REF!) -> 
A40: 1 | B40: 170 | C40: 20 | AA40: =IF(T40="","",N40*T40*(1-#REF!)) ->  | AC40: 0 | AI40: =IF(K40="","",S12/S9) ->  | AK40: =IF(J40="","",#REF!*#REF!) -> 
A41: 1 | B41: 180 | C41: 21 | AA41: =IF(T41="","",N41*T41*(1-#REF!)) ->  | AC41: 0 | AI41: =IF(K41="","",S12/S9) ->  | AK41: =IF(J41="","",#REF!*#REF!) -> 
A42: 1 | B42: 190 | C42: 22 | AA42: =IF(T42="","",N42*T42*(1-#REF!)) ->  | AC42: 0 | AI42: =IF(K42="","",S12/S9) ->  | AK42: =IF(J42="","",#REF!*#REF!) -> 
A43: 1 | B43: 200 | C43: 23 | AA43: =IF(T43="","",N43*T43*(1-#REF!)) ->  | AC43: 0 | AI43: =IF(K43="","",S12/S9) ->  | AK43: =IF(J43="","",#REF!*#REF!) -> 
A44: 1 | B44: 210 | C44: 24 | AA44: =IF(T44="","",N44*T44*(1-#REF!)) ->  | AC44: 0 | AI44: =IF(K44="","",S12/S9) ->  | AK44: =IF(J44="","",#REF!*#REF!) -> 
A45: 1 | B45: 220 | C45: 25 | AA45: =IF(T45="","",N45*T45*(1-#REF!)) ->  | AC45: 0 | AI45: =IF(K45="","",S12/S9) ->  | AK45: =IF(J45="","",#REF!*#REF!) -> 
A46: 1 | B46: 230 | C46: 26 | AA46: =IF(T46="","",N46*T46*(1-#REF!)) ->  | AC46: 0 | AI46: =IF(K46="","",S12/S9) ->  | AK46: =IF(J46="","",#REF!*#REF!) -> 
A47: 1 | B47: 240 | C47: 27 | AA47: =IF(T47="","",N47*T47*(1-#REF!)) ->  | AC47: 0 | AI47: =IF(K47="","",S12/S9) ->  | AK47: =IF(J47="","",#REF!*#REF!) -> 
A48: 1 | B48: 250 | C48: 28 | AA48: =IF(T48="","",N48*T48*(1-#REF!)) ->  | AC48: 0 | AI48: =IF(K48="","",S12/S9) ->  | AK48: =IF(J48="","",#REF!*#REF!) -> 
A49: 1 | B49: 260 | C49: 29 | AA49: =IF(T49="","",N49*T49*(1-#REF!)) ->  | AC49: 0 | AI49: =IF(K49="","",S12/S9) ->  | AK49: =IF(J49="","",#REF!*#REF!) -> 
A50: 1 | B50: 270 | C50: 30 | AA50: =IF(T50="","",N50*T50*(1-Y50)) ->  | AC50: 0 | AI50: =IF(K50="","",S12/S9) ->  | AK50: =IF(J50="","",#REF!*#REF!) -> 

Sheet Capacity Plan Option 2 (hidden)
C1: Production Capacity Plan
B3: Supplier Name: | L3: Nexteer Automotive Part Number:
B4: Supplier Duns Code: | L4: Nexteer Part Name:
B5: Plant (Mfg) Location: | L5: Revision Level:
L6: Nexteer Automotive Program:
B7: Supplier Contact:
B8: Phone:
L9: Production days at Nexteer Automotive (days/yr): | S9: 240
B10: Planned Type of Run@Rate: | D10: Nexteer Monitored: | L10: Production days at Supplier (days/yr): | S10: 240
D11: Supplier Monitored:
D12: Duration: | R12: Quoted Tool Capacity (QTC): | S12: 1000000 | U12: *Make sure to verify this volume with what is listed on the nomination letters
G14: Planned Run@Rate Completion Date:
Y17: =IF(SUM(Y21:Y50)>=1,"Yes","") -> Yes
A18: Number of Identical Machines | B18: Op Number | C18: Process Name: List each separate production line or machine | H18: Operators | I18: shifts / day | J18: hours / shift | K18: days / wk | L18: Planned Cycle Time (sec) | M18: parts / cycle | N18: Daily Process Capacity | O18: Scheduled breaks & lunch per shift (min) | P18: Planned Tool change time per shift (min) | Q18: Planned Changeover time per shift (min) | R18: Other planned downtime per shift (min) | S18: Historical unscheduled downtime per shift (min) | T18: Planned % up time | U18: Planned % scrap at this process operation | V18: % scrap at this process & Downstream Processes | W18: Planned Daily Capacity | X18: Machine loading allocated for other parts | Y18: Number | Z18: Hours per week allocated for this part | AA18: Planned Daily Capacity allocated to this part | AB18: Daily QTC | AC18: % of machine usage after allocation of other parts | AD18: Daily Quoted Tool Capacity | AE18: Planned Weekly Capacity Allocated to this Part | AF18: Annual Capacity | AG18: Weekly QTC | AH18: QTC | AI18: Constraint on QTC? | AJ18: 15% above Daily QTC | AK18: 15% above Weekly QTC | AL18: 15% above QTC | AM18: Constraint on 15% above QTC? | AN18: Net Good Parts / hour | AO18: Production time used for QTC (hrs/wk) | AP18: Production time used for 15% above QTC (hrs/wk)
A21: =COUNTIF($B$21:$B$50,B21) -> 3 | B21: 10 | C21: 1 | D21: Lathe | H21: 1 | I21: 3 | J21: 8 | K21: 5 | L21: 45 | M21: 1 | N21: =((I21*(J21-((O21+R21)/60))*3600)/L21)*M21 -> 1760 | O21: 30 | P21: 10 | Q21: 10 | R21: 10 | S21: 10 | T21: =IF(J21="","",1-((P21+Q21+S21)/((J21*60)-O21-R21))) -> 0.9318181818 | U21: 0.01 | V21: 0.01 | W21: =IF(T21="","",N21*T21*(1-V21)) -> 1623.6 | X21: 0.55 | Y21: =IF(A21=1,IF(X21>=0.5,1,0),0) -> 0 | Z21: =IF(J21="","",I21*K21*(1-X21)*(J21-((O21+R21)/60))) -> 49.5 | AA21: =IFERROR(W21*(1-X21),"") -> 730.62 | AB21: =(IFERROR(ROUNDUP(AA21/SUMIF($B$21:$B$50,B21,$AA$21:$AA$50)*$AD$21,),"")) -> 766 | AC21: =IFERROR(ROUNDUP(AB21/AA21,4),"") -> 1.0485 | AD21: =IF(K21="","",S12/S9) -> 4166.666667 | AE21: =IF(K21="","",AB21*K21) -> 3830 | AF21: =IF(J21="","",#REF!*#REF!) ->  | AG21: =IF(K21="","",AB21*5) -> 3830 | AH21: =IF(J21="","",S$12) -> 1000000 | AI21: =IF(J21="","",IF(AC21<1,"NO","YES")) -> YES | AJ21: =IF(AH21="","",(AL21/S$10*(AB21/AD21))) -> 880.9 | AK21: =IF(K21="","",AJ21*5) -> 4404.5 | AL21: =IF(AH21="","",AH21*1.15) -> 1150000 | AM21: =IF(J21="","",IF(AB21>AJ21,"NO","YES")) -> YES | AN21: =IF(J21="","",(3600/L21)*M21*(1-V21)*T21) -> 73.8 | AO21: =Z21*AC21 -> 51.90075 | AP21: =Z21*AC21*1.15 -> 59.6858625
A22: 3 | B22: 10 | C22: 2 | D22: Lathe | H22: 1 | I22: 3 | J22: 8 | K22: 5 | L22: 45 | M22: 1 | N22: 1760 | O22: 30 | P22: 10 | Q22: 10 | R22: 10 | S22: 10 | T22: 0.9318181818 | U22: 0.01 | V22: 0.01 | W22: 1623.6 | X22: 0 | Y22: 0 | Z22: 110 | AA22: 1623.6 | AB22: 1701 | AC22: =IFERROR(ROUNDUP(AB22/AA22,4),"") -> 1.0477 | AD22: =IF(K22="","",S12/S9) -> 4166.666667 | AE22: =IF(K22="","",AB22*K22) -> 8505 | AF22: =IF(J22="","",#REF!*#REF!) ->  | AG22: =IF(K22="","",AB22*5) -> 8505 | AH22: 1000000 | AI22: YES | AJ22: 1956.15 | AK22: 9780.75 | AL22: =IF(AH22="","",AH22*1.15) -> 1150000 | AM22: YES | AN22: 73.8 | AO22: 115.247 | AP22: 132.53405
A23: 3 | B23: 10 | C23: 3 | D23: Lathe | H23: 1 | I23: 3 | J23: 8 | K23: 5 | L23: 45 | M23: 1 | N23: 1760 | O23: 30 | P23: 10 | Q23: 10 | R23: 10 | S23: 10 | T23: 0.9318181818 | U23: 0.01 | V23: 0.01 | W23: 1623.6 | X23: 0 | Y23: 0 | Z23: 110 | AA23: 1623.6 | AB23: 1701 | AC23: 1.0477 | AD23: =IF(K23="","",S12/S9) -> 4166.666667 | AE23: 8505 | AF23: =IF(J23="","",#REF!*#REF!) ->  | AG23: 8505 | AH23: 1000000 | AI23: YES | AJ23: 1956.15 | AK23: 9780.75 | AL23: =IF(AH23="","",AH23*1.15) -> 1150000 | AM23: YES | AN23: 73.8 | AO23: 115.247 | AP23: 132.53405
A24: 2 | B24: 20 | C24: 4 | D24: Saw | H24: 1 | I24: 3 | J24: 8 | K24: 5 | L24: 50 | M24: 2 | N24: 3168 | O24: 30 | P24: 10 | Q24: 10 | R24: 10 | S24: 10 | T24: 0.9318181818 | U24: 0.02 | V24: 0.01 | W24: 2922.48 | X24: 0 | Y24: 0 | Z24: 110 | AA24: 2922.48 | AB24: 2084 | AC24: 0.7131 | AD24: =IF(K24="","",S12/S9) -> 4166.666667 | AE24: 10420 | AF24: =IF(J24="","",#REF!*#REF!) ->  | AG24: 10420 | AH24: 1000000 | AI24: NO | AJ24: 2396.6 | AK24: 11983 | AL24: 1150000 | AM24: YES | AN24: 132.84 | AO24: 78.441 | AP24: 90.20715
A25: 2 | B25: 20 | C25: 5 | D25: Saw | H25: 1 | I25: 3 | J25: 8 | K25: 5 | L25: 50 | M25: 2 | N25: 3168 | O25: 30 | P25: 10 | Q25: 10 | R25: 10 | S25: 10 | T25: 0.9318181818 | U25: 0.02 | V25: 0.01 | W25: 2922.48 | X25: 0 | Y25: 0 | Z25: 110 | AA25: 2922.48 | AB25: 2084 | AC25: 0.7131 | AD25: =IF(K25="","",S12/S9) -> 4166.666667 | AE25: 10420 | AF25: =IF(J25="","",#REF!*#REF!) ->  | AG25: 10420 | AH25: 1000000 | AI25: NO | AJ25: 2396.6 | AK25: 11983 | AL25: 1150000 | AM25: YES | AN25: 132.84 | AO25: 78.441 | AP25: 90.20715
A26: 1 | B26: 30 | C26: 6 | D26: Mill | H26: 1 | I26: 3 | J26: 8 | K26: 5 | L26: 30 | M26: 12 | N26: 31680 | O26: 30 | P26: 10 | Q26: 10 | R26: 10 | S26: 10 | T26: 0.9318181818 | U26: 0.05 | V26: 0.02 | W26: 28929.6 | X26: 0.55 | Y26: 1 | Z26: 49.5 | AA26: 13018.32 | AB26: 4167 | AC26: 0.3201 | AD26: =IF(K26="","",S12/S9) -> 4166.666667 | AE26: 20835 | AF26: =IF(J26="","",#REF!*#REF!) ->  | AG26: 20835 | AH26: 1000000 | AI26: NO | AJ26: 4792.05 | AK26: 23960.25 | AL26: 1150000 | AM26: YES | AN26: 1314.981818 | AO26: 15.84495 | AP26: 18.2216925
A27: 1 | B27: 40 | C27: 7 | Y27: =IF(X27>=0.5,1,0) -> 0 | AD27: =IF(K27="","",S12/S9) ->  | AF27: =IF(J27="","",#REF!*#REF!) ->  | AJ27: =IF(AH27="","",(AL27/S$10/A27)) ->  | AM27: =IF(J27="","",IF(AB27>AJ27,"NO","YES")) -> 
A28: 1 | B28: 50 | C28: 8 | Y28: 0 | AD28: =IF(K28="","",S12/S9) ->  | AF28: =IF(J28="","",#REF!*#REF!) -> 
A29: 1 | B29: 60 | C29: 9 | Y29: 0 | AB29: =IF(E29="","",(AD29/N$9/#REF!)) ->  | AD29: =IF(K29="","",S12/S9) ->  | AF29: =IF(J29="","",#REF!*#REF!) -> 
A30: 1 | B30: 70 | C30: 10 | Y30: 0 | AB30: =IF(E30="","",(AD30/N$9/#REF!)) ->  | AD30: =IF(K30="","",S12/S9) ->  | AF30: =IF(J30="","",#REF!*#REF!) -> 
A31: 1 | B31: 80 | C31: 11 | Y31: 0 | AB31: =IF(E31="","",(AD31/N$9/#REF!)) ->  | AD31: =IF(K31="","",S12/S9) ->  | AF31: =IF(J31="","",#REF!*#REF!) -> 
A32: 1 | B32: 90 | C32: 12 | Y32: 0 | AB32: =IF(E32="","",(AD32/N$9/#REF!)) ->  | AD32: =IF(K32="","",S12/S9) ->  | AF32: =IF(J32="","",#REF!*#REF!) -> 
A33: 1 | B33: 100 | C33: 13 | Y33: 0 | AB33: =IF(E33="","",(AD33/N$9/#REF!)) ->  | AD33: =IF(K33="","",S12/S9) ->  | AF33: =IF(J33="","",#REF!*#REF!) -> 
A34: 1 | B34: 110 | C34: 14 | Y34: 0 | AB34: =IF(E34="","",(AD34/N$9/#REF!)) ->  | AD34: =IF(K34="","",S12/S9) ->  | AF34: =IF(J34="","",#REF!*#REF!) -> 
A35: 1 | B35: 120 | C35: 15 | Y35: 0 | AB35: =IF(E35="","",(AD35/N$9/#REF!)) ->  | AD35: =IF(K35="","",S12/S9) ->  | AF35: =IF(J35="","",#REF!*#REF!) -> 
A36: 1 | B36: 130 | C36: 16 | Y36: 0 | AB36: =IF(E36="","",(AD36/N$9/#REF!)) ->  | AD36: =IF(K36="","",S12/S9) ->  | AF36: =IF(J36="","",#REF!*#REF!) -> 
A37: 1 | B37: 140 | C37: 17 | Y37: 0 | AB37: =IF(E37="","",(AD37/N$9/#REF!)) ->  | AD37: =IF(K37="","",S12/S9) ->  | AF37: =IF(J37="","",#REF!*#REF!) -> 
A38: 1 | B38: 150 | C38: 18 | Y38: 0 | AB38: =IF(E38="","",(AD38/N$9/#REF!)) ->  | AD38: =IF(K38="","",S12/S9) ->  | AF38: =IF(J38="","",#REF!*#REF!) -> 
A39: 1 | B39: 160 | C39: 19 | Y39: 0 | AB39: =IF(E39="","",(AD39/N$9/#REF!)) ->  | AD39: =IF(K39="","",S12/S9) ->  | AF39: =IF(J39="","",#REF!*#REF!) -> 
A40: 1 | B40: 170 | C40: 20 | Y40: 0 | AB40: =IF(E40="","",(AD40/N$9/#REF!)) ->  | AD40: =IF(K40="","",S12/S9) ->  | AF40: =IF(J40="","",#REF!*#REF!) -> 
A41: 1 | B41: 180 | C41: 21 | Y41: 0 | AB41: =IF(E41="","",(AD41/N$9/#REF!)) ->  | AD41: =IF(K41="","",S12/S9) ->  | AF41: =IF(J41="","",#REF!*#REF!) -> 
A42: 1 | B42: 190 | C42: 22 | Y42: 0 | AB42: =IF(E42="","",(AD42/N$9/#REF!)) ->  | AD42: =IF(K42="","",S12/S9) ->  | AF42: =IF(J42="","",#REF!*#REF!) -> 
A43: 1 | B43: 200 | C43: 23 | Y43: 0 | AB43: =IF(E43="","",(AD43/N$9/#REF!)) ->  | AD43: =IF(K43="","",S12/S9) ->  | AF43: =IF(J43="","",#REF!*#REF!) -> 
A44: 1 | B44: 210 | C44: 24 | Y44: 0 | AB44: =IF(E44="","",(AD44/N$9/#REF!)) ->  | AD44: =IF(K44="","",S12/S9) ->  | AF44: =IF(J44="","",#REF!*#REF!) -> 
A45: 1 | B45: 220 | C45: 25 | Y45: 0 | AB45: =IF(E45="","",(AD45/N$9/#REF!)) ->  | AD45: =IF(K45="","",S12/S9) ->  | AF45: =IF(J45="","",#REF!*#REF!) -> 
A46: 1 | B46: 230 | C46: 26 | Y46: 0 | AB46: =IF(E46="","",(AD46/N$9/#REF!)) ->  | AD46: =IF(K46="","",S12/S9) ->  | AF46: =IF(J46="","",#REF!*#REF!) -> 
A47: 1 | B47: 240 | C47: 27 | Y47: 0 | AB47: =IF(E47="","",(AD47/N$9/#REF!)) ->  | AD47: =IF(K47="","",S12/S9) ->  | AF47: =IF(J47="","",#REF!*#REF!) -> 
A48: 1 | B48: 250 | C48: 28 | Y48: 0 | AB48: =IF(E48="","",(AD48/N$9/#REF!)) ->  | AD48: =IF(K48="","",S12/S9) ->  | AF48: =IF(J48="","",#REF!*#REF!) -> 
A49: 1 | B49: 260 | C49: 29 | Y49: 0 | AB49: =IF(E49="","",(AD49/N$9/#REF!)) ->  | AD49: =IF(K49="","",S12/S9) ->  | AF49: =IF(J49="","",#REF!*#REF!) -> 
A50: 1 | B50: 270 | C50: 30 | Y50: 0 | AB50: =IF(E50="","",(AD50/N$9/#REF!)) ->  | AD50: =IF(K50="","",S12/S9) ->  | AF50: =IF(J50="","",#REF!*#REF!) -> 
B53: Color Key | J53: **Note: A "pink" cell does not necessarily indicate a failure to the R@R, it is to alert the AQE/SQE to investigate further. | Z53: Comments:
B54: Vanilla | C54: Filled out by supplier | J54: A "red" cell must be addressed before a R@R can be closed.
B55: White | C55: Calculated automatically
B56: Light Blue | C56: This column determines if there is a constraint on the QTC | J56: Key items to consider: | L56: Verify that the planned %scrap is acceptable based on the supplier's experience and industry
B57: Orange | C57: Shows the user that this row is part of a duplicate machine | M57: standards for similar products.
B58: Green | C58: Means there is no constraint on the QTC (good)
B59: Red | C59: Means there is a constraint on the QTC (bad) | L59: Verify that the capacity the supplier is allocating meets the requirements for both daily QTC & 15% > QTC
B60: Purple | C60: If production time used for QTC is above 100 and less than 169 hours and/or requirements can't be met for 15% QTC (bad)
L61: Verify that the supplier's production time used to meet QTC requirements are not expected to exceed
M62: a 100 hour workweek
B63: Terminology Key QTC = LCR MSV = MCR
L64: Identify any other potential issues with the capacity plan, such as ensuring all process steps are
M65: identified, downtime isn't excessive, etc.
B66: The closer "% of machine usage after allocation of other parts" column is to 100% the more efficent the machines are
L67: Identify potential opportunities for improvement.

Sheet Process 1 - Actual Run Data
A1: Actual Run Data
B5: Supplier Name: | C5: =IF('Capacity Plan'!$F$3="","",'Capacity Plan'!$F$3) ->  | W5: Completed By:
B6: Process Name: | C6: =IF('Capacity Plan'!$D$21="","",'Capacity Plan'!$D$21) -> 
B7: Part Number: | C7: =IF('Capacity Plan'!$Q$3="","",'Capacity Plan'!$Q$3) -> 
R9: Target | S9: Actual | T9: Difference | V9: PLEASE PRINT HARD COPY FOR USE DURING RUN@RATE. COMPLETE BY FILLING IN THE HIGHLIGHTED COLUMNS ONLY. USE MILITARY (24:00 HR) TIME FORMAT.
B10: Run @ Rate Summary Data | J10: Time/part | R10: =IFERROR(IF(F15="","",'Capacity Plan'!L21/'Capacity Plan'!M21),"") ->  | S10: =IFERROR(IF(F15="","",3600/S11),"") ->  | T10: =IFERROR(IF(F15="","",R10-S10),"") -> 
J11: Pcs/Hour | R11: =IFERROR(IF(F15="","",60*60/R10),"") ->  | S11: =IFERROR(IF(F15="","",(S40*60/R41)),"") ->  | T11: =IFERROR(IF(F15="","",S11-R11),"") -> 
B13: Capacity Plan | F13: Start Time (hh:mm) | G13: Stop Time (hh:mm) | H13: Downtime Description | R13: Total Time | S13: Total # of Pcs. Run | T13: Pieces/ Hour | U13: Good Pieces | V13: Good Pcs/Hour | W13: Rework Total | X13: Scrap Total | Y13: % Scrap | Z13: Net Pcs/Hr (Good + Rework)
H14: B | J14: T | L14: C | N14: O | P14: U | T14: =IFERROR(IF(S14="","",((S14/R14))*60),"") ->  | V14: =IFERROR(IF(S14="","",((U14/S14))*T14),"") ->  | Y14: =IFERROR(IF(S14="","",X14/S14),"") ->  | Z14: =IFERROR(IF(S14="","",(1-(Y14/1000000))*T14),"") -> 
I15: =IF(H15="x",(G15-F15)*1440,0) -> 0 | K15: =IF(J15="x",(G15-F15)*1440,0) -> 0 | M15: =IF(L15="x",(G15-F15)*1440,0) -> 0 | O15: =IF(N15="x",(G15-F15)*1440,0) -> 0 | Q15: =IF(P15="x",(G15-F15)*1440,0) -> 0 | R15: =IF(ISBLANK(F15),"",IF(G15>=F15,(G15-F15)*1440,(1+G15-F15)*1440)) ->  | T15: =IFERROR(IF(S15="","",((S15/R15))*60),"") ->  | U15: =IF(S15="","",S15-(W15+X15)) ->  | V15: =IFERROR(IF(S15="","",((U15/S15))*T15),"") ->  | Y15: =IFERROR(IF(S15="","",X15/S15),"") ->  | Z15: =IFERROR(IF(S15="","",(1-(Y15/1000000))*T15),"") -> 
A16: Description of Downtime: | I16: 0 | K16: 0 | M16: 0 | O16: 0 | Q16: =IF(P16="x",(G16-F16)*1440,0) -> 0 | R16: =IF(ISBLANK(F16),"",IF(G16>=F16,(G16-F16)*1440,(1+G16-F16)*1440)) ->  | T16: =IFERROR(IF(S16="","",((S16/R16))*60),"") ->  | U16: =IF(S16="","",S16-(W16+X16)) ->  | V16: =IFERROR(IF(S16="","",((U16/S16))*T16),"") ->  | Y16: =IFERROR(IF(S16="","",X16/S16),"") ->  | Z16: =IFERROR(IF(S16="","",(1-(Y16/1000000))*T16),"") -> 
I17: 0 | K17: 0 | M17: 0 | O17: 0 | Q17: 0
D18: Downtime | I18: =IF(H18="x",(G18-F18)*1440,0) -> 0 | K18: =IF(J18="x",(G18-F18)*1440,0) -> 0 | M18: =IF(L18="x",(G18-F18)*1440,0) -> 0 | O18: =IF(N18="x",(G18-F18)*1440,0) -> 0 | Q18: 0
A19: B | B19: breaks/lunch | D19: =I39 -> 0 | I19: =IF(H19="x",(G19-F19)*1440,0) -> 0 | K19: =IF(J19="x",(G19-F19)*1440,0) -> 0 | M19: =IF(L19="x",(G19-F19)*1440,0) -> 0 | O19: =IF(N19="x",(G19-F19)*1440,0) -> 0 | Q19: 0
A20: T | B20: tool change | D20: =K39 -> 0 | I20: 0 | K20: 0 | M20: 0 | O20: 0 | Q20: 0
A21: C | B21: changeover | D21: =M39 -> 0 | I21: 0 | K21: 0 | M21: 0 | O21: 0 | Q21: 0
A22: O | B22: other planned dntm | D22: =O39 -> 0 | I22: 0 | K22: 0 | M22: 0 | O22: 0 | Q22: 0
A23: U | B23: unplanned dntm | D23: =Q39 -> 0 | I23: 0 | K23: 0 | M23: 0 | O23: 0 | Q23: 0
I24: =IF(H24="x",(G24-F24)*1440,0) -> 0 | K24: =IF(J24="x",(G24-F24)*1440,0) -> 0 | M24: =IF(L24="x",(G24-F24)*1440,0) -> 0 | O24: =IF(N24="x",(G24-F24)*1440,0) -> 0 | Q24: 0
I25: 0 | K25: 0 | M25: 0 | O25: 0 | Q25: 0
I26: 0 | K26: 0 | M26: 0 | O26: 0 | Q26: 0
I27: 0 | K27: 0 | M27: 0 | O27: 0 | Q27: 0
I28: 0 | K28: 0 | M28: 0 | O28: 0 | Q28: 0
I29: 0 | K29: 0 | M29: 0 | O29: 0 | Q29: 0
I30: 0 | K30: 0 | M30: 0 | O30: 0 | Q30: 0
I31: 0 | K31: 0 | M31: 0 | O31: 0 | Q31: 0
I32: 0 | K32: 0 | M32: 0 | O32: 0 | Q32: 0
I33: 0 | K33: 0 | M33: 0 | O33: 0 | Q33: 0
I34: 0 | K34: 0 | M34: 0 | O34: 0 | Q34: 0
I35: 0 | K35: 0 | M35: 0 | O35: 0 | Q35: 0
I36: 0 | K36: 0 | M36: 0 | O36: 0 | Q36: 0
I37: 0 | K37: 0 | M37: 0 | O37: 0 | Q37: 0
I38: 0 | K38: 0 | M38: 0 | O38: 0 | Q38: 0
I39: =SUM(I15:I38) -> 0 | K39: =SUM(K15:K38) -> 0 | M39: =SUM(M15:M38) -> 0 | O39: =SUM(O15:O38) -> 0 | Q39: =SUM(Q15:Q38) -> 0 | R39: =(G39-F39)*1440 -> 0 | T39: =((S39/R39))*60/1440 ->  | U39: =S39-(W39+X39) -> 0 | V39: =((U39/S39))*T39 ->  | Y39: =(X39/S39)*1000000 ->  | Z39: =(1-(Y39/1000000))*T39 -> 
S40: =SUM(S15:S39) -> 0 | U40: =SUM(U15:U39) -> 0 | W40: =SUM(W15:W39) -> 0
P41: # of minutes uptime: | R41: =R42-(D20+D21+D23) -> 0 | T41: % uptime: | U41: =IFERROR(R41/R42,"") ->  | W41: FTQ: | X41: =IFERROR(IF(F15="","",((S40-U40)/S40)*1000000),"") -> 
P42: Total Run Time: | R42: =SUM(R15:R38)-(D19+D22) -> 0 | W42: % Scrap: | X42: =IFERROR(IF(F15="","",((S40-(U40+W40))/S40)),"") -> 
L44: Comments: Document scrap/rework and downtime here

Sheet Process 2 - Actual Run Data
A1: Actual Run Data
B5: Supplier Name: | C5: =IF('Capacity Plan'!$F$3="","",'Capacity Plan'!$F$3) ->  | W5: Completed By:
B6: Process Name: | C6: =IF('Capacity Plan'!$D$22="","",'Capacity Plan'!$D$22) -> 
B7: Part Number: | C7: =IF('Capacity Plan'!$Q$3="","",'Capacity Plan'!$Q$3) -> 
R9: Target | S9: Actual | T9: Difference | V9: PLEASE PRINT HARD COPY FOR USE DURING RUN@RATE. COMPLETE BY FILLING IN THE HIGHLIGHTED COLUMNS ONLY. USE MILITARY (24:00 HR) TIME FORMAT.
B10: Run @ Rate Summary Data | J10: Time/part | R10: =IFERROR(IF(F15="","",'Capacity Plan'!L22/'Capacity Plan'!M22),"") ->  | S10: =IFERROR(IF(F15="","",3600/S11),"") ->  | T10: =IFERROR(IF(F15="","",R10-S10),"") -> 
J11: Pcs/Hour | R11: =IFERROR(IF(F15="","",60*60/R10),"") ->  | S11: =IFERROR(IF(F15="","",(S40*60/R41)),"") ->  | T11: =IFERROR(IF(F15="","",S11-R11),"") -> 
B13: Capacity Plan | F13: Start Time (hh:mm) | G13: Stop Time (hh:mm) | H13: Downtime Description | R13: Total Time | S13: Total # of Pcs. Run | T13: Pieces/ Hour | U13: Good Pieces | V13: Good Pcs/Hour | W13: Rework Total | X13: Scrap Total | Y13: % Scrap | Z13: Net Pcs/Hr (Good + Rework)
H14: B | J14: T | L14: C | N14: O | P14: U | T14: =IFERROR(IF(S14="","",((S14/R14))*60),"") ->  | V14: =IFERROR(IF(S14="","",((U14/S14))*T14),"") ->  | Y14: =IFERROR(IF(S14="","",X14/S14),"") ->  | Z14: =IFERROR(IF(S14="","",(1-(Y14/1000000))*T14),"") -> 
I15: =IF(H15="x",(G15-F15)*1440,0) -> 0 | K15: =IF(J15="x",(G15-F15)*1440,0) -> 0 | M15: =IF(L15="x",(G15-F15)*1440,0) -> 0 | O15: =IF(N15="x",(G15-F15)*1440,0) -> 0 | Q15: =IF(P15="x",(G15-F15)*1440,0) -> 0 | R15: =IF(ISBLANK(F15),"",IF(G15>=F15,(G15-F15)*1440,(1+G15-F15)*1440)) ->  | T15: =IFERROR(IF(S15="","",((S15/R15))*60),"") ->  | U15: =IF(S15="","",S15-(W15+X15)) ->  | V15: =IFERROR(IF(S15="","",((U15/S15))*T15),"") ->  | Y15: =IFERROR(IF(S15="","",X15/S15),"") ->  | Z15: =IFERROR(IF(S15="","",(1-(Y15/1000000))*T15),"") -> 
A16: Description of Downtime: | I16: 0 | K16: 0 | M16: 0 | O16: 0 | Q16: =IF(P16="x",(G16-F16)*1440,0) -> 0 | R16: =IF(ISBLANK(F16),"",IF(G16>=F16,(G16-F16)*1440,(1+G16-F16)*1440)) ->  | T16: =IFERROR(IF(S16="","",((S16/R16))*60),"") ->  | U16: =IF(S16="","",S16-(W16+X16)) ->  | V16: =IFERROR(IF(S16="","",((U16/S16))*T16),"") ->  | Y16: =IFERROR(IF(S16="","",X16/S16),"") ->  | Z16: =IFERROR(IF(S16="","",(1-(Y16/1000000))*T16),"") -> 
I17: 0 | K17: 0 | M17: 0 | O17: 0 | Q17: 0
D18: Downtime | I18: =IF(H18="x",(G18-F18)*1440,0) -> 0 | K18: =IF(J18="x",(G18-F18)*1440,0) -> 0 | M18: =IF(L18="x",(G18-F18)*1440,0) -> 0 | O18: =IF(N18="x",(G18-F18)*1440,0) -> 0 | Q18: 0
A19: B | B19: breaks/lunch | D19: =I39 -> 0 | I19: =IF(H19="x",(G19-F19)*1440,0) -> 0 | K19: =IF(J19="x",(G19-F19)*1440,0) -> 0 | M19: =IF(L19="x",(G19-F19)*1440,0) -> 0 | O19: =IF(N19="x",(G19-F19)*1440,0) -> 0 | Q19: 0
A20: T | B20: tool change | D20: =K39 -> 0 | I20: 0 | K20: 0 | M20: 0 | O20: 0 | Q20: 0
A21: C | B21: changeover | D21: =M39 -> 0 | I21: 0 | K21: 0 | M21: 0 | O21: 0 | Q21: 0
A22: O | B22: other planned dntm | D22: =O39 -> 0 | I22: 0 | K22: 0 | M22: 0 | O22: 0 | Q22: 0
A23: U | B23: unplanned dntm | D23: =Q39 -> 0 | I23: 0 | K23: 0 | M23: 0 | O23: 0 | Q23: 0
I24: =IF(H24="x",(G24-F24)*1440,0) -> 0 | K24: =IF(J24="x",(G24-F24)*1440,0) -> 0 | M24: =IF(L24="x",(G24-F24)*1440,0) -> 0 | O24: =IF(N24="x",(G24-F24)*1440,0) -> 0 | Q24: 0
I25: 0 | K25: 0 | M25: 0 | O25: 0 | Q25: 0
I26: 0 | K26: 0 | M26: 0 | O26: 0 | Q26: 0
I27: 0 | K27: 0 | M27: 0 | O27: 0 | Q27: 0
I28: 0 | K28: 0 | M28: 0 | O28: 0 | Q28: 0
I29: 0 | K29: 0 | M29: 0 | O29: 0 | Q29: 0
I30: 0 | K30: 0 | M30: 0 | O30: 0 | Q30: 0
I31: 0 | K31: 0 | M31: 0 | O31: 0 | Q31: 0
I32: 0 | K32: 0 | M32: 0 | O32: 0 | Q32: 0
I33: 0 | K33: 0 | M33: 0 | O33: 0 | Q33: 0
I34: 0 | K34: 0 | M34: 0 | O34: 0 | Q34: 0
I35: 0 | K35: 0 | M35: 0 | O35: 0 | Q35: 0
I36: 0 | K36: 0 | M36: 0 | O36: 0 | Q36: 0
I37: 0 | K37: 0 | M37: 0 | O37: 0 | Q37: 0
I38: 0 | K38: 0 | M38: 0 | O38: 0 | Q38: 0
I39: =SUM(I15:I38) -> 0 | K39: =SUM(K15:K38) -> 0 | M39: =SUM(M15:M38) -> 0 | O39: =SUM(O15:O38) -> 0 | Q39: =SUM(Q15:Q38) -> 0 | R39: =(G39-F39)*1440 -> 0 | T39: =((S39/R39))*60/1440 ->  | U39: =S39-(W39+X39) -> 0 | V39: =((U39/S39))*T39 ->  | Y39: =(X39/S39)*1000000 ->  | Z39: =(1-(Y39/1000000))*T39 -> 
B40: =60*60 -> 3600 | S40: =SUM(S15:S39) -> 0 | U40: =SUM(U15:U39) -> 0 | W40: =SUM(W15:W39) -> 0
P41: # of minutes uptime: | R41: =R42-(D20+D21+D23) -> 0 | T41: % uptime: | U41: =IFERROR(R41/R42,"") ->  | W41: FTQ: | X41: =IFERROR(IF(F15="","",((S40-U40)/S40)*1000000),"") -> 
P42: Total Run Time: | R42: =SUM(R15:R38)-(D19+D22) -> 0 | W42: % Scrap: | X42: =IFERROR(IF(F15="","",((S40-(U40+W40))/S40)),"") -> 
L44: Comments: Document scrap/rework and downtime here

Sheet Process 3 - Actual Run Data
A1: Actual Run Data
B5: Supplier Name: | C5: =IF('Capacity Plan'!$F$3="","",'Capacity Plan'!$F$3) ->  | W5: Completed By:
B6: Process Name: | C6: =IF('Capacity Plan'!$D$23="","",'Capacity Plan'!$D$23) -> 
B7: Part Number: | C7: =IF('Capacity Plan'!$Q$3="","",'Capacity Plan'!$Q$3) -> 
R9: Target | S9: Actual | T9: Difference | V9: PLEASE PRINT HARD COPY FOR USE DURING RUN@RATE. COMPLETE BY FILLING IN THE HIGHLIGHTED COLUMNS ONLY. USE MILITARY (24:00 HR) TIME FORMAT.
B10: Run @ Rate Summary Data | J10: Time/part | R10: =IFERROR(IF(F15="","",'Capacity Plan'!L23/'Capacity Plan'!M23),"") ->  | S10: =IFERROR(IF(F15="","",3600/S11),"") ->  | T10: =IFERROR(IF(F15="","",R10-S10),"") -> 
J11: Pcs/Hour | R11: =IFERROR(IF(F15="","",60*60/R10),"") ->  | S11: =IFERROR(IF(F15="","",(S40*60/R41)),"") ->  | T11: =IFERROR(IF(F15="","",S11-R11),"") -> 
B13: Capacity Plan | F13: Start Time (hh:mm) | G13: Stop Time (hh:mm) | H13: Downtime Description | R13: Total Time | S13: Total # of Pcs. Run | T13: Pieces/ Hour | U13: Good Pieces | V13: Good Pcs/Hour | W13: Rework Total | X13: Scrap Total | Y13: % Scrap | Z13: Net Pcs/Hr (Good + Rework)
H14: B | J14: T | L14: C | N14: O | P14: U | T14: =IFERROR(IF(S14="","",((S14/R14))*60),"") ->  | V14: =IFERROR(IF(S14="","",((U14/S14))*T14),"") ->  | Y14: =IFERROR(IF(S14="","",X14/S14),"") ->  | Z14: =IFERROR(IF(S14="","",(1-(Y14/1000000))*T14),"") -> 
I15: =IF(H15="x",(G15-F15)*1440,0) -> 0 | K15: =IF(J15="x",(G15-F15)*1440,0) -> 0 | M15: =IF(L15="x",(G15-F15)*1440,0) -> 0 | O15: =IF(N15="x",(G15-F15)*1440,0) -> 0 | Q15: =IF(P15="x",(G15-F15)*1440,0) -> 0 | R15: =IF(ISBLANK(F15),"",IF(G15>=F15,(G15-F15)*1440,(1+G15-F15)*1440)) ->  | T15: =IFERROR(IF(S15="","",((S15/R15))*60),"") ->  | U15: =IF(S15="","",S15-(W15+X15)) ->  | V15: =IFERROR(IF(S15="","",((U15/S15))*T15),"") ->  | Y15: =IFERROR(IF(S15="","",X15/S15),"") ->  | Z15: =IFERROR(IF(S15="","",(1-(Y15/1000000))*T15),"") -> 
A16: Description of Downtime: | I16: 0 | K16: 0 | M16: 0 | O16: 0 | Q16: =IF(P16="x",(G16-F16)*1440,0) -> 0 | R16: =IF(ISBLANK(F16),"",IF(G16>=F16,(G16-F16)*1440,(1+G16-F16)*1440)) ->  | T16: =IFERROR(IF(S16="","",((S16/R16))*60),"") ->  | U16: =IF(S16="","",S16-(W16+X16)) ->  | V16: =IFERROR(IF(S16="","",((U16/S16))*T16),"") ->  | Y16: =IFERROR(IF(S16="","",X16/S16),"") ->  | Z16: =IFERROR(IF(S16="","",(1-(Y16/1000000))*T16),"") -> 
I17: 0 | K17: 0 | M17: 0 | O17: 0 | Q17: 0
D18: Downtime | I18: =IF(H18="x",(G18-F18)*1440,0) -> 0 | K18: =IF(J18="x",(G18-F18)*1440,0) -> 0 | M18: =IF(L18="x",(G18-F18)*1440,0) -> 0 | O18: =IF(N18="x",(G18-F18)*1440,0) -> 0 | Q18: 0
A19: B | B19: breaks/lunch | D19: =I39 -> 0 | I19: =IF(H19="x",(G19-F19)*1440,0) -> 0 | K19: =IF(J19="x",(G19-F19)*1440,0) -> 0 | M19: =IF(L19="x",(G19-F19)*1440,0) -> 0 | O19: =IF(N19="x",(G19-F19)*1440,0) -> 0 | Q19: 0
A20: T | B20: tool change | D20: =K39 -> 0 | I20: 0 | K20: 0 | M20: 0 | O20: 0 | Q20: 0
A21: C | B21: changeover | D21: =M39 -> 0 | I21: 0 | K21: 0 | M21: 0 | O21: 0 | Q21: 0
A22: O | B22: other planned dntm | D22: =O39 -> 0 | I22: 0 | K22: 0 | M22: 0 | O22: 0 | Q22: 0
A23: U | B23: unplanned dntm | D23: =Q39 -> 0 | I23: 0 | K23: 0 | M23: 0 | O23: 0 | Q23: 0
I24: =IF(H24="x",(G24-F24)*1440,0) -> 0 | K24: =IF(J24="x",(G24-F24)*1440,0) -> 0 | M24: =IF(L24="x",(G24-F24)*1440,0) -> 0 | O24: =IF(N24="x",(G24-F24)*1440,0) -> 0 | Q24: 0
I25: 0 | K25: 0 | M25: 0 | O25: 0 | Q25: 0
I26: 0 | K26: 0 | M26: 0 | O26: 0 | Q26: 0
I27: 0 | K27: 0 | M27: 0 | O27: 0 | Q27: 0
I28: 0 | K28: 0 | M28: 0 | O28: 0 | Q28: 0
I29: 0 | K29: 0 | M29: 0 | O29: 0 | Q29: 0
I30: 0 | K30: 0 | M30: 0 | O30: 0 | Q30: 0
I31: 0 | K31: 0 | M31: 0 | O31: 0 | Q31: 0
I32: 0 | K32: 0 | M32: 0 | O32: 0 | Q32: 0
I33: 0 | K33: 0 | M33: 0 | O33: 0 | Q33: 0
I34: 0 | K34: 0 | M34: 0 | O34: 0 | Q34: 0
I35: 0 | K35: 0 | M35: 0 | O35: 0 | Q35: 0
I36: 0 | K36: 0 | M36: 0 | O36: 0 | Q36: 0
I37: 0 | K37: 0 | M37: 0 | O37: 0 | Q37: 0
I38: 0 | K38: 0 | M38: 0 | O38: 0 | Q38: 0
I39: =SUM(I15:I38) -> 0 | K39: =SUM(K15:K38) -> 0 | M39: =SUM(M15:M38) -> 0 | O39: =SUM(O15:O38) -> 0 | Q39: =SUM(Q15:Q38) -> 0 | R39: =(G39-F39)*1440 -> 0 | T39: =((S39/R39))*60/1440 ->  | U39: =S39-(W39+X39) -> 0 | V39: =((U39/S39))*T39 ->  | Y39: =(X39/S39)*1000000 ->  | Z39: =(1-(Y39/1000000))*T39 -> 
S40: =SUM(S15:S39) -> 0 | U40: =SUM(U15:U39) -> 0 | W40: =SUM(W15:W39) -> 0
P41: # of minutes uptime: | R41: =R42-(D20+D21+D23) -> 0 | T41: % uptime: | U41: =IFERROR(R41/R42,"") ->  | W41: FTQ: | X41: =IFERROR(IF(F15="","",((S40-U40)/S40)*1000000),"") -> 
P42: Total Run Time: | R42: =SUM(R15:R38)-(D19+D22) -> 0 | W42: % Scrap: | X42: =IFERROR(IF(F15="","",((S40-(U40+W40))/S40)),"") -> 
L44: Comments: Document scrap/rework and downtime here

Sheet Process 4 - Actual Run Data
A1: Actual Run Data
B5: Supplier Name: | C5: =IF('Capacity Plan'!$F$3="","",'Capacity Plan'!$F$3) ->  | W5: Completed By:
B6: Process Name: | C6: =IF('Capacity Plan'!$D$24="","",'Capacity Plan'!$D$24) -> 
B7: Part Number: | C7: =IF('Capacity Plan'!$Q$3="","",'Capacity Plan'!$Q$3) -> 
R9: Target | S9: Actual | T9: Difference | V9: PLEASE PRINT HARD COPY FOR USE DURING RUN@RATE. COMPLETE BY FILLING IN THE HIGHLIGHTED COLUMNS ONLY. USE MILITARY (24:00 HR) TIME FORMAT.
B10: Run @ Rate Summary Data | J10: Time/part | R10: =IFERROR(IF(F15="","",'Capacity Plan'!L24/'Capacity Plan'!M24),"") ->  | S10: =IFERROR(IF(F15="","",3600/S11),"") ->  | T10: =IFERROR(IF(F15="","",R10-S10),"") -> 
J11: Pcs/Hour | R11: =IFERROR(IF(F15="","",60*60/R10),"") ->  | S11: =IFERROR(IF(F15="","",(S40*60/R41)),"") ->  | T11: =IFERROR(IF(F15="","",S11-R11),"") -> 
B13: Capacity Plan | F13: Start Time (hh:mm) | G13: Stop Time (hh:mm) | H13: Downtime Description | R13: Total Time | S13: Total # of Pcs. Run | T13: Pieces/ Hour | U13: Good Pieces | V13: Good Pcs/Hour | W13: Rework Total | X13: Scrap Total | Y13: % Scrap | Z13: Net Pcs/Hr (Good + Rework)
H14: B | J14: T | L14: C | N14: O | P14: U | T14: =IFERROR(IF(S14="","",((S14/R14))*60),"") ->  | V14: =IFERROR(IF(S14="","",((U14/S14))*T14),"") ->  | Y14: =IFERROR(IF(S14="","",X14/S14),"") ->  | Z14: =IFERROR(IF(S14="","",(1-(Y14/1000000))*T14),"") -> 
I15: =IF(H15="x",(G15-F15)*1440,0) -> 0 | K15: =IF(J15="x",(G15-F15)*1440,0) -> 0 | M15: =IF(L15="x",(G15-F15)*1440,0) -> 0 | O15: =IF(N15="x",(G15-F15)*1440,0) -> 0 | Q15: =IF(P15="x",(G15-F15)*1440,0) -> 0 | R15: =IF(ISBLANK(F15),"",IF(G15>=F15,(G15-F15)*1440,(1+G15-F15)*1440)) ->  | T15: =IFERROR(IF(S15="","",((S15/R15))*60),"") ->  | U15: =IF(S15="","",S15-(W15+X15)) ->  | V15: =IFERROR(IF(S15="","",((U15/S15))*T15),"") ->  | Y15: =IFERROR(IF(S15="","",X15/S15),"") ->  | Z15: =IFERROR(IF(S15="","",(1-(Y15/1000000))*T15),"") -> 
A16: Description of Downtime: | I16: 0 | K16: 0 | M16: 0 | O16: 0 | Q16: =IF(P16="x",(G16-F16)*1440,0) -> 0 | R16: =IF(ISBLANK(F16),"",IF(G16>=F16,(G16-F16)*1440,(1+G16-F16)*1440)) ->  | T16: =IFERROR(IF(S16="","",((S16/R16))*60),"") ->  | U16: =IF(S16="","",S16-(W16+X16)) ->  | V16: =IFERROR(IF(S16="","",((U16/S16))*T16),"") ->  | Y16: =IFERROR(IF(S16="","",X16/S16),"") ->  | Z16: =IFERROR(IF(S16="","",(1-(Y16/1000000))*T16),"") -> 
I17: 0 | K17: 0 | M17: 0 | O17: 0 | Q17: =IF(P17="x",(G17-F17)*1440,0) -> 0 | R17: =IF(ISBLANK(F17),"",IF(G17>=F17,(G17-F17)*1440,(1+G17-F17)*1440)) ->  | T17: =IFERROR(IF(S17="","",((S17/R17))*60),"") ->  | U17: =IF(S17="","",S17-(W17+X17)) ->  | V17: =IFERROR(IF(S17="","",((U17/S17))*T17),"") ->  | Y17: =IFERROR(IF(S17="","",X17/S17),"") ->  | Z17: =IFERROR(IF(S17="","",(1-(Y17/1000000))*T17),"") -> 
D18: Downtime | I18: =IF(H18="x",(G18-F18)*1440,0) -> 0 | K18: =IF(J18="x",(G18-F18)*1440,0) -> 0 | M18: =IF(L18="x",(G18-F18)*1440,0) -> 0 | O18: =IF(N18="x",(G18-F18)*1440,0) -> 0 | Q18: =IF(P18="x",(G18-F18)*1440,0) -> 0 | R18: =IF(ISBLANK(F18),"",IF(G18>=F18,(G18-F18)*1440,(1+G18-F18)*1440)) ->  | T18: =IFERROR(IF(S18="","",((S18/R18))*60),"") ->  | U18: =IF(S18="","",S18-(W18+X18)) ->  | V18: =IFERROR(IF(S18="","",((U18/S18))*T18),"") ->  | Y18: =IFERROR(IF(S18="","",X18/S18),"") ->  | Z18: =IFERROR(IF(S18="","",(1-(Y18/1000000))*T18),"") -> 
A19: B | B19: breaks/lunch | D19: =I39 -> 0 | I19: =IF(H19="x",(G19-F19)*1440,0) -> 0 | K19: =IF(J19="x",(G19-F19)*1440,0) -> 0 | M19: =IF(L19="x",(G19-F19)*1440,0) -> 0 | O19: =IF(N19="x",(G19-F19)*1440,0) -> 0 | Q19: =IF(P19="x",(G19-F19)*1440,0) -> 0 | R19: =IF(ISBLANK(F19),"",IF(G19>=F19,(G19-F19)*1440,(1+G19-F19)*1440)) ->  | T19: =IFERROR(IF(S19="","",((S19/R19))*60),"") ->  | U19: =IF(S19="","",S19-(W19+X19)) ->  | V19: =IFERROR(IF(S19="","",((U19/S19))*T19),"") ->  | Y19: =IFERROR(IF(S19="","",X19/S19),"") ->  | Z19: =IFERROR(IF(S19="","",(1-(Y19/1000000))*T19),"") -> 
A20: T | B20: tool change | D20: =K39 -> 0 | I20: 0 | K20: 0 | M20: 0 | O20: 0 | Q20: 0
A21: C | B21: changeover | D21: =M39 -> 0 | I21: 0 | K21: 0 | M21: 0 | O21: 0 | Q21: 0
A22: O | B22: other planned dntm | D22: =O39 -> 0 | I22: 0 | K22: 0 | M22: 0 | O22: 0 | Q22: 0
A23: U | B23: unplanned dntm | D23: =Q39 -> 0 | I23: 0 | K23: 0 | M23: 0 | O23: 0 | Q23: 0
I24: =IF(H24="x",(G24-F24)*1440,0) -> 0 | K24: =IF(J24="x",(G24-F24)*1440,0) -> 0 | M24: =IF(L24="x",(G24-F24)*1440,0) -> 0 | O24: =IF(N24="x",(G24-F24)*1440,0) -> 0 | Q24: 0
I25: 0 | K25: 0 | M25: 0 | O25: 0 | Q25: 0
I26: 0 | K26: 0 | M26: 0 | O26: 0 | Q26: 0
I27: 0 | K27: 0 | M27: 0 | O27: 0 | Q27: 0
I28: 0 | K28: 0 | M28: 0 | O28: 0 | Q28: 0
I29: 0 | K29: 0 | M29: 0 | O29: 0 | Q29: 0
I30: 0 | K30: 0 | M30: 0 | O30: 0 | Q30: 0
I31: 0 | K31: 0 | M31: 0 | O31: 0 | Q31: 0
I32: 0 | K32: 0 | M32: 0 | O32: 0 | Q32: 0
I33: 0 | K33: 0 | M33: 0 | O33: 0 | Q33: 0
I34: 0 | K34: 0 | M34: 0 | O34: 0 | Q34: 0
I35: 0 | K35: 0 | M35: 0 | O35: 0 | Q35: 0
I36: 0 | K36: 0 | M36: 0 | O36: 0 | Q36: 0
I37: 0 | K37: 0 | M37: 0 | O37: 0 | Q37: 0
I38: 0 | K38: 0 | M38: 0 | O38: 0 | Q38: 0
I39: =SUM(I15:I38) -> 0 | K39: =SUM(K15:K38) -> 0 | M39: =SUM(M15:M38) -> 0 | O39: =SUM(O15:O38) -> 0 | Q39: =SUM(Q15:Q38) -> 0 | R39: =(G39-F39)*1440 -> 0 | T39: =((S39/R39))*60/1440 ->  | U39: =S39-(W39+X39) -> 0 | V39: =((U39/S39))*T39 ->  | Y39: =(X39/S39)*1000000 ->  | Z39: =(1-(Y39/1000000))*T39 -> 
S40: =SUM(S15:S39) -> 0 | U40: =SUM(U15:U39) -> 0 | W40: =SUM(W15:W39) -> 0
P41: # of minutes uptime: | R41: =R42-(D20+D21+D23) -> 0 | T41: % uptime: | U41: =IFERROR(R41/R42,"") ->  | W41: FTQ: | X41: =IFERROR(IF(F15="","",((S40-U40)/S40)*1000000),"") -> 
P42: Total Run Time: | R42: =SUM(R15:R38)-(D19+D22) -> 0 | W42: % Scrap: | X42: =IFERROR(IF(F15="","",((S40-(U40+W40))/S40)),"") -> 
L44: Comments: Document scrap/rework and downtime here

Sheet Process 5 - Actual Run Data
A1: Actual Run Data
B5: Supplier Name: | C5: =IF('Capacity Plan'!$F$3="","",'Capacity Plan'!$F$3) ->  | W5: Completed By:
B6: Process Name: | C6: =IF('Capacity Plan'!$D$25="","",'Capacity Plan'!$D$25) -> 
B7: Part Number: | C7: =IF('Capacity Plan'!$Q$3="","",'Capacity Plan'!$Q$3) -> 
R9: Target | S9: Actual | T9: Difference | V9: PLEASE PRINT HARD COPY FOR USE DURING RUN@RATE. COMPLETE BY FILLING IN THE HIGHLIGHTED COLUMNS ONLY. USE MILITARY (24:00 HR) TIME FORMAT.
B10: Run @ Rate Summary Data | J10: Time/part | R10: =IFERROR(IF(F15="","",'Capacity Plan'!L25/'Capacity Plan'!M25),"") ->  | S10: =IFERROR(IF(F15="","",3600/S11),"") ->  | T10: =IFERROR(IF(F15="","",R10-S10),"") -> 
J11: Pcs/Hour | R11: =IFERROR(IF(F15="","",60*60/R10),"") ->  | S11: =IFERROR(IF(F15="","",(S40*60/R41)),"") ->  | T11: =IFERROR(IF(F15="","",S11-R11),"") -> 
B13: Capacity Plan | F13: Start Time (hh:mm) | G13: Stop Time (hh:mm) | H13: Downtime Description | R13: Total Time | S13: Total # of Pcs. Run | T13: Pieces/ Hour | U13: Good Pieces | V13: Good Pcs/Hour | W13: Rework Total | X13: Scrap Total | Y13: % Scrap | Z13: Net Pcs/Hr (Good + Rework)
H14: B | J14: T | L14: C | N14: O | P14: U | T14: =IFERROR(IF(S14="","",((S14/R14))*60),"") ->  | V14: =IFERROR(IF(S14="","",((U14/S14))*T14),"") ->  | Y14: =IFERROR(IF(S14="","",X14/S14),"") ->  | Z14: =IFERROR(IF(S14="","",(1-(Y14/1000000))*T14),"") -> 
I15: =IF(H15="x",(G15-F15)*1440,0) -> 0 | K15: =IF(J15="x",(G15-F15)*1440,0) -> 0 | M15: =IF(L15="x",(G15-F15)*1440,0) -> 0 | O15: =IF(N15="x",(G15-F15)*1440,0) -> 0 | Q15: =IF(P15="x",(G15-F15)*1440,0) -> 0 | R15: =IF(ISBLANK(F15),"",IF(G15>=F15,(G15-F15)*1440,(1+G15-F15)*1440)) ->  | T15: =IFERROR(IF(S15="","",((S15/R15))*60),"") ->  | U15: =IF(S15="","",S15-(W15+X15)) ->  | V15: =IFERROR(IF(S15="","",((U15/S15))*T15),"") ->  | Y15: =IFERROR(IF(S15="","",X15/S15),"") ->  | Z15: =IFERROR(IF(S15="","",(1-(Y15/1000000))*T15),"") -> 
A16: Description of Downtime: | I16: 0 | K16: 0 | M16: =IF(L16="x",(G16-F16)*1440,0) -> 0 | O16: =IF(N16="x",(G16-F16)*1440,0) -> 0 | Q16: =IF(P16="x",(G16-F16)*1440,0) -> 0 | R16: =IF(ISBLANK(F16),"",IF(G16>=F16,(G16-F16)*1440,(1+G16-F16)*1440)) ->  | T16: =IFERROR(IF(S16="","",((S16/R16))*60),"") ->  | U16: =IF(S16="","",S16-(W16+X16)) ->  | V16: =IFERROR(IF(S16="","",((U16/S16))*T16),"") ->  | Y16: =IFERROR(IF(S16="","",X16/S16),"") ->  | Z16: =IFERROR(IF(S16="","",(1-(Y16/1000000))*T16),"") -> 
I17: 0 | K17: 0 | M17: 0 | O17: 0 | Q17: 0
D18: Downtime | I18: 0 | K18: 0 | M18: 0 | O18: 0 | Q18: 0
A19: B | B19: breaks/lunch | D19: =I39 -> 0 | I19: 0 | K19: 0 | M19: 0 | O19: 0 | Q19: 0
A20: T | B20: tool change | D20: =K39 -> 0 | I20: 0 | K20: 0 | M20: 0 | O20: 0 | Q20: 0
A21: C | B21: changeover | D21: =M39 -> 0 | I21: 0 | K21: 0 | M21: 0 | O21: 0 | Q21: 0
A22: O | B22: other planned dntm | D22: =O39 -> 0 | I22: 0 | K22: 0 | M22: 0 | O22: 0 | Q22: 0
A23: U | B23: unplanned dntm | D23: =Q39 -> 0 | I23: 0 | K23: 0 | M23: 0 | O23: 0 | Q23: 0
I24: =IF(H24="x",(G24-F24)*1440,0) -> 0 | K24: =IF(J24="x",(G24-F24)*1440,0) -> 0 | M24: =IF(L24="x",(G24-F24)*1440,0) -> 0 | O24: =IF(N24="x",(G24-F24)*1440,0) -> 0 | Q24: 0
I25: 0 | K25: 0 | M25: 0 | O25: 0 | Q25: 0
I26: 0 | K26: 0 | M26: 0 | O26: 0 | Q26: 0
I27: 0 | K27: 0 | M27: 0 | O27: 0 | Q27: 0
I28: 0 | K28: 0 | M28: 0 | O28: 0 | Q28: 0
I29: 0 | K29: 0 | M29: 0 | O29: 0 | Q29: 0
I30: 0 | K30: 0 | M30: 0 | O30: 0 | Q30: 0
I31: 0 | K31: 0 | M31: 0 | O31: 0 | Q31: 0
I32: 0 | K32: 0 | M32: 0 | O32: 0 | Q32: 0
I33: 0 | K33: 0 | M33: 0 | O33: 0 | Q33: 0
I34: 0 | K34: 0 | M34: 0 | O34: 0 | Q34: 0
I35: 0 | K35: 0 | M35: 0 | O35: 0 | Q35: 0
I36: 0 | K36: 0 | M36: 0 | O36: 0 | Q36: 0
I37: 0 | K37: 0 | M37: 0 | O37: 0 | Q37: 0
I38: 0 | K38: 0 | M38: 0 | O38: 0 | Q38: 0 | R38: =IF(ISBLANK(F38),"",IF(G38>=F38,(G38-F38)*1440,(1+G38-F38)*1440)) -> 
I39: =SUM(I15:I38) -> 0 | K39: =SUM(K15:K38) -> 0 | M39: =SUM(M15:M38) -> 0 | O39: =SUM(O15:O38) -> 0 | Q39: =SUM(Q15:Q38) -> 0 | R39: =(G39-F39)*1440 -> 0 | T39: =((S39/R39))*60/1440 ->  | U39: =S39-(W39+X39) -> 0 | V39: =((U39/S39))*T39 ->  | Y39: =(X39/S39)*1000000 ->  | Z39: =(1-(Y39/1000000))*T39 -> 
S40: =SUM(S15:S39) -> 0 | U40: =SUM(U15:U39) -> 0 | W40: =SUM(W15:W39) -> 0
P41: # of minutes uptime: | R41: =R42-(D20+D21+D23) -> 0 | T41: % uptime: | U41: =IFERROR(R41/R42,"") ->  | W41: FTQ: | X41: =IFERROR(IF(F15="","",((S40-U40)/S40)*1000000),"") -> 
P42: Total Run Time: | R42: =SUM(R15:R38)-(D19+D22) -> 0 | W42: % Scrap: | X42: =IFERROR(IF(F15="","",((S40-(U40+W40))/S40)),"") -> 
L44: Comments: Document scrap/rework and downtime here

Sheet Process 6 - Actual Run Data
A1: Actual Run Data
B5: Supplier Name: | C5: =IF('Capacity Plan'!$F$3="","",'Capacity Plan'!$F$3) ->  | W5: Completed By:
B6: Process Name: | C6: =IF('Capacity Plan'!$D$26="","",'Capacity Plan'!$D$26) -> 
B7: Part Number: | C7: =IF('Capacity Plan'!$Q$3="","",'Capacity Plan'!$Q$3) -> 
R9: Target | S9: Actual | T9: Difference | V9: PLEASE PRINT HARD COPY FOR USE DURING RUN@RATE. COMPLETE BY FILLING IN THE HIGHLIGHTED COLUMNS ONLY. USE MILITARY (24:00 HR) TIME FORMAT.
B10: Run @ Rate Summary Data | J10: Time/part | R10: =IFERROR(IF(F15="","",'Capacity Plan'!L26/'Capacity Plan'!M26),"") ->  | S10: =IFERROR(IF(F15="","",3600/S11),"") ->  | T10: =IFERROR(IF(F15="","",R10-S10),"") -> 
J11: Pcs/Hour | R11: =IFERROR(IF(F15="","",60*60/R10),"") ->  | S11: =IFERROR(IF(F15="","",(S40*60/R41)),"") ->  | T11: =IFERROR(IF(F15="","",S11-R11),"") -> 
B13: Capacity Plan | F13: Start Time (hh:mm) | G13: Stop Time (hh:mm) | H13: Downtime Description | R13: Total Time | S13: Total # of Pcs. Run | T13: Pieces/ Hour | U13: Good Pieces | V13: Good Pcs/Hour | W13: Rework Total | X13: Scrap Total | Y13: % Scrap | Z13: Net Pcs/Hr (Good + Rework)
H14: B | J14: T | L14: C | N14: O | P14: U | T14: =IFERROR(IF(S14="","",((S14/R14))*60),"") ->  | V14: =IFERROR(IF(S14="","",((U14/S14))*T14),"") ->  | Y14: =IFERROR(IF(S14="","",X14/S14),"") ->  | Z14: =IFERROR(IF(S14="","",(1-(Y14/1000000))*T14),"") -> 
I15: =IF(H15="x",(G15-F15)*1440,0) -> 0 | K15: =IF(J15="x",(G15-F15)*1440,0) -> 0 | M15: =IF(L15="x",(G15-F15)*1440,0) -> 0 | O15: =IF(N15="x",(G15-F15)*1440,0) -> 0 | Q15: =IF(P15="x",(G15-F15)*1440,0) -> 0 | R15: =IF(ISBLANK(F15),"",IF(G15>=F15,(G15-F15)*1440,(1+G15-F15)*1440)) ->  | T15: =IFERROR(IF(S15="","",((S15/R15))*60),"") ->  | U15: =IF(S15="","",S15-(W15+X15)) ->  | V15: =IFERROR(IF(S15="","",((U15/S15))*T15),"") ->  | Y15: =IFERROR(IF(S15="","",X15/S15),"") ->  | Z15: =IFERROR(IF(S15="","",(1-(Y15/1000000))*T15),"") -> 
A16: Description of Downtime: | I16: 0 | K16: 0 | M16: 0 | O16: 0 | Q16: =IF(P16="x",(G16-F16)*1440,0) -> 0 | R16: =IF(ISBLANK(F16),"",IF(G16>=F16,(G16-F16)*1440,(1+G16-F16)*1440)) ->  | T16: =IFERROR(IF(S16="","",((S16/R16))*60),"") ->  | U16: =IF(S16="","",S16-(W16+X16)) ->  | V16: =IFERROR(IF(S16="","",((U16/S16))*T16),"") ->  | Y16: =IFERROR(IF(S16="","",X16/S16),"") ->  | Z16: =IFERROR(IF(S16="","",(1-(Y16/1000000))*T16),"") -> 
I17: 0 | K17: 0 | M17: 0 | O17: 0 | Q17: 0
D18: Downtime | I18: 0 | K18: 0 | M18: 0 | O18: 0 | Q18: 0
A19: B | B19: breaks/lunch | D19: =I39 -> 0 | I19: 0 | K19: 0 | M19: 0 | O19: 0 | Q19: 0
A20: T | B20: tool change | D20: =K39 -> 0 | I20: 0 | K20: 0 | M20: 0 | O20: 0 | Q20: 0
A21: C | B21: changeover | D21: =M39 -> 0 | I21: 0 | K21: 0 | M21: 0 | O21: 0 | Q21: 0
A22: O | B22: other planned dntm | D22: =O39 -> 0 | I22: 0 | K22: 0 | M22: 0 | O22: 0 | Q22: 0
A23: U | B23: unplanned dntm | D23: =Q39 -> 0 | I23: 0 | K23: 0 | M23: 0 | O23: 0 | Q23: 0
I24: =IF(H24="x",(G24-F24)*1440,0) -> 0 | K24: =IF(J24="x",(G24-F24)*1440,0) -> 0 | M24: =IF(L24="x",(G24-F24)*1440,0) -> 0 | O24: =IF(N24="x",(G24-F24)*1440,0) -> 0 | Q24: 0
I25: 0 | K25: 0 | M25: 0 | O25: 0 | Q25: 0
I26: 0 | K26: 0 | M26: 0 | O26: 0 | Q26: 0
I27: 0 | K27: 0 | M27: 0 | O27: 0 | Q27: 0
I28: 0 | K28: 0 | M28: 0 | O28: 0 | Q28: 0
I29: 0 | K29: 0 | M29: 0 | O29: 0 | Q29: 0
I30: 0 | K30: 0 | M30: 0 | O30: 0 | Q30: 0
I31: 0 | K31: 0 | M31: 0 | O31: 0 | Q31: 0
I32: 0 | K32: 0 | M32: 0 | O32: 0 | Q32: 0
I33: 0 | K33: 0 | M33: 0 | O33: 0 | Q33: 0
I34: 0 | K34: 0 | M34: 0 | O34: 0 | Q34: 0
I35: 0 | K35: 0 | M35: 0 | O35: 0 | Q35: 0
I36: 0 | K36: 0 | M36: 0 | O36: 0 | Q36: 0
I37: 0 | K37: 0 | M37: 0 | O37: 0 | Q37: 0
I38: 0 | K38: 0 | M38: 0 | O38: 0 | Q38: 0
I39: =SUM(I15:I38) -> 0 | K39: =SUM(K15:K38) -> 0 | M39: =SUM(M15:M38) -> 0 | O39: =SUM(O15:O38) -> 0 | Q39: =SUM(Q15:Q38) -> 0 | R39: =(G39-F39)*1440 -> 0 | T39: =((S39/R39))*60/1440 ->  | U39: =S39-(W39+X39) -> 0 | V39: =((U39/S39))*T39 ->  | Y39: =(X39/S39)*1000000 ->  | Z39: =(1-(Y39/1000000))*T39 -> 
S40: =SUM(S15:S39) -> 0 | U40: =SUM(U15:U39) -> 0 | W40: =SUM(W15:W39) -> 0
P41: # of minutes uptime: | R41: =R42-(D20+D21+D23) -> 0 | T41: % uptime: | U41: =IFERROR(R41/R42,"") ->  | W41: FTQ: | X41: =IFERROR(IF(F15="","",((S40-U40)/S40)*1000000),"") -> 
P42: Total Run Time: | R42: =SUM(R15:R38)-(D19+D22) -> 0 | W42: % Scrap: | X42: =IFERROR(IF(F15="","",((S40-(U40+W40))/S40)),"") -> 
L44: Comments: Document scrap/rework and downtime here

Sheet Process 7 - Actual Run Data
A1: Actual Run Data
B5: Supplier Name: | C5: =IF('Capacity Plan'!$F$3="","",'Capacity Plan'!$F$3) ->  | W5: Completed By:
B6: Process Name: | C6: =IF('Capacity Plan'!$D$27="","",'Capacity Plan'!$D$27) -> 
B7: Part Number: | C7: =IF('Capacity Plan'!$Q$3="","",'Capacity Plan'!$Q$3) -> 
R9: Target | S9: Actual | T9: Difference | V9: PLEASE PRINT HARD COPY FOR USE DURING RUN@RATE. COMPLETE BY FILLING IN THE HIGHLIGHTED COLUMNS ONLY. USE MILITARY (24:00 HR) TIME FORMAT.
B10: Run @ Rate Summary Data | J10: Time/part | R10: =IFERROR(IF(F15="","",'Capacity Plan'!L27/'Capacity Plan'!M27),"") ->  | S10: =IFERROR(IF(F15="","",3600/S11),"") ->  | T10: =IFERROR(IF(F15="","",R10-S10),"") -> 
J11: Pcs/Hour | R11: =IFERROR(IF(F15="","",60*60/R10),"") ->  | S11: =IFERROR(IF(F15="","",(S40*60/R41)),"") ->  | T11: =IFERROR(IF(F15="","",S11-R11),"") -> 
B13: Capacity Plan | F13: Start Time (hh:mm) | G13: Stop Time (hh:mm) | H13: Downtime Description | R13: Total Time | S13: Total # of Pcs. Run | T13: Pieces/ Hour | U13: Good Pieces | V13: Good Pcs/Hour | W13: Rework Total | X13: Scrap Total | Y13: % Scrap | Z13: Net Pcs/Hr (Good + Rework)
H14: B | J14: T | L14: C | N14: O | P14: U | T14: =IFERROR(IF(S14="","",((S14/R14))*60),"") ->  | V14: =IFERROR(IF(S14="","",((U14/S14))*T14),"") ->  | Y14: =IFERROR(IF(S14="","",X14/S14),"") ->  | Z14: =IFERROR(IF(S14="","",(1-(Y14/1000000))*T14),"") -> 
I15: =IF(H15="x",(G15-F15)*1440,0) -> 0 | K15: =IF(J15="x",(G15-F15)*1440,0) -> 0 | M15: =IF(L15="x",(G15-F15)*1440,0) -> 0 | O15: =IF(N15="x",(G15-F15)*1440,0) -> 0 | Q15: =IF(P15="x",(G15-F15)*1440,0) -> 0 | R15: =IF(ISBLANK(F15),"",IF(G15>=F15,(G15-F15)*1440,(1+G15-F15)*1440)) ->  | T15: =IFERROR(IF(S15="","",((S15/R15))*60),"") ->  | U15: =IF(S15="","",S15-(W15+X15)) ->  | V15: =IFERROR(IF(S15="","",((U15/S15))*T15),"") ->  | Y15: =IFERROR(IF(S15="","",X15/S15),"") ->  | Z15: =IFERROR(IF(S15="","",(1-(Y15/1000000))*T15),"") -> 
A16: Description of Downtime: | I16: 0 | K16: 0 | M16: 0 | O16: 0 | Q16: =IF(P16="x",(G16-F16)*1440,0) -> 0 | R16: =IF(ISBLANK(F16),"",IF(G16>=F16,(G16-F16)*1440,(1+G16-F16)*1440)) ->  | T16: =IFERROR(IF(S16="","",((S16/R16))*60),"") ->  | U16: =IF(S16="","",S16-(W16+X16)) ->  | V16: =IFERROR(IF(S16="","",((U16/S16))*T16),"") ->  | Y16: =IFERROR(IF(S16="","",X16/S16),"") ->  | Z16: =IFERROR(IF(S16="","",(1-(Y16/1000000))*T16),"") -> 
I17: 0 | K17: 0 | M17: 0 | O17: 0 | Q17: 0
D18: Downtime | I18: 0 | K18: 0 | M18: 0 | O18: 0 | Q18: 0
A19: B | B19: breaks/lunch | D19: =I39 -> 0 | I19: 0 | K19: 0 | M19: 0 | O19: 0 | Q19: 0
A20: T | B20: tool change | D20: =K39 -> 0 | I20: 0 | K20: 0 | M20: 0 | O20: 0 | Q20: 0
A21: C | B21: changeover | D21: =M39 -> 0 | I21: 0 | K21: 0 | M21: 0 | O21: 0 | Q21: 0
A22: O | B22: other planned dntm | D22: =O39 -> 0 | I22: 0 | K22: 0 | M22: 0 | O22: 0 | Q22: 0
A23: U | B23: unplanned dntm | D23: =Q39 -> 0 | I23: 0 | K23: 0 | M23: 0 | O23: 0 | Q23: 0
I24: =IF(H24="x",(G24-F24)*1440,0) -> 0 | K24: =IF(J24="x",(G24-F24)*1440,0) -> 0 | M24: =IF(L24="x",(G24-F24)*1440,0) -> 0 | O24: =IF(N24="x",(G24-F24)*1440,0) -> 0 | Q24: 0
I25: 0 | K25: 0 | M25: 0 | O25: 0 | Q25: 0
I26: 0 | K26: 0 | M26: 0 | O26: 0 | Q26: 0
I27: 0 | K27: 0 | M27: 0 | O27: 0 | Q27: 0
I28: 0 | K28: 0 | M28: 0 | O28: 0 | Q28: 0
I29: 0 | K29: 0 | M29: 0 | O29: 0 | Q29: 0
I30: 0 | K30: 0 | M30: 0 | O30: 0 | Q30: 0
I31: 0 | K31: 0 | M31: 0 | O31: 0 | Q31: 0
I32: 0 | K32: 0 | M32: 0 | O32: 0 | Q32: 0
I33: 0 | K33: 0 | M33: 0 | O33: 0 | Q33: 0
I34: 0 | K34: 0 | M34: 0 | O34: 0 | Q34: 0
I35: 0 | K35: 0 | M35: 0 | O35: 0 | Q35: 0
I36: 0 | K36: 0 | M36: 0 | O36: 0 | Q36: 0
I37: 0 | K37: 0 | M37: 0 | O37: 0 | Q37: 0
I38: 0 | K38: 0 | M38: 0 | O38: 0 | Q38: 0
I39: =SUM(I15:I38) -> 0 | K39: =SUM(K15:K38) -> 0 | M39: =SUM(M15:M38) -> 0 | O39: =SUM(O15:O38) -> 0 | Q39: =SUM(Q15:Q38) -> 0 | R39: =(G39-F39)*1440 -> 0 | T39: =((S39/R39))*60/1440 ->  | U39: =S39-(W39+X39) -> 0 | V39: =((U39/S39))*T39 ->  | Y39: =(X39/S39)*1000000 ->  | Z39: =(1-(Y39/1000000))*T39 -> 
S40: =SUM(S15:S39) -> 0 | U40: =SUM(U15:U39) -> 0 | W40: =SUM(W15:W39) -> 0
P41: # of minutes uptime: | R41: =R42-(D20+D21+D23) -> 0 | T41: % uptime: | U41: =IFERROR(R41/R42,"") ->  | W41: FTQ: | X41: =IFERROR(IF(F15="","",((S40-U40)/S40)*1000000),"") -> 
P42: Total Run Time: | R42: =SUM(R15:R38)-(D19+D22) -> 0 | W42: % Scrap: | X42: =IFERROR(IF(F15="","",((S40-(U40+W40))/S40)),"") -> 
L44: Comments: Document scrap/rework and downtime here

Sheet Process 8 - Actual Run Data
A1: Actual Run Data
B5: Supplier Name: | C5: =IF('Capacity Plan'!$F$3="","",'Capacity Plan'!$F$3) ->  | W5: Completed By:
B6: Process Name: | C6: =IF('Capacity Plan'!$D$28="","",'Capacity Plan'!$D$28) -> 
B7: Part Number: | C7: =IF('Capacity Plan'!$Q$3="","",'Capacity Plan'!$Q$3) -> 
R9: Target | S9: Actual | T9: Difference | V9: PLEASE PRINT HARD COPY FOR USE DURING RUN@RATE. COMPLETE BY FILLING IN THE HIGHLIGHTED COLUMNS ONLY. USE MILITARY (24:00 HR) TIME FORMAT.
B10: Run @ Rate Summary Data | J10: Time/part | R10: =IFERROR(IF(F15="","",'Capacity Plan'!L28/'Capacity Plan'!M28),"") ->  | S10: =IFERROR(IF(F15="","",3600/S11),"") ->  | T10: =IFERROR(IF(F15="","",R10-S10),"") -> 
J11: Pcs/Hour | R11: =IFERROR(IF(F15="","",60*60/R10),"") ->  | S11: =IFERROR(IF(F15="","",(S40*60/R41)),"") ->  | T11: =IFERROR(IF(F15="","",S11-R11),"") -> 
B13: Capacity Plan | F13: Start Time (hh:mm) | G13: Stop Time (hh:mm) | H13: Downtime Description | R13: Total Time | S13: Total # of Pcs. Run | T13: Pieces/ Hour | U13: Good Pieces | V13: Good Pcs/Hour | W13: Rework Total | X13: Scrap Total | Y13: % Scrap | Z13: Net Pcs/Hr (Good + Rework)
H14: B | J14: T | L14: C | N14: O | P14: U | T14: =IFERROR(IF(S14="","",((S14/R14))*60),"") ->  | V14: =IFERROR(IF(S14="","",((U14/S14))*T14),"") ->  | Y14: =IFERROR(IF(S14="","",X14/S14),"") ->  | Z14: =IFERROR(IF(S14="","",(1-(Y14/1000000))*T14),"") -> 
I15: =IF(H15="x",(G15-F15)*1440,0) -> 0 | K15: =IF(J15="x",(G15-F15)*1440,0) -> 0 | M15: =IF(L15="x",(G15-F15)*1440,0) -> 0 | O15: =IF(N15="x",(G15-F15)*1440,0) -> 0 | Q15: =IF(P15="x",(G15-F15)*1440,0) -> 0 | R15: =IF(ISBLANK(F15),"",IF(G15>=F15,(G15-F15)*1440,(1+G15-F15)*1440)) ->  | T15: =IFERROR(IF(S15="","",((S15/R15))*60),"") ->  | U15: =IF(S15="","",S15-(W15+X15)) ->  | V15: =IFERROR(IF(S15="","",((U15/S15))*T15),"") ->  | Y15: =IFERROR(IF(S15="","",X15/S15),"") ->  | Z15: =IFERROR(IF(S15="","",(1-(Y15/1000000))*T15),"") -> 
A16: Description of Downtime: | I16: =IF(H16="x",(G16-F16)*1440,0) -> 0 | K16: =IF(J16="x",(G16-F16)*1440,0) -> 0 | M16: =IF(L16="x",(G16-F16)*1440,0) -> 0 | O16: ` | Q16: =IF(P16="x",(G16-F16)*1440,0) -> 0 | R16: =IF(ISBLANK(F16),"",IF(G16>=F16,(G16-F16)*1440,(1+G16-F16)*1440)) ->  | T16: =IFERROR(IF(S16="","",((S16/R16))*60),"") ->  | U16: =IF(S16="","",S16-(W16+X16)) ->  | V16: =IFERROR(IF(S16="","",((U16/S16))*T16),"") ->  | Y16: =IFERROR(IF(S16="","",X16/S16),"") ->  | Z16: =IFERROR(IF(S16="","",(1-(Y16/1000000))*T16),"") -> 
I17: =IF(H17="x",(G17-F17)*1440,0) -> 0 | K17: =IF(J17="x",(G17-F17)*1440,0) -> 0 | M17: =IF(L17="x",(G17-F17)*1440,0) -> 0 | O17: =IF(N17="x",(G17-F17)*1440,0) -> 0 | Q17: =IF(P17="x",(G17-F17)*1440,0) -> 0 | R17: =IF(ISBLANK(F17),"",IF(G17>=F17,(G17-F17)*1440,(1+G17-F17)*1440)) ->  | T17: =IFERROR(IF(S17="","",((S17/R17))*60),"") ->  | U17: =IF(S17="","",S17-(W17+X17)) ->  | V17: =IFERROR(IF(S17="","",((U17/S17))*T17),"") ->  | Y17: =IFERROR(IF(S17="","",X17/S17),"") ->  | Z17: =IFERROR(IF(S17="","",(1-(Y17/1000000))*T17),"") -> 
D18: Downtime | I18: =IF(H18="x",(G18-F18)*1440,0) -> 0 | K18: =IF(J18="x",(G18-F18)*1440,0) -> 0 | M18: =IF(L18="x",(G18-F18)*1440,0) -> 0 | O18: =IF(N18="x",(G18-F18)*1440,0) -> 0 | Q18: =IF(P18="x",(G18-F18)*1440,0) -> 0 | R18: =IF(ISBLANK(F18),"",IF(G18>=F18,(G18-F18)*1440,(1+G18-F18)*1440)) ->  | T18: =IFERROR(IF(S18="","",((S18/R18))*60),"") ->  | U18: =IF(S18="","",S18-(W18+X18)) ->  | V18: =IFERROR(IF(S18="","",((U18/S18))*T18),"") ->  | Y18: =IFERROR(IF(S18="","",X18/S18),"") ->  | Z18: =IFERROR(IF(S18="","",(1-(Y18/1000000))*T18),"") -> 
A19: B | B19: breaks/lunch | D19: =I39 -> 0 | I19: =IF(H19="x",(G19-F19)*1440,0) -> 0 | K19: =IF(J19="x",(G19-F19)*1440,0) -> 0 | M19: =IF(L19="x",(G19-F19)*1440,0) -> 0 | O19: =IF(N19="x",(G19-F19)*1440,0) -> 0 | Q19: =IF(P19="x",(G19-F19)*1440,0) -> 0 | R19: =IF(ISBLANK(F19),"",IF(G19>=F19,(G19-F19)*1440,(1+G19-F19)*1440)) ->  | T19: =IFERROR(IF(S19="","",((S19/R19))*60),"") ->  | U19: =IF(S19="","",S19-(W19+X19)) ->  | V19: =IFERROR(IF(S19="","",((U19/S19))*T19),"") ->  | Y19: =IFERROR(IF(S19="","",X19/S19),"") ->  | Z19: =IFERROR(IF(S19="","",(1-(Y19/1000000))*T19),"") -> 
A20: T | B20: tool change | D20: =K39 -> 0 | I20: 0 | K20: 0 | M20: 0 | O20: 0 | Q20: 0
A21: C | B21: changeover | D21: =M39 -> 0 | I21: 0 | K21: 0 | M21: 0 | O21: 0 | Q21: 0
A22: O | B22: other planned dntm | D22: =O39 -> 0 | I22: 0 | K22: 0 | M22: 0 | O22: 0 | Q22: 0
A23: U | B23: unplanned dntm | D23: =Q39 -> 0 | I23: 0 | K23: 0 | M23: 0 | O23: 0 | Q23: 0
I24: =IF(H24="x",(G24-F24)*1440,0) -> 0 | K24: =IF(J24="x",(G24-F24)*1440,0) -> 0 | M24: =IF(L24="x",(G24-F24)*1440,0) -> 0 | O24: =IF(N24="x",(G24-F24)*1440,0) -> 0 | Q24: 0
I25: 0 | K25: 0 | M25: 0 | O25: 0 | Q25: 0
I26: 0 | K26: 0 | M26: 0 | O26: 0 | Q26: 0
I27: 0 | K27: 0 | M27: 0 | O27: 0 | Q27: 0
I28: 0 | K28: 0 | M28: 0 | O28: 0 | Q28: 0
I29: 0 | K29: 0 | M29: 0 | O29: 0 | Q29: 0
I30: 0 | K30: 0 | M30: 0 | O30: 0 | Q30: 0
I31: 0 | K31: 0 | M31: 0 | O31: 0 | Q31: 0
I32: 0 | K32: 0 | M32: 0 | O32: 0 | Q32: 0
I33: 0 | K33: 0 | M33: 0 | O33: 0 | Q33: 0
I34: 0 | K34: 0 | M34: 0 | O34: 0 | Q34: 0
I35: 0 | K35: 0 | M35: 0 | O35: 0 | Q35: 0
I36: 0 | K36: 0 | M36: 0 | O36: 0 | Q36: 0
I37: 0 | K37: 0 | M37: 0 | O37: 0 | Q37: 0
I38: 0 | K38: 0 | M38: 0 | O38: 0 | Q38: 0
I39: =SUM(I15:I38) -> 0 | K39: =SUM(K15:K38) -> 0 | M39: =SUM(M15:M38) -> 0 | O39: =SUM(O15:O38) -> 0 | Q39: =SUM(Q15:Q38) -> 0 | R39: =(G39-F39)*1440 -> 0 | T39: =((S39/R39))*60/1440 ->  | U39: =S39-(W39+X39) -> 0 | V39: =((U39/S39))*T39 ->  | Y39: =(X39/S39)*1000000 ->  | Z39: =(1-(Y39/1000000))*T39 -> 
S40: =SUM(S15:S39) -> 0 | U40: =SUM(U15:U39) -> 0 | W40: =SUM(W15:W39) -> 0
P41: # of minutes uptime: | R41: =R42-(D20+D21+D23) -> 0 | T41: % uptime: | U41: =IFERROR(R41/R42,"") ->  | W41: FTQ: | X41: =IFERROR(IF(F15="","",((S40-U40)/S40)*1000000),"") -> 
P42: Total Run Time: | R42: =SUM(R15:R38)-(D19+D22) -> 0 | W42: % Scrap: | X42: =IFERROR(IF(F15="","",((S40-(U40+W40))/S40)),"") -> 
L44: Comments: Document scrap/rework and downtime here

Sheet Process 9 - Actual Run Data
A1: Actual Run Data
B5: Supplier Name: | C5: =IF('Capacity Plan'!$F$3="","",'Capacity Plan'!$F$3) ->  | W5: Completed By:
B6: Process Name: | C6: =IF('Capacity Plan'!$D$29="","",'Capacity Plan'!$D$29) -> 
B7: Part Number: | C7: =IF('Capacity Plan'!$Q$3="","",'Capacity Plan'!$Q$3) -> 
R9: Target | S9: Actual | T9: Difference | V9: PLEASE PRINT HARD COPY FOR USE DURING RUN@RATE. COMPLETE BY FILLING IN THE HIGHLIGHTED COLUMNS ONLY. USE MILITARY (24:00 HR) TIME FORMAT.
B10: Run @ Rate Summary Data | J10: Time/part | R10: =IFERROR(IF(F15="","",'Capacity Plan'!L29/'Capacity Plan'!M29),"") ->  | S10: =IFERROR(IF(F15="","",3600/S11),"") ->  | T10: =IFERROR(IF(F15="","",R10-S10),"") -> 
J11: Pcs/Hour | R11: =IFERROR(IF(F15="","",60*60/R10),"") ->  | S11: =IFERROR(IF(F15="","",(S40*60/R41)),"") ->  | T11: =IFERROR(IF(F15="","",S11-R11),"") -> 
B13: Capacity Plan | F13: Start Time (hh:mm) | G13: Stop Time (hh:mm) | H13: Downtime Description | R13: Total Time | S13: Total # of Pcs. Run | T13: Pieces/ Hour | U13: Good Pieces | V13: Good Pcs/Hour | W13: Rework Total | X13: Scrap Total | Y13: % Scrap | Z13: Net Pcs/Hr (Good + Rework)
H14: B | J14: T | L14: C | N14: O | P14: U | T14: =IFERROR(IF(S14="","",((S14/R14))*60),"") ->  | V14: =IFERROR(IF(S14="","",((U14/S14))*T14),"") ->  | Y14: =IFERROR(IF(S14="","",X14/S14),"") ->  | Z14: =IFERROR(IF(S14="","",(1-(Y14/1000000))*T14),"") -> 
I15: =IF(H15="x",(G15-F15)*1440,0) -> 0 | K15: =IF(J15="x",(G15-F15)*1440,0) -> 0 | M15: =IF(L15="x",(G15-F15)*1440,0) -> 0 | O15: =IF(N15="x",(G15-F15)*1440,0) -> 0 | Q15: =IF(P15="x",(G15-F15)*1440,0) -> 0 | R15: =IF(ISBLANK(F15),"",IF(G15>=F15,(G15-F15)*1440,(1+G15-F15)*1440)) ->  | T15: =IFERROR(IF(S15="","",((S15/R15))*60),"") ->  | U15: =IF(S15="","",S15-(W15+X15)) ->  | V15: =IFERROR(IF(S15="","",((U15/S15))*T15),"") ->  | Y15: =IFERROR(IF(S15="","",X15/S15),"") ->  | Z15: =IFERROR(IF(S15="","",(1-(Y15/1000000))*T15),"") -> 
A16: Description of Downtime: | I16: 0 | K16: 0 | M16: 0 | O16: 0 | Q16: =IF(P16="x",(G16-F16)*1440,0) -> 0 | R16: =IF(ISBLANK(F16),"",IF(G16>=F16,(G16-F16)*1440,(1+G16-F16)*1440)) ->  | T16: =IFERROR(IF(S16="","",((S16/R16))*60),"") ->  | U16: =IF(S16="","",S16-(W16+X16)) ->  | V16: =IFERROR(IF(S16="","",((U16/S16))*T16),"") ->  | Y16: =IFERROR(IF(S16="","",X16/S16),"") ->  | Z16: =IFERROR(IF(S16="","",(1-(Y16/1000000))*T16),"") -> 
I17: 0 | K17: 0 | M17: 0 | O17: 0 | Q17: =IF(P17="x",(G17-F17)*1440,0) -> 0 | R17: =IF(ISBLANK(F17),"",IF(G17>=F17,(G17-F17)*1440,(1+G17-F17)*1440)) ->  | T17: =IFERROR(IF(S17="","",((S17/R17))*60),"") ->  | U17: =IF(S17="","",S17-(W17+X17)) ->  | V17: =IFERROR(IF(S17="","",((U17/S17))*T17),"") ->  | Y17: =IFERROR(IF(S17="","",X17/S17),"") ->  | Z17: =IFERROR(IF(S17="","",(1-(Y17/1000000))*T17),"") -> 
D18: Downtime | I18: 0 | K18: 0 | M18: 0 | O18: 0 | Q18: =IF(P18="x",(G18-F18)*1440,0) -> 0 | R18: =IF(ISBLANK(F18),"",IF(G18>=F18,(G18-F18)*1440,(1+G18-F18)*1440)) ->  | T18: =IFERROR(IF(S18="","",((S18/R18))*60),"") ->  | U18: =IF(S18="","",S18-(W18+X18)) ->  | V18: =IFERROR(IF(S18="","",((U18/S18))*T18),"") ->  | Y18: =IFERROR(IF(S18="","",X18/S18),"") ->  | Z18: =IFERROR(IF(S18="","",(1-(Y18/1000000))*T18),"") -> 
A19: B | B19: breaks/lunch | D19: =I39 -> 0 | I19: =IF(H19="x",(G19-F19)*1440,0) -> 0 | K19: =IF(J19="x",(G19-F19)*1440,0) -> 0 | M19: =IF(L19="x",(G19-F19)*1440,0) -> 0 | O19: =IF(N19="x",(G19-F19)*1440,0) -> 0 | Q19: =IF(P19="x",(G19-F19)*1440,0) -> 0 | R19: =IF(ISBLANK(F19),"",IF(G19>=F19,(G19-F19)*1440,(1+G19-F19)*1440)) ->  | T19: =IFERROR(IF(S19="","",((S19/R19))*60),"") ->  | U19: =IF(S19="","",S19-(W19+X19)) ->  | V19: =IFERROR(IF(S19="","",((U19/S19))*T19),"") ->  | Y19: =IFERROR(IF(S19="","",X19/S19),"") ->  | Z19: =IFERROR(IF(S19="","",(1-(Y19/1000000))*T19),"") -> 
A20: T | B20: tool change | D20: =K39 -> 0 | I20: 0 | K20: 0 | M20: 0 | O20: 0 | Q20: 0
A21: C | B21: changeover | D21: =M39 -> 0 | I21: 0 | K21: 0 | M21: 0 | O21: 0 | Q21: 0
A22: O | B22: other planned dntm | D22: =O39 -> 0 | I22: 0 | K22: 0 | M22: 0 | O22: 0 | Q22: 0
A23: U | B23: unplanned dntm | D23: =Q39 -> 0 | I23: 0 | K23: 0 | M23: 0 | O23: 0 | Q23: 0
I24: =IF(H24="x",(G24-F24)*1440,0) -> 0 | K24: =IF(J24="x",(G24-F24)*1440,0) -> 0 | M24: =IF(L24="x",(G24-F24)*1440,0) -> 0 | O24: =IF(N24="x",(G24-F24)*1440,0) -> 0 | Q24: 0
I25: 0 | K25: 0 | M25: 0 | O25: 0 | Q25: 0
I26: 0 | K26: 0 | M26: 0 | O26: 0 | Q26: 0
I27: 0 | K27: 0 | M27: 0 | O27: 0 | Q27: 0
I28: 0 | K28: 0 | M28: 0 | O28: 0 | Q28: 0
I29: 0 | K29: 0 | M29: 0 | O29: 0 | Q29: 0
I30: 0 | K30: 0 | M30: 0 | O30: 0 | Q30: 0
I31: 0 | K31: 0 | M31: 0 | O31: 0 | Q31: 0
I32: 0 | K32: 0 | M32: 0 | O32: 0 | Q32: 0
I33: 0 | K33: 0 | M33: 0 | O33: 0 | Q33: 0
I34: 0 | K34: 0 | M34: 0 | O34: 0 | Q34: 0
I35: 0 | K35: 0 | M35: 0 | O35: 0 | Q35: 0
I36: 0 | K36: 0 | M36: 0 | O36: 0 | Q36: 0
I37: 0 | K37: 0 | M37: 0 | O37: 0 | Q37: 0
I38: 0 | K38: 0 | M38: 0 | O38: 0 | Q38: 0
I39: =SUM(I15:I38) -> 0 | K39: =SUM(K15:K38) -> 0 | M39: =SUM(M15:M38) -> 0 | O39: =SUM(O15:O38) -> 0 | Q39: =SUM(Q15:Q38) -> 0 | R39: =(G39-F39)*1440 -> 0 | T39: =((S39/R39))*60/1440 ->  | U39: =S39-(W39+X39) -> 0 | V39: =((U39/S39))*T39 ->  | Y39: =(X39/S39)*1000000 ->  | Z39: =(1-(Y39/1000000))*T39 -> 
S40: =SUM(S15:S39) -> 0 | U40: =SUM(U15:U39) -> 0 | W40: =SUM(W15:W39) -> 0
P41: # of minutes uptime: | R41: =R42-(D20+D21+D23) -> 0 | T41: % uptime: | U41: =IFERROR(R41/R42,"") ->  | W41: FTQ: | X41: =IFERROR(IF(F15="","",((S40-U40)/S40)*1000000),"") -> 
P42: Total Run Time: | R42: =SUM(R15:R38)-(D19+D22) -> 0 | W42: % Scrap: | X42: =IFERROR(IF(F15="","",((S40-(U40+W40))/S40)),"") -> 
L44: Comments: Document scrap/rework and downtime here

Sheet Process 10 - Actual Run Data
A1: Actual Run Data
B5: Supplier Name: | C5: =IF('Capacity Plan'!$F$3="","",'Capacity Plan'!$F$3) ->  | W5: Completed By:
B6: Process Name: | C6: =IF('Capacity Plan'!$D$30="","",'Capacity Plan'!$D$30) -> 
B7: Part Number: | C7: =IF('Capacity Plan'!$Q$3="","",'Capacity Plan'!$Q$3) -> 
R9: Target | S9: Actual | T9: Difference | V9: PLEASE PRINT HARD COPY FOR USE DURING RUN@RATE. COMPLETE BY FILLING IN THE HIGHLIGHTED COLUMNS ONLY. USE MILITARY (24:00 HR) TIME FORMAT.
B10: Run @ Rate Summary Data | J10: Time/part | R10: =IFERROR(IF(F15="","",'Capacity Plan'!L30/'Capacity Plan'!M30),"") ->  | S10: =IFERROR(IF(F15="","",3600/S11),"") ->  | T10: =IFERROR(IF(F15="","",R10-S10),"") -> 
J11: Pcs/Hour | R11: =IFERROR(IF(F15="","",60*60/R10),"") ->  | S11: =IFERROR(IF(F15="","",(S40*60/R41)),"") ->  | T11: =IFERROR(IF(F15="","",S11-R11),"") -> 
B13: Capacity Plan | F13: Start Time (hh:mm) | G13: Stop Time (hh:mm) | H13: Downtime Description | R13: Total Time | S13: Total # of Pcs. Run | T13: Pieces/ Hour | U13: Good Pieces | V13: Good Pcs/Hour | W13: Rework Total | X13: Scrap Total | Y13: % Scrap | Z13: Net Pcs/Hr (Good + Rework)
H14: B | J14: T | L14: C | N14: O | P14: U | T14: =IFERROR(IF(S14="","",((S14/R14))*60),"") ->  | V14: =IFERROR(IF(S14="","",((U14/S14))*T14),"") ->  | Y14: =IFERROR(IF(S14="","",X14/S14),"") ->  | Z14: =IFERROR(IF(S14="","",(1-(Y14/1000000))*T14),"") -> 
I15: =IF(H15="x",(G15-F15)*1440,0) -> 0 | K15: =IF(J15="x",(G15-F15)*1440,0) -> 0 | M15: =IF(L15="x",(G15-F15)*1440,0) -> 0 | O15: =IF(N15="x",(G15-F15)*1440,0) -> 0 | Q15: =IF(P15="x",(G15-F15)*1440,0) -> 0 | R15: =IF(ISBLANK(F15),"",IF(G15>=F15,(G15-F15)*1440,(1+G15-F15)*1440)) ->  | T15: =IFERROR(IF(S15="","",((S15/R15))*60),"") ->  | U15: =IF(S15="","",S15-(W15+X15)) ->  | V15: =IFERROR(IF(S15="","",((U15/S15))*T15),"") ->  | Y15: =IFERROR(IF(S15="","",X15/S15),"") ->  | Z15: =IFERROR(IF(S15="","",(1-(Y15/1000000))*T15),"") -> 
A16: Description of Downtime: | I16: 0 | K16: 0 | M16: 0 | O16: 0 | Q16: =IF(P16="x",(G16-F16)*1440,0) -> 0 | R16: =IF(ISBLANK(F16),"",IF(G16>=F16,(G16-F16)*1440,(1+G16-F16)*1440)) ->  | T16: =IFERROR(IF(S16="","",((S16/R16))*60),"") ->  | U16: =IF(S16="","",S16-(W16+X16)) ->  | V16: =IFERROR(IF(S16="","",((U16/S16))*T16),"") ->  | Y16: =IFERROR(IF(S16="","",X16/S16),"") ->  | Z16: =IFERROR(IF(S16="","",(1-(Y16/1000000))*T16),"") -> 
I17: 0 | K17: 0 | M17: 0 | O17: 0 | Q17: 0
D18: Downtime | I18: 0 | K18: 0 | M18: 0 | O18: 0 | Q18: 0
A19: B | B19: breaks/lunch | D19: =I39 -> 0 | I19: 0 | K19: 0 | M19: 0 | O19: 0 | Q19: 0
A20: T | B20: tool change | D20: =K39 -> 0 | I20: 0 | K20: 0 | M20: 0 | O20: 0 | Q20: 0
A21: C | B21: changeover | D21: =M39 -> 0 | I21: 0 | K21: 0 | M21: 0 | O21: 0 | Q21: 0
A22: O | B22: other planned dntm | D22: =O39 -> 0 | I22: 0 | K22: 0 | M22: 0 | O22: 0 | Q22: 0
A23: U | B23: unplanned dntm | D23: =Q39 -> 0 | I23: 0 | K23: 0 | M23: 0 | O23: 0 | Q23: 0
I24: =IF(H24="x",(G24-F24)*1440,0) -> 0 | K24: =IF(J24="x",(G24-F24)*1440,0) -> 0 | M24: =IF(L24="x",(G24-F24)*1440,0) -> 0 | O24: =IF(N24="x",(G24-F24)*1440,0) -> 0 | Q24: 0
I25: 0 | K25: 0 | M25: 0 | O25: 0 | Q25: 0
I26: 0 | K26: 0 | M26: 0 | O26: 0 | Q26: 0
I27: 0 | K27: 0 | M27: 0 | O27: 0 | Q27: 0
I28: 0 | K28: 0 | M28: 0 | O28: 0 | Q28: 0
I29: 0 | K29: 0 | M29: 0 | O29: 0 | Q29: 0
I30: 0 | K30: 0 | M30: 0 | O30: 0 | Q30: 0
I31: 0 | K31: 0 | M31: 0 | O31: 0 | Q31: 0
I32: 0 | K32: 0 | M32: 0 | O32: 0 | Q32: 0
I33: 0 | K33: 0 | M33: 0 | O33: 0 | Q33: 0
I34: 0 | K34: 0 | M34: 0 | O34: 0 | Q34: 0
I35: 0 | K35: 0 | M35: 0 | O35: 0 | Q35: 0
I36: 0 | K36: 0 | M36: 0 | O36: 0 | Q36: 0
I37: 0 | K37: 0 | M37: 0 | O37: 0 | Q37: 0
I38: 0 | K38: 0 | M38: 0 | O38: 0 | Q38: 0
I39: =SUM(I15:I38) -> 0 | K39: =SUM(K15:K38) -> 0 | M39: =SUM(M15:M38) -> 0 | O39: =SUM(O15:O38) -> 0 | Q39: =SUM(Q15:Q38) -> 0 | R39: =(G39-F39)*1440 -> 0 | T39: =((S39/R39))*60/1440 ->  | U39: =S39-(W39+X39) -> 0 | V39: =((U39/S39))*T39 ->  | Y39: =(X39/S39)*1000000 ->  | Z39: =(1-(Y39/1000000))*T39 -> 
S40: =SUM(S15:S39) -> 0 | U40: =SUM(U15:U39) -> 0 | W40: =SUM(W15:W39) -> 0
P41: # of minutes uptime: | R41: =R42-(D20+D21+D23) -> 0 | T41: % uptime: | U41: =IFERROR(R41/R42,"") ->  | W41: FTQ: | X41: =IFERROR(IF(F15="","",((S40-U40)/S40)*1000000),"") -> 
P42: Total Run Time: | R42: =SUM(R15:R38)-(D19+D22) -> 0 | W42: % Scrap: | X42: =IFERROR(IF(F15="","",((S40-(U40+W40))/S40)),"") -> 
L44: Comments: Document scrap/rework and downtime here

Sheet Process 11 - Actual Run Data
A1: Actual Run Data
B5: Supplier Name: | C5: =IF('Capacity Plan'!$F$3="","",'Capacity Plan'!$F$3) ->  | W5: Completed By:
B6: Process Name: | C6: =IF('Capacity Plan'!$D$31="","",'Capacity Plan'!$D$31) -> 
B7: Part Number: | C7: =IF('Capacity Plan'!$Q$3="","",'Capacity Plan'!$Q$3) -> 
R9: Target | S9: Actual | T9: Difference | V9: PLEASE PRINT HARD COPY FOR USE DURING RUN@RATE. COMPLETE BY FILLING IN THE HIGHLIGHTED COLUMNS ONLY. USE MILITARY (24:00 HR) TIME FORMAT.
B10: Run @ Rate Summary Data | J10: Time/part | R10: =IFERROR(IF(F15="","",'Capacity Plan'!L31/'Capacity Plan'!M31),"") ->  | S10: =IFERROR(IF(F15="","",3600/S11),"") ->  | T10: =IFERROR(IF(F15="","",R10-S10),"") -> 
J11: Pcs/Hour | R11: =IFERROR(IF(F15="","",60*60/R10),"") ->  | S11: =IFERROR(IF(F15="","",(S40*60/R41)),"") ->  | T11: =IFERROR(IF(F15="","",S11-R11),"") -> 
B13: Capacity Plan | F13: Start Time (hh:mm) | G13: Stop Time (hh:mm) | H13: Downtime Description | R13: Total Time | S13: Total # of Pcs. Run | T13: Pieces/ Hour | U13: Good Pieces | V13: Good Pcs/Hour | W13: Rework Total | X13: Scrap Total | Y13: % Scrap | Z13: Net Pcs/Hr (Good + Rework)
H14: B | J14: T | L14: C | N14: O | P14: U | T14: =IFERROR(IF(S14="","",((S14/R14))*60),"") ->  | V14: =IFERROR(IF(S14="","",((U14/S14))*T14),"") ->  | Y14: =IFERROR(IF(S14="","",X14/S14),"") ->  | Z14: =IFERROR(IF(S14="","",(1-(Y14/1000000))*T14),"") -> 
I15: =IF(H15="x",(G15-F15)*1440,0) -> 0 | K15: =IF(J15="x",(G15-F15)*1440,0) -> 0 | M15: =IF(L15="x",(G15-F15)*1440,0) -> 0 | O15: =IF(N15="x",(G15-F15)*1440,0) -> 0 | Q15: =IF(P15="x",(G15-F15)*1440,0) -> 0 | R15: =IF(ISBLANK(F15),"",IF(G15>=F15,(G15-F15)*1440,(1+G15-F15)*1440)) ->  | T15: =IFERROR(IF(S15="","",((S15/R15))*60),"") ->  | U15: =IF(S15="","",S15-(W15+X15)) ->  | V15: =IFERROR(IF(S15="","",((U15/S15))*T15),"") ->  | Y15: =IFERROR(IF(S15="","",X15/S15),"") ->  | Z15: =IFERROR(IF(S15="","",(1-(Y15/1000000))*T15),"") -> 
A16: Description of Downtime: | I16: 0 | K16: 0 | M16: 0 | O16: 0 | Q16: =IF(P16="x",(G16-F16)*1440,0) -> 0 | R16: =IF(ISBLANK(F16),"",IF(G16>=F16,(G16-F16)*1440,(1+G16-F16)*1440)) ->  | T16: =IFERROR(IF(S16="","",((S16/R16))*60),"") ->  | U16: =IF(S16="","",S16-(W16+X16)) ->  | V16: =IFERROR(IF(S16="","",((U16/S16))*T16),"") ->  | Y16: =IFERROR(IF(S16="","",X16/S16),"") ->  | Z16: =IFERROR(IF(S16="","",(1-(Y16/1000000))*T16),"") -> 
I17: 0 | K17: 0 | M17: 0 | O17: 0 | Q17: 0
D18: Downtime | I18: 0 | K18: 0 | M18: 0 | O18: 0 | Q18: 0
A19: B | B19: breaks/lunch | D19: =I39 -> 0 | I19: 0 | K19: 0 | M19: 0 | O19: 0 | Q19: 0
A20: T | B20: tool change | D20: =K39 -> 0 | I20: 0 | K20: 0 | M20: 0 | O20: 0 | Q20: 0
A21: C | B21: changeover | D21: =M39 -> 0 | I21: 0 | K21: 0 | M21: 0 | O21: 0 | Q21: 0
A22: O | B22: other planned dntm | D22: =O39 -> 0 | I22: 0 | K22: 0 | M22: 0 | O22: 0 | Q22: 0
A23: U | B23: unplanned dntm | D23: =Q39 -> 0 | I23: 0 | K23: 0 | M23: 0 | O23: 0 | Q23: 0
I24: =IF(H24="x",(G24-F24)*1440,0) -> 0 | K24: =IF(J24="x",(G24-F24)*1440,0) -> 0 | M24: =IF(L24="x",(G24-F24)*1440,0) -> 0 | O24: =IF(N24="x",(G24-F24)*1440,0) -> 0 | Q24: 0
I25: 0 | K25: 0 | M25: 0 | O25: 0 | Q25: 0
I26: 0 | K26: 0 | M26: 0 | O26: 0 | Q26: 0
I27: 0 | K27: 0 | M27: 0 | O27: 0 | Q27: 0
I28: 0 | K28: 0 | M28: 0 | O28: 0 | Q28: 0
I29: 0 | K29: 0 | M29: 0 | O29: 0 | Q29: 0
I30: 0 | K30: 0 | M30: 0 | O30: 0 | Q30: 0
I31: 0 | K31: 0 | M31: 0 | O31: 0 | Q31: 0
I32: 0 | K32: 0 | M32: 0 | O32: 0 | Q32: 0
I33: 0 | K33: 0 | M33: 0 | O33: 0 | Q33: 0
I34: 0 | K34: 0 | M34: 0 | O34: 0 | Q34: 0
I35: 0 | K35: 0 | M35: 0 | O35: 0 | Q35: 0
I36: 0 | K36: 0 | M36: 0 | O36: 0 | Q36: 0
I37: 0 | K37: 0 | M37: 0 | O37: 0 | Q37: 0
I38: 0 | K38: 0 | M38: 0 | O38: 0 | Q38: 0
I39: =SUM(I15:I38) -> 0 | K39: =SUM(K15:K38) -> 0 | M39: =SUM(M15:M38) -> 0 | O39: =SUM(O15:O38) -> 0 | Q39: =SUM(Q15:Q38) -> 0 | R39: =(G39-F39)*1440 -> 0 | T39: =((S39/R39))*60/1440 ->  | U39: =S39-(W39+X39) -> 0 | V39: =((U39/S39))*T39 ->  | Y39: =(X39/S39)*1000000 ->  | Z39: =(1-(Y39/1000000))*T39 -> 
S40: =SUM(S15:S39) -> 0 | U40: =SUM(U15:U39) -> 0 | W40: =SUM(W15:W39) -> 0
P41: # of minutes uptime: | R41: =R42-(D20+D21+D23) -> 0 | T41: % uptime: | U41: =IFERROR(R41/R42,"") ->  | W41: FTQ: | X41: =IFERROR(IF(F15="","",((S40-U40)/S40)*1000000),"") -> 
P42: Total Run Time: | R42: =SUM(R15:R38)-(D19+D22) -> 0 | W42: % Scrap: | X42: =IFERROR(IF(F15="","",((S40-(U40+W40))/S40)),"") -> 
L44: Comments: Document scrap/rework and downtime here

Sheet Process 12 - Actual Run Data
A1: Actual Run Data
B5: Supplier Name: | C5: =IF('Capacity Plan'!$F$3="","",'Capacity Plan'!$F$3) ->  | W5: Completed By:
B6: Process Name: | C6: =IF('Capacity Plan'!$D$32="","",'Capacity Plan'!$D$32) -> 
B7: Part Number: | C7: =IF('Capacity Plan'!$Q$3="","",'Capacity Plan'!$Q$3) -> 
R9: Target | S9: Actual | T9: Difference | V9: PLEASE PRINT HARD COPY FOR USE DURING RUN@RATE. COMPLETE BY FILLING IN THE HIGHLIGHTED COLUMNS ONLY. USE MILITARY (24:00 HR) TIME FORMAT.
B10: Run @ Rate Summary Data | J10: Time/part | R10: =IFERROR(IF(F15="","",'Capacity Plan'!L32/'Capacity Plan'!M32),"") ->  | S10: =IFERROR(IF(F15="","",3600/S11),"") ->  | T10: =IFERROR(IF(F15="","",R10-S10),"") -> 
J11: Pcs/Hour | R11: =IFERROR(IF(F15="","",60*60/R10),"") ->  | S11: =IFERROR(IF(F15="","",(S40*60/R41)),"") ->  | T11: =IFERROR(IF(F15="","",S11-R11),"") -> 
B13: Capacity Plan | F13: Start Time (hh:mm) | G13: Stop Time (hh:mm) | H13: Downtime Description | R13: Total Time | S13: Total # of Pcs. Run | T13: Pieces/ Hour | U13: Good Pieces | V13: Good Pcs/Hour | W13: Rework Total | X13: Scrap Total | Y13: % Scrap | Z13: Net Pcs/Hr (Good + Rework)
H14: B | J14: T | L14: C | N14: O | P14: U | T14: =IFERROR(IF(S14="","",((S14/R14))*60),"") ->  | V14: =IFERROR(IF(S14="","",((U14/S14))*T14),"") ->  | Y14: =IFERROR(IF(S14="","",X14/S14),"") ->  | Z14: =IFERROR(IF(S14="","",(1-(Y14/1000000))*T14),"") -> 
I15: =IF(H15="x",(G15-F15)*1440,0) -> 0 | K15: =IF(J15="x",(G15-F15)*1440,0) -> 0 | M15: =IF(L15="x",(G15-F15)*1440,0) -> 0 | O15: =IF(N15="x",(G15-F15)*1440,0) -> 0 | Q15: =IF(P15="x",(G15-F15)*1440,0) -> 0 | R15: =IF(ISBLANK(F15),"",IF(G15>=F15,(G15-F15)*1440,(1+G15-F15)*1440)) ->  | T15: =IFERROR(IF(S15="","",((S15/R15))*60),"") ->  | U15: =IF(S15="","",S15-(W15+X15)) ->  | V15: =IFERROR(IF(S15="","",((U15/S15))*T15),"") ->  | Y15: =IFERROR(IF(S15="","",X15/S15),"") ->  | Z15: =IFERROR(IF(S15="","",(1-(Y15/1000000))*T15),"") -> 
A16: Description of Downtime: | I16: 0 | K16: 0 | M16: 0 | O16: 0 | Q16: =IF(P16="x",(G16-F16)*1440,0) -> 0 | R16: =IF(ISBLANK(F16),"",IF(G16>=F16,(G16-F16)*1440,(1+G16-F16)*1440)) ->  | T16: =IFERROR(IF(S16="","",((S16/R16))*60),"") ->  | U16: =IF(S16="","",S16-(W16+X16)) ->  | V16: =IFERROR(IF(S16="","",((U16/S16))*T16),"") ->  | Y16: =IFERROR(IF(S16="","",X16/S16),"") ->  | Z16: =IFERROR(IF(S16="","",(1-(Y16/1000000))*T16),"") -> 
I17: =IF(H17="x",(G17-F17)*1440,0) -> 0 | K17: =IF(J17="x",(G17-F17)*1440,0) -> 0 | M17: =IF(L17="x",(G17-F17)*1440,0) -> 0 | O17: =IF(N17="x",(G17-F17)*1440,0) -> 0 | Q17: =IF(P17="x",(G17-F17)*1440,0) -> 0 | R17: =IF(ISBLANK(F17),"",IF(G17>=F17,(G17-F17)*1440,(1+G17-F17)*1440)) ->  | T17: =IFERROR(IF(S17="","",((S17/R17))*60),"") ->  | U17: =IF(S17="","",S17-(W17+X17)) ->  | V17: =IFERROR(IF(S17="","",((U17/S17))*T17),"") ->  | Y17: =IFERROR(IF(S17="","",X17/S17),"") ->  | Z17: =IFERROR(IF(S17="","",(1-(Y17/1000000))*T17),"") -> 
D18: Downtime | I18: =IF(H18="x",(G18-F18)*1440,0) -> 0 | K18: =IF(J18="x",(G18-F18)*1440,0) -> 0 | M18: =IF(L18="x",(G18-F18)*1440,0) -> 0 | O18: =IF(N18="x",(G18-F18)*1440,0) -> 0 | Q18: =IF(P18="x",(G18-F18)*1440,0) -> 0 | R18: =IF(ISBLANK(F18),"",IF(G18>=F18,(G18-F18)*1440,(1+G18-F18)*1440)) ->  | T18: =IFERROR(IF(S18="","",((S18/R18))*60),"") ->  | U18: =IF(S18="","",S18-(W18+X18)) ->  | V18: =IFERROR(IF(S18="","",((U18/S18))*T18),"") ->  | Y18: =IFERROR(IF(S18="","",X18/S18),"") ->  | Z18: =IFERROR(IF(S18="","",(1-(Y18/1000000))*T18),"") -> 
A19: B | B19: breaks/lunch | D19: =I39 -> 0 | I19: =IF(H19="x",(G19-F19)*1440,0) -> 0 | K19: =IF(J19="x",(G19-F19)*1440,0) -> 0 | M19: =IF(L19="x",(G19-F19)*1440,0) -> 0 | O19: =IF(N19="x",(G19-F19)*1440,0) -> 0 | Q19: =IF(P19="x",(G19-F19)*1440,0) -> 0 | R19: =IF(ISBLANK(F19),"",IF(G19>=F19,(G19-F19)*1440,(1+G19-F19)*1440)) ->  | T19: =IFERROR(IF(S19="","",((S19/R19))*60),"") ->  | U19: =IF(S19="","",S19-(W19+X19)) ->  | V19: =IFERROR(IF(S19="","",((U19/S19))*T19),"") ->  | Y19: =IFERROR(IF(S19="","",X19/S19),"") ->  | Z19: =IFERROR(IF(S19="","",(1-(Y19/1000000))*T19),"") -> 
A20: T | B20: tool change | D20: =K39 -> 0 | I20: 0 | K20: 0 | M20: 0 | O20: 0 | Q20: 0
A21: C | B21: changeover | D21: =M39 -> 0 | I21: 0 | K21: 0 | M21: 0 | O21: 0 | Q21: 0
A22: O | B22: other planned dntm | D22: =O39 -> 0 | I22: 0 | K22: 0 | M22: 0 | O22: 0 | Q22: 0
A23: U | B23: unplanned dntm | D23: =Q39 -> 0 | I23: 0 | K23: 0 | M23: 0 | O23: 0 | Q23: 0
I24: =IF(H24="x",(G24-F24)*1440,0) -> 0 | K24: =IF(J24="x",(G24-F24)*1440,0) -> 0 | M24: =IF(L24="x",(G24-F24)*1440,0) -> 0 | O24: =IF(N24="x",(G24-F24)*1440,0) -> 0 | Q24: 0
I25: 0 | K25: 0 | M25: 0 | O25: 0 | Q25: 0
I26: 0 | K26: 0 | M26: 0 | O26: 0 | Q26: 0
I27: 0 | K27: 0 | M27: 0 | O27: 0 | Q27: 0
I28: 0 | K28: 0 | M28: 0 | O28: 0 | Q28: 0
I29: 0 | K29: 0 | M29: 0 | O29: 0 | Q29: 0
I30: 0 | K30: 0 | M30: 0 | O30: 0 | Q30: 0
I31: 0 | K31: 0 | M31: 0 | O31: 0 | Q31: 0
I32: 0 | K32: 0 | M32: 0 | O32: 0 | Q32: 0
I33: 0 | K33: 0 | M33: 0 | O33: 0 | Q33: 0
I34: 0 | K34: 0 | M34: 0 | O34: 0 | Q34: 0
I35: 0 | K35: 0 | M35: 0 | O35: 0 | Q35: 0
I36: 0 | K36: 0 | M36: 0 | O36: 0 | Q36: 0
I37: 0 | K37: 0 | M37: 0 | O37: 0 | Q37: 0
I38: 0 | K38: 0 | M38: 0 | O38: 0 | Q38: 0
I39: =SUM(I15:I38) -> 0 | K39: =SUM(K15:K38) -> 0 | M39: =SUM(M15:M38) -> 0 | O39: =SUM(O15:O38) -> 0 | Q39: =SUM(Q15:Q38) -> 0 | R39: =(G39-F39)*1440 -> 0 | T39: =((S39/R39))*60/1440 ->  | U39: =S39-(W39+X39) -> 0 | V39: =((U39/S39))*T39 ->  | Y39: =(X39/S39)*1000000 ->  | Z39: =(1-(Y39/1000000))*T39 -> 
S40: =SUM(S15:S39) -> 0 | U40: =SUM(U15:U39) -> 0 | W40: =SUM(W15:W39) -> 0
P41: # of minutes uptime: | R41: =R42-(D20+D21+D23) -> 0 | T41: % uptime: | U41: =IFERROR(R41/R42,"") ->  | W41: FTQ: | X41: =IFERROR(IF(F15="","",((S40-U40)/S40)*1000000),"") -> 
P42: Total Run Time: | R42: =SUM(R15:R38)-(D19+D22) -> 0 | W42: % Scrap: | X42: =IFERROR(IF(F15="","",((S40-(U40+W40))/S40)),"") -> 
L44: Comments: Document scrap/rework and downtime here

Sheet Process 13 - Actual Run Data
A1: Actual Run Data
B5: Supplier Name: | C5: =IF('Capacity Plan'!$F$3="","",'Capacity Plan'!$F$3) ->  | W5: Completed By:
B6: Process Name: | C6: =IF('Capacity Plan'!$D$33="","",'Capacity Plan'!$D$33) -> 
B7: Part Number: | C7: =IF('Capacity Plan'!$Q$3="","",'Capacity Plan'!$Q$3) -> 
R9: Target | S9: Actual | T9: Difference | V9: PLEASE PRINT HARD COPY FOR USE DURING RUN@RATE. COMPLETE BY FILLING IN THE HIGHLIGHTED COLUMNS ONLY. USE MILITARY (24:00 HR) TIME FORMAT.
B10: Run @ Rate Summary Data | J10: Time/part | R10: =IFERROR(IF(F15="","",'Capacity Plan'!L33/'Capacity Plan'!M33),"") ->  | S10: =IFERROR(IF(F15="","",3600/S11),"") ->  | T10: =IFERROR(IF(F15="","",R10-S10),"") -> 
J11: Pcs/Hour | R11: =IFERROR(IF(F15="","",60*60/R10),"") ->  | S11: =IFERROR(IF(F15="","",(S40*60/R41)),"") ->  | T11: =IFERROR(IF(F15="","",S11-R11),"") -> 
B13: Capacity Plan | F13: Start Time (hh:mm) | G13: Stop Time (hh:mm) | H13: Downtime Description | R13: Total Time | S13: Total # of Pcs. Run | T13: Pieces/ Hour | U13: Good Pieces | V13: Good Pcs/Hour | W13: Rework Total | X13: Scrap Total | Y13: % Scrap | Z13: Net Pcs/Hr (Good + Rework)
H14: B | J14: T | L14: C | N14: O | P14: U | T14: =IFERROR(IF(S14="","",((S14/R14))*60),"") ->  | V14: =IFERROR(IF(S14="","",((U14/S14))*T14),"") ->  | Y14: =IFERROR(IF(S14="","",X14/S14),"") ->  | Z14: =IFERROR(IF(S14="","",(1-(Y14/1000000))*T14),"") -> 
I15: =IF(H15="x",(G15-F15)*1440,0) -> 0 | K15: =IF(J15="x",(G15-F15)*1440,0) -> 0 | M15: =IF(L15="x",(G15-F15)*1440,0) -> 0 | O15: =IF(N15="x",(G15-F15)*1440,0) -> 0 | Q15: =IF(P15="x",(G15-F15)*1440,0) -> 0 | R15: =IF(ISBLANK(F15),"",IF(G15>=F15,(G15-F15)*1440,(1+G15-F15)*1440)) ->  | T15: =IFERROR(IF(S15="","",((S15/R15))*60),"") ->  | U15: =IF(S15="","",S15-(W15+X15)) ->  | V15: =IFERROR(IF(S15="","",((U15/S15))*T15),"") ->  | Y15: =IFERROR(IF(S15="","",X15/S15),"") ->  | Z15: =IFERROR(IF(S15="","",(1-(Y15/1000000))*T15),"") -> 
A16: Description of Downtime: | I16: 0 | K16: 0 | M16: 0 | O16: 0 | Q16: =IF(P16="x",(G16-F16)*1440,0) -> 0 | R16: =IF(ISBLANK(F16),"",IF(G16>=F16,(G16-F16)*1440,(1+G16-F16)*1440)) ->  | T16: =IFERROR(IF(S16="","",((S16/R16))*60),"") ->  | U16: =IF(S16="","",S16-(W16+X16)) ->  | V16: =IFERROR(IF(S16="","",((U16/S16))*T16),"") ->  | Y16: =IFERROR(IF(S16="","",X16/S16),"") ->  | Z16: =IFERROR(IF(S16="","",(1-(Y16/1000000))*T16),"") -> 
I17: =IF(H17="x",(G17-F17)*1440,0) -> 0 | K17: =IF(J17="x",(G17-F17)*1440,0) -> 0 | M17: =IF(L17="x",(G17-F17)*1440,0) -> 0 | O17: =IF(N17="x",(G17-F17)*1440,0) -> 0 | Q17: =IF(P17="x",(G17-F17)*1440,0) -> 0 | R17: =IF(ISBLANK(F17),"",IF(G17>=F17,(G17-F17)*1440,(1+G17-F17)*1440)) ->  | T17: =IFERROR(IF(S17="","",((S17/R17))*60),"") ->  | U17: =IF(S17="","",S17-(W17+X17)) ->  | V17: =IFERROR(IF(S17="","",((U17/S17))*T17),"") ->  | Y17: =IFERROR(IF(S17="","",X17/S17),"") ->  | Z17: =IFERROR(IF(S17="","",(1-(Y17/1000000))*T17),"") -> 
D18: Downtime | I18: =IF(H18="x",(G18-F18)*1440,0) -> 0 | K18: =IF(J18="x",(G18-F18)*1440,0) -> 0 | M18: =IF(L18="x",(G18-F18)*1440,0) -> 0 | O18: =IF(N18="x",(G18-F18)*1440,0) -> 0 | Q18: =IF(P18="x",(G18-F18)*1440,0) -> 0 | R18: =IF(ISBLANK(F18),"",IF(G18>=F18,(G18-F18)*1440,(1+G18-F18)*1440)) ->  | T18: =IFERROR(IF(S18="","",((S18/R18))*60),"") ->  | U18: =IF(S18="","",S18-(W18+X18)) ->  | V18: =IFERROR(IF(S18="","",((U18/S18))*T18),"") ->  | Y18: =IFERROR(IF(S18="","",X18/S18),"") ->  | Z18: =IFERROR(IF(S18="","",(1-(Y18/1000000))*T18),"") -> 
A19: B | B19: breaks/lunch | D19: =I39 -> 0 | I19: =IF(H19="x",(G19-F19)*1440,0) -> 0 | K19: =IF(J19="x",(G19-F19)*1440,0) -> 0 | M19: =IF(L19="x",(G19-F19)*1440,0) -> 0 | O19: =IF(N19="x",(G19-F19)*1440,0) -> 0 | Q19: =IF(P19="x",(G19-F19)*1440,0) -> 0 | R19: =IF(ISBLANK(F19),"",IF(G19>=F19,(G19-F19)*1440,(1+G19-F19)*1440)) ->  | T19: =IFERROR(IF(S19="","",((S19/R19))*60),"") ->  | U19: =IF(S19="","",S19-(W19+X19)) ->  | V19: =IFERROR(IF(S19="","",((U19/S19))*T19),"") ->  | Y19: =IFERROR(IF(S19="","",X19/S19),"") ->  | Z19: =IFERROR(IF(S19="","",(1-(Y19/1000000))*T19),"") -> 
A20: T | B20: tool change | D20: =K39 -> 0 | I20: 0 | K20: 0 | M20: 0 | O20: 0 | Q20: 0
A21: C | B21: changeover | D21: =M39 -> 0 | I21: 0 | K21: 0 | M21: 0 | O21: 0 | Q21: 0
A22: O | B22: other planned dntm | D22: =O39 -> 0 | I22: 0 | K22: 0 | M22: 0 | O22: 0 | Q22: 0
A23: U | B23: unplanned dntm | D23: =Q39 -> 0 | I23: 0 | K23: 0 | M23: 0 | O23: 0 | Q23: 0
I24: =IF(H24="x",(G24-F24)*1440,0) -> 0 | K24: =IF(J24="x",(G24-F24)*1440,0) -> 0 | M24: =IF(L24="x",(G24-F24)*1440,0) -> 0 | O24: =IF(N24="x",(G24-F24)*1440,0) -> 0 | Q24: 0
I25: 0 | K25: 0 | M25: 0 | O25: 0 | Q25: 0
I26: 0 | K26: 0 | M26: 0 | O26: 0 | Q26: 0
I27: 0 | K27: 0 | M27: 0 | O27: 0 | Q27: 0
I28: 0 | K28: 0 | M28: 0 | O28: 0 | Q28: 0
I29: 0 | K29: 0 | M29: 0 | O29: 0 | Q29: 0
I30: 0 | K30: 0 | M30: 0 | O30: 0 | Q30: 0
I31: 0 | K31: 0 | M31: 0 | O31: 0 | Q31: 0
I32: 0 | K32: 0 | M32: 0 | O32: 0 | Q32: 0
I33: 0 | K33: 0 | M33: 0 | O33: 0 | Q33: 0
I34: 0 | K34: 0 | M34: 0 | O34: 0 | Q34: 0
I35: 0 | K35: 0 | M35: 0 | O35: 0 | Q35: 0
I36: 0 | K36: 0 | M36: 0 | O36: 0 | Q36: 0
I37: 0 | K37: 0 | M37: 0 | O37: 0 | Q37: 0
I38: 0 | K38: 0 | M38: 0 | O38: 0 | Q38: 0
I39: =SUM(I15:I38) -> 0 | K39: =SUM(K15:K38) -> 0 | M39: =SUM(M15:M38) -> 0 | O39: =SUM(O15:O38) -> 0 | Q39: =SUM(Q15:Q38) -> 0 | R39: =(G39-F39)*1440 -> 0 | T39: =((S39/R39))*60/1440 ->  | U39: =S39-(W39+X39) -> 0 | V39: =((U39/S39))*T39 ->  | Y39: =(X39/S39)*1000000 ->  | Z39: =(1-(Y39/1000000))*T39 -> 
S40: =SUM(S15:S39) -> 0 | U40: =SUM(U15:U39) -> 0 | W40: =SUM(W15:W39) -> 0
P41: # of minutes uptime: | R41: =R42-(D20+D21+D23) -> 0 | T41: % uptime: | U41: =IFERROR(R41/R42,"") ->  | W41: FTQ: | X41: =IFERROR(IF(F15="","",((S40-U40)/S40)*1000000),"") -> 
P42: Total Run Time: | R42: =SUM(R15:R38)-(D19+D22) -> 0 | W42: % Scrap: | X42: =IFERROR(IF(F15="","",((S40-(U40+W40))/S40)),"") -> 
L44: Comments: Document scrap/rework and downtime here

Sheet Process 14 - Actual Run Data
A1: Actual Run Data
B5: Supplier Name: | C5: =IF('Capacity Plan'!$F$3="","",'Capacity Plan'!$F$3) ->  | W5: Completed By:
B6: Process Name: | C6: =IF('Capacity Plan'!$D$34="","",'Capacity Plan'!$D$34) -> 
B7: Part Number: | C7: =IF('Capacity Plan'!$Q$3="","",'Capacity Plan'!$Q$3) -> 
R9: Target | S9: Actual | T9: Difference | V9: PLEASE PRINT HARD COPY FOR USE DURING RUN@RATE. COMPLETE BY FILLING IN THE HIGHLIGHTED COLUMNS ONLY. USE MILITARY (24:00 HR) TIME FORMAT.
B10: Run @ Rate Summary Data | J10: Time/part | R10: =IFERROR(IF(F15="","",'Capacity Plan'!L34/'Capacity Plan'!M34),"") ->  | S10: =IFERROR(IF(F15="","",3600/S11),"") ->  | T10: =IFERROR(IF(F15="","",R10-S10),"") -> 
J11: Pcs/Hour | R11: =IFERROR(IF(F15="","",60*60/R10),"") ->  | S11: =IFERROR(IF(F15="","",(S40*60/R41)),"") ->  | T11: =IFERROR(IF(F15="","",S11-R11),"") -> 
B13: Capacity Plan | F13: Start Time (hh:mm) | G13: Stop Time (hh:mm) | H13: Downtime Description | R13: Total Time | S13: Total # of Pcs. Run | T13: Pieces/ Hour | U13: Good Pieces | V13: Good Pcs/Hour | W13: Rework Total | X13: Scrap Total | Y13: % Scrap | Z13: Net Pcs/Hr (Good + Rework)
H14: B | J14: T | L14: C | N14: O | P14: U | T14: =IFERROR(IF(S14="","",((S14/R14))*60),"") ->  | V14: =IFERROR(IF(S14="","",((U14/S14))*T14),"") ->  | Y14: =IFERROR(IF(S14="","",X14/S14),"") ->  | Z14: =IFERROR(IF(S14="","",(1-(Y14/1000000))*T14),"") -> 
I15: =IF(H15="x",(G15-F15)*1440,0) -> 0 | K15: =IF(J15="x",(G15-F15)*1440,0) -> 0 | M15: =IF(L15="x",(G15-F15)*1440,0) -> 0 | O15: =IF(N15="x",(G15-F15)*1440,0) -> 0 | Q15: =IF(P15="x",(G15-F15)*1440,0) -> 0 | R15: =IF(ISBLANK(F15),"",IF(G15>=F15,(G15-F15)*1440,(1+G15-F15)*1440)) ->  | T15: =IFERROR(IF(S15="","",((S15/R15))*60),"") ->  | U15: =IF(S15="","",S15-(W15+X15)) ->  | V15: =IFERROR(IF(S15="","",((U15/S15))*T15),"") ->  | Y15: =IFERROR(IF(S15="","",X15/S15),"") ->  | Z15: =IFERROR(IF(S15="","",(1-(Y15/1000000))*T15),"") -> 
A16: Description of Downtime: | I16: 0 | K16: 0 | M16: 0 | O16: 0 | Q16: =IF(P16="x",(G16-F16)*1440,0) -> 0 | R16: =IF(ISBLANK(F16),"",IF(G16>=F16,(G16-F16)*1440,(1+G16-F16)*1440)) ->  | T16: =IFERROR(IF(S16="","",((S16/R16))*60),"") ->  | U16: =IF(S16="","",S16-(W16+X16)) ->  | V16: =IFERROR(IF(S16="","",((U16/S16))*T16),"") ->  | Y16: =IFERROR(IF(S16="","",X16/S16),"") ->  | Z16: =IFERROR(IF(S16="","",(1-(Y16/1000000))*T16),"") -> 
I17: =IF(H17="x",(G17-F17)*1440,0) -> 0 | K17: =IF(J17="x",(G17-F17)*1440,0) -> 0 | M17: =IF(L17="x",(G17-F17)*1440,0) -> 0 | O17: =IF(N17="x",(G17-F17)*1440,0) -> 0 | Q17: =IF(P17="x",(G17-F17)*1440,0) -> 0 | R17: =IF(ISBLANK(F17),"",IF(G17>=F17,(G17-F17)*1440,(1+G17-F17)*1440)) ->  | T17: =IFERROR(IF(S17="","",((S17/R17))*60),"") ->  | U17: =IF(S17="","",S17-(W17+X17)) ->  | V17: =IFERROR(IF(S17="","",((U17/S17))*T17),"") ->  | Y17: =IFERROR(IF(S17="","",X17/S17),"") ->  | Z17: =IFERROR(IF(S17="","",(1-(Y17/1000000))*T17),"") -> 
D18: Downtime | I18: =IF(H18="x",(G18-F18)*1440,0) -> 0 | K18: =IF(J18="x",(G18-F18)*1440,0) -> 0 | M18: =IF(L18="x",(G18-F18)*1440,0) -> 0 | O18: =IF(N18="x",(G18-F18)*1440,0) -> 0 | Q18: =IF(P18="x",(G18-F18)*1440,0) -> 0 | R18: =IF(ISBLANK(F18),"",IF(G18>=F18,(G18-F18)*1440,(1+G18-F18)*1440)) ->  | T18: =IFERROR(IF(S18="","",((S18/R18))*60),"") ->  | U18: =IF(S18="","",S18-(W18+X18)) ->  | V18: =IFERROR(IF(S18="","",((U18/S18))*T18),"") ->  | Y18: =IFERROR(IF(S18="","",X18/S18),"") ->  | Z18: =IFERROR(IF(S18="","",(1-(Y18/1000000))*T18),"") -> 
A19: B | B19: breaks/lunch | D19: =I39 -> 0 | I19: =IF(H19="x",(G19-F19)*1440,0) -> 0 | K19: =IF(J19="x",(G19-F19)*1440,0) -> 0 | M19: =IF(L19="x",(G19-F19)*1440,0) -> 0 | O19: =IF(N19="x",(G19-F19)*1440,0) -> 0 | Q19: =IF(P19="x",(G19-F19)*1440,0) -> 0 | R19: =IF(ISBLANK(F19),"",IF(G19>=F19,(G19-F19)*1440,(1+G19-F19)*1440)) ->  | T19: =IFERROR(IF(S19="","",((S19/R19))*60),"") ->  | U19: =IF(S19="","",S19-(W19+X19)) ->  | V19: =IFERROR(IF(S19="","",((U19/S19))*T19),"") ->  | Y19: =IFERROR(IF(S19="","",X19/S19),"") ->  | Z19: =IFERROR(IF(S19="","",(1-(Y19/1000000))*T19),"") -> 
A20: T | B20: tool change | D20: =K39 -> 0 | I20: 0 | K20: 0 | M20: 0 | O20: 0 | Q20: 0
A21: C | B21: changeover | D21: =M39 -> 0 | I21: 0 | K21: 0 | M21: 0 | O21: 0 | Q21: 0
A22: O | B22: other planned dntm | D22: =O39 -> 0 | I22: 0 | K22: 0 | M22: 0 | O22: 0 | Q22: 0
A23: U | B23: unplanned dntm | D23: =Q39 -> 0 | I23: 0 | K23: 0 | M23: 0 | O23: 0 | Q23: 0
I24: =IF(H24="x",(G24-F24)*1440,0) -> 0 | K24: =IF(J24="x",(G24-F24)*1440,0) -> 0 | M24: =IF(L24="x",(G24-F24)*1440,0) -> 0 | O24: =IF(N24="x",(G24-F24)*1440,0) -> 0 | Q24: 0
I25: 0 | K25: 0 | M25: 0 | O25: 0 | Q25: 0
I26: 0 | K26: 0 | M26: 0 | O26: 0 | Q26: 0
I27: 0 | K27: 0 | M27: 0 | O27: 0 | Q27: 0
I28: 0 | K28: 0 | M28: 0 | O28: 0 | Q28: 0
I29: 0 | K29: 0 | M29: 0 | O29: 0 | Q29: 0
I30: 0 | K30: 0 | M30: 0 | O30: 0 | Q30: 0
I31: 0 | K31: 0 | M31: 0 | O31: 0 | Q31: 0
I32: 0 | K32: 0 | M32: 0 | O32: 0 | Q32: 0
I33: 0 | K33: 0 | M33: 0 | O33: 0 | Q33: 0
I34: 0 | K34: 0 | M34: 0 | O34: 0 | Q34: 0
I35: 0 | K35: 0 | M35: 0 | O35: 0 | Q35: 0
I36: 0 | K36: 0 | M36: 0 | O36: 0 | Q36: 0
I37: 0 | K37: 0 | M37: 0 | O37: 0 | Q37: 0
I38: 0 | K38: 0 | M38: 0 | O38: 0 | Q38: 0
I39: =SUM(I15:I38) -> 0 | K39: =SUM(K15:K38) -> 0 | M39: =SUM(M15:M38) -> 0 | O39: =SUM(O15:O38) -> 0 | Q39: =SUM(Q15:Q38) -> 0 | R39: =(G39-F39)*1440 -> 0 | T39: =((S39/R39))*60/1440 ->  | U39: =S39-(W39+X39) -> 0 | V39: =((U39/S39))*T39 ->  | Y39: =(X39/S39)*1000000 ->  | Z39: =(1-(Y39/1000000))*T39 -> 
S40: =SUM(S15:S39) -> 0 | U40: =SUM(U15:U39) -> 0 | W40: =SUM(W15:W39) -> 0
P41: # of minutes uptime: | R41: =R42-(D20+D21+D23) -> 0 | T41: % uptime: | U41: =IFERROR(R41/R42,"") ->  | W41: FTQ: | X41: =IFERROR(IF(F15="","",((S40-U40)/S40)*1000000),"") -> 
P42: Total Run Time: | R42: =SUM(R15:R38)-(D19+D22) -> 0 | W42: % Scrap: | X42: =IFERROR(IF(F15="","",((S40-(U40+W40))/S40)),"") -> 
L44: Comments: Document scrap/rework and downtime here

Sheet Process 15 - Actual Run Data
A1: Actual Run Data
B5: Supplier Name: | C5: =IF('Capacity Plan'!$F$3="","",'Capacity Plan'!$F$3) ->  | W5: Completed By:
B6: Process Name: | C6: =IF('Capacity Plan'!$D$35="","",'Capacity Plan'!$D$35) -> 
B7: Part Number: | C7: =IF('Capacity Plan'!$Q$3="","",'Capacity Plan'!$Q$3) -> 
R9: Target | S9: Actual | T9: Difference | V9: PLEASE PRINT HARD COPY FOR USE DURING RUN@RATE. COMPLETE BY FILLING IN THE HIGHLIGHTED COLUMNS ONLY. USE MILITARY (24:00 HR) TIME FORMAT.
B10: Run @ Rate Summary Data | J10: Time/part | R10: =IFERROR(IF(F15="","",'Capacity Plan'!L35/'Capacity Plan'!M35),"") ->  | S10: =IFERROR(IF(F15="","",3600/S11),"") ->  | T10: =IFERROR(IF(F15="","",R10-S10),"") -> 
J11: Pcs/Hour | R11: =IFERROR(IF(F15="","",60*60/R10),"") ->  | S11: =IFERROR(IF(F15="","",(S40*60/R41)),"") ->  | T11: =IFERROR(IF(F15="","",S11-R11),"") -> 
B13: Capacity Plan | F13: Start Time (hh:mm) | G13: Stop Time (hh:mm) | H13: Downtime Description | R13: Total Time | S13: Total # of Pcs. Run | T13: Pieces/ Hour | U13: Good Pieces | V13: Good Pcs/Hour | W13: Rework Total | X13: Scrap Total | Y13: % Scrap | Z13: Net Pcs/Hr (Good + Rework)
H14: B | J14: T | L14: C | N14: O | P14: U | T14: =IFERROR(IF(S14="","",((S14/R14))*60),"") ->  | V14: =IFERROR(IF(S14="","",((U14/S14))*T14),"") ->  | Y14: =IFERROR(IF(S14="","",X14/S14),"") ->  | Z14: =IFERROR(IF(S14="","",(1-(Y14/1000000))*T14),"") -> 
I15: =IF(H15="x",(G15-F15)*1440,0) -> 0 | K15: =IF(J15="x",(G15-F15)*1440,0) -> 0 | M15: =IF(L15="x",(G15-F15)*1440,0) -> 0 | O15: =IF(N15="x",(G15-F15)*1440,0) -> 0 | Q15: =IF(P15="x",(G15-F15)*1440,0) -> 0 | R15: =IF(ISBLANK(F15),"",IF(G15>=F15,(G15-F15)*1440,(1+G15-F15)*1440)) ->  | T15: =IFERROR(IF(S15="","",((S15/R15))*60),"") ->  | U15: =IF(S15="","",S15-(W15+X15)) ->  | V15: =IFERROR(IF(S15="","",((U15/S15))*T15),"") ->  | Y15: =IFERROR(IF(S15="","",X15/S15),"") ->  | Z15: =IFERROR(IF(S15="","",(1-(Y15/1000000))*T15),"") -> 
A16: Description of Downtime: | I16: 0 | K16: =IF(J16="x",(G16-F16)*1440,0) -> 0 | M16: 0 | O16: 0 | Q16: =IF(P16="x",(G16-F16)*1440,0) -> 0 | R16: =IF(ISBLANK(F16),"",IF(G16>=F16,(G16-F16)*1440,(1+G16-F16)*1440)) ->  | T16: =IFERROR(IF(S16="","",((S16/R16))*60),"") ->  | U16: =IF(S16="","",S16-(W16+X16)) ->  | V16: =IFERROR(IF(S16="","",((U16/S16))*T16),"") ->  | Y16: =IFERROR(IF(S16="","",X16/S16),"") ->  | Z16: =IFERROR(IF(S16="","",(1-(Y16/1000000))*T16),"") -> 
I17: =IF(H17="x",(G17-F17)*1440,0) -> 0 | K17: =IF(J17="x",(G17-F17)*1440,0) -> 0 | M17: =IF(L17="x",(G17-F17)*1440,0) -> 0 | O17: =IF(N17="x",(G17-F17)*1440,0) -> 0 | Q17: =IF(P17="x",(G17-F17)*1440,0) -> 0 | R17: =IF(ISBLANK(F17),"",IF(G17>=F17,(G17-F17)*1440,(1+G17-F17)*1440)) ->  | T17: =IFERROR(IF(S17="","",((S17/R17))*60),"") ->  | U17: =IF(S17="","",S17-(W17+X17)) ->  | V17: =IFERROR(IF(S17="","",((U17/S17))*T17),"") ->  | Y17: =IFERROR(IF(S17="","",X17/S17),"") ->  | Z17: =IFERROR(IF(S17="","",(1-(Y17/1000000))*T17),"") -> 
D18: Downtime | I18: =IF(H18="x",(G18-F18)*1440,0) -> 0 | K18: =IF(J18="x",(G18-F18)*1440,0) -> 0 | M18: =IF(L18="x",(G18-F18)*1440,0) -> 0 | O18: =IF(N18="x",(G18-F18)*1440,0) -> 0 | Q18: =IF(P18="x",(G18-F18)*1440,0) -> 0 | R18: =IF(ISBLANK(F18),"",IF(G18>=F18,(G18-F18)*1440,(1+G18-F18)*1440)) ->  | T18: =IFERROR(IF(S18="","",((S18/R18))*60),"") ->  | U18: =IF(S18="","",S18-(W18+X18)) ->  | V18: =IFERROR(IF(S18="","",((U18/S18))*T18),"") ->  | Y18: =IFERROR(IF(S18="","",X18/S18),"") ->  | Z18: =IFERROR(IF(S18="","",(1-(Y18/1000000))*T18),"") -> 
A19: B | B19: breaks/lunch | D19: =I39 -> 0 | I19: =IF(H19="x",(G19-F19)*1440,0) -> 0 | K19: =IF(J19="x",(G19-F19)*1440,0) -> 0 | M19: =IF(L19="x",(G19-F19)*1440,0) -> 0 | O19: =IF(N19="x",(G19-F19)*1440,0) -> 0 | Q19: =IF(P19="x",(G19-F19)*1440,0) -> 0 | R19: =IF(ISBLANK(F19),"",IF(G19>=F19,(G19-F19)*1440,(1+G19-F19)*1440)) ->  | T19: =IFERROR(IF(S19="","",((S19/R19))*60),"") ->  | U19: =IF(S19="","",S19-(W19+X19)) ->  | V19: =IFERROR(IF(S19="","",((U19/S19))*T19),"") ->  | Y19: =IFERROR(IF(S19="","",X19/S19),"") ->  | Z19: =IFERROR(IF(S19="","",(1-(Y19/1000000))*T19),"") -> 
A20: T | B20: tool change | D20: =K39 -> 0 | I20: 0 | K20: 0 | M20: 0 | O20: 0 | Q20: 0
A21: C | B21: changeover | D21: =M39 -> 0 | I21: 0 | K21: 0 | M21: 0 | O21: 0 | Q21: 0
A22: O | B22: other planned dntm | D22: =O39 -> 0 | I22: 0 | K22: 0 | M22: 0 | O22: 0 | Q22: 0
A23: U | B23: unplanned dntm | D23: =Q39 -> 0 | I23: 0 | K23: 0 | M23: 0 | O23: 0 | Q23: 0
I24: =IF(H24="x",(G24-F24)*1440,0) -> 0 | K24: =IF(J24="x",(G24-F24)*1440,0) -> 0 | M24: =IF(L24="x",(G24-F24)*1440,0) -> 0 | O24: =IF(N24="x",(G24-F24)*1440,0) -> 0 | Q24: 0
I25: 0 | K25: 0 | M25: 0 | O25: 0 | Q25: 0
I26: 0 | K26: 0 | M26: 0 | O26: 0 | Q26: 0
I27: 0 | K27: 0 | M27: 0 | O27: 0 | Q27: 0
I28: 0 | K28: 0 | M28: 0 | O28: 0 | Q28: 0
I29: 0 | K29: 0 | M29: 0 | O29: 0 | Q29: 0
I30: 0 | K30: 0 | M30: 0 | O30: 0 | Q30: 0
I31: 0 | K31: 0 | M31: 0 | O31: 0 | Q31: 0
I32: 0 | K32: 0 | M32: 0 | O32: 0 | Q32: 0
I33: 0 | K33: 0 | M33: 0 | O33: 0 | Q33: 0
I34: 0 | K34: 0 | M34: 0 | O34: 0 | Q34: 0
I35: 0 | K35: 0 | M35: 0 | O35: 0 | Q35: 0
I36: 0 | K36: 0 | M36: 0 | O36: 0 | Q36: 0
I37: 0 | K37: 0 | M37: 0 | O37: 0 | Q37: 0
I38: 0 | K38: 0 | M38: 0 | O38: 0 | Q38: 0
I39: =SUM(I15:I38) -> 0 | K39: =SUM(K15:K38) -> 0 | M39: =SUM(M15:M38) -> 0 | O39: =SUM(O15:O38) -> 0 | Q39: =SUM(Q15:Q38) -> 0 | R39: =(G39-F39)*1440 -> 0 | T39: =((S39/R39))*60/1440 ->  | U39: =S39-(W39+X39) -> 0 | V39: =((U39/S39))*T39 ->  | Y39: =(X39/S39)*1000000 ->  | Z39: =(1-(Y39/1000000))*T39 -> 
S40: =SUM(S15:S39) -> 0 | U40: =SUM(U15:U39) -> 0 | W40: =SUM(W15:W39) -> 0
P41: # of minutes uptime: | R41: =R42-(D20+D21+D23) -> 0 | T41: % uptime: | U41: =IFERROR(R41/R42,"") ->  | W41: FTQ: | X41: =IFERROR(IF(F15="","",((S40-U40)/S40)*1000000),"") -> 
P42: Total Run Time: | R42: =SUM(R15:R38)-(D19+D22) -> 0 | W42: % Scrap: | X42: =IFERROR(IF(F15="","",((S40-(U40+W40))/S40)),"") -> 
L44: Comments: Document scrap/rework and downtime here

Sheet Process 16 - Actual Run Data
A1: Actual Run Data
B5: Supplier Name: | C5: =IF('Capacity Plan'!$F$3="","",'Capacity Plan'!$F$3) ->  | W5: Completed By:
B6: Process Name: | C6: =IF('Capacity Plan'!$D$36="","",'Capacity Plan'!$D$36) -> 
B7: Part Number: | C7: =IF('Capacity Plan'!$Q$3="","",'Capacity Plan'!$Q$3) -> 
R9: Target | S9: Actual | T9: Difference | V9: PLEASE PRINT HARD COPY FOR USE DURING RUN@RATE. COMPLETE BY FILLING IN THE HIGHLIGHTED COLUMNS ONLY. USE MILITARY (24:00 HR) TIME FORMAT.
B10: Run @ Rate Summary Data | J10: Time/part | R10: =IFERROR(IF(F15="","",'Capacity Plan'!L36/'Capacity Plan'!M36),"") ->  | S10: =IFERROR(IF(F15="","",3600/S11),"") ->  | T10: =IFERROR(IF(F15="","",R10-S10),"") -> 
J11: Pcs/Hour | R11: =IFERROR(IF(F15="","",60*60/R10),"") ->  | S11: =IFERROR(IF(F15="","",(S40*60/R41)),"") ->  | T11: =IFERROR(IF(F15="","",S11-R11),"") -> 
B13: Capacity Plan | F13: Start Time (hh:mm) | G13: Stop Time (hh:mm) | H13: Downtime Description | R13: Total Time | S13: Total # of Pcs. Run | T13: Pieces/ Hour | U13: Good Pieces | V13: Good Pcs/Hour | W13: Rework Total | X13: Scrap Total | Y13: % Scrap | Z13: Net Pcs/Hr (Good + Rework)
H14: B | J14: T | L14: C | N14: O | P14: U | T14: =IFERROR(IF(S14="","",((S14/R14))*60),"") ->  | V14: =IFERROR(IF(S14="","",((U14/S14))*T14),"") ->  | Y14: =IFERROR(IF(S14="","",X14/S14),"") ->  | Z14: =IFERROR(IF(S14="","",(1-(Y14/1000000))*T14),"") -> 
I15: =IF(H15="x",(G15-F15)*1440,0) -> 0 | K15: =IF(J15="x",(G15-F15)*1440,0) -> 0 | M15: =IF(L15="x",(G15-F15)*1440,0) -> 0 | O15: =IF(N15="x",(G15-F15)*1440,0) -> 0 | Q15: =IF(P15="x",(G15-F15)*1440,0) -> 0 | R15: =IF(ISBLANK(F15),"",IF(G15>=F15,(G15-F15)*1440,(1+G15-F15)*1440)) ->  | T15: =IFERROR(IF(S15="","",((S15/R15))*60),"") ->  | U15: =IF(S15="","",S15-(W15+X15)) ->  | V15: =IFERROR(IF(S15="","",((U15/S15))*T15),"") ->  | Y15: =IFERROR(IF(S15="","",X15/S15),"") ->  | Z15: =IFERROR(IF(S15="","",(1-(Y15/1000000))*T15),"") -> 
A16: Description of Downtime: | I16: 0 | K16: 0 | M16: 0 | O16: 0 | Q16: =IF(P16="x",(G16-F16)*1440,0) -> 0 | R16: =IF(ISBLANK(F16),"",IF(G16>=F16,(G16-F16)*1440,(1+G16-F16)*1440)) ->  | T16: =IFERROR(IF(S16="","",((S16/R16))*60),"") ->  | U16: =IF(S16="","",S16-(W16+X16)) ->  | V16: =IFERROR(IF(S16="","",((U16/S16))*T16),"") ->  | Y16: =IFERROR(IF(S16="","",X16/S16),"") ->  | Z16: =IFERROR(IF(S16="","",(1-(Y16/1000000))*T16),"") -> 
I17: 0 | K17: 0 | M17: 0 | O17: 0 | Q17: 0
D18: Downtime | I18: 0 | K18: 0 | M18: 0 | O18: 0 | Q18: 0
A19: B | B19: breaks/lunch | D19: =I39 -> 0 | I19: 0 | K19: 0 | M19: 0 | O19: 0 | Q19: 0
A20: T | B20: tool change | D20: =K39 -> 0 | I20: 0 | K20: 0 | M20: 0 | O20: 0 | Q20: 0
A21: C | B21: changeover | D21: =M39 -> 0 | I21: 0 | K21: 0 | M21: 0 | O21: 0 | Q21: 0
A22: O | B22: other planned dntm | D22: =O39 -> 0 | I22: 0 | K22: 0 | M22: 0 | O22: 0 | Q22: 0
A23: U | B23: unplanned dntm | D23: =Q39 -> 0 | I23: 0 | K23: 0 | M23: 0 | O23: 0 | Q23: 0
I24: =IF(H24="x",(G24-F24)*1440,0) -> 0 | K24: =IF(J24="x",(G24-F24)*1440,0) -> 0 | M24: =IF(L24="x",(G24-F24)*1440,0) -> 0 | O24: =IF(N24="x",(G24-F24)*1440,0) -> 0 | Q24: 0
I25: 0 | K25: 0 | M25: 0 | O25: 0 | Q25: 0
I26: 0 | K26: 0 | M26: 0 | O26: 0 | Q26: 0
I27: 0 | K27: 0 | M27: 0 | O27: 0 | Q27: 0
I28: 0 | K28: 0 | M28: 0 | O28: 0 | Q28: 0
I29: 0 | K29: 0 | M29: 0 | O29: 0 | Q29: 0
I30: 0 | K30: 0 | M30: 0 | O30: 0 | Q30: 0
I31: 0 | K31: 0 | M31: 0 | O31: 0 | Q31: 0
I32: 0 | K32: 0 | M32: 0 | O32: 0 | Q32: 0
I33: 0 | K33: 0 | M33: 0 | O33: 0 | Q33: 0
I34: 0 | K34: 0 | M34: 0 | O34: 0 | Q34: 0
I35: 0 | K35: 0 | M35: 0 | O35: 0 | Q35: 0
I36: 0 | K36: 0 | M36: 0 | O36: 0 | Q36: 0
I37: 0 | K37: 0 | M37: 0 | O37: 0 | Q37: 0
I38: 0 | K38: 0 | M38: 0 | O38: 0 | Q38: 0
I39: =SUM(I15:I38) -> 0 | K39: =SUM(K15:K38) -> 0 | M39: =SUM(M15:M38) -> 0 | O39: =SUM(O15:O38) -> 0 | Q39: =SUM(Q15:Q38) -> 0 | R39: =(G39-F39)*1440 -> 0 | T39: =((S39/R39))*60/1440 ->  | U39: =S39-(W39+X39) -> 0 | V39: =((U39/S39))*T39 ->  | Y39: =(X39/S39)*1000000 ->  | Z39: =(1-(Y39/1000000))*T39 -> 
S40: =SUM(S15:S39) -> 0 | U40: =SUM(U15:U39) -> 0 | W40: =SUM(W15:W39) -> 0
P41: # of minutes uptime: | R41: =R42-(D20+D21+D23) -> 0 | T41: % uptime: | U41: =IFERROR(R41/R42,"") ->  | W41: FTQ: | X41: =IFERROR(IF(F15="","",((S40-U40)/S40)*1000000),"") -> 
P42: Total Run Time: | R42: =SUM(R15:R38)-(D19+D22) -> 0 | W42: % Scrap: | X42: =IFERROR(IF(F15="","",((S40-(U40+W40))/S40)),"") -> 
L44: Comments: Document scrap/rework and downtime here

Sheet Process 17 - Actual Run Data
A1: Actual Run Data
B5: Supplier Name: | C5: =IF('Capacity Plan'!$F$3="","",'Capacity Plan'!$F$3) ->  | W5: Completed By:
B6: Process Name: | C6: =IF('Capacity Plan'!$D$37="","",'Capacity Plan'!$D$37) -> 
B7: Part Number: | C7: =IF('Capacity Plan'!$Q$3="","",'Capacity Plan'!$Q$3) -> 
R9: Target | S9: Actual | T9: Difference | V9: PLEASE PRINT HARD COPY FOR USE DURING RUN@RATE. COMPLETE BY FILLING IN THE HIGHLIGHTED COLUMNS ONLY. USE MILITARY (24:00 HR) TIME FORMAT.
B10: Run @ Rate Summary Data | J10: Time/part | R10: =IFERROR(IF(F15="","",'Capacity Plan'!L37/'Capacity Plan'!M37),"") ->  | S10: =IFERROR(IF(F15="","",3600/S11),"") ->  | T10: =IFERROR(IF(F15="","",R10-S10),"") -> 
J11: Pcs/Hour | R11: =IFERROR(IF(F15="","",60*60/R10),"") ->  | S11: =IFERROR(IF(F15="","",(S40*60/R41)),"") ->  | T11: =IFERROR(IF(F15="","",S11-R11),"") -> 
B13: Capacity Plan | F13: Start Time (hh:mm) | G13: Stop Time (hh:mm) | H13: Downtime Description | R13: Total Time | S13: Total # of Pcs. Run | T13: Pieces/ Hour | U13: Good Pieces | V13: Good Pcs/Hour | W13: Rework Total | X13: Scrap Total | Y13: % Scrap | Z13: Net Pcs/Hr (Good + Rework)
H14: B | J14: T | L14: C | N14: O | P14: U | T14: =IFERROR(IF(S14="","",((S14/R14))*60),"") ->  | V14: =IFERROR(IF(S14="","",((U14/S14))*T14),"") ->  | Y14: =IFERROR(IF(S14="","",X14/S14),"") ->  | Z14: =IFERROR(IF(S14="","",(1-(Y14/1000000))*T14),"") -> 
I15: =IF(H15="x",(G15-F15)*1440,0) -> 0 | K15: =IF(J15="x",(G15-F15)*1440,0) -> 0 | M15: =IF(L15="x",(G15-F15)*1440,0) -> 0 | O15: =IF(N15="x",(G15-F15)*1440,0) -> 0 | Q15: =IF(P15="x",(G15-F15)*1440,0) -> 0 | R15: =IF(ISBLANK(F15),"",IF(G15>=F15,(G15-F15)*1440,(1+G15-F15)*1440)) ->  | T15: =IFERROR(IF(S15="","",((S15/R15))*60),"") ->  | U15: =IF(S15="","",S15-(W15+X15)) ->  | V15: =IFERROR(IF(S15="","",((U15/S15))*T15),"") ->  | Y15: =IFERROR(IF(S15="","",X15/S15),"") ->  | Z15: =IFERROR(IF(S15="","",(1-(Y15/1000000))*T15),"") -> 
A16: Description of Downtime: | I16: 0 | K16: 0 | M16: 0 | O16: 0 | Q16: =IF(P16="x",(G16-F16)*1440,0) -> 0 | R16: =IF(ISBLANK(F16),"",IF(G16>=F16,(G16-F16)*1440,(1+G16-F16)*1440)) ->  | T16: =IFERROR(IF(S16="","",((S16/R16))*60),"") ->  | U16: =IF(S16="","",S16-(W16+X16)) ->  | V16: =IFERROR(IF(S16="","",((U16/S16))*T16),"") ->  | Y16: =IFERROR(IF(S16="","",X16/S16),"") ->  | Z16: =IFERROR(IF(S16="","",(1-(Y16/1000000))*T16),"") -> 
I17: 0 | K17: 0 | M17: 0 | O17: 0 | Q17: =IF(P17="x",(G17-F17)*1440,0) -> 0 | R17: =IF(ISBLANK(F17),"",IF(G17>=F17,(G17-F17)*1440,(1+G17-F17)*1440)) ->  | T17: =IFERROR(IF(S17="","",((S17/R17))*60),"") ->  | U17: =IF(S17="","",S17-(W17+X17)) ->  | V17: =IFERROR(IF(S17="","",((U17/S17))*T17),"") ->  | Y17: =IFERROR(IF(S17="","",X17/S17),"") ->  | Z17: =IFERROR(IF(S17="","",(1-(Y17/1000000))*T17),"") -> 
D18: Downtime | I18: =IF(H18="x",(G18-F18)*1440,0) -> 0 | K18: =IF(J18="x",(G18-F18)*1440,0) -> 0 | M18: =IF(L18="x",(G18-F18)*1440,0) -> 0 | O18: =IF(N18="x",(G18-F18)*1440,0) -> 0 | Q18: =IF(P18="x",(G18-F18)*1440,0) -> 0 | R18: =IF(ISBLANK(F18),"",IF(G18>=F18,(G18-F18)*1440,(1+G18-F18)*1440)) ->  | T18: =IFERROR(IF(S18="","",((S18/R18))*60),"") ->  | U18: =IF(S18="","",S18-(W18+X18)) ->  | V18: =IFERROR(IF(S18="","",((U18/S18))*T18),"") ->  | Y18: =IFERROR(IF(S18="","",X18/S18),"") ->  | Z18: =IFERROR(IF(S18="","",(1-(Y18/1000000))*T18),"") -> 
A19: B | B19: breaks/lunch | D19: =I39 -> 0 | I19: =IF(H19="x",(G19-F19)*1440,0) -> 0 | K19: =IF(J19="x",(G19-F19)*1440,0) -> 0 | M19: =IF(L19="x",(G19-F19)*1440,0) -> 0 | O19: =IF(N19="x",(G19-F19)*1440,0) -> 0 | Q19: =IF(P19="x",(G19-F19)*1440,0) -> 0 | R19: =IF(ISBLANK(F19),"",IF(G19>=F19,(G19-F19)*1440,(1+G19-F19)*1440)) ->  | T19: =IFERROR(IF(S19="","",((S19/R19))*60),"") ->  | U19: =IF(S19="","",S19-(W19+X19)) ->  | V19: =IFERROR(IF(S19="","",((U19/S19))*T19),"") ->  | Y19: =IFERROR(IF(S19="","",X19/S19),"") ->  | Z19: =IFERROR(IF(S19="","",(1-(Y19/1000000))*T19),"") -> 
A20: T | B20: tool change | D20: =K39 -> 0 | I20: 0 | K20: 0 | M20: 0 | O20: 0 | Q20: 0
A21: C | B21: changeover | D21: =M39 -> 0 | I21: 0 | K21: 0 | M21: 0 | O21: 0 | Q21: 0
A22: O | B22: other planned dntm | D22: =O39 -> 0 | I22: 0 | K22: 0 | M22: 0 | O22: 0 | Q22: 0
A23: U | B23: unplanned dntm | D23: =Q39 -> 0 | I23: 0 | K23: 0 | M23: 0 | O23: 0 | Q23: 0
I24: =IF(H24="x",(G24-F24)*1440,0) -> 0 | K24: =IF(J24="x",(G24-F24)*1440,0) -> 0 | M24: =IF(L24="x",(G24-F24)*1440,0) -> 0 | O24: =IF(N24="x",(G24-F24)*1440,0) -> 0 | Q24: 0
I25: 0 | K25: 0 | M25: 0 | O25: 0 | Q25: 0
I26: 0 | K26: 0 | M26: 0 | O26: 0 | Q26: 0
I27: 0 | K27: 0 | M27: 0 | O27: 0 | Q27: 0
I28: 0 | K28: 0 | M28: 0 | O28: 0 | Q28: 0
I29: 0 | K29: 0 | M29: 0 | O29: 0 | Q29: 0
I30: 0 | K30: 0 | M30: 0 | O30: 0 | Q30: 0
I31: 0 | K31: 0 | M31: 0 | O31: 0 | Q31: 0
I32: 0 | K32: 0 | M32: 0 | O32: 0 | Q32: 0
I33: 0 | K33: 0 | M33: 0 | O33: 0 | Q33: 0
I34: 0 | K34: 0 | M34: 0 | O34: 0 | Q34: 0
I35: 0 | K35: 0 | M35: 0 | O35: 0 | Q35: 0
I36: 0 | K36: 0 | M36: 0 | O36: 0 | Q36: 0
I37: 0 | K37: 0 | M37: 0 | O37: 0 | Q37: 0
I38: 0 | K38: 0 | M38: 0 | O38: 0 | Q38: 0
I39: =SUM(I15:I38) -> 0 | K39: =SUM(K15:K38) -> 0 | M39: =SUM(M15:M38) -> 0 | O39: =SUM(O15:O38) -> 0 | Q39: =SUM(Q15:Q38) -> 0 | R39: =(G39-F39)*1440 -> 0 | T39: =((S39/R39))*60/1440 ->  | U39: =S39-(W39+X39) -> 0 | V39: =((U39/S39))*T39 ->  | Y39: =(X39/S39)*1000000 ->  | Z39: =(1-(Y39/1000000))*T39 -> 
S40: =SUM(S15:S39) -> 0 | U40: =SUM(U15:U39) -> 0 | W40: =SUM(W15:W39) -> 0
P41: # of minutes uptime: | R41: =R42-(D20+D21+D23) -> 0 | T41: % uptime: | U41: =IFERROR(R41/R42,"") ->  | W41: FTQ: | X41: =IFERROR(IF(F15="","",((S40-U40)/S40)*1000000),"") -> 
P42: Total Run Time: | R42: =SUM(R15:R38)-(D19+D22) -> 0 | W42: % Scrap: | X42: =IFERROR(IF(F15="","",((S40-(U40+W40))/S40)),"") -> 
L44: Comments: Document scrap/rework and downtime here

Sheet Process 18 - Actual Run Data
A1: Actual Run Data
B5: Supplier Name: | C5: =IF('Capacity Plan'!$F$3="","",'Capacity Plan'!$F$3) ->  | W5: Completed By:
B6: Process Name: | C6: =IF('Capacity Plan'!$D$38="","",'Capacity Plan'!$D$38) -> 
B7: Part Number: | C7: =IF('Capacity Plan'!$Q$3="","",'Capacity Plan'!$Q$3) -> 
R9: Target | S9: Actual | T9: Difference | V9: PLEASE PRINT HARD COPY FOR USE DURING RUN@RATE. COMPLETE BY FILLING IN THE HIGHLIGHTED COLUMNS ONLY. USE MILITARY (24:00 HR) TIME FORMAT.
B10: Run @ Rate Summary Data | J10: Time/part | R10: =IFERROR(IF(F15="","",'Capacity Plan'!L38/'Capacity Plan'!M38),"") ->  | S10: =IFERROR(IF(F15="","",3600/S11),"") ->  | T10: =IFERROR(IF(F15="","",R10-S10),"") -> 
J11: Pcs/Hour | R11: =IFERROR(IF(F15="","",60*60/R10),"") ->  | S11: =IFERROR(IF(F15="","",(S40*60/R41)),"") ->  | T11: =IFERROR(IF(F15="","",S11-R11),"") -> 
B13: Capacity Plan | F13: Start Time (hh:mm) | G13: Stop Time (hh:mm) | H13: Downtime Description | R13: Total Time | S13: Total # of Pcs. Run | T13: Pieces/ Hour | U13: Good Pieces | V13: Good Pcs/Hour | W13: Rework Total | X13: Scrap Total | Y13: % Scrap | Z13: Net Pcs/Hr (Good + Rework)
H14: B | J14: T | L14: C | N14: O | P14: U | T14: =IFERROR(IF(S14="","",((S14/R14))*60),"") ->  | V14: =IFERROR(IF(S14="","",((U14/S14))*T14),"") ->  | Y14: =IFERROR(IF(S14="","",X14/S14),"") ->  | Z14: =IFERROR(IF(S14="","",(1-(Y14/1000000))*T14),"") -> 
I15: =IF(H15="x",(G15-F15)*1440,0) -> 0 | K15: =IF(J15="x",(G15-F15)*1440,0) -> 0 | M15: =IF(L15="x",(G15-F15)*1440,0) -> 0 | O15: =IF(N15="x",(G15-F15)*1440,0) -> 0 | Q15: =IF(P15="x",(G15-F15)*1440,0) -> 0 | R15: =IF(ISBLANK(F15),"",IF(G15>=F15,(G15-F15)*1440,(1+G15-F15)*1440)) ->  | T15: =IFERROR(IF(S15="","",((S15/R15))*60),"") ->  | U15: =IF(S15="","",S15-(W15+X15)) ->  | V15: =IFERROR(IF(S15="","",((U15/S15))*T15),"") ->  | Y15: =IFERROR(IF(S15="","",X15/S15),"") ->  | Z15: =IFERROR(IF(S15="","",(1-(Y15/1000000))*T15),"") -> 
A16: Description of Downtime: | I16: 0 | K16: 0 | M16: 0 | O16: 0 | Q16: =IF(P16="x",(G16-F16)*1440,0) -> 0 | R16: =IF(ISBLANK(F16),"",IF(G16>=F16,(G16-F16)*1440,(1+G16-F16)*1440)) ->  | T16: =IFERROR(IF(S16="","",((S16/R16))*60),"") ->  | U16: =IF(S16="","",S16-(W16+X16)) ->  | V16: =IFERROR(IF(S16="","",((U16/S16))*T16),"") ->  | Y16: =IFERROR(IF(S16="","",X16/S16),"") ->  | Z16: =IFERROR(IF(S16="","",(1-(Y16/1000000))*T16),"") -> 
I17: 0 | K17: 0 | M17: 0 | O17: 0 | Q17: =IF(P17="x",(G17-F17)*1440,0) -> 0 | R17: =IF(ISBLANK(F17),"",IF(G17>=F17,(G17-F17)*1440,(1+G17-F17)*1440)) ->  | T17: =IFERROR(IF(S17="","",((S17/R17))*60),"") ->  | U17: =IF(S17="","",S17-(W17+X17)) ->  | V17: =IFERROR(IF(S17="","",((U17/S17))*T17),"") ->  | Y17: =IFERROR(IF(S17="","",X17/S17),"") ->  | Z17: =IFERROR(IF(S17="","",(1-(Y17/1000000))*T17),"") -> 
D18: Downtime | I18: 0 | K18: 0 | M18: 0 | O18: 0 | Q18: =IF(P18="x",(G18-F18)*1440,0) -> 0 | R18: =IF(ISBLANK(F18),"",IF(G18>=F18,(G18-F18)*1440,(1+G18-F18)*1440)) ->  | T18: =IFERROR(IF(S18="","",((S18/R18))*60),"") ->  | U18: =IF(S18="","",S18-(W18+X18)) ->  | V18: =IFERROR(IF(S18="","",((U18/S18))*T18),"") ->  | Y18: =IFERROR(IF(S18="","",X18/S18),"") ->  | Z18: =IFERROR(IF(S18="","",(1-(Y18/1000000))*T18),"") -> 
A19: B | B19: breaks/lunch | D19: =I39 -> 0 | I19: =IF(H19="x",(G19-F19)*1440,0) -> 0 | K19: =IF(J19="x",(G19-F19)*1440,0) -> 0 | M19: =IF(L19="x",(G19-F19)*1440,0) -> 0 | O19: =IF(N19="x",(G19-F19)*1440,0) -> 0 | Q19: =IF(P19="x",(G19-F19)*1440,0) -> 0 | R19: =IF(ISBLANK(F19),"",IF(G19>=F19,(G19-F19)*1440,(1+G19-F19)*1440)) ->  | T19: =IFERROR(IF(S19="","",((S19/R19))*60),"") ->  | U19: =IF(S19="","",S19-(W19+X19)) ->  | V19: =IFERROR(IF(S19="","",((U19/S19))*T19),"") ->  | Y19: =IFERROR(IF(S19="","",X19/S19),"") ->  | Z19: =IFERROR(IF(S19="","",(1-(Y19/1000000))*T19),"") -> 
A20: T | B20: tool change | D20: =K39 -> 0 | I20: 0 | K20: 0 | M20: 0 | O20: 0 | Q20: 0
A21: C | B21: changeover | D21: =M39 -> 0 | I21: 0 | K21: 0 | M21: 0 | O21: 0 | Q21: 0
A22: O | B22: other planned dntm | D22: =O39 -> 0 | I22: 0 | K22: 0 | M22: 0 | O22: 0 | Q22: 0
A23: U | B23: unplanned dntm | D23: =Q39 -> 0 | I23: 0 | K23: 0 | M23: 0 | O23: 0 | Q23: 0
I24: =IF(H24="x",(G24-F24)*1440,0) -> 0 | K24: =IF(J24="x",(G24-F24)*1440,0) -> 0 | M24: =IF(L24="x",(G24-F24)*1440,0) -> 0 | O24: =IF(N24="x",(G24-F24)*1440,0) -> 0 | Q24: 0
I25: 0 | K25: 0 | M25: 0 | O25: 0 | Q25: 0
I26: 0 | K26: 0 | M26: 0 | O26: 0 | Q26: 0
I27: 0 | K27: 0 | M27: 0 | O27: 0 | Q27: 0
I28: 0 | K28: 0 | M28: 0 | O28: 0 | Q28: 0
I29: 0 | K29: 0 | M29: 0 | O29: 0 | Q29: 0
I30: 0 | K30: 0 | M30: 0 | O30: 0 | Q30: 0
I31: 0 | K31: 0 | M31: 0 | O31: 0 | Q31: 0
I32: 0 | K32: 0 | M32: 0 | O32: 0 | Q32: 0
I33: 0 | K33: 0 | M33: 0 | O33: 0 | Q33: 0
I34: 0 | K34: 0 | M34: 0 | O34: 0 | Q34: 0
I35: 0 | K35: 0 | M35: 0 | O35: 0 | Q35: 0
I36: 0 | K36: 0 | M36: 0 | O36: 0 | Q36: 0
I37: 0 | K37: 0 | M37: 0 | O37: 0 | Q37: 0
I38: 0 | K38: 0 | M38: 0 | O38: 0 | Q38: 0
I39: =SUM(I15:I38) -> 0 | K39: =SUM(K15:K38) -> 0 | M39: =SUM(M15:M38) -> 0 | O39: =SUM(O15:O38) -> 0 | Q39: =SUM(Q15:Q38) -> 0 | R39: =(G39-F39)*1440 -> 0 | T39: =((S39/R39))*60/1440 ->  | U39: =S39-(W39+X39) -> 0 | V39: =((U39/S39))*T39 ->  | Y39: =(X39/S39)*1000000 ->  | Z39: =(1-(Y39/1000000))*T39 -> 
S40: =SUM(S15:S39) -> 0 | U40: =SUM(U15:U39) -> 0 | W40: =SUM(W15:W39) -> 0
P41: # of minutes uptime: | R41: =R42-(D20+D21+D23) -> 0 | T41: % uptime: | U41: =IFERROR(R41/R42,"") ->  | W41: FTQ: | X41: =IFERROR(IF(F15="","",((S40-U40)/S40)*1000000),"") -> 
P42: Total Run Time: | R42: =SUM(R15:R38)-(D19+D22) -> 0 | W42: % Scrap: | X42: =IFERROR(IF(F15="","",((S40-(U40+W40))/S40)),"") -> 
L44: Comments: Document scrap/rework and downtime here

Sheet Process 19 - Actual Run Data
A1: Actual Run Data
B5: Supplier Name: | C5: =IF('Capacity Plan'!$F$3="","",'Capacity Plan'!$F$3) ->  | W5: Completed By:
B6: Process Name: | C6: =IF('Capacity Plan'!$D$39="","",'Capacity Plan'!$D$39) -> 
B7: Part Number: | C7: =IF('Capacity Plan'!$Q$3="","",'Capacity Plan'!$Q$3) -> 
R9: Target | S9: Actual | T9: Difference | V9: PLEASE PRINT HARD COPY FOR USE DURING RUN@RATE. COMPLETE BY FILLING IN THE HIGHLIGHTED COLUMNS ONLY. USE MILITARY (24:00 HR) TIME FORMAT.
B10: Run @ Rate Summary Data | J10: Time/part | R10: =IFERROR(IF(F15="","",'Capacity Plan'!L39/'Capacity Plan'!M39),"") ->  | S10: =IFERROR(IF(F15="","",3600/S11),"") ->  | T10: =IFERROR(IF(F15="","",R10-S10),"") -> 
J11: Pcs/Hour | R11: =IFERROR(IF(F15="","",60*60/R10),"") ->  | S11: =IFERROR(IF(F15="","",(S40*60/R41)),"") ->  | T11: =IFERROR(IF(F15="","",S11-R11),"") -> 
B13: Capacity Plan | F13: Start Time (hh:mm) | G13: Stop Time (hh:mm) | H13: Downtime Description | R13: Total Time | S13: Total # of Pcs. Run | T13: Pieces/ Hour | U13: Good Pieces | V13: Good Pcs/Hour | W13: Rework Total | X13: Scrap Total | Y13: % Scrap | Z13: Net Pcs/Hr (Good + Rework)
H14: B | J14: T | L14: C | N14: O | P14: U | T14: =IFERROR(IF(S14="","",((S14/R14))*60),"") ->  | V14: =IFERROR(IF(S14="","",((U14/S14))*T14),"") ->  | Y14: =IFERROR(IF(S14="","",X14/S14),"") ->  | Z14: =IFERROR(IF(S14="","",(1-(Y14/1000000))*T14),"") -> 
I15: =IF(H15="x",(G15-F15)*1440,0) -> 0 | K15: =IF(J15="x",(G15-F15)*1440,0) -> 0 | M15: =IF(L15="x",(G15-F15)*1440,0) -> 0 | O15: =IF(N15="x",(G15-F15)*1440,0) -> 0 | Q15: =IF(P15="x",(G15-F15)*1440,0) -> 0 | R15: =IF(ISBLANK(F15),"",IF(G15>=F15,(G15-F15)*1440,(1+G15-F15)*1440)) ->  | T15: =IFERROR(IF(S15="","",((S15/R15))*60),"") ->  | U15: =IF(S15="","",S15-(W15+X15)) ->  | V15: =IFERROR(IF(S15="","",((U15/S15))*T15),"") ->  | Y15: =IFERROR(IF(S15="","",X15/S15),"") ->  | Z15: =IFERROR(IF(S15="","",(1-(Y15/1000000))*T15),"") -> 
A16: Description of Downtime: | I16: 0 | K16: 0 | M16: 0 | O16: 0 | Q16: =IF(P16="x",(G16-F16)*1440,0) -> 0 | R16: =IF(ISBLANK(F16),"",IF(G16>=F16,(G16-F16)*1440,(1+G16-F16)*1440)) ->  | T16: =IFERROR(IF(S16="","",((S16/R16))*60),"") ->  | U16: =IF(S16="","",S16-(W16+X16)) ->  | V16: =IFERROR(IF(S16="","",((U16/S16))*T16),"") ->  | Y16: =IFERROR(IF(S16="","",X16/S16),"") ->  | Z16: =IFERROR(IF(S16="","",(1-(Y16/1000000))*T16),"") -> 
I17: 0 | K17: 0 | M17: 0 | O17: 0 | Q17: 0
D18: Downtime | I18: 0 | K18: 0 | M18: 0 | O18: 0 | Q18: 0
A19: B | B19: breaks/lunch | D19: =I39 -> 0 | I19: 0 | K19: 0 | M19: 0 | O19: 0 | Q19: 0
A20: T | B20: tool change | D20: =K39 -> 0 | I20: 0 | K20: 0 | M20: 0 | O20: 0 | Q20: 0
A21: C | B21: changeover | D21: =M39 -> 0 | I21: 0 | K21: 0 | M21: 0 | O21: 0 | Q21: 0
A22: O | B22: other planned dntm | D22: =O39 -> 0 | I22: 0 | K22: 0 | M22: 0 | O22: 0 | Q22: 0
A23: U | B23: unplanned dntm | D23: =Q39 -> 0 | I23: 0 | K23: 0 | M23: 0 | O23: 0 | Q23: 0
I24: =IF(H24="x",(G24-F24)*1440,0) -> 0 | K24: =IF(J24="x",(G24-F24)*1440,0) -> 0 | M24: =IF(L24="x",(G24-F24)*1440,0) -> 0 | O24: 0 | Q24: 0
I25: 0 | K25: 0 | M25: 0 | O25: 0 | Q25: 0
I26: 0 | K26: 0 | M26: 0 | O26: 0 | Q26: 0
I27: 0 | K27: 0 | M27: 0 | O27: 0 | Q27: 0
I28: 0 | K28: 0 | M28: 0 | O28: 0 | Q28: 0
I29: 0 | K29: 0 | M29: 0 | O29: 0 | Q29: 0
I30: 0 | K30: 0 | M30: 0 | O30: 0 | Q30: 0
I31: 0 | K31: 0 | M31: 0 | O31: 0 | Q31: 0
I32: 0 | K32: 0 | M32: 0 | O32: 0 | Q32: 0
I33: 0 | K33: 0 | M33: 0 | O33: 0 | Q33: 0
I34: 0 | K34: 0 | M34: 0 | O34: 0 | Q34: 0
I35: 0 | K35: 0 | M35: 0 | O35: 0 | Q35: 0
I36: 0 | K36: 0 | M36: 0 | O36: 0 | Q36: 0
I37: 0 | K37: 0 | M37: 0 | O37: 0 | Q37: 0
I38: 0 | K38: 0 | M38: 0 | O38: 0 | Q38: 0
I39: =SUM(I15:I38) -> 0 | K39: =SUM(K15:K38) -> 0 | M39: =SUM(M15:M38) -> 0 | O39: =SUM(O15:O38) -> 0 | Q39: =SUM(Q15:Q38) -> 0 | R39: =(G39-F39)*1440 -> 0 | T39: =((S39/R39))*60/1440 ->  | U39: =S39-(W39+X39) -> 0 | V39: =((U39/S39))*T39 ->  | Y39: =(X39/S39)*1000000 ->  | Z39: =(1-(Y39/1000000))*T39 -> 
S40: =SUM(S15:S39) -> 0 | U40: =SUM(U15:U39) -> 0 | W40: =SUM(W15:W39) -> 0
P41: # of minutes uptime: | R41: =R42-(D20+D21+D23) -> 0 | T41: % uptime: | U41: =IFERROR(R41/R42,"") ->  | W41: FTQ: | X41: =IFERROR(IF(F15="","",((S40-U40)/S40)*1000000),"") -> 
P42: Total Run Time: | R42: =SUM(R15:R38)-(D19+D22) -> 0 | W42: % Scrap: | X42: =IFERROR(IF(F15="","",((S40-(U40+W40))/S40)),"") -> 
L44: Comments: Document scrap/rework and downtime here

Sheet Process 20 - Actual Run Data
A1: Actual Run Data
B5: Supplier Name: | C5: =IF('Capacity Plan'!$F$3="","",'Capacity Plan'!$F$3) ->  | W5: Completed By:
B6: Process Name: | C6: =IF('Capacity Plan'!$D$40="","",'Capacity Plan'!$D$40) -> 
B7: Part Number: | C7: =IF('Capacity Plan'!$Q$3="","",'Capacity Plan'!$Q$3) -> 
R9: Target | S9: Actual | T9: Difference | V9: PLEASE PRINT HARD COPY FOR USE DURING RUN@RATE. COMPLETE BY FILLING IN THE HIGHLIGHTED COLUMNS ONLY. USE MILITARY (24:00 HR) TIME FORMAT.
B10: Run @ Rate Summary Data | J10: Time/part | R10: =IFERROR(IF(F15="","",'Capacity Plan'!L40/'Capacity Plan'!M40),"") ->  | S10: =IFERROR(IF(F15="","",3600/S11),"") ->  | T10: =IFERROR(IF(F15="","",R10-S10),"") -> 
J11: Pcs/Hour | R11: =IFERROR(IF(F15="","",60*60/R10),"") ->  | S11: =IFERROR(IF(F15="","",(S40*60/R41)),"") ->  | T11: =IFERROR(IF(F15="","",S11-R11),"") -> 
B13: Capacity Plan | F13: Start Time (hh:mm) | G13: Stop Time (hh:mm) | H13: Downtime Description | R13: Total Time | S13: Total # of Pcs. Run | T13: Pieces/ Hour | U13: Good Pieces | V13: Good Pcs/Hour | W13: Rework Total | X13: Scrap Total | Y13: % Scrap | Z13: Net Pcs/Hr (Good + Rework)
H14: B | J14: T | L14: C | N14: O | P14: U | T14: =IFERROR(IF(S14="","",((S14/R14))*60),"") ->  | V14: =IFERROR(IF(S14="","",((U14/S14))*T14),"") ->  | Y14: =IFERROR(IF(S14="","",X14/S14),"") ->  | Z14: =IFERROR(IF(S14="","",(1-(Y14/1000000))*T14),"") -> 
I15: =IF(H15="x",(G15-F15)*1440,0) -> 0 | K15: =IF(J15="x",(G15-F15)*1440,0) -> 0 | M15: =IF(L15="x",(G15-F15)*1440,0) -> 0 | O15: =IF(N15="x",(G15-F15)*1440,0) -> 0 | Q15: =IF(P15="x",(G15-F15)*1440,0) -> 0 | R15: =IF(ISBLANK(F15),"",IF(G15>=F15,(G15-F15)*1440,(1+G15-F15)*1440)) ->  | T15: =IFERROR(IF(S15="","",((S15/R15))*60),"") ->  | U15: =IF(S15="","",S15-(W15+X15)) ->  | V15: =IFERROR(IF(S15="","",((U15/S15))*T15),"") ->  | Y15: =IFERROR(IF(S15="","",X15/S15),"") ->  | Z15: =IFERROR(IF(S15="","",(1-(Y15/1000000))*T15),"") -> 
A16: Description of Downtime: | I16: 0 | K16: 0 | M16: 0 | O16: 0 | Q16: =IF(P16="x",(G16-F16)*1440,0) -> 0 | R16: =IF(ISBLANK(F16),"",IF(G16>=F16,(G16-F16)*1440,(1+G16-F16)*1440)) ->  | T16: =IFERROR(IF(S16="","",((S16/R16))*60),"") ->  | U16: =IF(S16="","",S16-(W16+X16)) ->  | V16: =IFERROR(IF(S16="","",((U16/S16))*T16),"") ->  | Y16: =IFERROR(IF(S16="","",X16/S16),"") ->  | Z16: =IFERROR(IF(S16="","",(1-(Y16/1000000))*T16),"") -> 
I17: 0 | K17: 0 | M17: 0 | O17: 0 | Q17: 0
D18: Downtime | I18: 0 | K18: 0 | M18: 0 | O18: 0 | Q18: 0
A19: B | B19: breaks/lunch | D19: =I39 -> 0 | I19: 0 | K19: 0 | M19: 0 | O19: 0 | Q19: 0
A20: T | B20: tool change | D20: =K39 -> 0 | I20: 0 | K20: 0 | M20: 0 | O20: 0 | Q20: 0
A21: C | B21: changeover | D21: =M39 -> 0 | I21: 0 | K21: 0 | M21: 0 | O21: 0 | Q21: 0
A22: O | B22: other planned dntm | D22: =O39 -> 0 | I22: 0 | K22: 0 | M22: 0 | O22: 0 | Q22: 0
A23: U | B23: unplanned dntm | D23: =Q39 -> 0 | I23: 0 | K23: 0 | M23: 0 | O23: 0 | Q23: 0
I24: =IF(H24="x",(G24-F24)*1440,0) -> 0 | K24: =IF(J24="x",(G24-F24)*1440,0) -> 0 | M24: =IF(L24="x",(G24-F24)*1440,0) -> 0 | O24: =IF(N24="x",(G24-F24)*1440,0) -> 0 | Q24: 0
I25: 0 | K25: 0 | M25: 0 | O25: 0 | Q25: 0
I26: 0 | K26: 0 | M26: 0 | O26: 0 | Q26: 0
I27: 0 | K27: 0 | M27: 0 | O27: 0 | Q27: 0
I28: 0 | K28: 0 | M28: 0 | O28: 0 | Q28: 0
I29: 0 | K29: 0 | M29: 0 | O29: 0 | Q29: 0
I30: 0 | K30: 0 | M30: 0 | O30: 0 | Q30: 0
I31: 0 | K31: 0 | M31: 0 | O31: 0 | Q31: 0
I32: 0 | K32: 0 | M32: 0 | O32: 0 | Q32: 0
I33: 0 | K33: 0 | M33: 0 | O33: 0 | Q33: 0
I34: 0 | K34: 0 | M34: 0 | O34: 0 | Q34: 0
I35: 0 | K35: 0 | M35: 0 | O35: 0 | Q35: 0
I36: 0 | K36: 0 | M36: 0 | O36: 0 | Q36: 0
I37: 0 | K37: 0 | M37: 0 | O37: 0 | Q37: 0
I38: 0 | K38: 0 | M38: 0 | O38: 0 | Q38: 0
I39: =SUM(I15:I38) -> 0 | K39: =SUM(K15:K38) -> 0 | M39: =SUM(M15:M38) -> 0 | O39: =SUM(O15:O38) -> 0 | Q39: =SUM(Q15:Q38) -> 0 | R39: =(G39-F39)*1440 -> 0 | T39: =((S39/R39))*60/1440 ->  | U39: =S39-(W39+X39) -> 0 | V39: =((U39/S39))*T39 ->  | Y39: =(X39/S39)*1000000 ->  | Z39: =(1-(Y39/1000000))*T39 -> 
S40: =SUM(S15:S39) -> 0 | U40: =SUM(U15:U39) -> 0 | W40: =SUM(W15:W39) -> 0
P41: # of minutes uptime: | R41: =R42-(D20+D21+D23) -> 0 | T41: % uptime: | U41: =IFERROR(R41/R42,"") ->  | W41: FTQ: | X41: =IFERROR(IF(F15="","",((S40-U40)/S40)*1000000),"") -> 
P42: Total Run Time: | R42: =SUM(R15:R38)-(D19+D22) -> 0 | W42: % Scrap: | X42: =IFERROR(IF(F15="","",((S40-(U40+W40))/S40)),"") -> 
L44: Comments: Document scrap/rework and downtime here

Sheet Process 21 - Actual Run Data
A1: Actual Run Data
B5: Supplier Name: | C5: =IF('Capacity Plan'!$F$3="","",'Capacity Plan'!$F$3) ->  | W5: Completed By:
B6: Process Name: | C6: =IF('Capacity Plan'!$D$41="","",'Capacity Plan'!$D$41) -> 
B7: Part Number: | C7: =IF('Capacity Plan'!$Q$3="","",'Capacity Plan'!$Q$3) -> 
R9: Target | S9: Actual | T9: Difference | V9: PLEASE PRINT HARD COPY FOR USE DURING RUN@RATE. COMPLETE BY FILLING IN THE HIGHLIGHTED COLUMNS ONLY. USE MILITARY (24:00 HR) TIME FORMAT.
B10: Run @ Rate Summary Data | J10: Time/part | R10: =IFERROR(IF(F15="","",'Capacity Plan'!L41/'Capacity Plan'!M41),"") ->  | S10: =IFERROR(IF(F15="","",3600/S11),"") ->  | T10: =IFERROR(IF(F15="","",R10-S10),"") -> 
J11: Pcs/Hour | R11: =IFERROR(IF(F15="","",60*60/R10),"") ->  | S11: =IFERROR(IF(F15="","",(S40*60/R41)),"") ->  | T11: =IFERROR(IF(F15="","",S11-R11),"") -> 
B13: Capacity Plan | F13: Start Time (hh:mm) | G13: Stop Time (hh:mm) | H13: Downtime Description | R13: Total Time | S13: Total # of Pcs. Run | T13: Pieces/ Hour | U13: Good Pieces | V13: Good Pcs/Hour | W13: Rework Total | X13: Scrap Total | Y13: % Scrap | Z13: Net Pcs/Hr (Good + Rework)
H14: B | J14: T | L14: C | N14: O | P14: U | T14: =IFERROR(IF(S14="","",((S14/R14))*60),"") ->  | V14: =IFERROR(IF(S14="","",((U14/S14))*T14),"") ->  | Y14: =IFERROR(IF(S14="","",X14/S14),"") ->  | Z14: =IFERROR(IF(S14="","",(1-(Y14/1000000))*T14),"") -> 
I15: =IF(H15="x",(G15-F15)*1440,0) -> 0 | K15: =IF(J15="x",(G15-F15)*1440,0) -> 0 | M15: =IF(L15="x",(G15-F15)*1440,0) -> 0 | O15: =IF(N15="x",(G15-F15)*1440,0) -> 0 | Q15: =IF(P15="x",(G15-F15)*1440,0) -> 0 | R15: =IF(ISBLANK(F15),"",IF(G15>=F15,(G15-F15)*1440,(1+G15-F15)*1440)) ->  | T15: =IFERROR(IF(S15="","",((S15/R15))*60),"") ->  | U15: =IF(S15="","",S15-(W15+X15)) ->  | V15: =IFERROR(IF(S15="","",((U15/S15))*T15),"") ->  | Y15: =IFERROR(IF(S15="","",X15/S15),"") ->  | Z15: =IFERROR(IF(S15="","",(1-(Y15/1000000))*T15),"") -> 
A16: Description of Downtime: | I16: 0 | K16: 0 | M16: 0 | O16: 0 | Q16: =IF(P16="x",(G16-F16)*1440,0) -> 0 | R16: =IF(ISBLANK(F16),"",IF(G16>=F16,(G16-F16)*1440,(1+G16-F16)*1440)) ->  | T16: =IFERROR(IF(S16="","",((S16/R16))*60),"") ->  | U16: =IF(S16="","",S16-(W16+X16)) ->  | V16: =IFERROR(IF(S16="","",((U16/S16))*T16),"") ->  | Y16: =IFERROR(IF(S16="","",X16/S16),"") ->  | Z16: =IFERROR(IF(S16="","",(1-(Y16/1000000))*T16),"") -> 
I17: 0 | K17: 0 | M17: 0 | O17: 0 | Q17: 0
D18: Downtime | I18: 0 | K18: 0 | M18: 0 | O18: 0 | Q18: 0
A19: B | B19: breaks/lunch | D19: =I39 -> 0 | I19: 0 | K19: 0 | M19: 0 | O19: 0 | Q19: 0
A20: T | B20: tool change | D20: =K39 -> 0 | I20: 0 | K20: 0 | M20: 0 | O20: 0 | Q20: 0
A21: C | B21: changeover | D21: =M39 -> 0 | I21: 0 | K21: 0 | M21: 0 | O21: 0 | Q21: 0
A22: O | B22: other planned dntm | D22: =O39 -> 0 | I22: 0 | K22: 0 | M22: 0 | O22: 0 | Q22: 0
A23: U | B23: unplanned dntm | D23: =Q39 -> 0 | I23: 0 | K23: 0 | M23: 0 | O23: 0 | Q23: 0
I24: =IF(H24="x",(G24-F24)*1440,0) -> 0 | K24: =IF(J24="x",(G24-F24)*1440,0) -> 0 | M24: =IF(L24="x",(G24-F24)*1440,0) -> 0 | O24: =IF(N24="x",(G24-F24)*1440,0) -> 0 | Q24: 0
I25: 0 | K25: 0 | M25: 0 | O25: 0 | Q25: 0
I26: 0 | K26: 0 | M26: 0 | O26: 0 | Q26: 0
I27: 0 | K27: 0 | M27: 0 | O27: 0 | Q27: 0
I28: 0 | K28: 0 | M28: 0 | O28: 0 | Q28: 0
I29: 0 | K29: 0 | M29: 0 | O29: 0 | Q29: 0
I30: 0 | K30: 0 | M30: 0 | O30: 0 | Q30: 0
I31: 0 | K31: 0 | M31: 0 | O31: 0 | Q31: 0
I32: 0 | K32: 0 | M32: 0 | O32: 0 | Q32: 0
I33: 0 | K33: 0 | M33: 0 | O33: 0 | Q33: 0
I34: 0 | K34: 0 | M34: 0 | O34: 0 | Q34: 0
I35: 0 | K35: 0 | M35: 0 | O35: 0 | Q35: 0
I36: 0 | K36: 0 | M36: 0 | O36: 0 | Q36: 0
I37: 0 | K37: 0 | M37: 0 | O37: 0 | Q37: 0
I38: 0 | K38: 0 | M38: 0 | O38: 0 | Q38: 0
I39: =SUM(I15:I38) -> 0 | K39: =SUM(K15:K38) -> 0 | M39: =SUM(M15:M38) -> 0 | O39: =SUM(O15:O38) -> 0 | Q39: =SUM(Q15:Q38) -> 0 | R39: =(G39-F39)*1440 -> 0 | T39: =((S39/R39))*60/1440 ->  | U39: =S39-(W39+X39) -> 0 | V39: =((U39/S39))*T39 ->  | Y39: =(X39/S39)*1000000 ->  | Z39: =(1-(Y39/1000000))*T39 -> 
S40: =SUM(S15:S39) -> 0 | U40: =SUM(U15:U39) -> 0 | W40: =SUM(W15:W39) -> 0
P41: # of minutes uptime: | R41: =R42-(D20+D21+D23) -> 0 | T41: % uptime: | U41: =IFERROR(R41/R42,"") ->  | W41: FTQ: | X41: =IFERROR(IF(F15="","",((S40-U40)/S40)*1000000),"") -> 
P42: Total Run Time: | R42: =SUM(R15:R38)-(D19+D22) -> 0 | W42: % Scrap: | X42: =IFERROR(IF(F15="","",((S40-(U40+W40))/S40)),"") -> 
L44: Comments: Document scrap/rework and downtime here

Sheet Process 22 - Actual Run Data
A1: Actual Run Data
B5: Supplier Name: | C5: =IF('Capacity Plan'!$F$3="","",'Capacity Plan'!$F$3) ->  | W5: Completed By:
B6: Process Name: | C6: =IF('Capacity Plan'!$D$42="","",'Capacity Plan'!$D$42) -> 
B7: Part Number: | C7: =IF('Capacity Plan'!$Q$3="","",'Capacity Plan'!$Q$3) -> 
R9: Target | S9: Actual | T9: Difference | V9: PLEASE PRINT HARD COPY FOR USE DURING RUN@RATE. COMPLETE BY FILLING IN THE HIGHLIGHTED COLUMNS ONLY. USE MILITARY (24:00 HR) TIME FORMAT.
B10: Run @ Rate Summary Data | J10: Time/part | R10: =IFERROR(IF(F15="","",'Capacity Plan'!L42/'Capacity Plan'!M42),"") ->  | S10: =IFERROR(IF(F15="","",3600/S11),"") ->  | T10: =IFERROR(IF(F15="","",R10-S10),"") -> 
J11: Pcs/Hour | R11: =IFERROR(IF(F15="","",60*60/R10),"") ->  | S11: =IFERROR(IF(F15="","",(S40*60/R41)),"") ->  | T11: =IFERROR(IF(F15="","",S11-R11),"") -> 
B13: Capacity Plan | F13: Start Time (hh:mm) | G13: Stop Time (hh:mm) | H13: Downtime Description | R13: Total Time | S13: Total # of Pcs. Run | T13: Pieces/ Hour | U13: Good Pieces | V13: Good Pcs/Hour | W13: Rework Total | X13: Scrap Total | Y13: % Scrap | Z13: Net Pcs/Hr (Good + Rework)
H14: B | J14: T | L14: C | N14: O | P14: U | T14: =IFERROR(IF(S14="","",((S14/R14))*60),"") ->  | V14: =IFERROR(IF(S14="","",((U14/S14))*T14),"") ->  | Y14: =IFERROR(IF(S14="","",X14/S14),"") ->  | Z14: =IFERROR(IF(S14="","",(1-(Y14/1000000))*T14),"") -> 
I15: =IF(H15="x",(G15-F15)*1440,0) -> 0 | K15: =IF(J15="x",(G15-F15)*1440,0) -> 0 | M15: =IF(L15="x",(G15-F15)*1440,0) -> 0 | O15: =IF(N15="x",(G15-F15)*1440,0) -> 0 | Q15: =IF(P15="x",(G15-F15)*1440,0) -> 0 | R15: =IF(ISBLANK(F15),"",IF(G15>=F15,(G15-F15)*1440,(1+G15-F15)*1440)) ->  | T15: =IFERROR(IF(S15="","",((S15/R15))*60),"") ->  | U15: =IF(S15="","",S15-(W15+X15)) ->  | V15: =IFERROR(IF(S15="","",((U15/S15))*T15),"") ->  | Y15: =IFERROR(IF(S15="","",X15/S15),"") ->  | Z15: =IFERROR(IF(S15="","",(1-(Y15/1000000))*T15),"") -> 
A16: Description of Downtime: | I16: 0 | K16: 0 | M16: 0 | O16: 0 | Q16: =IF(P16="x",(G16-F16)*1440,0) -> 0 | R16: =IF(ISBLANK(F16),"",IF(G16>=F16,(G16-F16)*1440,(1+G16-F16)*1440)) ->  | T16: =IFERROR(IF(S16="","",((S16/R16))*60),"") ->  | U16: =IF(S16="","",S16-(W16+X16)) ->  | V16: =IFERROR(IF(S16="","",((U16/S16))*T16),"") ->  | Y16: =IFERROR(IF(S16="","",X16/S16),"") ->  | Z16: =IFERROR(IF(S16="","",(1-(Y16/1000000))*T16),"") -> 
I17: 0 | K17: 0 | M17: 0 | O17: 0 | Q17: 0
D18: Downtime | I18: =IF(H18="x",(G18-F18)*1440,0) -> 0 | K18: =IF(J18="x",(G18-F18)*1440,0) -> 0 | M18: =IF(L18="x",(G18-F18)*1440,0) -> 0 | O18: =IF(N18="x",(G18-F18)*1440,0) -> 0 | Q18: 0
A19: B | B19: breaks/lunch | D19: =I39 -> 0 | I19: 0 | K19: 0 | M19: 0 | O19: 0 | Q19: 0
A20: T | B20: tool change | D20: =K39 -> 0 | I20: 0 | K20: 0 | M20: 0 | O20: 0 | Q20: 0
A21: C | B21: changeover | D21: =M39 -> 0 | I21: 0 | K21: 0 | M21: 0 | O21: 0 | Q21: 0
A22: O | B22: other planned dntm | D22: =O39 -> 0 | I22: 0 | K22: 0 | M22: 0 | O22: 0 | Q22: 0
A23: U | B23: unplanned dntm | D23: =Q39 -> 0 | I23: 0 | K23: 0 | M23: 0 | O23: 0 | Q23: 0
I24: =IF(H24="x",(G24-F24)*1440,0) -> 0 | K24: =IF(J24="x",(G24-F24)*1440,0) -> 0 | M24: =IF(L24="x",(G24-F24)*1440,0) -> 0 | O24: =IF(N24="x",(G24-F24)*1440,0) -> 0 | Q24: 0
I25: 0 | K25: 0 | M25: 0 | O25: 0 | Q25: 0
I26: 0 | K26: 0 | M26: 0 | O26: 0 | Q26: 0
I27: 0 | K27: 0 | M27: 0 | O27: 0 | Q27: 0
I28: 0 | K28: 0 | M28: 0 | O28: 0 | Q28: 0
I29: 0 | K29: 0 | M29: 0 | O29: 0 | Q29: 0
I30: 0 | K30: 0 | M30: 0 | O30: 0 | Q30: 0
I31: 0 | K31: 0 | M31: 0 | O31: 0 | Q31: 0
I32: 0 | K32: 0 | M32: 0 | O32: 0 | Q32: 0
I33: 0 | K33: 0 | M33: 0 | O33: 0 | Q33: 0
I34: 0 | K34: 0 | M34: 0 | O34: 0 | Q34: 0
I35: 0 | K35: 0 | M35: 0 | O35: 0 | Q35: 0
I36: 0 | K36: 0 | M36: 0 | O36: 0 | Q36: 0
I37: 0 | K37: 0 | M37: 0 | O37: 0 | Q37: 0
I38: 0 | K38: 0 | M38: 0 | O38: 0 | Q38: 0
I39: =SUM(I15:I38) -> 0 | K39: =SUM(K15:K38) -> 0 | M39: =SUM(M15:M38) -> 0 | O39: =SUM(O15:O38) -> 0 | Q39: =SUM(Q15:Q38) -> 0 | R39: =(G39-F39)*1440 -> 0 | T39: =((S39/R39))*60/1440 ->  | U39: =S39-(W39+X39) -> 0 | V39: =((U39/S39))*T39 ->  | Y39: =(X39/S39)*1000000 ->  | Z39: =(1-(Y39/1000000))*T39 -> 
S40: =SUM(S15:S39) -> 0 | U40: =SUM(U15:U39) -> 0 | W40: =SUM(W15:W39) -> 0
P41: # of minutes uptime: | R41: =R42-(D20+D21+D23) -> 0 | T41: % uptime: | U41: =IFERROR(R41/R42,"") ->  | W41: FTQ: | X41: =IFERROR(IF(F15="","",((S40-U40)/S40)*1000000),"") -> 
P42: Total Run Time: | R42: =SUM(R15:R38)-(D19+D22) -> 0 | W42: % Scrap: | X42: =IFERROR(IF(F15="","",((S40-(U40+W40))/S40)),"") -> 
L44: Comments: Document scrap/rework and downtime here

Sheet Process 23 - Actual Run Data
A1: Actual Run Data
B5: Supplier Name: | C5: =IF('Capacity Plan'!$F$3="","",'Capacity Plan'!$F$3) ->  | W5: Completed By:
B6: Process Name: | C6: =IF('Capacity Plan'!$D$43="","",'Capacity Plan'!$D$43) -> 
B7: Part Number: | C7: =IF('Capacity Plan'!$Q$3="","",'Capacity Plan'!$Q$3) -> 
R9: Target | S9: Actual | T9: Difference | V9: PLEASE PRINT HARD COPY FOR USE DURING RUN@RATE. COMPLETE BY FILLING IN THE HIGHLIGHTED COLUMNS ONLY. USE MILITARY (24:00 HR) TIME FORMAT.
B10: Run @ Rate Summary Data | J10: Time/part | R10: =IFERROR(IF(F15="","",'Capacity Plan'!L43/'Capacity Plan'!M43),"") ->  | S10: =IFERROR(IF(F15="","",3600/S11),"") ->  | T10: =IFERROR(IF(F15="","",R10-S10),"") -> 
J11: Pcs/Hour | R11: =IFERROR(IF(F15="","",60*60/R10),"") ->  | S11: =IFERROR(IF(F15="","",(S40*60/R41)),"") ->  | T11: =IFERROR(IF(F15="","",S11-R11),"") -> 
B13: Capacity Plan | F13: Start Time (hh:mm) | G13: Stop Time (hh:mm) | H13: Downtime Description | R13: Total Time | S13: Total # of Pcs. Run | T13: Pieces/ Hour | U13: Good Pieces | V13: Good Pcs/Hour | W13: Rework Total | X13: Scrap Total | Y13: % Scrap | Z13: Net Pcs/Hr (Good + Rework)
H14: B | J14: T | L14: C | N14: O | P14: U | T14: =IFERROR(IF(S14="","",((S14/R14))*60),"") ->  | V14: =IFERROR(IF(S14="","",((U14/S14))*T14),"") ->  | Y14: =IFERROR(IF(S14="","",X14/S14),"") ->  | Z14: =IFERROR(IF(S14="","",(1-(Y14/1000000))*T14),"") -> 
I15: =IF(H15="x",(G15-F15)*1440,0) -> 0 | K15: =IF(J15="x",(G15-F15)*1440,0) -> 0 | M15: =IF(L15="x",(G15-F15)*1440,0) -> 0 | O15: =IF(N15="x",(G15-F15)*1440,0) -> 0 | Q15: =IF(P15="x",(G15-F15)*1440,0) -> 0 | R15: =IF(ISBLANK(F15),"",IF(G15>=F15,(G15-F15)*1440,(1+G15-F15)*1440)) ->  | T15: =IFERROR(IF(S15="","",((S15/R15))*60),"") ->  | U15: =IF(S15="","",S15-(W15+X15)) ->  | V15: =IFERROR(IF(S15="","",((U15/S15))*T15),"") ->  | Y15: =IFERROR(IF(S15="","",X15/S15),"") ->  | Z15: =IFERROR(IF(S15="","",(1-(Y15/1000000))*T15),"") -> 
A16: Description of Downtime: | I16: 0 | K16: 0 | M16: 0 | O16: 0 | Q16: =IF(P16="x",(G16-F16)*1440,0) -> 0 | R16: =IF(ISBLANK(F16),"",IF(G16>=F16,(G16-F16)*1440,(1+G16-F16)*1440)) ->  | T16: =IFERROR(IF(S16="","",((S16/R16))*60),"") ->  | U16: =IF(S16="","",S16-(W16+X16)) ->  | V16: =IFERROR(IF(S16="","",((U16/S16))*T16),"") ->  | Y16: =IFERROR(IF(S16="","",X16/S16),"") ->  | Z16: =IFERROR(IF(S16="","",(1-(Y16/1000000))*T16),"") -> 
I17: 0 | K17: 0 | M17: 0 | O17: 0 | Q17: 0
D18: Downtime | I18: 0 | K18: 0 | M18: 0 | O18: 0 | Q18: 0
A19: B | B19: breaks/lunch | D19: =I39 -> 0 | I19: 0 | K19: 0 | M19: 0 | O19: 0 | Q19: 0
A20: T | B20: tool change | D20: =K39 -> 0 | I20: 0 | K20: 0 | M20: 0 | O20: 0 | Q20: 0
A21: C | B21: changeover | D21: =M39 -> 0 | I21: 0 | K21: 0 | M21: 0 | O21: 0 | Q21: 0
A22: O | B22: other planned dntm | D22: =O39 -> 0 | I22: 0 | K22: 0 | M22: 0 | O22: 0 | Q22: 0
A23: U | B23: unplanned dntm | D23: =Q39 -> 0 | I23: 0 | K23: 0 | M23: 0 | O23: 0 | Q23: 0
I24: =IF(H24="x",(G24-F24)*1440,0) -> 0 | K24: =IF(J24="x",(G24-F24)*1440,0) -> 0 | M24: =IF(L24="x",(G24-F24)*1440,0) -> 0 | O24: =IF(N24="x",(G24-F24)*1440,0) -> 0 | Q24: 0
I25: 0 | K25: 0 | M25: 0 | O25: 0 | Q25: 0
I26: 0 | K26: 0 | M26: 0 | O26: 0 | Q26: 0
I27: 0 | K27: 0 | M27: 0 | O27: 0 | Q27: 0
I28: 0 | K28: 0 | M28: 0 | O28: 0 | Q28: 0
I29: 0 | K29: 0 | M29: 0 | O29: 0 | Q29: 0
I30: 0 | K30: 0 | M30: 0 | O30: 0 | Q30: 0
I31: 0 | K31: 0 | M31: 0 | O31: 0 | Q31: 0
I32: 0 | K32: 0 | M32: 0 | O32: 0 | Q32: 0
I33: 0 | K33: 0 | M33: 0 | O33: 0 | Q33: 0
I34: 0 | K34: 0 | M34: 0 | O34: 0 | Q34: 0
I35: 0 | K35: 0 | M35: 0 | O35: 0 | Q35: 0
I36: 0 | K36: 0 | M36: 0 | O36: 0 | Q36: 0
I37: 0 | K37: 0 | M37: 0 | O37: 0 | Q37: 0
I38: 0 | K38: 0 | M38: 0 | O38: 0 | Q38: 0
I39: =SUM(I15:I38) -> 0 | K39: =SUM(K15:K38) -> 0 | M39: =SUM(M15:M38) -> 0 | O39: =SUM(O15:O38) -> 0 | Q39: =SUM(Q15:Q38) -> 0 | R39: =(G39-F39)*1440 -> 0 | T39: =((S39/R39))*60/1440 ->  | U39: =S39-(W39+X39) -> 0 | V39: =((U39/S39))*T39 ->  | Y39: =(X39/S39)*1000000 ->  | Z39: =(1-(Y39/1000000))*T39 -> 
S40: =SUM(S15:S39) -> 0 | U40: =SUM(U15:U39) -> 0 | W40: =SUM(W15:W39) -> 0
P41: # of minutes uptime: | R41: =R42-(D20+D21+D23) -> 0 | T41: % uptime: | U41: =IFERROR(R41/R42,"") ->  | W41: FTQ: | X41: =IFERROR(IF(F15="","",((S40-U40)/S40)*1000000),"") -> 
P42: Total Run Time: | R42: =SUM(R15:R38)-(D19+D22) -> 0 | W42: % Scrap: | X42: =IFERROR(IF(F15="","",((S40-(U40+W40))/S40)),"") -> 
L44: Comments: Document scrap/rework and downtime here

Sheet Process 24 - Actual Run Data
A1: Actual Run Data
B5: Supplier Name: | C5: =IF('Capacity Plan'!$F$3="","",'Capacity Plan'!$F$3) ->  | W5: Completed By:
B6: Process Name: | C6: =IF('Capacity Plan'!$D$44="","",'Capacity Plan'!$D$44) -> 
B7: Part Number: | C7: =IF('Capacity Plan'!$Q$3="","",'Capacity Plan'!$Q$3) -> 
R9: Target | S9: Actual | T9: Difference | V9: PLEASE PRINT HARD COPY FOR USE DURING RUN@RATE. COMPLETE BY FILLING IN THE HIGHLIGHTED COLUMNS ONLY. USE MILITARY (24:00 HR) TIME FORMAT.
B10: Run @ Rate Summary Data | J10: Time/part | R10: =IFERROR(IF(F15="","",'Capacity Plan'!L44/'Capacity Plan'!M44),"") ->  | S10: =IFERROR(IF(F15="","",3600/S11),"") ->  | T10: =IFERROR(IF(F15="","",R10-S10),"") -> 
J11: Pcs/Hour | R11: =IFERROR(IF(F15="","",60*60/R10),"") ->  | S11: =IFERROR(IF(F15="","",(S40*60/R41)),"") ->  | T11: =IFERROR(IF(F15="","",S11-R11),"") -> 
B13: Capacity Plan | F13: Start Time (hh:mm) | G13: Stop Time (hh:mm) | H13: Downtime Description | R13: Total Time | S13: Total # of Pcs. Run | T13: Pieces/ Hour | U13: Good Pieces | V13: Good Pcs/Hour | W13: Rework Total | X13: Scrap Total | Y13: % Scrap | Z13: Net Pcs/Hr (Good + Rework)
H14: B | J14: T | L14: C | N14: O | P14: U | T14: =IFERROR(IF(S14="","",((S14/R14))*60),"") ->  | V14: =IFERROR(IF(S14="","",((U14/S14))*T14),"") ->  | Y14: =IFERROR(IF(S14="","",X14/S14),"") ->  | Z14: =IFERROR(IF(S14="","",(1-(Y14/1000000))*T14),"") -> 
I15: =IF(H15="x",(G15-F15)*1440,0) -> 0 | K15: =IF(J15="x",(G15-F15)*1440,0) -> 0 | M15: =IF(L15="x",(G15-F15)*1440,0) -> 0 | O15: =IF(N15="x",(G15-F15)*1440,0) -> 0 | Q15: =IF(P15="x",(G15-F15)*1440,0) -> 0 | R15: =IF(ISBLANK(F15),"",IF(G15>=F15,(G15-F15)*1440,(1+G15-F15)*1440)) ->  | T15: =IFERROR(IF(S15="","",((S15/R15))*60),"") ->  | U15: =IF(S15="","",S15-(W15+X15)) ->  | V15: =IFERROR(IF(S15="","",((U15/S15))*T15),"") ->  | Y15: =IFERROR(IF(S15="","",X15/S15),"") ->  | Z15: =IFERROR(IF(S15="","",(1-(Y15/1000000))*T15),"") -> 
A16: Description of Downtime: | I16: =IF(H16="x",(G16-F16)*1440,0) -> 0 | K16: =IF(J16="x",(G16-F16)*1440,0) -> 0 | M16: =IF(L16="x",(G16-F16)*1440,0) -> 0 | O16: =IF(N16="x",(G16-F16)*1440,0) -> 0 | Q16: =IF(P16="x",(G16-F16)*1440,0) -> 0 | R16: =IF(ISBLANK(F16),"",IF(G16>=F16,(G16-F16)*1440,(1+G16-F16)*1440)) ->  | T16: =IFERROR(IF(S16="","",((S16/R16))*60),"") ->  | U16: =IF(S16="","",S16-(W16+X16)) ->  | V16: =IFERROR(IF(S16="","",((U16/S16))*T16),"") ->  | Y16: =IFERROR(IF(S16="","",X16/S16),"") ->  | Z16: =IFERROR(IF(S16="","",(1-(Y16/1000000))*T16),"") -> 
I17: 0 | K17: 0 | M17: 0 | O17: 0 | Q17: 0
D18: Downtime | I18: 0 | K18: 0 | M18: 0 | O18: 0 | Q18: 0
A19: B | B19: breaks/lunch | D19: =I39 -> 0 | I19: 0 | K19: 0 | M19: 0 | O19: 0 | Q19: 0
A20: T | B20: tool change | D20: =K39 -> 0 | I20: 0 | K20: 0 | M20: 0 | O20: 0 | Q20: 0
A21: C | B21: changeover | D21: =M39 -> 0 | I21: 0 | K21: 0 | M21: 0 | O21: 0 | Q21: 0
A22: O | B22: other planned dntm | D22: =O39 -> 0 | I22: 0 | K22: 0 | M22: 0 | O22: 0 | Q22: 0
A23: U | B23: unplanned dntm | D23: =Q39 -> 0 | I23: 0 | K23: 0 | M23: 0 | O23: 0 | Q23: 0
I24: =IF(H24="x",(G24-F24)*1440,0) -> 0 | K24: =IF(J24="x",(G24-F24)*1440,0) -> 0 | M24: =IF(L24="x",(G24-F24)*1440,0) -> 0 | O24: =IF(N24="x",(G24-F24)*1440,0) -> 0 | Q24: 0
I25: 0 | K25: 0 | M25: 0 | O25: 0 | Q25: 0
I26: 0 | K26: 0 | M26: 0 | O26: 0 | Q26: 0
I27: 0 | K27: 0 | M27: 0 | O27: 0 | Q27: 0
I28: 0 | K28: 0 | M28: 0 | O28: 0 | Q28: 0
I29: 0 | K29: 0 | M29: 0 | O29: 0 | Q29: 0
I30: 0 | K30: 0 | M30: 0 | O30: 0 | Q30: 0
I31: 0 | K31: 0 | M31: 0 | O31: 0 | Q31: 0
I32: 0 | K32: 0 | M32: 0 | O32: 0 | Q32: 0
I33: 0 | K33: 0 | M33: 0 | O33: 0 | Q33: 0
I34: 0 | K34: 0 | M34: 0 | O34: 0 | Q34: 0
I35: 0 | K35: 0 | M35: 0 | O35: 0 | Q35: 0
I36: 0 | K36: 0 | M36: 0 | O36: 0 | Q36: 0
I37: 0 | K37: 0 | M37: 0 | O37: 0 | Q37: 0
I38: 0 | K38: 0 | M38: 0 | O38: 0 | Q38: 0
I39: =SUM(I15:I38) -> 0 | K39: =SUM(K15:K38) -> 0 | M39: =SUM(M15:M38) -> 0 | O39: =SUM(O15:O38) -> 0 | Q39: =SUM(Q15:Q38) -> 0 | R39: =(G39-F39)*1440 -> 0 | T39: =((S39/R39))*60/1440 ->  | U39: =S39-(W39+X39) -> 0 | V39: =((U39/S39))*T39 ->  | Y39: =(X39/S39)*1000000 ->  | Z39: =(1-(Y39/1000000))*T39 -> 
S40: =SUM(S15:S39) -> 0 | U40: =SUM(U15:U39) -> 0 | W40: =SUM(W15:W39) -> 0
P41: # of minutes uptime: | R41: =R42-(D20+D21+D23) -> 0 | T41: % uptime: | U41: =IFERROR(R41/R42,"") ->  | W41: FTQ: | X41: =IFERROR(IF(F15="","",((S40-U40)/S40)*1000000),"") -> 
P42: Total Run Time: | R42: =SUM(R15:R38)-(D19+D22) -> 0 | W42: % Scrap: | X42: =IFERROR(IF(F15="","",((S40-(U40+W40))/S40)),"") -> 
L44: Comments: Document scrap/rework and downtime here

Sheet Process 25 - Actual Run Data
A1: Actual Run Data
B5: Supplier Name: | C5: =IF('Capacity Plan'!$F$3="","",'Capacity Plan'!$F$3) ->  | W5: Completed By:
B6: Process Name: | C6: =IF('Capacity Plan'!$D$45="","",'Capacity Plan'!$D$45) -> 
B7: Part Number: | C7: =IF('Capacity Plan'!$Q$3="","",'Capacity Plan'!$Q$3) -> 
R9: Target | S9: Actual | T9: Difference | V9: PLEASE PRINT HARD COPY FOR USE DURING RUN@RATE. COMPLETE BY FILLING IN THE HIGHLIGHTED COLUMNS ONLY. USE MILITARY (24:00 HR) TIME FORMAT.
B10: Run @ Rate Summary Data | J10: Time/part | R10: =IFERROR(IF(F15="","",'Capacity Plan'!L45/'Capacity Plan'!M45),"") ->  | S10: =IFERROR(IF(F15="","",3600/S11),"") ->  | T10: =IFERROR(IF(F15="","",R10-S10),"") -> 
J11: Pcs/Hour | R11: =IFERROR(IF(F15="","",60*60/R10),"") ->  | S11: =IFERROR(IF(F15="","",(S40*60/R41)),"") ->  | T11: =IFERROR(IF(F15="","",S11-R11),"") -> 
B13: Capacity Plan | F13: Start Time (hh:mm) | G13: Stop Time (hh:mm) | H13: Downtime Description | R13: Total Time | S13: Total # of Pcs. Run | T13: Pieces/ Hour | U13: Good Pieces | V13: Good Pcs/Hour | W13: Rework Total | X13: Scrap Total | Y13: % Scrap | Z13: Net Pcs/Hr (Good + Rework)
H14: B | J14: T | L14: C | N14: O | P14: U | T14: =IFERROR(IF(S14="","",((S14/R14))*60),"") ->  | V14: =IFERROR(IF(S14="","",((U14/S14))*T14),"") ->  | Y14: =IFERROR(IF(S14="","",X14/S14),"") ->  | Z14: =IFERROR(IF(S14="","",(1-(Y14/1000000))*T14),"") -> 
I15: =IF(H15="x",(G15-F15)*1440,0) -> 0 | K15: =IF(J15="x",(G15-F15)*1440,0) -> 0 | M15: =IF(L15="x",(G15-F15)*1440,0) -> 0 | O15: =IF(N15="x",(G15-F15)*1440,0) -> 0 | Q15: =IF(P15="x",(G15-F15)*1440,0) -> 0 | R15: =IF(ISBLANK(F15),"",IF(G15>=F15,(G15-F15)*1440,(1+G15-F15)*1440)) ->  | T15: =IFERROR(IF(S15="","",((S15/R15))*60),"") ->  | U15: =IF(S15="","",S15-(W15+X15)) ->  | V15: =IFERROR(IF(S15="","",((U15/S15))*T15),"") ->  | Y15: =IFERROR(IF(S15="","",X15/S15),"") ->  | Z15: =IFERROR(IF(S15="","",(1-(Y15/1000000))*T15),"") -> 
A16: Description of Downtime: | I16: =IF(H16="x",(G16-F16)*1440,0) -> 0 | K16: =IF(J16="x",(G16-F16)*1440,0) -> 0 | M16: =IF(L16="x",(G16-F16)*1440,0) -> 0 | O16: =IF(N16="x",(G16-F16)*1440,0) -> 0 | Q16: =IF(P16="x",(G16-F16)*1440,0) -> 0 | R16: =IF(ISBLANK(F16),"",IF(G16>=F16,(G16-F16)*1440,(1+G16-F16)*1440)) ->  | T16: =IFERROR(IF(S16="","",((S16/R16))*60),"") ->  | U16: =IF(S16="","",S16-(W16+X16)) ->  | V16: =IFERROR(IF(S16="","",((U16/S16))*T16),"") ->  | Y16: =IFERROR(IF(S16="","",X16/S16),"") ->  | Z16: =IFERROR(IF(S16="","",(1-(Y16/1000000))*T16),"") -> 
I17: 0 | K17: 0 | M17: 0 | O17: 0 | Q17: 0
D18: Downtime | I18: 0 | K18: 0 | M18: 0 | O18: 0 | Q18: 0
A19: B | B19: breaks/lunch | D19: =I39 -> 0 | I19: 0 | K19: 0 | M19: 0 | O19: 0 | Q19: 0
A20: T | B20: tool change | D20: =K39 -> 0 | I20: 0 | K20: 0 | M20: 0 | O20: 0 | Q20: 0
A21: C | B21: changeover | D21: =M39 -> 0 | I21: 0 | K21: 0 | M21: 0 | O21: 0 | Q21: 0
A22: O | B22: other planned dntm | D22: =O39 -> 0 | I22: 0 | K22: 0 | M22: 0 | O22: 0 | Q22: 0
A23: U | B23: unplanned dntm | D23: =Q39 -> 0 | I23: 0 | K23: 0 | M23: 0 | O23: 0 | Q23: 0
I24: =IF(H24="x",(G24-F24)*1440,0) -> 0 | K24: =IF(J24="x",(G24-F24)*1440,0) -> 0 | M24: =IF(L24="x",(G24-F24)*1440,0) -> 0 | O24: =IF(N24="x",(G24-F24)*1440,0) -> 0 | Q24: 0
I25: 0 | K25: 0 | M25: 0 | O25: 0 | Q25: 0
I26: 0 | K26: 0 | M26: 0 | O26: 0 | Q26: 0
I27: 0 | K27: 0 | M27: 0 | O27: 0 | Q27: 0
I28: 0 | K28: 0 | M28: 0 | O28: 0 | Q28: 0
I29: 0 | K29: 0 | M29: 0 | O29: 0 | Q29: 0
I30: 0 | K30: 0 | M30: 0 | O30: 0 | Q30: 0
I31: 0 | K31: 0 | M31: 0 | O31: 0 | Q31: 0
I32: 0 | K32: 0 | M32: 0 | O32: 0 | Q32: 0
I33: 0 | K33: 0 | M33: 0 | O33: 0 | Q33: 0
I34: 0 | K34: 0 | M34: 0 | O34: 0 | Q34: 0
I35: 0 | K35: 0 | M35: 0 | O35: 0 | Q35: 0
I36: 0 | K36: 0 | M36: 0 | O36: 0 | Q36: 0
I37: 0 | K37: 0 | M37: 0 | O37: 0 | Q37: 0
I38: 0 | K38: 0 | M38: 0 | O38: 0 | Q38: 0
I39: =SUM(I15:I38) -> 0 | K39: =SUM(K15:K38) -> 0 | M39: =SUM(M15:M38) -> 0 | O39: =SUM(O15:O38) -> 0 | Q39: =SUM(Q15:Q38) -> 0 | R39: =(G39-F39)*1440 -> 0 | T39: =((S39/R39))*60/1440 ->  | U39: =S39-(W39+X39) -> 0 | V39: =((U39/S39))*T39 ->  | Y39: =(X39/S39)*1000000 ->  | Z39: =(1-(Y39/1000000))*T39 -> 
S40: =SUM(S15:S39) -> 0 | U40: =SUM(U15:U39) -> 0 | W40: =SUM(W15:W39) -> 0
P41: # of minutes uptime: | R41: =R42-(D20+D21+D23) -> 0 | T41: % uptime: | U41: =IFERROR(R41/R42,"") ->  | W41: FTQ: | X41: =IFERROR(IF(F15="","",((S40-U40)/S40)*1000000),"") -> 
P42: Total Run Time: | R42: =SUM(R15:R38)-(D19+D22) -> 0 | W42: % Scrap: | X42: =IFERROR(IF(F15="","",((S40-(U40+W40))/S40)),"") -> 
L44: Comments: Document scrap/rework and downtime here

Sheet Process 26 - Actual Run Data
A1: Actual Run Data
B5: Supplier Name: | C5: =IF('Capacity Plan'!$F$3="","",'Capacity Plan'!$F$3) ->  | W5: Completed By:
B6: Process Name: | C6: =IF('Capacity Plan'!$D$46="","",'Capacity Plan'!$D$46) -> 
B7: Part Number: | C7: =IF('Capacity Plan'!$Q$3="","",'Capacity Plan'!$Q$3) -> 
R9: Target | S9: Actual | T9: Difference | V9: PLEASE PRINT HARD COPY FOR USE DURING RUN@RATE. COMPLETE BY FILLING IN THE HIGHLIGHTED COLUMNS ONLY. USE MILITARY (24:00 HR) TIME FORMAT.
B10: Run @ Rate Summary Data | J10: Time/part | R10: =IFERROR(IF(F15="","",'Capacity Plan'!L46/'Capacity Plan'!M46),"") ->  | S10: =IFERROR(IF(F15="","",3600/S11),"") ->  | T10: =IFERROR(IF(F15="","",R10-S10),"") -> 
J11: Pcs/Hour | R11: =IFERROR(IF(F15="","",60*60/R10),"") ->  | S11: =IFERROR(IF(F15="","",(S40*60/R41)),"") ->  | T11: =IFERROR(IF(F15="","",S11-R11),"") -> 
B13: Capacity Plan | F13: Start Time (hh:mm) | G13: Stop Time (hh:mm) | H13: Downtime Description | R13: Total Time | S13: Total # of Pcs. Run | T13: Pieces/ Hour | U13: Good Pieces | V13: Good Pcs/Hour | W13: Rework Total | X13: Scrap Total | Y13: % Scrap | Z13: Net Pcs/Hr (Good + Rework)
H14: B | J14: T | L14: C | N14: O | P14: U | T14: =IFERROR(IF(S14="","",((S14/R14))*60),"") ->  | V14: =IFERROR(IF(S14="","",((U14/S14))*T14),"") ->  | Y14: =IFERROR(IF(S14="","",X14/S14),"") ->  | Z14: =IFERROR(IF(S14="","",(1-(Y14/1000000))*T14),"") -> 
I15: =IF(H15="x",(G15-F15)*1440,0) -> 0 | K15: =IF(J15="x",(G15-F15)*1440,0) -> 0 | M15: =IF(L15="x",(G15-F15)*1440,0) -> 0 | O15: =IF(N15="x",(G15-F15)*1440,0) -> 0 | Q15: =IF(P15="x",(G15-F15)*1440,0) -> 0 | R15: =IF(ISBLANK(F15),"",IF(G15>=F15,(G15-F15)*1440,(1+G15-F15)*1440)) ->  | T15: =IFERROR(IF(S15="","",((S15/R15))*60),"") ->  | U15: =IF(S15="","",S15-(W15+X15)) ->  | V15: =IFERROR(IF(S15="","",((U15/S15))*T15),"") ->  | Y15: =IFERROR(IF(S15="","",X15/S15),"") ->  | Z15: =IFERROR(IF(S15="","",(1-(Y15/1000000))*T15),"") -> 
A16: Description of Downtime: | I16: =IF(H16="x",(G16-F16)*1440,0) -> 0 | K16: =IF(J16="x",(G16-F16)*1440,0) -> 0 | M16: =IF(L16="x",(G16-F16)*1440,0) -> 0 | O16: =IF(N16="x",(G16-F16)*1440,0) -> 0 | Q16: =IF(P16="x",(G16-F16)*1440,0) -> 0 | R16: =IF(ISBLANK(F16),"",IF(G16>=F16,(G16-F16)*1440,(1+G16-F16)*1440)) ->  | T16: =IFERROR(IF(S16="","",((S16/R16))*60),"") ->  | U16: =IF(S16="","",S16-(W16+X16)) ->  | V16: =IFERROR(IF(S16="","",((U16/S16))*T16),"") ->  | Y16: =IFERROR(IF(S16="","",X16/S16),"") ->  | Z16: =IFERROR(IF(S16="","",(1-(Y16/1000000))*T16),"") -> 
I17: 0 | K17: 0 | M17: 0 | O17: 0 | Q17: 0
D18: Downtime | I18: 0 | K18: 0 | M18: 0 | O18: 0 | Q18: 0
A19: B | B19: breaks/lunch | D19: =I39 -> 0 | I19: 0 | K19: 0 | M19: 0 | O19: 0 | Q19: 0
A20: T | B20: tool change | D20: =K39 -> 0 | I20: 0 | K20: 0 | M20: 0 | O20: 0 | Q20: 0
A21: C | B21: changeover | D21: =M39 -> 0 | I21: 0 | K21: 0 | M21: 0 | O21: 0 | Q21: 0
A22: O | B22: other planned dntm | D22: =O39 -> 0 | I22: 0 | K22: 0 | M22: 0 | O22: 0 | Q22: 0
A23: U | B23: unplanned dntm | D23: =Q39 -> 0 | I23: 0 | K23: 0 | M23: 0 | O23: 0 | Q23: 0
I24: =IF(H24="x",(G24-F24)*1440,0) -> 0 | K24: =IF(J24="x",(G24-F24)*1440,0) -> 0 | M24: =IF(L24="x",(G24-F24)*1440,0) -> 0 | O24: =IF(N24="x",(G24-F24)*1440,0) -> 0 | Q24: 0
I25: 0 | K25: 0 | M25: 0 | O25: 0 | Q25: 0
I26: 0 | K26: 0 | M26: 0 | O26: 0 | Q26: 0
I27: 0 | K27: 0 | M27: 0 | O27: 0 | Q27: 0
I28: 0 | K28: 0 | M28: 0 | O28: 0 | Q28: 0
I29: 0 | K29: 0 | M29: 0 | O29: 0 | Q29: 0
I30: 0 | K30: 0 | M30: 0 | O30: 0 | Q30: 0
I31: 0 | K31: 0 | M31: 0 | O31: 0 | Q31: 0
I32: 0 | K32: 0 | M32: 0 | O32: 0 | Q32: 0
I33: 0 | K33: 0 | M33: 0 | O33: 0 | Q33: 0
I34: 0 | K34: 0 | M34: 0 | O34: 0 | Q34: 0
I35: 0 | K35: 0 | M35: 0 | O35: 0 | Q35: 0
I36: 0 | K36: 0 | M36: 0 | O36: 0 | Q36: 0
I37: 0 | K37: 0 | M37: 0 | O37: 0 | Q37: 0
I38: 0 | K38: 0 | M38: 0 | O38: 0 | Q38: 0
I39: =SUM(I15:I38) -> 0 | K39: =SUM(K15:K38) -> 0 | M39: =SUM(M15:M38) -> 0 | O39: =SUM(O15:O38) -> 0 | Q39: =SUM(Q15:Q38) -> 0 | R39: =(G39-F39)*1440 -> 0 | T39: =((S39/R39))*60/1440 ->  | U39: =S39-(W39+X39) -> 0 | V39: =((U39/S39))*T39 ->  | Y39: =(X39/S39)*1000000 ->  | Z39: =(1-(Y39/1000000))*T39 -> 
S40: =SUM(S15:S39) -> 0 | U40: =SUM(U15:U39) -> 0 | W40: =SUM(W15:W39) -> 0
P41: # of minutes uptime: | R41: =R42-(D20+D21+D23) -> 0 | T41: % uptime: | U41: =IFERROR(R41/R42,"") ->  | W41: FTQ: | X41: =IFERROR(IF(F15="","",((S40-U40)/S40)*1000000),"") -> 
P42: Total Run Time: | R42: =SUM(R15:R38)-(D19+D22) -> 0 | W42: % Scrap: | X42: =IFERROR(IF(F15="","",((S40-(U40+W40))/S40)),"") -> 
L44: Comments: Document scrap/rework and downtime here

Sheet Process 27 - Actual Run Data
A1: Actual Run Data
B5: Supplier Name: | C5: =IF('Capacity Plan'!$F$3="","",'Capacity Plan'!$F$3) ->  | W5: Completed By:
B6: Process Name: | C6: =IF('Capacity Plan'!$D$47="","",'Capacity Plan'!$D$47) -> 
B7: Part Number: | C7: =IF('Capacity Plan'!$Q$3="","",'Capacity Plan'!$Q$3) -> 
R9: Target | S9: Actual | T9: Difference | V9: PLEASE PRINT HARD COPY FOR USE DURING RUN@RATE. COMPLETE BY FILLING IN THE HIGHLIGHTED COLUMNS ONLY. USE MILITARY (24:00 HR) TIME FORMAT.
B10: Run @ Rate Summary Data | J10: Time/part | R10: =IFERROR(IF(F15="","",'Capacity Plan'!L47/'Capacity Plan'!M47),"") ->  | S10: =IFERROR(IF(F15="","",3600/S11),"") ->  | T10: =IFERROR(IF(F15="","",R10-S10),"") -> 
J11: Pcs/Hour | R11: =IFERROR(IF(F15="","",60*60/R10),"") ->  | S11: =IFERROR(IF(F15="","",(S40*60/R41)),"") ->  | T11: =IFERROR(IF(F15="","",S11-R11),"") -> 
B13: Capacity Plan | F13: Start Time (hh:mm) | G13: Stop Time (hh:mm) | H13: Downtime Description | R13: Total Time | S13: Total # of Pcs. Run | T13: Pieces/ Hour | U13: Good Pieces | V13: Good Pcs/Hour | W13: Rework Total | X13: Scrap Total | Y13: % Scrap | Z13: Net Pcs/Hr (Good + Rework)
H14: B | J14: T | L14: C | N14: O | P14: U | T14: =IFERROR(IF(S14="","",((S14/R14))*60),"") ->  | V14: =IFERROR(IF(S14="","",((U14/S14))*T14),"") ->  | Y14: =IFERROR(IF(S14="","",X14/S14),"") ->  | Z14: =IFERROR(IF(S14="","",(1-(Y14/1000000))*T14),"") -> 
I15: =IF(H15="x",(G15-F15)*1440,0) -> 0 | K15: =IF(J15="x",(G15-F15)*1440,0) -> 0 | M15: =IF(L15="x",(G15-F15)*1440,0) -> 0 | O15: =IF(N15="x",(G15-F15)*1440,0) -> 0 | Q15: =IF(P15="x",(G15-F15)*1440,0) -> 0 | R15: =IF(ISBLANK(F15),"",IF(G15>=F15,(G15-F15)*1440,(1+G15-F15)*1440)) ->  | T15: =IFERROR(IF(S15="","",((S15/R15))*60),"") ->  | U15: =IF(S15="","",S15-(W15+X15)) ->  | V15: =IFERROR(IF(S15="","",((U15/S15))*T15),"") ->  | Y15: =IFERROR(IF(S15="","",X15/S15),"") ->  | Z15: =IFERROR(IF(S15="","",(1-(Y15/1000000))*T15),"") -> 
A16: Description of Downtime: | I16: =IF(H16="x",(G16-F16)*1440,0) -> 0 | K16: =IF(J16="x",(G16-F16)*1440,0) -> 0 | M16: =IF(L16="x",(G16-F16)*1440,0) -> 0 | O16: =IF(N16="x",(G16-F16)*1440,0) -> 0 | Q16: =IF(P16="x",(G16-F16)*1440,0) -> 0 | R16: =IF(ISBLANK(F16),"",IF(G16>=F16,(G16-F16)*1440,(1+G16-F16)*1440)) ->  | T16: =IFERROR(IF(S16="","",((S16/R16))*60),"") ->  | U16: =IF(S16="","",S16-(W16+X16)) ->  | V16: =IFERROR(IF(S16="","",((U16/S16))*T16),"") ->  | Y16: =IFERROR(IF(S16="","",X16/S16),"") ->  | Z16: =IFERROR(IF(S16="","",(1-(Y16/1000000))*T16),"") -> 
I17: 0 | K17: 0 | M17: 0 | O17: 0 | Q17: 0
D18: Downtime | I18: 0 | K18: 0 | M18: 0 | O18: 0 | Q18: 0
A19: B | B19: breaks/lunch | D19: =I39 -> 0 | I19: 0 | K19: 0 | M19: 0 | O19: 0 | Q19: 0
A20: T | B20: tool change | D20: =K39 -> 0 | I20: 0 | K20: 0 | M20: 0 | O20: 0 | Q20: 0
A21: C | B21: changeover | D21: =M39 -> 0 | I21: 0 | K21: 0 | M21: 0 | O21: 0 | Q21: 0
A22: O | B22: other planned dntm | D22: =O39 -> 0 | I22: 0 | K22: 0 | M22: 0 | O22: 0 | Q22: 0
A23: U | B23: unplanned dntm | D23: =Q39 -> 0 | I23: 0 | K23: 0 | M23: 0 | O23: 0 | Q23: 0
I24: =IF(H24="x",(G24-F24)*1440,0) -> 0 | K24: =IF(J24="x",(G24-F24)*1440,0) -> 0 | M24: =IF(L24="x",(G24-F24)*1440,0) -> 0 | O24: =IF(N24="x",(G24-F24)*1440,0) -> 0 | Q24: 0
I25: 0 | K25: 0 | M25: 0 | O25: 0 | Q25: 0
I26: 0 | K26: 0 | M26: 0 | O26: 0 | Q26: 0
I27: 0 | K27: 0 | M27: 0 | O27: 0 | Q27: 0
I28: 0 | K28: 0 | M28: 0 | O28: 0 | Q28: 0
I29: 0 | K29: 0 | M29: 0 | O29: 0 | Q29: 0
I30: 0 | K30: 0 | M30: 0 | O30: 0 | Q30: 0
I31: 0 | K31: 0 | M31: 0 | O31: 0 | Q31: 0
I32: 0 | K32: 0 | M32: 0 | O32: 0 | Q32: 0
I33: 0 | K33: 0 | M33: 0 | O33: 0 | Q33: 0
I34: 0 | K34: 0 | M34: 0 | O34: 0 | Q34: 0
I35: 0 | K35: 0 | M35: 0 | O35: 0 | Q35: 0
I36: 0 | K36: 0 | M36: 0 | O36: 0 | Q36: 0
I37: 0 | K37: 0 | M37: 0 | O37: 0 | Q37: 0
I38: 0 | K38: 0 | M38: 0 | O38: 0 | Q38: 0
I39: =SUM(I15:I38) -> 0 | K39: =SUM(K15:K38) -> 0 | M39: =SUM(M15:M38) -> 0 | O39: =SUM(O15:O38) -> 0 | Q39: =SUM(Q15:Q38) -> 0 | R39: =(G39-F39)*1440 -> 0 | T39: =((S39/R39))*60/1440 ->  | U39: =S39-(W39+X39) -> 0 | V39: =((U39/S39))*T39 ->  | Y39: =(X39/S39)*1000000 ->  | Z39: =(1-(Y39/1000000))*T39 -> 
S40: =SUM(S15:S39) -> 0 | U40: =SUM(U15:U39) -> 0 | W40: =SUM(W15:W39) -> 0
P41: # of minutes uptime: | R41: =R42-(D20+D21+D23) -> 0 | T41: % uptime: | U41: =IFERROR(R41/R42,"") ->  | W41: FTQ: | X41: =IFERROR(IF(F15="","",((S40-U40)/S40)*1000000),"") -> 
P42: Total Run Time: | R42: =SUM(R15:R38)-(D19+D22) -> 0 | W42: % Scrap: | X42: =IFERROR(IF(F15="","",((S40-(U40+W40))/S40)),"") -> 
L44: Comments: Document scrap/rework and downtime here

Sheet Process 28 - Actual Run Data
A1: Actual Run Data
B5: Supplier Name: | C5: =IF('Capacity Plan'!$F$3="","",'Capacity Plan'!$F$3) ->  | W5: Completed By:
B6: Process Name: | C6: =IF('Capacity Plan'!$D$48="","",'Capacity Plan'!$D$48) -> 
B7: Part Number: | C7: =IF('Capacity Plan'!$Q$3="","",'Capacity Plan'!$Q$3) -> 
R9: Target | S9: Actual | T9: Difference | V9: PLEASE PRINT HARD COPY FOR USE DURING RUN@RATE. COMPLETE BY FILLING IN THE HIGHLIGHTED COLUMNS ONLY. USE MILITARY (24:00 HR) TIME FORMAT.
B10: Run @ Rate Summary Data | J10: Time/part | R10: =IFERROR(IF(F15="","",'Capacity Plan'!L48/'Capacity Plan'!M48),"") ->  | S10: =IFERROR(IF(F15="","",3600/S11),"") ->  | T10: =IFERROR(IF(F15="","",R10-S10),"") -> 
J11: Pcs/Hour | R11: =IFERROR(IF(F15="","",60*60/R10),"") ->  | S11: =IFERROR(IF(F15="","",(S40*60/R41)),"") ->  | T11: =IFERROR(IF(F15="","",S11-R11),"") -> 
B13: Capacity Plan | F13: Start Time (hh:mm) | G13: Stop Time (hh:mm) | H13: Downtime Description | R13: Total Time | S13: Total # of Pcs. Run | T13: Pieces/ Hour | U13: Good Pieces | V13: Good Pcs/Hour | W13: Rework Total | X13: Scrap Total | Y13: % Scrap | Z13: Net Pcs/Hr (Good + Rework)
H14: B | J14: T | L14: C | N14: O | P14: U | T14: =IFERROR(IF(S14="","",((S14/R14))*60),"") ->  | V14: =IFERROR(IF(S14="","",((U14/S14))*T14),"") ->  | Y14: =IFERROR(IF(S14="","",X14/S14),"") ->  | Z14: =IFERROR(IF(S14="","",(1-(Y14/1000000))*T14),"") -> 
I15: =IF(H15="x",(G15-F15)*1440,0) -> 0 | K15: =IF(J15="x",(G15-F15)*1440,0) -> 0 | M15: =IF(L15="x",(G15-F15)*1440,0) -> 0 | O15: =IF(N15="x",(G15-F15)*1440,0) -> 0 | Q15: =IF(P15="x",(G15-F15)*1440,0) -> 0 | R15: =IF(ISBLANK(F15),"",IF(G15>=F15,(G15-F15)*1440,(1+G15-F15)*1440)) ->  | T15: =IFERROR(IF(S15="","",((S15/R15))*60),"") ->  | U15: =IF(S15="","",S15-(W15+X15)) ->  | V15: =IFERROR(IF(S15="","",((U15/S15))*T15),"") ->  | Y15: =IFERROR(IF(S15="","",X15/S15),"") ->  | Z15: =IFERROR(IF(S15="","",(1-(Y15/1000000))*T15),"") -> 
A16: Description of Downtime: | I16: =IF(H16="x",(G16-F16)*1440,0) -> 0 | K16: =IF(J16="x",(G16-F16)*1440,0) -> 0 | M16: =IF(L16="x",(G16-F16)*1440,0) -> 0 | O16: =IF(N16="x",(G16-F16)*1440,0) -> 0 | Q16: =IF(P16="x",(G16-F16)*1440,0) -> 0 | R16: =IF(ISBLANK(F16),"",IF(G16>=F16,(G16-F16)*1440,(1+G16-F16)*1440)) ->  | T16: =IFERROR(IF(S16="","",((S16/R16))*60),"") ->  | U16: =IF(S16="","",S16-(W16+X16)) ->  | V16: =IFERROR(IF(S16="","",((U16/S16))*T16),"") ->  | Y16: =IFERROR(IF(S16="","",X16/S16),"") ->  | Z16: =IFERROR(IF(S16="","",(1-(Y16/1000000))*T16),"") -> 
I17: 0 | K17: 0 | M17: 0 | O17: 0 | Q17: 0
D18: Downtime | I18: 0 | K18: 0 | M18: 0 | O18: 0 | Q18: 0
A19: B | B19: breaks/lunch | D19: =I39 -> 0 | I19: 0 | K19: 0 | M19: 0 | O19: 0 | Q19: 0
A20: T | B20: tool change | D20: =K39 -> 0 | I20: 0 | K20: 0 | M20: 0 | O20: 0 | Q20: 0
A21: C | B21: changeover | D21: =M39 -> 0 | I21: 0 | K21: 0 | M21: 0 | O21: 0 | Q21: 0
A22: O | B22: other planned dntm | D22: =O39 -> 0 | I22: 0 | K22: 0 | M22: 0 | O22: 0 | Q22: 0
A23: U | B23: unplanned dntm | D23: =Q39 -> 0 | I23: 0 | K23: 0 | M23: 0 | O23: 0 | Q23: 0
I24: =IF(H24="x",(G24-F24)*1440,0) -> 0 | K24: =IF(J24="x",(G24-F24)*1440,0) -> 0 | M24: =IF(L24="x",(G24-F24)*1440,0) -> 0 | O24: =IF(N24="x",(G24-F24)*1440,0) -> 0 | Q24: 0
I25: 0 | K25: 0 | M25: 0 | O25: 0 | Q25: 0
I26: 0 | K26: 0 | M26: 0 | O26: 0 | Q26: 0
I27: 0 | K27: 0 | M27: 0 | O27: 0 | Q27: 0
I28: 0 | K28: 0 | M28: 0 | O28: 0 | Q28: 0
I29: 0 | K29: 0 | M29: 0 | O29: 0 | Q29: 0
I30: 0 | K30: 0 | M30: 0 | O30: 0 | Q30: 0
I31: 0 | K31: 0 | M31: 0 | O31: 0 | Q31: 0
I32: 0 | K32: 0 | M32: 0 | O32: 0 | Q32: 0
I33: 0 | K33: 0 | M33: 0 | O33: 0 | Q33: 0
I34: 0 | K34: 0 | M34: 0 | O34: 0 | Q34: 0
I35: 0 | K35: 0 | M35: 0 | O35: 0 | Q35: 0
I36: 0 | K36: 0 | M36: 0 | O36: 0 | Q36: 0
I37: 0 | K37: 0 | M37: 0 | O37: 0 | Q37: 0
I38: 0 | K38: 0 | M38: 0 | O38: 0 | Q38: 0
I39: =SUM(I15:I38) -> 0 | K39: =SUM(K15:K38) -> 0 | M39: =SUM(M15:M38) -> 0 | O39: =SUM(O15:O38) -> 0 | Q39: =SUM(Q15:Q38) -> 0 | R39: =(G39-F39)*1440 -> 0 | T39: =((S39/R39))*60/1440 ->  | U39: =S39-(W39+X39) -> 0 | V39: =((U39/S39))*T39 ->  | Y39: =(X39/S39)*1000000 ->  | Z39: =(1-(Y39/1000000))*T39 -> 
S40: =SUM(S15:S39) -> 0 | U40: =SUM(U15:U39) -> 0 | W40: =SUM(W15:W39) -> 0
P41: # of minutes uptime: | R41: =R42-(D20+D21+D23) -> 0 | T41: % uptime: | U41: =IFERROR(R41/R42,"") ->  | W41: FTQ: | X41: =IFERROR(IF(F15="","",((S40-U40)/S40)*1000000),"") -> 
P42: Total Run Time: | R42: =SUM(R15:R38)-(D19+D22) -> 0 | W42: % Scrap: | X42: =IFERROR(IF(F15="","",((S40-(U40+W40))/S40)),"") -> 
L44: Comments: Document scrap/rework and downtime here

Sheet Process 29 - Actual Run Data
A1: Actual Run Data
B5: Supplier Name: | C5: =IF('Capacity Plan'!$F$3="","",'Capacity Plan'!$F$3) ->  | W5: Completed By:
B6: Process Name: | C6: =IF('Capacity Plan'!$D$49="","",'Capacity Plan'!$D$49) -> 
B7: Part Number: | C7: =IF('Capacity Plan'!$Q$3="","",'Capacity Plan'!$Q$3) -> 
R9: Target | S9: Actual | T9: Difference | V9: PLEASE PRINT HARD COPY FOR USE DURING RUN@RATE. COMPLETE BY FILLING IN THE HIGHLIGHTED COLUMNS ONLY. USE MILITARY (24:00 HR) TIME FORMAT.
B10: Run @ Rate Summary Data | J10: Time/part | R10: =IFERROR(IF(F15="","",'Capacity Plan'!L49/'Capacity Plan'!M49),"") ->  | S10: =IFERROR(IF(F15="","",3600/S11),"") ->  | T10: =IFERROR(IF(F15="","",R10-S10),"") -> 
J11: Pcs/Hour | R11: =IFERROR(IF(F15="","",60*60/R10),"") ->  | S11: =IFERROR(IF(F15="","",(S40*60/R41)),"") ->  | T11: =IFERROR(IF(F15="","",S11-R11),"") -> 
B13: Capacity Plan | F13: Start Time (hh:mm) | G13: Stop Time (hh:mm) | H13: Downtime Description | R13: Total Time | S13: Total # of Pcs. Run | T13: Pieces/ Hour | U13: Good Pieces | V13: Good Pcs/Hour | W13: Rework Total | X13: Scrap Total | Y13: % Scrap | Z13: Net Pcs/Hr (Good + Rework)
H14: B | J14: T | L14: C | N14: O | P14: U | T14: =IFERROR(IF(S14="","",((S14/R14))*60),"") ->  | V14: =IFERROR(IF(S14="","",((U14/S14))*T14),"") ->  | Y14: =IFERROR(IF(S14="","",X14/S14),"") ->  | Z14: =IFERROR(IF(S14="","",(1-(Y14/1000000))*T14),"") -> 
I15: =IF(H15="x",(G15-F15)*1440,0) -> 00:00:00 | K15: =IF(J15="x",(G15-F15)*1440,0) -> 00:00:00 | M15: =IF(L15="x",(G15-F15)*1440,0) -> 00:00:00 | O15: =IF(N15="x",(G15-F15)*1440,0) -> 00:00:00 | Q15: =IF(P15="x",(G15-F15)*1440,0) -> 0 | R15: =IF(ISBLANK(F15),"",IF(G15>=F15,(G15-F15)*1440,(1+G15-F15)*1440)) ->  | T15: =IFERROR(IF(S15="","",((S15/R15))*60),"") ->  | U15: =IF(S15="","",S15-(W15+X15)) ->  | V15: =IFERROR(IF(S15="","",((U15/S15))*T15),"") ->  | Y15: =IFERROR(IF(S15="","",X15/S15),"") ->  | Z15: =IFERROR(IF(S15="","",(1-(Y15/1000000))*T15),"") -> 
A16: Description of Downtime: | I16: =IF(H16="x",(G16-F16)*1440,0) -> 00:00:00 | K16: =IF(J16="x",(G16-F16)*1440,0) -> 00:00:00 | M16: =IF(L16="x",(G16-F16)*1440,0) -> 00:00:00 | O16: =IF(N16="x",(G16-F16)*1440,0) -> 00:00:00 | Q16: =IF(P16="x",(G16-F16)*1440,0) -> 0 | R16: =IF(ISBLANK(F16),"",IF(G16>=F16,(G16-F16)*1440,(1+G16-F16)*1440)) ->  | T16: =IFERROR(IF(S16="","",((S16/R16))*60),"") ->  | U16: =IF(S16="","",S16-(W16+X16)) ->  | V16: =IFERROR(IF(S16="","",((U16/S16))*T16),"") ->  | Y16: =IFERROR(IF(S16="","",X16/S16),"") ->  | Z16: =IFERROR(IF(S16="","",(1-(Y16/1000000))*T16),"") -> 
I17: 00:00:00 | K17: 00:00:00 | M17: 00:00:00 | O17: 00:00:00 | Q17: 0
D18: Downtime | I18: 00:00:00 | K18: 00:00:00 | M18: 00:00:00 | O18: 00:00:00 | Q18: 0
A19: B | B19: breaks/lunch | D19: =I39 -> 0 | I19: 00:00:00 | K19: 00:00:00 | M19: 00:00:00 | O19: 00:00:00 | Q19: 0
A20: T | B20: tool change | D20: =K39 -> 0 | I20: 00:00:00 | K20: 00:00:00 | M20: 00:00:00 | O20: 00:00:00 | Q20: 0
A21: C | B21: changeover | D21: =M39 -> 0 | I21: 00:00:00 | K21: 00:00:00 | M21: 00:00:00 | O21: 00:00:00 | Q21: 0
A22: O | B22: other planned dntm | D22: =O39 -> 0 | I22: 00:00:00 | K22: 00:00:00 | M22: 00:00:00 | O22: 00:00:00 | Q22: 0
A23: U | B23: unplanned dntm | D23: =Q39 -> 0 | I23: 00:00:00 | K23: 00:00:00 | M23: 00:00:00 | O23: 00:00:00 | Q23: 0
I24: =IF(H24="x",(G24-F24)*1440,0) -> 00:00:00 | K24: =IF(J24="x",(G24-F24)*1440,0) -> 00:00:00 | M24: =IF(L24="x",(G24-F24)*1440,0) -> 00:00:00 | O24: =IF(N24="x",(G24-F24)*1440,0) -> 00:00:00 | Q24: 0
I25: 00:00:00 | K25: 00:00:00 | M25: 00:00:00 | O25: 00:00:00 | Q25: 0
I26: 00:00:00 | K26: 00:00:00 | M26: 00:00:00 | O26: 00:00:00 | Q26: 0
I27: 00:00:00 | K27: 00:00:00 | M27: 00:00:00 | O27: 00:00:00 | Q27: 0
I28: 00:00:00 | K28: 00:00:00 | M28: 00:00:00 | O28: 00:00:00 | Q28: 0
I29: 00:00:00 | K29: 00:00:00 | M29: 00:00:00 | O29: 00:00:00 | Q29: 0
I30: 00:00:00 | K30: 00:00:00 | M30: 00:00:00 | O30: 00:00:00 | Q30: 0
I31: 00:00:00 | K31: 00:00:00 | M31: 00:00:00 | O31: 00:00:00 | Q31: 0
I32: 00:00:00 | K32: 00:00:00 | M32: 00:00:00 | O32: 00:00:00 | Q32: 0
I33: 00:00:00 | K33: 00:00:00 | M33: 00:00:00 | O33: 00:00:00 | Q33: 0
I34: 00:00:00 | K34: 00:00:00 | M34: 00:00:00 | O34: 00:00:00 | Q34: 0
I35: 00:00:00 | K35: 00:00:00 | M35: 00:00:00 | O35: 00:00:00 | Q35: 0
I36: 00:00:00 | K36: 00:00:00 | M36: 00:00:00 | O36: 00:00:00 | Q36: 0
I37: 00:00:00 | K37: 00:00:00 | M37: 00:00:00 | O37: 00:00:00 | Q37: 0
I38: 00:00:00 | K38: 00:00:00 | M38: 00:00:00 | O38: 00:00:00 | Q38: 0
I39: =SUM(I15:I38) -> 0 | K39: =SUM(K15:K38) -> 0 | M39: =SUM(M15:M38) -> 0 | O39: =SUM(O15:O38) -> 0 | Q39: =SUM(Q15:Q38) -> 0 | R39: =(G39-F39)*1440 -> 0 | T39: =((S39/R39))*60/1440 ->  | U39: =S39-(W39+X39) -> 0 | V39: =((U39/S39))*T39 ->  | Y39: =(X39/S39)*1000000 ->  | Z39: =(1-(Y39/1000000))*T39 -> 
S40: =SUM(S15:S39) -> 0 | U40: =SUM(U15:U39) -> 0 | W40: =SUM(W15:W39) -> 0
P41: # of minutes uptime: | R41: =R42-(D20+D21+D23) -> 0 | T41: % uptime: | U41: =IFERROR(R41/R42,"") ->  | W41: FTQ: | X41: =IFERROR(IF(F15="","",((S40-U40)/S40)*1000000),"") -> 
P42: Total Run Time: | R42: =SUM(R15:R38)-(D19+D22) -> 0 | W42: % Scrap: | X42: =IFERROR(IF(F15="","",((S40-(U40+W40))/S40)),"") -> 
L44: Comments: Document scrap/rework and downtime here

Sheet Process 30 - Actual Run Data
A1: Actual Run Data
B5: Supplier Name: | C5: =IF('Capacity Plan'!$F$3="","",'Capacity Plan'!$F$3) ->  | W5: Completed By:
B6: Process Name: | C6: =IF('Capacity Plan'!$D$50="","",'Capacity Plan'!$D$50) -> 
B7: Part Number: | C7: =IF('Capacity Plan'!$Q$3="","",'Capacity Plan'!$Q$3) -> 
R9: Target | S9: Actual | T9: Difference | V9: PLEASE PRINT HARD COPY FOR USE DURING RUN@RATE. COMPLETE BY FILLING IN THE HIGHLIGHTED COLUMNS ONLY. USE MILITARY (24:00 HR) TIME FORMAT.
B10: Run @ Rate Summary Data | J10: Time/part | R10: =IFERROR(IF(F15="","",'Capacity Plan'!L50/'Capacity Plan'!M50),"") ->  | S10: =IFERROR(IF(F15="","",3600/S11),"") ->  | T10: =IFERROR(IF(F15="","",R10-S10),"") -> 
J11: Pcs/Hour | R11: =IFERROR(IF(F15="","",60*60/R10),"") ->  | S11: =IFERROR(IF(F15="","",(S40*60/R41)),"") ->  | T11: =IFERROR(IF(F15="","",S11-R11),"") -> 
B13: Capacity Plan | F13: Start Time (hh:mm) | G13: Stop Time (hh:mm) | H13: Downtime Description | R13: Total Time | S13: Total # of Pcs. Run | T13: Pieces/ Hour | U13: Good Pieces | V13: Good Pcs/Hour | W13: Rework Total | X13: Scrap Total | Y13: % Scrap | Z13: Net Pcs/Hr (Good + Rework)
H14: B | J14: T | L14: C | N14: O | P14: U | T14: =IFERROR(IF(S14="","",((S14/R14))*60),"") ->  | V14: =IFERROR(IF(S14="","",((U14/S14))*T14),"") ->  | Y14: =IFERROR(IF(S14="","",X14/S14),"") ->  | Z14: =IFERROR(IF(S14="","",(1-(Y14/1000000))*T14),"") -> 
I15: =IF(H15="x",(G15-F15)*1440,0) -> 00:00:00 | K15: =IF(J15="x",(G15-F15)*1440,0) -> 00:00:00 | M15: =IF(L15="x",(G15-F15)*1440,0) -> 00:00:00 | O15: =IF(N15="x",(G15-F15)*1440,0) -> 00:00:00 | Q15: =IF(P15="x",(G15-F15)*1440,0) -> 0 | R15: =IF(ISBLANK(F15),"",IF(G15>=F15,(G15-F15)*1440,(1+G15-F15)*1440)) ->  | T15: =IFERROR(IF(S15="","",((S15/R15))*60),"") ->  | U15: =IF(S15="","",S15-(W15+X15)) ->  | V15: =IFERROR(IF(S15="","",((U15/S15))*T15),"") ->  | Y15: =IFERROR(IF(S15="","",X15/S15),"") ->  | Z15: =IFERROR(IF(S15="","",(1-(Y15/1000000))*T15),"") -> 
A16: Description of Downtime: | I16: =IF(H16="x",(G16-F16)*1440,0) -> 00:00:00 | K16: =IF(J16="x",(G16-F16)*1440,0) -> 00:00:00 | M16: =IF(L16="x",(G16-F16)*1440,0) -> 00:00:00 | O16: =IF(N16="x",(G16-F16)*1440,0) -> 00:00:00 | Q16: =IF(P16="x",(G16-F16)*1440,0) -> 0 | R16: =IF(ISBLANK(F16),"",IF(G16>=F16,(G16-F16)*1440,(1+G16-F16)*1440)) ->  | T16: =IFERROR(IF(S16="","",((S16/R16))*60),"") ->  | U16: =IF(S16="","",S16-(W16+X16)) ->  | V16: =IFERROR(IF(S16="","",((U16/S16))*T16),"") ->  | Y16: =IFERROR(IF(S16="","",X16/S16),"") ->  | Z16: =IFERROR(IF(S16="","",(1-(Y16/1000000))*T16),"") -> 
I17: 00:00:00 | K17: 00:00:00 | M17: 00:00:00 | O17: 00:00:00 | Q17: 0
D18: Downtime | I18: 00:00:00 | K18: 00:00:00 | M18: 00:00:00 | O18: 00:00:00 | Q18: 0
A19: B | B19: breaks/lunch | D19: =I39 -> 0 | I19: 00:00:00 | K19: 00:00:00 | M19: 00:00:00 | O19: 00:00:00 | Q19: 0
A20: T | B20: tool change | D20: =K39 -> 0 | I20: 00:00:00 | K20: 00:00:00 | M20: 00:00:00 | O20: 00:00:00 | Q20: 0
A21: C | B21: changeover | D21: =M39 -> 0 | I21: 00:00:00 | K21: 00:00:00 | M21: 00:00:00 | O21: 00:00:00 | Q21: 0
A22: O | B22: other planned dntm | D22: =O39 -> 0 | I22: 00:00:00 | K22: 00:00:00 | M22: 00:00:00 | O22: 00:00:00 | Q22: 0
A23: U | B23: unplanned dntm | D23: =Q39 -> 0 | I23: 00:00:00 | K23: 00:00:00 | M23: 00:00:00 | O23: 00:00:00 | Q23: 0
I24: =IF(H24="x",(G24-F24)*1440,0) -> 00:00:00 | K24: =IF(J24="x",(G24-F24)*1440,0) -> 00:00:00 | M24: =IF(L24="x",(G24-F24)*1440,0) -> 00:00:00 | O24: =IF(N24="x",(G24-F24)*1440,0) -> 00:00:00 | Q24: 0
I25: 00:00:00 | K25: 00:00:00 | M25: 00:00:00 | O25: 00:00:00 | Q25: 0
I26: 00:00:00 | K26: 00:00:00 | M26: 00:00:00 | O26: 00:00:00 | Q26: 0
I27: 00:00:00 | K27: 00:00:00 | M27: 00:00:00 | O27: 00:00:00 | Q27: 0
I28: 00:00:00 | K28: 00:00:00 | M28: 00:00:00 | O28: 00:00:00 | Q28: 0
I29: 00:00:00 | K29: 00:00:00 | M29: 00:00:00 | O29: 00:00:00 | Q29: 0
I30: 00:00:00 | K30: 00:00:00 | M30: 00:00:00 | O30: 00:00:00 | Q30: 0
I31: 00:00:00 | K31: 00:00:00 | M31: 00:00:00 | O31: 00:00:00 | Q31: 0
I32: 00:00:00 | K32: 00:00:00 | M32: 00:00:00 | O32: 00:00:00 | Q32: 0
I33: 00:00:00 | K33: 00:00:00 | M33: 00:00:00 | O33: 00:00:00 | Q33: 0
I34: 00:00:00 | K34: 00:00:00 | M34: 00:00:00 | O34: 00:00:00 | Q34: 0
I35: 00:00:00 | K35: 00:00:00 | M35: 00:00:00 | O35: 00:00:00 | Q35: 0
I36: 00:00:00 | K36: 00:00:00 | M36: 00:00:00 | O36: 00:00:00 | Q36: 0
I37: 00:00:00 | K37: 00:00:00 | M37: 00:00:00 | O37: 00:00:00 | Q37: 0
I38: 00:00:00 | K38: 00:00:00 | M38: 00:00:00 | O38: 00:00:00 | Q38: 0
I39: =SUM(I15:I38) -> 0 | K39: =SUM(K15:K38) -> 0 | M39: =SUM(M15:M38) -> 0 | O39: =SUM(O15:O38) -> 0 | Q39: =SUM(Q15:Q38) -> 0 | R39: =(G39-F39)*1440 -> 0 | T39: =((S39/R39))*60/1440 ->  | U39: =S39-(W39+X39) -> 0 | V39: =((U39/S39))*T39 ->  | Y39: =(X39/S39)*1000000 ->  | Z39: =(1-(Y39/1000000))*T39 -> 
S40: =SUM(S15:S39) -> 0 | U40: =SUM(U15:U39) -> 0 | W40: =SUM(W15:W39) -> 0
P41: # of minutes uptime: | R41: =R42-(D20+D21+D23) -> 0 | T41: % uptime: | U41: =IFERROR(R41/R42,"") ->  | W41: FTQ: | X41: =IFERROR(IF(F15="","",((S40-U40)/S40)*1000000),"") -> 
P42: Total Run Time: | R42: =SUM(R15:R38)-(D19+D22) -> 0 | W42: % Scrap: | X42: =IFERROR(IF(F15="","",((S40-(U40+W40))/S40)),"") -> 
L44: Comments: Document scrap/rework and downtime here

Sheet Run @ Rate Summary Old (hidden)
B5: Supplier Name: | G5: 0
B6: Supplier Duns Code: | F6: Supplier Duns Code: | G6: 0
B7: Plant (Mfg) Location: | G7: 0 | V7: Nexteer Part Number:
V8: Nexteer Part Name:
B9: Supplier Contact: | V9: Revision Level:
B10: Phone: | V10: Nexteer Program:
D12: Nexteer Monitored: | Z12: Production days at Nexteer (days/yr): | AB12: ='Capacity Plan'!S9 -> 240
D13: Supplier Monitored: | Z13: Production days at Supplier (days/yr): | AB13: ='Capacity Plan'!S10 -> 0
E14: Duration: | K14: Actual Run@Rate Completion Date:
Z15: Quoted Tool Capacity (QTC): | AB15: ='Capacity Plan'!S12 -> 0
A18: Number of Identical Machines | B18: Op Number | C18: Process Name: List each separate production line or machine | H18: Operators | I18: shifts / day | J18: hours / shift | K18: days / wk | L18: Planned Cycle Time (sec) | M18: parts / cycle | N18: Daily Process Capacity | O18: Scheduled breaks & lunch during run (min) | P18: Planned Tool change time during run (min) | Q18: Planned Changeover time during run (min) | R18: Other planned downtime per Shift (min) | S18: Historical Unscheduled downtime per shift (min) | T18: % up time | U18: % scrap at this process operation | V18: % scrap parts per operation | W18: Sum of all down stream operations scrap rate %'s | X18: Percentage of total parts that are good for operation | Y18: % scrap at this process & Downstream Processes | Z18: Actual Daily Capacity | AA18: Machine loading allocated for other parts | AB18: Hours per week allocated for this part | AC18: Daily Capacity allocated to this part | AD18: Amount of parts required to reach QTC including scrap | AE18: Weekly Capacity Allocated to this Part | AF18: Annual Cay | AG18: Daily QTC not including scrap | AH18: Overall required OEE | AI18: Weekly QTC | AJ18: QTC | AK18: Constraint on QTC? | AL18: 15% above Daily QTC | AM18: OEE For 15% Above QTC | AN18: 15% above Weekly QTC | AO18: 15% above QTC | AP18: Constraint on 15% above QTC? | AQ18: Net Good Parts / hour | AR18: Production time used for QTC (hrs/wk) | AS18: Production time used for 15% above QTC (hrs/wk)
A21: =COUNTIF($B$21:$B$50,B21) -> 30 | B21: =IFERROR('Capacity Plan'!B21,"") -> 0 | C21: 1 | D21: =IFERROR('Capacity Plan'!D21,"") -> 0 | H21: =IFERROR('Capacity Plan'!H21,"") -> 0 | I21: ='Capacity Plan'!I21 -> 0 | J21: ='Capacity Plan'!J21 -> 0 | K21: ='Capacity Plan'!K21 -> 0 | L21: =IFERROR(IF(D21=0,"",'Process 1 - Actual Run Data'!S$10*M$21),"") ->  | M21: =IF(D21=0,"",'Capacity Plan'!M21) ->  | N21: =IFERROR('Capacity Plan'!N21,"") ->  | O21: ='Process 1 - Actual Run Data'!D$19 -> 0 | P21: ='Process 1 - Actual Run Data'!D$20 -> 0 | Q21: ='Process 1 - Actual Run Data'!D$21 -> 0 | R21: =IF(J21=0,"",'Process 1 - Actual Run Data'!D$22) ->  | S21: =IF(J21=0,"",'Process 1 - Actual Run Data'!D$23) ->  | T21: ='Process 1 - Actual Run Data'!U$41 ->  | U21: =IF(D21=0,"",'Process 1 - Actual Run Data'!X$42) ->  | V21: =SUMIF(#REF!,#REF!,U$21:U$50)/#REF! ->  | W21: =IF(#REF!<#REF!,(SUMIF(#REF!,#REF!,V$21:V$50)/#REF!)+W22,W22) ->  | X21: =(1-SUMIF($C$21:$C$50,#REF!,$V$21:$V$50)/#REF!^2) ->  | Y21: 0 | Z21: =IFERROR(IF(D21=0,"",N21*T21*(1-Y21)),"") ->  | AA21: =IF(D21=0,"",'Capacity Plan'!Z21) ->  | AB21: 110 | AC21: =IFERROR(IF(J21="","",(IF(K21<=5,(AB21*AQ21)/5,(AB21*AQ21)/K21))),"") ->  | AD21: ='Capacity Plan'!#REF! ->  | AE21: ='Capacity Plan'!AG21 ->  | AF21: =IF(D21=0,"",AC21*AC$15) ->  | AG21: =IF(D21=0,"",AJ21/$AB$12) ->  | AH21: =IFERROR(ROUNDUP(AG21/AC21,4),"") ->  | AI21: =IFERROR(IF(K21="","",AG21*5),"") ->  | AJ21: =IF(D21=0,"",'Capacity Plan'!AJ21) ->  | AK21: =IF(D21=0,"",IF(AC21>AG21,"NO","YES")) ->  | AL21: =IF(D21=0,"", 'Capacity Plan'!AM21) ->  | AM21: =IFERROR(AL21/AB21,"") ->  | AN21: =IFERROR(IF(K21="","",AL21*5),"") ->  | AO21: =IF(D21=0,"",'Capacity Plan'!AO21) ->  | AP21: =IF(D21=0,"",IF(AC21>AL21,"NO","YES")) ->  | AQ21: =IFERROR(IF(J21="","",(3600/L21)*M21*(1-Y21)*T21),"") ->  | AR21: =IFERROR(IF(J21="",0,(($AI21/$AQ21)/(1-$AA21))),"") ->  | AS21: =IFERROR(IF(K21="",0,(($AN21)/$AQ21)/(1-$AA21)),"") -> 
A22: 30 | B22: =IFERROR('Capacity Plan'!B22,"") -> 0 | C22: 2 | D22: =IFERROR('Capacity Plan'!D22,"") -> 0 | H22: =IFERROR('Capacity Plan'!H22,"") -> 0 | I22: ='Capacity Plan'!I22 -> 0 | J22: ='Capacity Plan'!J22 -> 0 | K22: ='Capacity Plan'!K22 -> 0 | L22: =IFERROR(IF(D22=0,"",'Process 2 - Actual Run Data'!S$10*M$21),"") ->  | M22: =IF(D22=0,"",'Capacity Plan'!M22) ->  | N22: =IFERROR('Capacity Plan'!N22,"") ->  | O22: ='Process 2 - Actual Run Data'!D$19 -> 0 | P22: ='Process 2 - Actual Run Data'!D$20 -> 0 | Q22: ='Process 2 - Actual Run Data'!D$21 -> 0 | R22: =IF(J22=0,"",'Process 2 - Actual Run Data'!D$22) ->  | S22: =IF(J22=0,"",'Process 2 - Actual Run Data'!D$23) ->  | T22: ='Process 2 - Actual Run Data'!U$41 ->  | U22: =IF(D22=0,"",'Process 2 - Actual Run Data'!X$42) ->  | V22: =SUMIF(#REF!,#REF!,U$21:U$50)/#REF! ->  | W22: =IF(#REF!<#REF!,(SUMIF(#REF!,#REF!,V$21:V$50)/#REF!)+W23,W23) ->  | X22: =(1-SUMIF($C$21:$C$50,#REF!,$V$21:$V$50)/#REF!^2) ->  | AA22: =IF(D22=0,"",'Capacity Plan'!Z22) ->  | AB22: 110 | AD22: ='Capacity Plan'!#REF! ->  | AE22: ='Capacity Plan'!AG22 ->  | AJ22: =IF(D22=0,"",'Capacity Plan'!AJ22) ->  | AL22: =IF(D22=0,"", 'Capacity Plan'!AM22) ->  | AM22: =IFERROR(AL22/AB22,"") ->  | AO22: =IF(D22=0,"",'Capacity Plan'!AO22) -> 
A23: =COUNTIF($B$21:$B$50,B23) -> 30 | B23: =IFERROR('Capacity Plan'!B23,"") -> 0 | C23: 3 | D23: =IFERROR('Capacity Plan'!D23,"") -> 0 | H23: =IFERROR('Capacity Plan'!H23,"") -> 0 | I23: ='Capacity Plan'!I23 -> 0 | J23: ='Capacity Plan'!J23 -> 0 | K23: ='Capacity Plan'!K23 -> 0 | L23: =IFERROR(IF(D23=0,"",'Process 3 - Actual Run Data'!S$10*M$21),"") ->  | M23: =IF(D23=0,"",'Capacity Plan'!M23) ->  | N23: =IFERROR('Capacity Plan'!N23,"") ->  | O23: ='Process 3 - Actual Run Data'!D$19 -> 0 | P23: ='Process 3 - Actual Run Data'!D$20 -> 0 | Q23: ='Process 3 - Actual Run Data'!D$21 -> 0 | R23: =IF(J23=0,"",'Process 3 - Actual Run Data'!D$22) ->  | S23: =IF(J23=0,"",'Process 3 - Actual Run Data'!D$23) ->  | T23: ='Process 3 - Actual Run Data'!U$41 ->  | U23: =IF(D23=0,"",'Process 3 - Actual Run Data'!X$42) ->  | V23: =SUMIF(#REF!,#REF!,U$21:U$50)/#REF! ->  | W23: =IF(#REF!<#REF!,(SUMIF(#REF!,#REF!,V$21:V$50)/#REF!)+W24,W24) ->  | X23: =(1-SUMIF($C$21:$C$50,#REF!,$V$21:$V$50)/#REF!^2) ->  | AA23: =IF(D23=0,"",'Capacity Plan'!Z23) ->  | AB23: 66 | AD23: ='Capacity Plan'!#REF! ->  | AE23: ='Capacity Plan'!AG23 ->  | AJ23: =IF(D23=0,"",'Capacity Plan'!AJ23) ->  | AL23: =IF(D23=0,"", 'Capacity Plan'!AM23) ->  | AO23: =IF(D23=0,"",'Capacity Plan'!AO23) -> 
A24: 30 | B24: =IFERROR('Capacity Plan'!B24,"") -> 0 | C24: 4 | D24: =IFERROR('Capacity Plan'!D24,"") -> 0 | H24: =IFERROR('Capacity Plan'!H24,"") -> 0 | I24: ='Capacity Plan'!I24 -> 0 | J24: ='Capacity Plan'!J24 -> 0 | K24: ='Capacity Plan'!K24 -> 0 | L24: =IFERROR(IF(D24=0,"",'Process 4 - Actual Run Data'!S$10*M$21),"") ->  | M24: =IF(D24=0,"",'Capacity Plan'!M24) ->  | N24: =IFERROR('Capacity Plan'!N24,"") ->  | O24: ='Process 4 - Actual Run Data'!D$19 -> 0 | P24: ='Process 4 - Actual Run Data'!D$20 -> 0 | Q24: ='Process 4 - Actual Run Data'!D$21 -> 0 | R24: =IF(J24=0,"",'Process 4 - Actual Run Data'!D$22) ->  | S24: =IF(J24=0,"",'Process 4 - Actual Run Data'!D$23) ->  | T24: ='Process 4 - Actual Run Data'!U$41 ->  | U24: =IF(D24=0,"",'Process 4 - Actual Run Data'!X$42) ->  | V24: =SUMIF(#REF!,#REF!,U$21:U$50)/#REF! ->  | W24: =IF(#REF!<#REF!,(SUMIF(#REF!,#REF!,V$21:V$50)/#REF!)+W25,W25) ->  | X24: =ROUNDDOWN(1-SUMIF($C$21:$C$50,#REF!,$V$21:$V$50)/#REF!^2,3) ->  | AA24: =IF(D24=0,"",'Capacity Plan'!Z24) ->  | AB24: 88 | AD24: ='Capacity Plan'!#REF! ->  | AE24: ='Capacity Plan'!AG24 ->  | AJ24: =IF(D24=0,"",'Capacity Plan'!AJ24) ->  | AL24: =IF(D24=0,"", 'Capacity Plan'!AM24) ->  | AO24: =IF(D24=0,"",'Capacity Plan'!AO24) -> 
A25: 30 | B25: =IFERROR('Capacity Plan'!B25,"") -> 0 | C25: 5 | D25: =IFERROR('Capacity Plan'!D25,"") -> 0 | H25: =IFERROR('Capacity Plan'!H25,"") -> 0 | I25: ='Capacity Plan'!I25 -> 0 | J25: ='Capacity Plan'!J25 -> 0 | K25: ='Capacity Plan'!K25 -> 0 | L25: =IFERROR(IF(D25=0,"",'Process 5 - Actual Run Data'!S$10*M$21),"") ->  | M25: =IF(D25=0,"",'Capacity Plan'!M25) ->  | N25: =IFERROR('Capacity Plan'!N25,"") ->  | O25: ='Process 5 - Actual Run Data'!D$19 -> 0 | P25: ='Process 5 - Actual Run Data'!D$20 -> 0 | Q25: ='Process 5 - Actual Run Data'!D$21 -> 0 | R25: =IF(J25=0,"",'Process 5 - Actual Run Data'!D$22) ->  | S25: =IF(J25=0,"",'Process 5 - Actual Run Data'!D$23) ->  | T25: ='Process 5 - Actual Run Data'!U$41 ->  | U25: =IF(D25=0,"",'Process 5 - Actual Run Data'!X$42) ->  | V25: =SUMIF(#REF!,#REF!,U$21:U$50)/#REF! ->  | W25: =IF(#REF!<#REF!,(SUMIF(#REF!,#REF!,V$21:V$50)/#REF!)+W26,W26) ->  | X25: =ROUNDDOWN(1-SUMIF($C$21:$C$50,#REF!,$V$21:$V$50)/#REF!^2,3) ->  | AA25: =IF(D25=0,"",'Capacity Plan'!Z25) ->  | AB25: 88 | AD25: ='Capacity Plan'!#REF! ->  | AE25: ='Capacity Plan'!AG25 ->  | AJ25: =IF(D25=0,"",'Capacity Plan'!AJ25) ->  | AL25: =IF(D25=0,"", 'Capacity Plan'!AM25) ->  | AO25: =IF(D25=0,"",'Capacity Plan'!AO25) -> 
A26: 30 | B26: =IFERROR('Capacity Plan'!B26,"") -> 0 | C26: 6 | D26: =IFERROR('Capacity Plan'!D26,"") -> 0 | H26: =IFERROR('Capacity Plan'!H26,"") -> 0 | I26: ='Capacity Plan'!I26 -> 0 | J26: ='Capacity Plan'!J26 -> 0 | K26: ='Capacity Plan'!K26 -> 0 | L26: =IFERROR(IF(D26=0,"",'Process 6 - Actual Run Data'!S$10*M$21),"") ->  | M26: =IF(D26=0,"",'Capacity Plan'!M26) ->  | N26: =IFERROR('Capacity Plan'!N26,"") ->  | O26: ='Process 6 - Actual Run Data'!D$19 -> 0 | P26: ='Process 6 - Actual Run Data'!D$20 -> 0 | Q26: ='Process 6 - Actual Run Data'!D$21 -> 0 | R26: =IF(J26=0,"",'Process 6 - Actual Run Data'!D$22) ->  | S26: =IF(J26=0,"",'Process 6 - Actual Run Data'!D$23) ->  | T26: ='Process 6 - Actual Run Data'!U$41 ->  | U26: =IF(D26=0,"",'Process 6 - Actual Run Data'!X$42) ->  | V26: =SUMIF(#REF!,#REF!,U$21:U$50)/#REF! ->  | W26: =IF(#REF!<#REF!,(SUMIF(#REF!,#REF!,V$21:V$50)/#REF!)+W27,W27) ->  | X26: =ROUNDDOWN(1-SUMIF($C$21:$C$50,#REF!,$V$21:$V$50)/#REF!^2,3) ->  | AA26: =IF(D26=0,"",'Capacity Plan'!Z26) ->  | AB26: 77 | AD26: ='Capacity Plan'!#REF! ->  | AE26: ='Capacity Plan'!AG26 ->  | AJ26: =IF(D26=0,"",'Capacity Plan'!AJ26) ->  | AL26: =IF(D26=0,"", 'Capacity Plan'!AM26) ->  | AO26: =IF(D26=0,"",'Capacity Plan'!AO26) -> 
A27: 30 | B27: =IFERROR('Capacity Plan'!B27,"") -> 0 | C27: 7 | D27: =IFERROR('Capacity Plan'!D27,"") -> 0 | H27: =IFERROR('Capacity Plan'!H27,"") -> 0 | I27: ='Capacity Plan'!I27 -> 0 | J27: ='Capacity Plan'!J27 -> 0 | K27: ='Capacity Plan'!K27 -> 0 | L27: =IFERROR(IF(D27=0,"",'Process 1 - Actual Run Data'!S$10*M$21),"") ->  | M27: =IF(D27=0,"",'Capacity Plan'!M27) ->  | N27: =IFERROR('Capacity Plan'!N27,"") ->  | O27: ='Process 7 - Actual Run Data'!D$19 -> 0 | P27: ='Process 1 - Actual Run Data'!D$20 -> 0 | Q27: ='Process 1 - Actual Run Data'!D$21 -> 0 | R27: =IF(J27=0,"",'Process 1 - Actual Run Data'!D$22) ->  | S27: =IF(J27=0,"",'Process 1 - Actual Run Data'!D$23) ->  | T27: ='Process 7 - Actual Run Data'!U$41 ->  | U27: =IF(D27=0,"",'Process 1 - Actual Run Data'!X$42) ->  | AA27: =IF(D27=0,"",'Capacity Plan'!Z27) ->  | AD27: ='Capacity Plan'!#REF! ->  | AE27: ='Capacity Plan'!AG27 ->  | AH27: =IFERROR(ROUNDUP(AG27/AE27,4),"") ->  | AO27: =IF(D27=0,"",'Capacity Plan'!AO27) -> 
A28: 30 | B28: =IFERROR('Capacity Plan'!B28,"") -> 0 | C28: 8 | D28: =IFERROR('Capacity Plan'!D28,"") -> 0 | H28: =IFERROR('Capacity Plan'!H28,"") -> 0 | I28: ='Capacity Plan'!I28 -> 0 | J28: ='Capacity Plan'!J28 -> 0 | K28: ='Capacity Plan'!K28 -> 0 | L28: =IFERROR(IF(D28=0,"",'Process 1 - Actual Run Data'!S$10*M$21),"") ->  | M28: =IF(D28=0,"",'Capacity Plan'!M28) ->  | N28: =IFERROR('Capacity Plan'!N28,"") ->  | O28: ='Process 1 - Actual Run Data'!D$19 -> 0 | P28: ='Process 1 - Actual Run Data'!D$20 -> 0 | Q28: ='Process 1 - Actual Run Data'!D$21 -> 0 | R28: =IF(J28=0,"",'Process 1 - Actual Run Data'!D$22) ->  | S28: =IF(J28=0,"",'Process 1 - Actual Run Data'!D$23) ->  | T28: ='Process 8 - Actual Run Data'!U$41 ->  | U28: =IF(D28=0,"",'Process 1 - Actual Run Data'!X$42) ->  | AA28: =IF(D28=0,"",'Capacity Plan'!Z28) ->  | AD28: ='Capacity Plan'!#REF! ->  | AE28: ='Capacity Plan'!AG28 ->  | AO28: =IF(D28=0,"",'Capacity Plan'!AO28) -> 
A29: 30 | B29: =IFERROR('Capacity Plan'!B29,"") -> 0 | C29: 9 | D29: =IFERROR('Capacity Plan'!D29,"") -> 0 | H29: =IFERROR('Capacity Plan'!H29,"") -> 0 | I29: ='Capacity Plan'!I29 -> 0 | J29: ='Capacity Plan'!J29 -> 0 | K29: ='Capacity Plan'!K29 -> 0 | L29: =IFERROR(IF(D29=0,"",'Process 1 - Actual Run Data'!S$10*M$21),"") ->  | M29: =IF(D29=0,"",'Capacity Plan'!M29) ->  | N29: =IFERROR('Capacity Plan'!N29,"") ->  | O29: ='Process 1 - Actual Run Data'!D$19 -> 0 | P29: ='Process 1 - Actual Run Data'!D$20 -> 0 | Q29: ='Process 1 - Actual Run Data'!D$21 -> 0 | R29: =IF(J29=0,"",'Process 1 - Actual Run Data'!D$22) ->  | S29: =IF(J29=0,"",'Process 1 - Actual Run Data'!D$23) ->  | T29: ='Process 9 - Actual Run Data'!U$41 ->  | U29: =IF(D29=0,"",'Process 1 - Actual Run Data'!X$42) ->  | AA29: =IF(D29=0,"",'Capacity Plan'!Z29) ->  | AD29: ='Capacity Plan'!#REF! ->  | AE29: ='Capacity Plan'!AG29 ->  | AO29: =IF(D29=0,"",'Capacity Plan'!AO29) -> 
A30: 30 | B30: =IFERROR('Capacity Plan'!B30,"") -> 0 | C30: 10 | D30: =IFERROR('Capacity Plan'!D30,"") -> 0 | H30: =IFERROR('Capacity Plan'!H30,"") -> 0 | I30: ='Capacity Plan'!I30 -> 0 | J30: ='Capacity Plan'!J30 -> 0 | K30: ='Capacity Plan'!K30 -> 0 | L30: =IFERROR(IF(D30=0,"",'Process 1 - Actual Run Data'!S$10*M$21),"") ->  | M30: =IF(D30=0,"",'Capacity Plan'!M30) ->  | N30: =IFERROR('Capacity Plan'!N30,"") ->  | O30: ='Process 1 - Actual Run Data'!D$19 -> 0 | P30: ='Process 1 - Actual Run Data'!D$20 -> 0 | Q30: ='Process 1 - Actual Run Data'!D$21 -> 0 | R30: =IF(J30=0,"",'Process 1 - Actual Run Data'!D$22) ->  | S30: =IF(J30=0,"",'Process 1 - Actual Run Data'!D$23) ->  | T30: ='Process 10 - Actual Run Data'!U$41 ->  | U30: =IF(D30=0,"",'Process 1 - Actual Run Data'!X$42) ->  | AA30: =IF(D30=0,"",'Capacity Plan'!Z30) ->  | AD30: ='Capacity Plan'!#REF! ->  | AE30: ='Capacity Plan'!AG30 ->  | AO30: =IF(D30=0,"",'Capacity Plan'!AO30) -> 
A31: 30 | B31: =IFERROR('Capacity Plan'!B31,"") -> 0 | C31: 11 | D31: =IFERROR('Capacity Plan'!D31,"") -> 0 | H31: =IFERROR('Capacity Plan'!H31,"") -> 0 | I31: ='Capacity Plan'!I31 -> 0 | J31: ='Capacity Plan'!J31 -> 0 | K31: ='Capacity Plan'!K31 -> 0 | L31: =IFERROR(IF(D31=0,"",'Process 1 - Actual Run Data'!S$10*M$21),"") ->  | M31: =IF(D31=0,"",'Capacity Plan'!M31) ->  | N31: =IFERROR('Capacity Plan'!N31,"") ->  | O31: ='Process 1 - Actual Run Data'!D$19 -> 0 | P31: ='Process 1 - Actual Run Data'!D$20 -> 0 | Q31: ='Process 1 - Actual Run Data'!D$21 -> 0 | R31: =IF(J31=0,"",'Process 1 - Actual Run Data'!D$22) ->  | S31: =IF(J31=0,"",'Process 1 - Actual Run Data'!D$23) ->  | T31: ='Process 11 - Actual Run Data'!U$41 ->  | U31: =IF(D31=0,"",'Process 1 - Actual Run Data'!X$42) ->  | AA31: =IF(D31=0,"",'Capacity Plan'!Z31) ->  | AD31: ='Capacity Plan'!#REF! ->  | AE31: ='Capacity Plan'!AG31 ->  | AO31: =IF(D31=0,"",'Capacity Plan'!AO31) -> 
A32: 30 | B32: =IFERROR('Capacity Plan'!B32,"") -> 0 | C32: 12 | D32: =IFERROR('Capacity Plan'!D32,"") -> 0 | H32: =IFERROR('Capacity Plan'!H32,"") -> 0 | I32: ='Capacity Plan'!I32 -> 0 | J32: ='Capacity Plan'!J32 -> 0 | K32: ='Capacity Plan'!K32 -> 0 | L32: =IFERROR(IF(D32=0,"",'Process 1 - Actual Run Data'!S$10*M$21),"") ->  | M32: =IF(D32=0,"",'Capacity Plan'!M32) ->  | N32: =IFERROR('Capacity Plan'!N32,"") ->  | O32: ='Process 1 - Actual Run Data'!D$19 -> 0 | P32: ='Process 1 - Actual Run Data'!D$20 -> 0 | Q32: ='Process 1 - Actual Run Data'!D$21 -> 0 | R32: =IF(J32=0,"",'Process 1 - Actual Run Data'!D$22) ->  | S32: =IF(J32=0,"",'Process 1 - Actual Run Data'!D$23) ->  | T32: ='Process 12 - Actual Run Data'!U$41 ->  | U32: =IF(D32=0,"",'Process 1 - Actual Run Data'!X$42) ->  | AA32: =IF(D32=0,"",'Capacity Plan'!Z32) ->  | AD32: ='Capacity Plan'!#REF! ->  | AE32: ='Capacity Plan'!AG32 ->  | AO32: =IF(D32=0,"",'Capacity Plan'!AO32) -> 
A33: 30 | B33: =IFERROR('Capacity Plan'!B33,"") -> 0 | C33: 13 | D33: =IFERROR('Capacity Plan'!D33,"") -> 0 | H33: =IFERROR('Capacity Plan'!H33,"") -> 0 | I33: ='Capacity Plan'!I33 -> 0 | J33: ='Capacity Plan'!J33 -> 0 | K33: ='Capacity Plan'!K33 -> 0 | L33: =IFERROR(IF(D33=0,"",'Process 1 - Actual Run Data'!S$10*M$21),"") ->  | M33: =IF(D33=0,"",'Capacity Plan'!M33) ->  | N33: =IFERROR('Capacity Plan'!N33,"") ->  | O33: ='Process 1 - Actual Run Data'!D$19 -> 0 | P33: ='Process 1 - Actual Run Data'!D$20 -> 0 | Q33: ='Process 1 - Actual Run Data'!D$21 -> 0 | R33: =IF(J33=0,"",'Process 1 - Actual Run Data'!D$22) ->  | S33: =IF(J33=0,"",'Process 1 - Actual Run Data'!D$23) ->  | T33: ='Process 13 - Actual Run Data'!U$41 ->  | U33: =IF(D33=0,"",'Process 1 - Actual Run Data'!X$42) ->  | AA33: =IF(D33=0,"",'Capacity Plan'!Z33) ->  | AD33: ='Capacity Plan'!#REF! ->  | AE33: ='Capacity Plan'!AG33 ->  | AO33: =IF(D33=0,"",'Capacity Plan'!AO33) -> 
A34: 30 | B34: =IFERROR('Capacity Plan'!B34,"") -> 0 | C34: 14 | D34: =IFERROR('Capacity Plan'!D34,"") -> 0 | H34: =IFERROR('Capacity Plan'!H34,"") -> 0 | I34: ='Capacity Plan'!I34 -> 0 | J34: ='Capacity Plan'!J34 -> 0 | K34: ='Capacity Plan'!K34 -> 0 | L34: =IFERROR(IF(D34=0,"",'Process 1 - Actual Run Data'!S$10*M$21),"") ->  | M34: =IF(D34=0,"",'Capacity Plan'!M34) ->  | N34: =IFERROR('Capacity Plan'!N34,"") ->  | O34: ='Process 1 - Actual Run Data'!D$19 -> 0 | P34: ='Process 1 - Actual Run Data'!D$20 -> 0 | Q34: ='Process 1 - Actual Run Data'!D$21 -> 0 | R34: =IF(J34=0,"",'Process 1 - Actual Run Data'!D$22) ->  | S34: =IF(J34=0,"",'Process 1 - Actual Run Data'!D$23) ->  | T34: ='Process 14 - Actual Run Data'!U$41 ->  | U34: =IF(D34=0,"",'Process 1 - Actual Run Data'!X$42) ->  | AA34: =IF(D34=0,"",'Capacity Plan'!Z34) ->  | AD34: ='Capacity Plan'!#REF! ->  | AE34: ='Capacity Plan'!AG34 ->  | AO34: =IF(D34=0,"",'Capacity Plan'!AO34) -> 
A35: 30 | B35: =IFERROR('Capacity Plan'!B35,"") -> 0 | C35: 15 | D35: =IFERROR('Capacity Plan'!D35,"") -> 0 | H35: =IFERROR('Capacity Plan'!H35,"") -> 0 | I35: ='Capacity Plan'!I35 -> 0 | J35: ='Capacity Plan'!J35 -> 0 | K35: ='Capacity Plan'!K35 -> 0 | L35: =IFERROR(IF(D35=0,"",'Process 1 - Actual Run Data'!S$10*M$21),"") ->  | M35: =IF(D35=0,"",'Capacity Plan'!M35) ->  | N35: =IFERROR('Capacity Plan'!N35,"") ->  | O35: ='Process 1 - Actual Run Data'!D$19 -> 0 | P35: ='Process 1 - Actual Run Data'!D$20 -> 0 | Q35: ='Process 1 - Actual Run Data'!D$21 -> 0 | R35: =IF(J35=0,"",'Process 1 - Actual Run Data'!D$22) ->  | S35: =IF(J35=0,"",'Process 1 - Actual Run Data'!D$23) ->  | T35: ='Process 15 - Actual Run Data'!U$41 ->  | U35: =IF(D35=0,"",'Process 1 - Actual Run Data'!X$42) ->  | AA35: =IF(D35=0,"",'Capacity Plan'!Z35) ->  | AD35: ='Capacity Plan'!#REF! ->  | AE35: ='Capacity Plan'!AG35 ->  | AO35: =IF(D35=0,"",'Capacity Plan'!AO35) -> 
A36: 30 | B36: =IFERROR('Capacity Plan'!B36,"") -> 0 | C36: 16 | D36: =IFERROR('Capacity Plan'!D36,"") -> 0 | H36: =IFERROR('Capacity Plan'!H36,"") -> 0 | I36: ='Capacity Plan'!I36 -> 0 | J36: ='Capacity Plan'!J36 -> 0 | K36: ='Capacity Plan'!K36 -> 0 | L36: =IFERROR(IF(D36=0,"",'Process 1 - Actual Run Data'!S$10*M$21),"") ->  | M36: =IF(D36=0,"",'Capacity Plan'!M36) ->  | N36: =IFERROR('Capacity Plan'!N36,"") ->  | O36: ='Process 1 - Actual Run Data'!D$19 -> 0 | P36: ='Process 1 - Actual Run Data'!D$20 -> 0 | Q36: ='Process 1 - Actual Run Data'!D$21 -> 0 | R36: =IF(J36=0,"",'Process 1 - Actual Run Data'!D$22) ->  | S36: =IF(J36=0,"",'Process 1 - Actual Run Data'!D$23) ->  | T36: ='Process 16 - Actual Run Data'!U$41 ->  | U36: =IF(D36=0,"",'Process 1 - Actual Run Data'!X$42) ->  | X36: =IF(1-SUMIF($C$21:$C$50,#REF!,$V$21:$V$50)/#REF!^2=1,"",1-SUMIF($C$21:$C$50,#REF!,$V$21:$V$50)/#REF!^2=1) ->  | AA36: =IF(D36=0,"",'Capacity Plan'!Z36) ->  | AD36: ='Capacity Plan'!#REF! ->  | AE36: ='Capacity Plan'!AG36 ->  | AO36: =IF(D36=0,"",'Capacity Plan'!AO36) -> 
A37: 30 | B37: =IFERROR('Capacity Plan'!B37,"") -> 0 | C37: 17 | D37: =IFERROR('Capacity Plan'!D37,"") -> 0 | H37: =IFERROR('Capacity Plan'!H37,"") -> 0 | I37: ='Capacity Plan'!I37 -> 0 | J37: ='Capacity Plan'!J37 -> 0 | K37: ='Capacity Plan'!K37 -> 0 | L37: =IFERROR(IF(D37=0,"",'Process 1 - Actual Run Data'!S$10*M$21),"") ->  | M37: =IF(D37=0,"",'Capacity Plan'!M37) ->  | N37: =IFERROR('Capacity Plan'!N37,"") ->  | O37: ='Process 1 - Actual Run Data'!D$19 -> 0 | P37: ='Process 1 - Actual Run Data'!D$20 -> 0 | Q37: ='Process 1 - Actual Run Data'!D$21 -> 0 | R37: =IF(J37=0,"",'Process 1 - Actual Run Data'!D$22) ->  | S37: =IF(J37=0,"",'Process 1 - Actual Run Data'!D$23) ->  | T37: ='Process 17 - Actual Run Data'!U$41 ->  | U37: =IF(D37=0,"",'Process 1 - Actual Run Data'!X$42) ->  | X37: =IF(1-SUMIF($C$21:$C$50,#REF!,$V$21:$V$50)/#REF!^2=1,"",1-SUMIF($C$21:$C$50,#REF!,$V$21:$V$50)/#REF!^2=1) ->  | AA37: =IF(D37=0,"",'Capacity Plan'!Z37) ->  | AD37: ='Capacity Plan'!#REF! ->  | AE37: ='Capacity Plan'!AG37 ->  | AO37: =IF(D37=0,"",'Capacity Plan'!AO37) -> 
A38: 1 | B38: =IFERROR('Capacity Plan'!B38,"") -> 0 | C38: 18 | D38: =IFERROR('Capacity Plan'!D38,"") -> 0 | H38: =IFERROR('Capacity Plan'!H38,"") -> 0 | I38: ='Capacity Plan'!I38 -> 0 | J38: ='Capacity Plan'!J38 -> 0 | K38: ='Capacity Plan'!K38 -> 0 | L38: =IFERROR(IF(D38=0,"",'Process 1 - Actual Run Data'!S$10*M$21),"") ->  | M38: =IF(D38=0,"",'Capacity Plan'!M38) ->  | N38: =IFERROR('Capacity Plan'!N38,"") ->  | O38: ='Process 1 - Actual Run Data'!D$19 -> 0 | P38: ='Process 1 - Actual Run Data'!D$20 -> 0 | Q38: ='Process 1 - Actual Run Data'!D$21 -> 0 | R38: =IF(J38=0,"",'Process 1 - Actual Run Data'!D$22) ->  | S38: =IF(J38=0,"",'Process 1 - Actual Run Data'!D$23) ->  | T38: ='Process 18 - Actual Run Data'!U$41 ->  | U38: =IF(D38=0,"",'Process 1 - Actual Run Data'!X$42) ->  | X38: =IF(1-SUMIF($C$21:$C$50,#REF!,$V$21:$V$50)/#REF!^2=1,"",1-SUMIF($C$21:$C$50,#REF!,$V$21:$V$50)/#REF!^2=1) ->  | AA38: =IF(D38=0,"",'Capacity Plan'!Z38) ->  | AD38: ='Capacity Plan'!#REF! ->  | AE38: ='Capacity Plan'!AG38 ->  | AO38: =IF(D38=0,"",'Capacity Plan'!AO38) -> 
A39: 1 | B39: =IFERROR('Capacity Plan'!B39,"") -> 0 | C39: 19 | D39: =IFERROR('Capacity Plan'!D39,"") -> 0 | H39: =IFERROR('Capacity Plan'!H39,"") -> 0 | I39: ='Capacity Plan'!I39 -> 0 | J39: ='Capacity Plan'!J39 -> 0 | K39: ='Capacity Plan'!K39 -> 0 | L39: =IFERROR(IF(D39=0,"",'Process 1 - Actual Run Data'!S$10*M$21),"") ->  | M39: =IF(D39=0,"",'Capacity Plan'!M39) ->  | N39: =IFERROR('Capacity Plan'!N39,"") ->  | O39: ='Process 1 - Actual Run Data'!D$19 -> 0 | P39: ='Process 1 - Actual Run Data'!D$20 -> 0 | Q39: ='Process 1 - Actual Run Data'!D$21 -> 0 | R39: =IF(J39=0,"",'Process 1 - Actual Run Data'!D$22) ->  | S39: =IF(J39=0,"",'Process 1 - Actual Run Data'!D$23) ->  | T39: ='Process 19 - Actual Run Data'!U$41 ->  | U39: =IF(D39=0,"",'Process 1 - Actual Run Data'!X$42) ->  | X39: =IF(1-SUMIF($C$21:$C$50,#REF!,$V$21:$V$50)/#REF!^2=1,"",1-SUMIF($C$21:$C$50,#REF!,$V$21:$V$50)/#REF!^2=1) ->  | AA39: =IF(D39=0,"",'Capacity Plan'!Z39) ->  | AD39: ='Capacity Plan'!#REF! ->  | AE39: ='Capacity Plan'!AG39 ->  | AO39: =IF(D39=0,"",'Capacity Plan'!AO39) -> 
A40: 1 | B40: =IFERROR('Capacity Plan'!B40,"") -> 0 | C40: 20 | D40: =IFERROR('Capacity Plan'!D40,"") -> 0 | H40: =IFERROR('Capacity Plan'!H40,"") -> 0 | I40: ='Capacity Plan'!I40 -> 0 | J40: ='Capacity Plan'!J40 -> 0 | K40: ='Capacity Plan'!K40 -> 0 | L40: =IFERROR(IF(D40=0,"",'Process 1 - Actual Run Data'!S$10*M$21),"") ->  | M40: =IF(D40=0,"",'Capacity Plan'!M40) ->  | N40: =IFERROR('Capacity Plan'!N40,"") ->  | O40: ='Process 1 - Actual Run Data'!D$19 -> 0 | P40: ='Process 1 - Actual Run Data'!D$20 -> 0 | Q40: ='Process 1 - Actual Run Data'!D$21 -> 0 | R40: =IF(J40=0,"",'Process 1 - Actual Run Data'!D$22) ->  | S40: =IF(J40=0,"",'Process 1 - Actual Run Data'!D$23) ->  | T40: ='Process 20 - Actual Run Data'!U$41 ->  | U40: =IF(D40=0,"",'Process 1 - Actual Run Data'!X$42) ->  | X40: =IF(1-SUMIF($C$21:$C$50,#REF!,$V$21:$V$50)/#REF!^2=1,"",1-SUMIF($C$21:$C$50,#REF!,$V$21:$V$50)/#REF!^2=1) ->  | AA40: =IF(D40=0,"",'Capacity Plan'!Z40) ->  | AD40: ='Capacity Plan'!#REF! ->  | AE40: ='Capacity Plan'!AG40 ->  | AO40: =IF(D40=0,"",'Capacity Plan'!AO40) -> 
A41: 30 | B41: =IFERROR('Capacity Plan'!B41,"") -> 0 | C41: 21 | D41: =IFERROR('Capacity Plan'!D41,"") -> 0 | H41: =IFERROR('Capacity Plan'!H41,"") -> 0 | I41: ='Capacity Plan'!I41 -> 0 | J41: ='Capacity Plan'!J41 -> 0 | K41: ='Capacity Plan'!K41 -> 0 | L41: =IFERROR(IF(D41=0,"",'Process 1 - Actual Run Data'!S$10*M$21),"") ->  | M41: =IF(D41=0,"",'Capacity Plan'!M41) ->  | N41: =IFERROR('Capacity Plan'!N41,"") ->  | O41: ='Process 1 - Actual Run Data'!D$19 -> 0 | P41: ='Process 1 - Actual Run Data'!D$20 -> 0 | Q41: ='Process 1 - Actual Run Data'!D$21 -> 0 | R41: =IF(J41=0,"",'Process 1 - Actual Run Data'!D$22) ->  | S41: =IF(J41=0,"",'Process 1 - Actual Run Data'!D$23) ->  | T41: ='Process 21 - Actual Run Data'!U$41 ->  | U41: =IF(D41=0,"",'Process 1 - Actual Run Data'!X$42) ->  | X41: =IF(1-SUMIF($C$21:$C$50,#REF!,$V$21:$V$50)/#REF!^2=1,"",1-SUMIF($C$21:$C$50,#REF!,$V$21:$V$50)/#REF!^2=1) ->  | AA41: =IF(D41=0,"",'Capacity Plan'!Z41) ->  | AD41: ='Capacity Plan'!#REF! ->  | AE41: ='Capacity Plan'!AG41 ->  | AO41: =IF(D41=0,"",'Capacity Plan'!AO41) -> 
A42: 30 | B42: =IFERROR('Capacity Plan'!B42,"") -> 0 | C42: 22 | D42: =IFERROR('Capacity Plan'!D42,"") -> 0 | H42: =IFERROR('Capacity Plan'!H42,"") -> 0 | I42: ='Capacity Plan'!I42 -> 0 | J42: ='Capacity Plan'!J42 -> 0 | K42: ='Capacity Plan'!K42 -> 0 | L42: =IFERROR(IF(D42=0,"",'Process 1 - Actual Run Data'!S$10*M$21),"") ->  | M42: =IF(D42=0,"",'Capacity Plan'!M42) ->  | N42: =IFERROR('Capacity Plan'!N42,"") ->  | O42: ='Process 1 - Actual Run Data'!D$19 -> 0 | P42: ='Process 1 - Actual Run Data'!D$20 -> 0 | Q42: ='Process 1 - Actual Run Data'!D$21 -> 0 | R42: =IF(J42=0,"",'Process 1 - Actual Run Data'!D$22) ->  | S42: =IF(J42=0,"",'Process 1 - Actual Run Data'!D$23) ->  | T42: ='Process 22 - Actual Run Data'!U$41 ->  | U42: =IF(D42=0,"",'Process 1 - Actual Run Data'!X$42) ->  | X42: =IF(1-SUMIF($C$21:$C$50,#REF!,$V$21:$V$50)/#REF!^2=1,"",1-SUMIF($C$21:$C$50,#REF!,$V$21:$V$50)/#REF!^2=1) ->  | AA42: =IF(D42=0,"",'Capacity Plan'!Z42) ->  | AD42: ='Capacity Plan'!#REF! ->  | AE42: ='Capacity Plan'!AG42 ->  | AO42: =IF(D42=0,"",'Capacity Plan'!AO42) -> 
A43: 30 | B43: =IFERROR('Capacity Plan'!B43,"") -> 0 | C43: 23 | D43: =IFERROR('Capacity Plan'!D43,"") -> 0 | H43: =IFERROR('Capacity Plan'!H43,"") -> 0 | I43: ='Capacity Plan'!I43 -> 0 | J43: ='Capacity Plan'!J43 -> 0 | K43: ='Capacity Plan'!K43 -> 0 | L43: =IFERROR(IF(D43=0,"",'Process 1 - Actual Run Data'!S$10*M$21),"") ->  | M43: =IF(D43=0,"",'Capacity Plan'!M43) ->  | N43: =IFERROR('Capacity Plan'!N43,"") ->  | O43: ='Process 1 - Actual Run Data'!D$19 -> 0 | P43: ='Process 1 - Actual Run Data'!D$20 -> 0 | Q43: ='Process 1 - Actual Run Data'!D$21 -> 0 | R43: =IF(J43=0,"",'Process 1 - Actual Run Data'!D$22) ->  | S43: =IF(J43=0,"",'Process 1 - Actual Run Data'!D$23) ->  | T43: ='Process 23 - Actual Run Data'!U$41 ->  | U43: =IF(D43=0,"",'Process 1 - Actual Run Data'!X$42) ->  | X43: =IF(1-SUMIF($C$21:$C$50,#REF!,$V$21:$V$50)/#REF!^2=1,"",1-SUMIF($C$21:$C$50,#REF!,$V$21:$V$50)/#REF!^2=1) ->  | AA43: =IF(D43=0,"",'Capacity Plan'!Z43) ->  | AD43: ='Capacity Plan'!#REF! ->  | AE43: ='Capacity Plan'!AG43 ->  | AO43: =IF(D43=0,"",'Capacity Plan'!AO43) -> 
A44: 30 | B44: =IFERROR('Capacity Plan'!B44,"") -> 0 | C44: 24 | D44: =IFERROR('Capacity Plan'!D44,"") -> 0 | H44: =IFERROR('Capacity Plan'!H44,"") -> 0 | I44: ='Capacity Plan'!I44 -> 0 | J44: ='Capacity Plan'!J44 -> 0 | K44: ='Capacity Plan'!K44 -> 0 | L44: =IFERROR(IF(D44=0,"",'Process 1 - Actual Run Data'!S$10*M$21),"") ->  | M44: =IF(D44=0,"",'Capacity Plan'!M44) ->  | N44: =IFERROR('Capacity Plan'!N44,"") ->  | O44: ='Process 1 - Actual Run Data'!D$19 -> 0 | P44: ='Process 1 - Actual Run Data'!D$20 -> 0 | Q44: ='Process 1 - Actual Run Data'!D$21 -> 0 | R44: =IF(J44=0,"",'Process 1 - Actual Run Data'!D$22) ->  | S44: =IF(J44=0,"",'Process 1 - Actual Run Data'!D$23) ->  | T44: ='Process 24 - Actual Run Data'!U$41 ->  | U44: =IF(D44=0,"",'Process 1 - Actual Run Data'!X$42) ->  | X44: =IF(1-SUMIF($C$21:$C$50,#REF!,$V$21:$V$50)/#REF!^2=1,"",1-SUMIF($C$21:$C$50,#REF!,$V$21:$V$50)/#REF!^2=1) ->  | AA44: =IF(D44=0,"",'Capacity Plan'!Z44) ->  | AD44: ='Capacity Plan'!#REF! ->  | AE44: ='Capacity Plan'!AG44 ->  | AO44: =IF(D44=0,"",'Capacity Plan'!AO44) -> 
A45: 30 | B45: =IFERROR('Capacity Plan'!B45,"") -> 0 | C45: 25 | D45: =IFERROR('Capacity Plan'!D45,"") -> 0 | H45: =IFERROR('Capacity Plan'!H45,"") -> 0 | I45: ='Capacity Plan'!I45 -> 0 | J45: ='Capacity Plan'!J45 -> 0 | K45: ='Capacity Plan'!K45 -> 0 | L45: =IFERROR(IF(D45=0,"",'Process 1 - Actual Run Data'!S$10*M$21),"") ->  | M45: =IF(D45=0,"",'Capacity Plan'!M45) ->  | N45: =IFERROR('Capacity Plan'!N45,"") ->  | O45: ='Process 1 - Actual Run Data'!D$19 -> 0 | P45: ='Process 1 - Actual Run Data'!D$20 -> 0 | Q45: ='Process 1 - Actual Run Data'!D$21 -> 0 | R45: =IF(J45=0,"",'Process 1 - Actual Run Data'!D$22) ->  | S45: =IF(J45=0,"",'Process 1 - Actual Run Data'!D$23) ->  | T45: ='Process 25 - Actual Run Data'!U$41 ->  | U45: =IF(D45=0,"",'Process 1 - Actual Run Data'!X$42) ->  | X45: =IF(1-SUMIF($C$21:$C$50,#REF!,$V$21:$V$50)/#REF!^2=1,"",1-SUMIF($C$21:$C$50,#REF!,$V$21:$V$50)/#REF!^2=1) ->  | AA45: =IF(D45=0,"",'Capacity Plan'!Z45) ->  | AD45: ='Capacity Plan'!#REF! ->  | AE45: ='Capacity Plan'!AG45 ->  | AO45: =IF(D45=0,"",'Capacity Plan'!AO45) -> 
A46: 30 | B46: =IFERROR('Capacity Plan'!B46,"") -> 0 | C46: 26 | D46: =IFERROR('Capacity Plan'!D46,"") -> 0 | H46: =IFERROR('Capacity Plan'!H46,"") -> 0 | I46: ='Capacity Plan'!I46 -> 0 | J46: ='Capacity Plan'!J46 -> 0 | K46: ='Capacity Plan'!K46 -> 0 | L46: =IFERROR(IF(D46=0,"",'Process 1 - Actual Run Data'!S$10*M$21),"") ->  | M46: =IF(D46=0,"",'Capacity Plan'!M46) ->  | N46: =IFERROR('Capacity Plan'!N46,"") ->  | O46: ='Process 1 - Actual Run Data'!D$19 -> 0 | P46: ='Process 1 - Actual Run Data'!D$20 -> 0 | Q46: ='Process 1 - Actual Run Data'!D$21 -> 0 | R46: =IF(J46=0,"",'Process 1 - Actual Run Data'!D$22) ->  | S46: =IF(J46=0,"",'Process 1 - Actual Run Data'!D$23) ->  | T46: ='Process 26 - Actual Run Data'!U$41 ->  | U46: =IF(D46=0,"",'Process 1 - Actual Run Data'!X$42) ->  | X46: =IF(1-SUMIF($C$21:$C$50,#REF!,$V$21:$V$50)/#REF!^2=1,"",1-SUMIF($C$21:$C$50,#REF!,$V$21:$V$50)/#REF!^2=1) ->  | AA46: =IF(D46=0,"",'Capacity Plan'!Z46) ->  | AD46: ='Capacity Plan'!#REF! ->  | AE46: ='Capacity Plan'!AG46 ->  | AO46: =IF(D46=0,"",'Capacity Plan'!AO46) -> 
A47: 30 | B47: =IFERROR('Capacity Plan'!B47,"") -> 0 | C47: 27 | D47: =IFERROR('Capacity Plan'!D47,"") -> 0 | H47: =IFERROR('Capacity Plan'!H47,"") -> 0 | I47: ='Capacity Plan'!I47 -> 0 | J47: ='Capacity Plan'!J47 -> 0 | K47: ='Capacity Plan'!K47 -> 0 | L47: =IFERROR(IF(D47=0,"",'Process 1 - Actual Run Data'!S$10*M$21),"") ->  | M47: =IF(D47=0,"",'Capacity Plan'!M47) ->  | N47: =IFERROR('Capacity Plan'!N47,"") ->  | O47: ='Process 1 - Actual Run Data'!D$19 -> 0 | P47: ='Process 1 - Actual Run Data'!D$20 -> 0 | Q47: ='Process 1 - Actual Run Data'!D$21 -> 0 | R47: =IF(J47=0,"",'Process 1 - Actual Run Data'!D$22) ->  | S47: =IF(J47=0,"",'Process 1 - Actual Run Data'!D$23) ->  | T47: ='Process 27 - Actual Run Data'!U$41 ->  | U47: =IF(D47=0,"",'Process 1 - Actual Run Data'!X$42) ->  | X47: =IF(1-SUMIF($C$21:$C$50,#REF!,$V$21:$V$50)/#REF!^2=1,"",1-SUMIF($C$21:$C$50,#REF!,$V$21:$V$50)/#REF!^2=1) ->  | AA47: =IF(D47=0,"",'Capacity Plan'!Z47) ->  | AD47: ='Capacity Plan'!#REF! ->  | AE47: ='Capacity Plan'!AG47 ->  | AO47: =IF(D47=0,"",'Capacity Plan'!AO47) -> 
A48: 30 | B48: =IFERROR('Capacity Plan'!B48,"") -> 0 | C48: 28 | D48: =IFERROR('Capacity Plan'!D48,"") -> 0 | H48: =IFERROR('Capacity Plan'!H48,"") -> 0 | I48: ='Capacity Plan'!I48 -> 0 | J48: ='Capacity Plan'!J48 -> 0 | K48: ='Capacity Plan'!K48 -> 0 | L48: =IFERROR(IF(D48=0,"",'Process 1 - Actual Run Data'!S$10*M$21),"") ->  | M48: =IF(D48=0,"",'Capacity Plan'!M48) ->  | N48: =IFERROR('Capacity Plan'!N48,"") ->  | O48: ='Process 1 - Actual Run Data'!D$19 -> 0 | P48: ='Process 1 - Actual Run Data'!D$20 -> 0 | Q48: ='Process 1 - Actual Run Data'!D$21 -> 0 | R48: =IF(J48=0,"",'Process 1 - Actual Run Data'!D$22) ->  | S48: =IF(J48=0,"",'Process 1 - Actual Run Data'!D$23) ->  | T48: ='Process 28 - Actual Run Data'!U$41 ->  | U48: =IF(D48=0,"",'Process 1 - Actual Run Data'!X$42) ->  | X48: =IF(1-SUMIF($C$21:$C$50,#REF!,$V$21:$V$50)/#REF!^2=1,"",1-SUMIF($C$21:$C$50,#REF!,$V$21:$V$50)/#REF!^2=1) ->  | AA48: =IF(D48=0,"",'Capacity Plan'!Z48) ->  | AD48: ='Capacity Plan'!#REF! ->  | AE48: ='Capacity Plan'!AG48 ->  | AO48: =IF(D48=0,"",'Capacity Plan'!AO48) -> 
A49: 30 | B49: =IFERROR('Capacity Plan'!B49,"") -> 0 | C49: 29 | D49: =IFERROR('Capacity Plan'!D49,"") -> 0 | H49: =IFERROR('Capacity Plan'!H49,"") -> 0 | I49: ='Capacity Plan'!I49 -> 0 | J49: ='Capacity Plan'!J49 -> 0 | K49: ='Capacity Plan'!K49 -> 0 | L49: =IFERROR(IF(D49=0,"",'Process 1 - Actual Run Data'!S$10*M$21),"") ->  | M49: =IF(D49=0,"",'Capacity Plan'!M49) ->  | N49: =IFERROR('Capacity Plan'!N49,"") ->  | O49: ='Process 1 - Actual Run Data'!D$19 -> 0 | P49: ='Process 1 - Actual Run Data'!D$20 -> 0 | Q49: ='Process 1 - Actual Run Data'!D$21 -> 0 | R49: =IF(J49=0,"",'Process 1 - Actual Run Data'!D$22) ->  | S49: =IF(J49=0,"",'Process 1 - Actual Run Data'!D$23) ->  | T49: ='Process 29 - Actual Run Data'!U$41 ->  | U49: =IF(D49=0,"",'Process 1 - Actual Run Data'!X$42) ->  | X49: =IF(1-SUMIF($C$21:$C$50,#REF!,$V$21:$V$50)/#REF!^2=1,"",1-SUMIF($C$21:$C$50,#REF!,$V$21:$V$50)/#REF!^2=1) ->  | AA49: =IF(D49=0,"",'Capacity Plan'!Z49) ->  | AD49: ='Capacity Plan'!#REF! ->  | AE49: ='Capacity Plan'!AG49 ->  | AO49: =IF(D49=0,"",'Capacity Plan'!AO49) -> 
A50: 30 | B50: =IFERROR('Capacity Plan'!B50,"") -> 0 | C50: 30 | D50: =IFERROR('Capacity Plan'!D50,"") -> 0 | H50: =IFERROR('Capacity Plan'!H50,"") -> 0 | I50: ='Capacity Plan'!I50 -> 0 | J50: ='Capacity Plan'!J50 -> 0 | K50: ='Capacity Plan'!K50 -> 0 | L50: =IFERROR(IF(D50=0,"",'Process 1 - Actual Run Data'!S$10*M$21),"") ->  | M50: =IF(D50=0,"",'Capacity Plan'!M50) ->  | N50: =IFERROR('Capacity Plan'!N50,"") ->  | O50: ='Process 1 - Actual Run Data'!D$19 -> 0 | P50: ='Process 1 - Actual Run Data'!D$20 -> 0 | Q50: ='Process 1 - Actual Run Data'!D$21 -> 0 | R50: =IF(J50=0,"",'Process 1 - Actual Run Data'!D$22) ->  | S50: =IF(J50=0,"",'Process 1 - Actual Run Data'!D$23) ->  | T50: ='Process 30 - Actual Run Data'!U$41 ->  | U50: =IF(D50=0,"",'Process 1 - Actual Run Data'!X$42) ->  | X50: =IF(1-SUMIF($C$21:$C$50,#REF!,$V$21:$V$50)/#REF!^2=1,"",1-SUMIF($C$21:$C$50,#REF!,$V$21:$V$50)/#REF!^2=1) ->  | AA50: =IF(D50=0,"",'Capacity Plan'!Z50) ->  | AD50: ='Capacity Plan'!#REF! ->  | AE50: ='Capacity Plan'!AG50 ->  | AO50: =IF(D50=0,"",'Capacity Plan'!AO50) -> 
P51: =IFERROR(IF(A51=0,"",G51*M51*(1-O51)),"") -> 
M52: Comments:
F55: Key Items to consider:
F57: Planned Cumulative % Scrap:
F58: Actual Cumulative % Scrap:

Sheet Run @ Rate Summary Data
D1: Run @ Rate Summary Data
D3: Supplier Name: | H3: =IF('Capacity Plan'!$F$3="","",'Capacity Plan'!$F$3) ->  | N3: Nexteer Part Number: | S3: =IF('Capacity Plan'!$Q$3="","",'Capacity Plan'!$Q$3) -> 
D4: Supplier Duns Code: | H4: =IFERROR('Capacity Plan'!F4,"") -> 0 | N4: Nexteer Part Name: | S4: =IFERROR('Capacity Plan'!Q4,"") -> 0
D5: Plant (Mfg) Location: | H5: =IFERROR('Capacity Plan'!F5,"") -> 0 | N5: Nexteer Revision Level: | S5: =IFERROR('Capacity Plan'!Q5,"") -> 0
N6: Nexteer Program Name(s): | S6: =IFERROR('Capacity Plan'!Q6,"") -> 0
D7: Supplier Contact: | H7: =IFERROR('Capacity Plan'!F7,"") -> 0
D8: Phone: | H8: =IFERROR('Capacity Plan'!F8,"") -> 0
N9: Production days at Nexteer (days/yr): | U9: =IFERROR('Capacity Plan'!S9,"") -> 240
D10: Nexteer Monitored: | H10: =IFERROR('Capacity Plan'!F10,"") -> 0 | N10: Production days at Supplier (days/yr): | U10: =IFERROR('Capacity Plan'!S10,"") -> 0
D11: Supplier Monitored: | H11: =IFERROR('Capacity Plan'!F11,"") -> 0
D12: Duration: | H12: =IFERROR('Capacity Plan'!F12,"") -> 0 | Q12: Maximum Scheduled Volumes (MSV): | U12: =IFERROR('Capacity Plan'!S12,"") -> 0
D14: Planned Run@Rate Completion Date: | K14: =IFERROR('Capacity Plan'!I14,"") -> 00:00:00
D15: Capacity Plan
AC17: =IF(SUM(AC21:AC50)>=1,"Yes","") -> 
A18: Number of Identical Machines | B18: Column for Finding Operation responsible for lowest OEE | C18: Column for Figuring out op responsible for highest OEE | D18: Op Number | E18: Proccess Name: List each separate production line or machine | J18: Operators | K18: shifts / day | L18: hours / shift | M18: days / wk | N18: Actual Cycle Time (sec) | O18: parts / cycle | P18: Daily Process Capacity | Q18: Actual breaks & lunch during run (min) | R18: Actual Tool change time during run (min) | S18: Actual Changeover time during run (min) | T18: Other actual downtime during run (min) | U18: Unscheduled downtime during run (min) | V18: Actual % up time | W18: % scrap at this operation | X18: % scrap parts per operation | Y18: Calculation Column | Z18: Sum of all down stream operations scrap rate %'s | AA18: Actual Daily Capacity | AB18: Machine loading allocated for other parts | AC18: Column for Opening Extended R@R | AD18: Hours per week allocated for this part | AE18: Actual Daily Capacity allocated to this part | AF18: Daily MSV | AG18: Overall required OEE | AH18: Daily Quoted Tool Capacity | AI18: Actual Weekly Capacity Allocated to this Part | AJ18: Annual Capacity | AK18: Weekly MSV | AL18: Annual MSV | AM18: Constraint on MSV? | AN18: OEE For 15% Above MSV | AO18: 15% above Daily MSV | AP18: 15% above Weekly MSV | AQ18: 15% above Yearly MSV | AR18: Constraint on 15% above MSV? | AS18: Net Good Parts / hour | AT18: Production time used for MSV (hrs/wk) | AU18: Production time used for 15% above MSV (hrs/wk)
A21: =IF(D21="",0,COUNTIF($D$21:$D$50,D21)) -> 0 | B21: =IF(MIN($AG$21:$AG$50)=AG21,2,0) -> 0 | C21: =IF(MAX($AG$21:$AG$50)=AG21,1,0) -> 0 | D21: =IF('Capacity Plan'!B21=0,"",'Capacity Plan'!B21) ->  | E21: 1 | F21: =IFERROR('Capacity Plan'!D21,"") -> 0 | J21: =IFERROR('Capacity Plan'!H21,"") -> 0 | K21: ='Capacity Plan'!I21 -> 0 | L21: ='Capacity Plan'!J21 -> 0 | M21: ='Capacity Plan'!K21 -> 0 | N21: =IFERROR(IF(F21=0,"",'Process 1 - Actual Run Data'!S$10*O21),"") ->  | O21: =IF(F21=0,"",'Capacity Plan'!M21) ->  | P21: =IFERROR(((K21*(L21-(('Capacity Plan'!O21+'Capacity Plan'!R21)/60))*3600)/N21)*O21,"") ->  | Q21: =IF($F21=0,"",'Process 1 - Actual Run Data'!D$19) ->  | R21: =IF($F21=0,"",'Process 1 - Actual Run Data'!$D$20) ->  | S21: =IF($F21=0,"",'Process 1 - Actual Run Data'!$D$21) ->  | T21: =IF($F21=0,"",'Process 1 - Actual Run Data'!$D$22) ->  | U21: =IF($F21=0,"",'Process 1 - Actual Run Data'!$D$23) ->  | V21: =IFERROR(IF(D21=0,"",IF('Capacity Plan'!T21<'Process 1 - Actual Run Data'!U$41,'Capacity Plan'!T21,'Process 1 - Actual Run Data'!U$41)),"") ->  | W21: =IF($F21=0,"",'Process 1 - Actual Run Data'!$X$42) ->  | X21: =IFERROR(SUMIF(D$21:D$50,D21,W$21:W$50)/A21,"") ->  | Y21: =IF($D21<$D22,(SUMIF($D$21:$D$50,$D21,$X$21:$X$50)/$A21)+Y22,Y22) -> 0 | Z21: =IF('Process 1 - Actual Run Data'!$X$42="","",$Y21) ->  | AA21: =IF(V21="","",P21*(1-Y21)*V21) ->  | AB21: =IF(F21=0,"",'Capacity Plan'!Z21) ->  | AC21: =IF(A21=1,IF(AB21>=0.5,1,0),0) -> 0 | AD21: ='Capacity Plan'!AB21 ->  | AE21: =IFERROR(IF(AA21*(1-AB21)=0,"",AA21*(1-AB21)),"") ->  | AF21: ='Capacity Plan'!AD21 ->  | AG21: =IFERROR(ROUNDUP(AF21/AE21,4),"") ->  | AH21: =IF(M21=0,"",U$12/U$9) ->  | AI21: ='Capacity Plan'!AG21 ->  | AJ21: =IFERROR(IF(L21="","",$AF21*$U$9),"") ->  | AK21: ='Capacity Plan'!AI21 ->  | AL21: ='Capacity Plan'!AJ21 ->  | AM21: =IF(L21=0,"",IF(AG21<1,"NO","YES")) ->  | AN21: =IFERROR(AO21/AE21,"") ->  | AO21: =IFERROR(IF(AF21*1.15=0,"",(AF21*1.15)),"") ->  | AP21: =IFERROR(IF(M21="","",AO21*5),"") ->  | AQ21: =IF(AL21="","",AL21*1.15) ->  | AR21: =IF(D21="","",IF(AN21>1.2,"YES",IF(AN21>1,"HR",IF(AN21<1,"No",IF(AN21=1.001,"","NO"))))) ->  | AS21: =IFERROR(IF(L21="","",(3600/N21)*O21*(1-Z21)*V21),"") ->  | AT21: =IFERROR(AG21*AD21,"") ->  | AU21: =IFERROR(AD21*AG21*1.15,"") -> 
A22: 0 | B22: =IF(MIN($AG$21:$AG$50)=AG22,2,0) -> 0 | C22: =IF(MAX($AG$21:$AG$50)=AG22,1,0) -> 0 | D22: =IF('Capacity Plan'!B22=0,"",'Capacity Plan'!B22) ->  | E22: 2 | F22: =IFERROR('Capacity Plan'!D22,"") -> 0 | J22: =IFERROR('Capacity Plan'!H22,"") -> 0 | K22: ='Capacity Plan'!I22 -> 0 | L22: ='Capacity Plan'!J22 -> 0 | M22: ='Capacity Plan'!K22 -> 0 | N22: =IFERROR(IF(F22=0,"",'Process 2 - Actual Run Data'!S$10*O22),"") ->  | O22: =IF(F22=0,"",'Capacity Plan'!M22) ->  | P22: =IFERROR(((K22*(L22-(('Capacity Plan'!O22+'Capacity Plan'!R22)/60))*3600)/N22)*O22,"") ->  | Q22: =IF($F22=0,"",'Process 2 - Actual Run Data'!D$19) ->  | R22: =IF($F22=0,"",'Process 2 - Actual Run Data'!$D$20) ->  | S22: =IF($F22=0,"",'Process 2 - Actual Run Data'!$D$21) ->  | T22: =IF($F22=0,"",'Process 2 - Actual Run Data'!$D$22) ->  | U22: =IF($F22=0,"",'Process 2 - Actual Run Data'!$D$23) ->  | V22: =IFERROR(IF(D22=0,"",IF('Capacity Plan'!T22<'Process 2 - Actual Run Data'!U$41,'Capacity Plan'!T22,'Process 2 - Actual Run Data'!U$41)),"") ->  | W22: =IF($F22=0,"",'Process 2 - Actual Run Data'!$X$42) ->  | Y22: =IF(D22<D23,(SUMIF(D$21:D$50,D22,X$21:X$50)/A22)+Y23,Y23) -> 0 | Z22: =IF('Process 2 - Actual Run Data'!$X$42="","",$Y22) ->  | AB22: =IF(F22=0,"",'Capacity Plan'!Z22) ->  | AC22: 0 | AD22: ='Capacity Plan'!AB22 ->  | AE22: =IFERROR(IF(AA22*(1-AB22)=0,"",AA22*(1-AB22)),"") ->  | AF22: ='Capacity Plan'!AD22 ->  | AG22: =IFERROR(ROUNDUP(AF22/AE22,4),"") ->  | AI22: ='Capacity Plan'!AG22 ->  | AJ22: =IFERROR(IF(L22="","",$AF22*$U$9),"") ->  | AK22: ='Capacity Plan'!AI22 ->  | AL22: ='Capacity Plan'!AJ22 ->  | AN22: =IFERROR(AO22/AE22,"") ->  | AQ22: =IF(AL22="","",AL22*1.15) ->  | AS22: =IFERROR(IF(L22="","",(3600/N22)*O22*(1-Z22)*V22),"") ->  | AT22: =IFERROR(AG22*AD22,"") -> 
A23: 0 | B23: 0 | C23: =IF(MAX($AG$21:$AG$50)=AG23,1,0) -> 0 | D23: =IF('Capacity Plan'!B23=0,"",'Capacity Plan'!B23) ->  | E23: 3 | F23: =IFERROR('Capacity Plan'!D23,"") -> 0 | J23: =IFERROR('Capacity Plan'!H23,"") -> 0 | K23: ='Capacity Plan'!I23 -> 0 | L23: ='Capacity Plan'!J23 -> 0 | M23: ='Capacity Plan'!K23 -> 0 | N23: =IFERROR(IF(F23=0,"",'Process 3 - Actual Run Data'!S$10*O23),"") ->  | O23: =IF(F23=0,"",'Capacity Plan'!M23) ->  | P23: =IFERROR(((K23*(L23-(('Capacity Plan'!O23+'Capacity Plan'!R23)/60))*3600)/N23)*O23,"") ->  | Q23: =IF($F23=0,"",'Process 3 - Actual Run Data'!D$19) ->  | R23: =IF($F23=0,"",'Process 3 - Actual Run Data'!$D$20) ->  | S23: =IF($F23=0,"",'Process 3 - Actual Run Data'!$D$21) ->  | T23: =IF($F23=0,"",'Process 3 - Actual Run Data'!$D$22) ->  | U23: =IF($F23=0,"",'Process 3 - Actual Run Data'!$D$23) ->  | V23: =IFERROR(IF(D23=0,"",IF('Capacity Plan'!T23<'Process 3 - Actual Run Data'!U$41,'Capacity Plan'!T23,'Process 3 - Actual Run Data'!U$41)),"") ->  | W23: =IF($F23=0,"",'Process 3 - Actual Run Data'!$X$42) ->  | Y23: =IF(D23<D24,(SUMIF(D$21:D$50,D23,X$21:X$50)/A23)+Y24,Y24) -> 0 | Z23: =IF('Process 3 - Actual Run Data'!$X$42="","",$Y23) ->  | AB23: =IF(F23=0,"",'Capacity Plan'!Z23) ->  | AC23: 0 | AD23: ='Capacity Plan'!AB23 ->  | AF23: ='Capacity Plan'!AD23 ->  | AI23: ='Capacity Plan'!AG23 ->  | AK23: ='Capacity Plan'!AI23 ->  | AL23: ='Capacity Plan'!AJ23 -> 
A24: 0 | B24: 0 | C24: 0 | D24: =IF('Capacity Plan'!B24=0,"",'Capacity Plan'!B24) ->  | E24: 4 | F24: =IFERROR('Capacity Plan'!D24,"") -> 0 | J24: =IFERROR('Capacity Plan'!H24,"") -> 0 | K24: ='Capacity Plan'!I24 -> 0 | L24: ='Capacity Plan'!J24 -> 0 | M24: ='Capacity Plan'!K24 -> 0 | N24: =IFERROR(IF(F24=0,"",'Process 4 - Actual Run Data'!S$10*O24),"") ->  | O24: =IF(F24=0,"",'Capacity Plan'!M24) ->  | P24: =IFERROR(((K24*(L24-(('Capacity Plan'!O24+'Capacity Plan'!R24)/60))*3600)/N24)*O24,"") ->  | Q24: =IF($F24=0,"",'Process 4 - Actual Run Data'!D$19) ->  | R24: =IF($F24=0,"",'Process 4 - Actual Run Data'!$D$20) ->  | S24: =IF($F24=0,"",'Process 4 - Actual Run Data'!$D$21) ->  | T24: =IF($F24=0,"",'Process 4 - Actual Run Data'!$D$22) ->  | U24: =IF($F24=0,"",'Process 4 - Actual Run Data'!$D$23) ->  | V24: =IFERROR(IF(D24=0,"",IF('Capacity Plan'!T24<'Process 4 - Actual Run Data'!U$41,'Capacity Plan'!T24,'Process 4 - Actual Run Data'!U$41)),"") ->  | W24: =IF($F24=0,"",'Process 4 - Actual Run Data'!$X$42) ->  | Y24: =IF(D24<D25,(SUMIF(D$21:D$50,D24,X$21:X$50)/A24)+Y25,Y25) -> 0 | Z24: =IF('Process 4 - Actual Run Data'!$X$42="","",$Y24) ->  | AB24: =IF(F24=0,"",'Capacity Plan'!Z24) ->  | AC24: 0 | AD24: ='Capacity Plan'!AB24 ->  | AF24: ='Capacity Plan'!AD24 ->  | AI24: ='Capacity Plan'!AG24 ->  | AK24: ='Capacity Plan'!AI24 ->  | AL24: ='Capacity Plan'!AJ24 -> 
A25: 0 | B25: 0 | C25: 0 | D25: =IF('Capacity Plan'!B25=0,"",'Capacity Plan'!B25) ->  | E25: 5 | F25: =IFERROR('Capacity Plan'!D25,"") -> 0 | J25: =IFERROR('Capacity Plan'!H25,"") -> 0 | K25: ='Capacity Plan'!I25 -> 0 | L25: ='Capacity Plan'!J25 -> 0 | M25: ='Capacity Plan'!K25 -> 0 | N25: =IFERROR(IF(F25=0,"",'Process 5 - Actual Run Data'!S$10*O25),"") ->  | O25: =IF(F25=0,"",'Capacity Plan'!M25) ->  | P25: =IFERROR(((K25*(L25-(('Capacity Plan'!O25+'Capacity Plan'!R25)/60))*3600)/N25)*O25,"") ->  | Q25: =IF($F25=0,"",'Process 5 - Actual Run Data'!D$19) ->  | R25: =IF($F25=0,"",'Process 5 - Actual Run Data'!$D$20) ->  | S25: =IF($F25=0,"",'Process 5 - Actual Run Data'!$D$21) ->  | T25: =IF($F25=0,"",'Process 5 - Actual Run Data'!$D$22) ->  | U25: =IF($F25=0,"",'Process 5 - Actual Run Data'!$D$23) ->  | V25: =IFERROR(IF(D25=0,"",IF('Capacity Plan'!T25<'Process 5 - Actual Run Data'!U$41,'Capacity Plan'!T25,'Process 5 - Actual Run Data'!U$41)),"") ->  | W25: =IF($F25=0,"",'Process 5 - Actual Run Data'!$X$42) ->  | Y25: =IF(D25=0,X25,IF(D25<D26,(SUMIF(D$21:D$50,D25,X$21:X$50)/A25)+Y26,Y26)) -> 0 | Z25: =IF('Process 5 - Actual Run Data'!$X$42="","",$Y25) ->  | AB25: =IF(F25=0,"",'Capacity Plan'!Z25) ->  | AC25: 0 | AD25: ='Capacity Plan'!AB25 ->  | AF25: ='Capacity Plan'!AD25 ->  | AI25: ='Capacity Plan'!AG25 ->  | AK25: ='Capacity Plan'!AI25 ->  | AL25: ='Capacity Plan'!AJ25 -> 
A26: 0 | B26: 0 | C26: 0 | D26: =IF('Capacity Plan'!B26=0,"",'Capacity Plan'!B26) ->  | E26: 6 | F26: =IFERROR('Capacity Plan'!D26,"") -> 0 | J26: =IFERROR('Capacity Plan'!H26,"") -> 0 | K26: ='Capacity Plan'!I26 -> 0 | L26: ='Capacity Plan'!J26 -> 0 | M26: ='Capacity Plan'!K26 -> 0 | N26: =IFERROR(IF(F26=0,"",'Process 6 - Actual Run Data'!S$10*O26),"") ->  | O26: =IF(F26=0,"",'Capacity Plan'!M26) ->  | P26: =IFERROR(((K26*(L26-(('Capacity Plan'!O26+'Capacity Plan'!R26)/60))*3600)/N26)*O26,"") ->  | Q26: =IF($F26=0,"",'Process 6 - Actual Run Data'!D$19) ->  | R26: =IF($F26=0,"",'Process 6 - Actual Run Data'!$D$20) ->  | S26: =IF($F26=0,"",'Process 6 - Actual Run Data'!$D$21) ->  | T26: =IF($F26=0,"",'Process 6 - Actual Run Data'!$D$22) ->  | U26: =IF($F26=0,"",'Process 6 - Actual Run Data'!$D$23) ->  | V26: =IFERROR(IF(D26=0,"",IF('Capacity Plan'!T26<'Process 6 - Actual Run Data'!U$41,'Capacity Plan'!T26,'Process 6 - Actual Run Data'!U$41)),"") ->  | W26: =IF($F26=0,"",'Process 6 - Actual Run Data'!$X$42) ->  | Y26: =IF(D26<D27,(SUMIF(D$21:D$50,D26,X$21:X$50)/A26)+Y27,Y27) -> 0 | Z26: =IF('Process 6 - Actual Run Data'!$X$42="","",$Y26) ->  | AB26: =IF(F26=0,"",'Capacity Plan'!Z26) ->  | AC26: 0 | AD26: ='Capacity Plan'!AB26 ->  | AF26: ='Capacity Plan'!AD26 ->  | AI26: ='Capacity Plan'!AG26 ->  | AK26: ='Capacity Plan'!AI26 ->  | AL26: ='Capacity Plan'!AJ26 -> 
A27: 0 | B27: 0 | C27: 0 | D27: =IF('Capacity Plan'!B27=0,"",'Capacity Plan'!B27) ->  | E27: 7 | F27: =IFERROR('Capacity Plan'!D27,"") -> 0 | J27: =IFERROR('Capacity Plan'!H27,"") -> 0 | K27: ='Capacity Plan'!I27 -> 0 | L27: ='Capacity Plan'!J27 -> 0 | M27: ='Capacity Plan'!K27 -> 0 | N27: =IFERROR(IF(F27=0,"",'Process 7 - Actual Run Data'!S$10*O27),"") ->  | O27: =IF(F27=0,"",'Capacity Plan'!M27) ->  | P27: =IFERROR(((K27*(L27-(('Capacity Plan'!O27+'Capacity Plan'!R27)/60))*3600)/N27)*O27,"") ->  | Q27: =IF($F27=0,"",'Process 7 - Actual Run Data'!D$19) ->  | R27: =IF($F27=0,"",'Process 7 - Actual Run Data'!$D$20) ->  | S27: =IF($F27=0,"",'Process 7 - Actual Run Data'!$D$21) ->  | T27: =IF($F27=0,"",'Process 7 - Actual Run Data'!$D$22) ->  | U27: =IF($F27=0,"",'Process 7 - Actual Run Data'!$D$23) ->  | V27: =IFERROR(IF(D27=0,"",IF('Capacity Plan'!T27<'Process 7 - Actual Run Data'!U$41,'Capacity Plan'!T27,'Process 7 - Actual Run Data'!U$41)),"") ->  | W27: =IF($F27=0,"",'Process 7 - Actual Run Data'!$X$42) ->  | Y27: 0 | Z27: =IF('Process 7 - Actual Run Data'!$X$42="","",$Y27) ->  | AB27: =IF(F27=0,"",'Capacity Plan'!Z27) ->  | AC27: 0 | AD27: ='Capacity Plan'!AB27 ->  | AE27: =IFERROR(IF(AA27*(1-AB27)=0,"",AA27*(1-AB27)),"") ->  | AF27: ='Capacity Plan'!AD27 ->  | AI27: ='Capacity Plan'!AG27 ->  | AK27: ='Capacity Plan'!AI27 ->  | AL27: ='Capacity Plan'!AJ27 -> 
A28: 0 | B28: 0 | C28: 0 | D28: =IF('Capacity Plan'!B28=0,"",'Capacity Plan'!B28) ->  | E28: 8 | F28: =IFERROR('Capacity Plan'!D28,"") -> 0 | J28: =IFERROR('Capacity Plan'!H28,"") -> 0 | K28: ='Capacity Plan'!I28 -> 0 | L28: ='Capacity Plan'!J28 -> 0 | M28: ='Capacity Plan'!K28 -> 0 | N28: =IFERROR(IF(F28=0,"",'Process 8 - Actual Run Data'!S$10*O28),"") ->  | O28: =IF(F28=0,"",'Capacity Plan'!M28) ->  | P28: =IFERROR(((K28*(L28-(('Capacity Plan'!O28+'Capacity Plan'!R28)/60))*3600)/N28)*O28,"") ->  | Q28: =IF($F28=0,"",'Process 8 - Actual Run Data'!D$19) ->  | R28: =IF($F28=0,"",'Process 8 - Actual Run Data'!$D$20) ->  | S28: =IF($F28=0,"",'Process 8 - Actual Run Data'!$D$21) ->  | T28: =IF($F28=0,"",'Process 8 - Actual Run Data'!$D$22) ->  | U28: =IF($F28=0,"",'Process 8 - Actual Run Data'!$D$23) ->  | V28: =IFERROR(IF(D28=0,"",IF('Capacity Plan'!T28<'Process 8 - Actual Run Data'!U$41,'Capacity Plan'!T28,'Process 8 - Actual Run Data'!U$41)),"") ->  | W28: =IF($F28=0,"",'Process 8 - Actual Run Data'!$X$42) ->  | Y28: 0 | Z28: =IF('Process 8 - Actual Run Data'!$X$42="","",$Y28) ->  | AB28: =IF(F28=0,"",'Capacity Plan'!Z28) ->  | AC28: 0 | AD28: ='Capacity Plan'!AB28 ->  | AF28: ='Capacity Plan'!AD28 ->  | AI28: ='Capacity Plan'!AG28 ->  | AK28: ='Capacity Plan'!AI28 ->  | AL28: ='Capacity Plan'!AJ28 -> 
A29: 0 | B29: 0 | C29: 0 | D29: =IF('Capacity Plan'!B29=0,"",'Capacity Plan'!B29) ->  | E29: 9 | F29: =IFERROR('Capacity Plan'!D29,"") -> 0 | J29: =IFERROR('Capacity Plan'!H29,"") -> 0 | K29: ='Capacity Plan'!I29 -> 0 | L29: ='Capacity Plan'!J29 -> 0 | M29: ='Capacity Plan'!K29 -> 0 | N29: =IFERROR(IF(F29=0,"",'Process 9 - Actual Run Data'!S$10*O29),"") ->  | O29: =IF(F29=0,"",'Capacity Plan'!M29) ->  | P29: =IFERROR(((K29*(L29-(('Capacity Plan'!O29+'Capacity Plan'!R29)/60))*3600)/N29)*O29,"") ->  | Q29: =IF($F29=0,"",'Process 9 - Actual Run Data'!D$19) ->  | R29: =IF($F29=0,"",'Process 9 - Actual Run Data'!$D$20) ->  | S29: =IF($F29=0,"",'Process 9 - Actual Run Data'!$D$21) ->  | T29: =IF($F29=0,"",'Process 9 - Actual Run Data'!$D$22) ->  | U29: =IF($F29=0,"",'Process 9 - Actual Run Data'!$D$23) ->  | V29: =IFERROR(IF(D29=0,"",IF('Capacity Plan'!T29<'Process 9 - Actual Run Data'!U$41,'Capacity Plan'!T29,'Process 9 - Actual Run Data'!U$41)),"") ->  | W29: =IF($F29=0,"",'Process 9 - Actual Run Data'!$X$42) ->  | Y29: 0 | Z29: =IF('Process 9 - Actual Run Data'!$X$42="","",$Y29) ->  | AB29: =IF(F29=0,"",'Capacity Plan'!Z29) ->  | AC29: 0 | AD29: ='Capacity Plan'!AB29 ->  | AF29: ='Capacity Plan'!AD29 ->  | AI29: ='Capacity Plan'!AG29 ->  | AK29: ='Capacity Plan'!AI29 ->  | AL29: ='Capacity Plan'!AJ29 -> 
A30: 0 | B30: 0 | C30: 0 | D30: =IF('Capacity Plan'!B30=0,"",'Capacity Plan'!B30) ->  | E30: 10 | F30: =IFERROR('Capacity Plan'!D30,"") -> 0 | J30: =IFERROR('Capacity Plan'!H30,"") -> 0 | K30: ='Capacity Plan'!I30 -> 0 | L30: ='Capacity Plan'!J30 -> 0 | M30: ='Capacity Plan'!K30 -> 0 | N30: =IFERROR(IF(F30=0,"",'Process 10 - Actual Run Data'!S$10*O30),"") ->  | O30: =IF(F30=0,"",'Capacity Plan'!M30) ->  | P30: =IFERROR(((K30*(L30-(('Capacity Plan'!O30+'Capacity Plan'!R30)/60))*3600)/N30)*O30,"") ->  | Q30: =IF($F30=0,"",'Process 10 - Actual Run Data'!D$19) ->  | R30: =IF($F30=0,"",'Process 10 - Actual Run Data'!$D$20) ->  | S30: =IF($F30=0,"",'Process 10 - Actual Run Data'!$D$21) ->  | T30: =IF($F30=0,"",'Process 10 - Actual Run Data'!$D$22) ->  | U30: =IF($F30=0,"",'Process 10 - Actual Run Data'!$D$23) ->  | V30: =IFERROR(IF(D30=0,"",IF('Capacity Plan'!T30<'Process 10 - Actual Run Data'!U$41,'Capacity Plan'!T30,'Process 10 - Actual Run Data'!U$41)),"") ->  | W30: =IF($F30=0,"",'Process 10 - Actual Run Data'!$X$42) ->  | Y30: 0 | Z30: =IF('Process 10 - Actual Run Data'!$X$42="","",$Y30) ->  | AB30: =IF(F30=0,"",'Capacity Plan'!Z30) ->  | AC30: 0 | AD30: ='Capacity Plan'!AB30 ->  | AF30: ='Capacity Plan'!AD30 ->  | AI30: ='Capacity Plan'!AG30 ->  | AK30: ='Capacity Plan'!AI30 ->  | AL30: ='Capacity Plan'!AJ30 -> 
A31: 0 | B31: 0 | C31: 0 | D31: =IF('Capacity Plan'!B31=0,"",'Capacity Plan'!B31) ->  | E31: 11 | F31: =IFERROR('Capacity Plan'!D31,"") -> 0 | J31: =IFERROR('Capacity Plan'!H31,"") -> 0 | K31: ='Capacity Plan'!I31 -> 0 | L31: ='Capacity Plan'!J31 -> 0 | M31: ='Capacity Plan'!K31 -> 0 | N31: =IFERROR(IF(F31=0,"",'Process 11 - Actual Run Data'!S$10*O31),"") ->  | O31: =IF(F31=0,"",'Capacity Plan'!M31) ->  | P31: =IFERROR(((K31*(L31-(('Capacity Plan'!O31+'Capacity Plan'!R31)/60))*3600)/N31)*O31,"") ->  | Q31: =IF($F31=0,"",'Process 11 - Actual Run Data'!D$19) ->  | R31: =IF($F31=0,"",'Process 11 - Actual Run Data'!$D$20) ->  | S31: =IF($F31=0,"",'Process 11 - Actual Run Data'!$D$21) ->  | T31: =IF($F31=0,"",'Process 11 - Actual Run Data'!$D$22) ->  | U31: =IF($F31=0,"",'Process 11 - Actual Run Data'!$D$23) ->  | V31: =IFERROR(IF(D31=0,"",IF('Capacity Plan'!T31<'Process 11 - Actual Run Data'!U$41,'Capacity Plan'!T31,'Process 11 - Actual Run Data'!U$41)),"") ->  | W31: =IF($F31=0,"",'Process 11 - Actual Run Data'!$X$42) ->  | Y31: 0 | Z31: =IF('Process 11 - Actual Run Data'!$X$42="","",$Y31) ->  | AB31: =IF(F31=0,"",'Capacity Plan'!Z31) ->  | AC31: 0 | AD31: ='Capacity Plan'!AB31 ->  | AF31: ='Capacity Plan'!AD31 ->  | AI31: ='Capacity Plan'!AG31 ->  | AK31: ='Capacity Plan'!AI31 ->  | AL31: ='Capacity Plan'!AJ31 -> 
A32: 0 | B32: 0 | C32: 0 | D32: =IF('Capacity Plan'!B32=0,"",'Capacity Plan'!B32) ->  | E32: 12 | F32: =IFERROR('Capacity Plan'!D32,"") -> 0 | J32: =IFERROR('Capacity Plan'!H32,"") -> 0 | K32: ='Capacity Plan'!I32 -> 0 | L32: ='Capacity Plan'!J32 -> 0 | M32: ='Capacity Plan'!K32 -> 0 | N32: =IFERROR(IF(F32=0,"",'Process 12 - Actual Run Data'!S$10*O32),"") ->  | O32: =IF(F32=0,"",'Capacity Plan'!M32) ->  | P32: =IFERROR(((K32*(L32-(('Capacity Plan'!O32+'Capacity Plan'!R32)/60))*3600)/N32)*O32,"") ->  | Q32: =IF($F32=0,"",'Process 12 - Actual Run Data'!D$19) ->  | R32: =IF($F32=0,"",'Process 12 - Actual Run Data'!$D$20) ->  | S32: =IF($F32=0,"",'Process 12 - Actual Run Data'!$D$21) ->  | T32: =IF($F32=0,"",'Process 12 - Actual Run Data'!$D$22) ->  | U32: =IF($F32=0,"",'Process 12 - Actual Run Data'!$D$23) ->  | V32: =IFERROR(IF(D32=0,"",IF('Capacity Plan'!T32<'Process 12 - Actual Run Data'!U$41,'Capacity Plan'!T32,'Process 12 - Actual Run Data'!U$41)),"") ->  | W32: =IF($F32=0,"",'Process 12 - Actual Run Data'!$X$42) ->  | Y32: 0 | Z32: =IF('Process 12 - Actual Run Data'!$X$42="","",$Y32) ->  | AB32: =IF(F32=0,"",'Capacity Plan'!Z32) ->  | AC32: 0 | AD32: ='Capacity Plan'!AB32 ->  | AF32: ='Capacity Plan'!AD32 ->  | AI32: ='Capacity Plan'!AG32 ->  | AK32: ='Capacity Plan'!AI32 ->  | AL32: ='Capacity Plan'!AJ32 -> 
A33: 0 | B33: 0 | C33: 0 | D33: =IF('Capacity Plan'!B33=0,"",'Capacity Plan'!B33) ->  | E33: 13 | F33: =IFERROR('Capacity Plan'!D33,"") -> 0 | J33: =IFERROR('Capacity Plan'!H33,"") -> 0 | K33: ='Capacity Plan'!I33 -> 0 | L33: ='Capacity Plan'!J33 -> 0 | M33: ='Capacity Plan'!K33 -> 0 | N33: =IFERROR(IF(F33=0,"",'Process 13 - Actual Run Data'!S$10*O33),"") ->  | O33: =IF(F33=0,"",'Capacity Plan'!M33) ->  | P33: =IFERROR(((K33*(L33-(('Capacity Plan'!O33+'Capacity Plan'!R33)/60))*3600)/N33)*O33,"") ->  | Q33: =IF($F33=0,"",'Process 13 - Actual Run Data'!D$19) ->  | R33: =IF($F33=0,"",'Process 13 - Actual Run Data'!$D$20) ->  | S33: =IF($F33=0,"",'Process 13 - Actual Run Data'!$D$21) ->  | T33: =IF($F33=0,"",'Process 13 - Actual Run Data'!$D$22) ->  | U33: =IF($F33=0,"",'Process 13 - Actual Run Data'!$D$23) ->  | V33: =IFERROR(IF(D33=0,"",IF('Capacity Plan'!T33<'Process 13 - Actual Run Data'!U$41,'Capacity Plan'!T33,'Process 13 - Actual Run Data'!U$41)),"") ->  | W33: =IF($F33=0,"",'Process 13 - Actual Run Data'!$X$42) ->  | Y33: 0 | Z33: =IF('Process 13 - Actual Run Data'!$X$42="","",$Y33) ->  | AB33: =IF(F33=0,"",'Capacity Plan'!Z33) ->  | AC33: 0 | AD33: ='Capacity Plan'!AB33 ->  | AF33: ='Capacity Plan'!AD33 ->  | AI33: ='Capacity Plan'!AG33 ->  | AK33: ='Capacity Plan'!AI33 ->  | AL33: ='Capacity Plan'!AJ33 -> 
A34: 0 | B34: 0 | C34: 0 | D34: =IF('Capacity Plan'!B34=0,"",'Capacity Plan'!B34) ->  | E34: 14 | F34: =IFERROR('Capacity Plan'!D34,"") -> 0 | J34: =IFERROR('Capacity Plan'!H34,"") -> 0 | K34: ='Capacity Plan'!I34 -> 0 | L34: ='Capacity Plan'!J34 -> 0 | M34: ='Capacity Plan'!K34 -> 0 | N34: =IFERROR(IF(F34=0,"",'Process 14 - Actual Run Data'!S$10*O34),"") ->  | O34: =IF(F34=0,"",'Capacity Plan'!M34) ->  | P34: =IFERROR(((K34*(L34-(('Capacity Plan'!O34+'Capacity Plan'!R34)/60))*3600)/N34)*O34,"") ->  | Q34: =IF($F34=0,"",'Process 14 - Actual Run Data'!D$19) ->  | R34: =IF($F34=0,"",'Process 14 - Actual Run Data'!$D$20) ->  | S34: =IF($F34=0,"",'Process 14 - Actual Run Data'!$D$21) ->  | T34: =IF($F34=0,"",'Process 14 - Actual Run Data'!$D$22) ->  | U34: =IF($F34=0,"",'Process 14 - Actual Run Data'!$D$23) ->  | V34: =IFERROR(IF(D34=0,"",IF('Capacity Plan'!T34<'Process 14 - Actual Run Data'!U$41,'Capacity Plan'!T34,'Process 14 - Actual Run Data'!U$41)),"") ->  | W34: =IF($F34=0,"",'Process 14 - Actual Run Data'!$X$42) ->  | Y34: 0 | Z34: =IF('Process 14 - Actual Run Data'!$X$42="","",$Y34) ->  | AB34: =IF(F34=0,"",'Capacity Plan'!Z34) ->  | AC34: 0 | AD34: ='Capacity Plan'!AB34 ->  | AF34: ='Capacity Plan'!AD34 ->  | AI34: ='Capacity Plan'!AG34 ->  | AK34: ='Capacity Plan'!AI34 ->  | AL34: ='Capacity Plan'!AJ34 -> 
A35: 0 | B35: 0 | C35: 0 | D35: =IF('Capacity Plan'!B35=0,"",'Capacity Plan'!B35) ->  | E35: 15 | F35: =IFERROR('Capacity Plan'!D35,"") -> 0 | J35: =IFERROR('Capacity Plan'!H35,"") -> 0 | K35: ='Capacity Plan'!I35 -> 0 | L35: ='Capacity Plan'!J35 -> 0 | M35: ='Capacity Plan'!K35 -> 0 | N35: =IFERROR(IF(F35=0,"",'Process 15 - Actual Run Data'!S$10*O35),"") ->  | O35: =IF(F35=0,"",'Capacity Plan'!M35) ->  | P35: =IFERROR(((K35*(L35-(('Capacity Plan'!O35+'Capacity Plan'!R35)/60))*3600)/N35)*O35,"") ->  | Q35: =IF($F35=0,"",'Process 15 - Actual Run Data'!D$19) ->  | R35: =IF($F35=0,"",'Process 15 - Actual Run Data'!$D$20) ->  | S35: =IF($F35=0,"",'Process 15 - Actual Run Data'!$D$21) ->  | T35: =IF($F35=0,"",'Process 15 - Actual Run Data'!$D$22) ->  | U35: =IF($F35=0,"",'Process 15 - Actual Run Data'!$D$23) ->  | V35: =IFERROR(IF(D35=0,"",IF('Capacity Plan'!T35<'Process 15 - Actual Run Data'!U$41,'Capacity Plan'!T35,'Process 15 - Actual Run Data'!U$41)),"") ->  | W35: =IF($F35=0,"",'Process 15 - Actual Run Data'!$X$42) ->  | Y35: 0 | Z35: =IF('Process 15 - Actual Run Data'!$X$42="","",$Y35) ->  | AB35: =IF(F35=0,"",'Capacity Plan'!Z35) ->  | AC35: 0 | AD35: ='Capacity Plan'!AB35 ->  | AF35: ='Capacity Plan'!AD35 ->  | AI35: ='Capacity Plan'!AG35 ->  | AK35: ='Capacity Plan'!AI35 ->  | AL35: ='Capacity Plan'!AJ35 -> 
A36: 0 | B36: 0 | C36: 0 | D36: =IF('Capacity Plan'!B36=0,"",'Capacity Plan'!B36) ->  | E36: 16 | F36: =IFERROR('Capacity Plan'!D36,"") -> 0 | J36: =IFERROR('Capacity Plan'!H36,"") -> 0 | K36: ='Capacity Plan'!I36 -> 0 | L36: ='Capacity Plan'!J36 -> 0 | M36: ='Capacity Plan'!K36 -> 0 | N36: =IFERROR(IF(F36=0,"",'Process 16 - Actual Run Data'!S$10*O36),"") ->  | O36: =IF(F36=0,"",'Capacity Plan'!M36) ->  | P36: =IFERROR(((K36*(L36-(('Capacity Plan'!O36+'Capacity Plan'!R36)/60))*3600)/N36)*O36,"") ->  | Q36: =IF($F36=0,"",'Process 16 - Actual Run Data'!D$19) ->  | R36: =IF($F36=0,"",'Process 16 - Actual Run Data'!$D$20) ->  | S36: =IF($F36=0,"",'Process 16 - Actual Run Data'!$D$21) ->  | T36: =IF($F36=0,"",'Process 16 - Actual Run Data'!$D$22) ->  | U36: =IF($F36=0,"",'Process 16 - Actual Run Data'!$D$23) ->  | V36: =IFERROR(IF(D36=0,"",IF('Capacity Plan'!T36<'Process 16 - Actual Run Data'!U$41,'Capacity Plan'!T36,'Process 16 - Actual Run Data'!U$41)),"") ->  | W36: =IF($F36=0,"",'Process 16 - Actual Run Data'!$X$42) ->  | Y36: 0 | Z36: =IF('Process 16 - Actual Run Data'!$X$42="","",$Y36) ->  | AB36: =IF(F36=0,"",'Capacity Plan'!Z36) ->  | AC36: 0 | AD36: ='Capacity Plan'!AB36 ->  | AF36: ='Capacity Plan'!AD36 ->  | AI36: ='Capacity Plan'!AG36 ->  | AK36: ='Capacity Plan'!AI36 ->  | AL36: ='Capacity Plan'!AJ36 -> 
A37: 0 | B37: 0 | C37: 0 | D37: =IF('Capacity Plan'!B37=0,"",'Capacity Plan'!B37) ->  | E37: 17 | F37: =IFERROR('Capacity Plan'!D37,"") -> 0 | J37: =IFERROR('Capacity Plan'!H37,"") -> 0 | K37: ='Capacity Plan'!I37 -> 0 | L37: ='Capacity Plan'!J37 -> 0 | M37: ='Capacity Plan'!K37 -> 0 | N37: =IFERROR(IF(F37=0,"",'Process 17 - Actual Run Data'!S$10*O37),"") ->  | O37: =IF(F37=0,"",'Capacity Plan'!M37) ->  | P37: =IFERROR(((K37*(L37-(('Capacity Plan'!O37+'Capacity Plan'!R37)/60))*3600)/N37)*O37,"") ->  | Q37: =IF($F37=0,"",'Process 17 - Actual Run Data'!D$19) ->  | R37: =IF($F37=0,"",'Process 17 - Actual Run Data'!$D$20) ->  | S37: =IF($F37=0,"",'Process 17 - Actual Run Data'!$D$21) ->  | T37: =IF($F37=0,"",'Process 17 - Actual Run Data'!$D$22) ->  | U37: =IF($F37=0,"",'Process 17 - Actual Run Data'!$D$23) ->  | V37: =IFERROR(IF(D37=0,"",IF('Capacity Plan'!T37<'Process 17 - Actual Run Data'!U$41,'Capacity Plan'!T37,'Process 17 - Actual Run Data'!U$41)),"") ->  | W37: =IF($F37=0,"",'Process 17 - Actual Run Data'!$X$42) ->  | Y37: 0 | Z37: =IF('Process 17 - Actual Run Data'!$X$42="","",$Y37) ->  | AB37: =IF(F37=0,"",'Capacity Plan'!Z37) ->  | AC37: 0 | AD37: ='Capacity Plan'!AB37 ->  | AF37: ='Capacity Plan'!AD37 ->  | AI37: ='Capacity Plan'!AG37 ->  | AK37: ='Capacity Plan'!AI37 ->  | AL37: ='Capacity Plan'!AJ37 -> 
A38: 0 | B38: 0 | C38: 0 | D38: =IF('Capacity Plan'!B38=0,"",'Capacity Plan'!B38) ->  | E38: 18 | F38: =IFERROR('Capacity Plan'!D38,"") -> 0 | J38: =IFERROR('Capacity Plan'!H38,"") -> 0 | K38: ='Capacity Plan'!I38 -> 0 | L38: ='Capacity Plan'!J38 -> 0 | M38: ='Capacity Plan'!K38 -> 0 | N38: =IFERROR(IF(F38=0,"",'Process 18 - Actual Run Data'!S$10*O38),"") ->  | O38: =IF(F38=0,"",'Capacity Plan'!M38) ->  | P38: =IFERROR(((K38*(L38-(('Capacity Plan'!O38+'Capacity Plan'!R38)/60))*3600)/N38)*O38,"") ->  | Q38: =IF($F38=0,"",'Process 18 - Actual Run Data'!D$19) ->  | R38: =IF($F38=0,"",'Process 18 - Actual Run Data'!$D$20) ->  | S38: =IF($F38=0,"",'Process 18 - Actual Run Data'!$D$21) ->  | T38: =IF($F38=0,"",'Process 18 - Actual Run Data'!$D$22) ->  | U38: =IF($F38=0,"",'Process 18 - Actual Run Data'!$D$23) ->  | V38: =IFERROR(IF(D38=0,"",IF('Capacity Plan'!T38<'Process 18 - Actual Run Data'!U$41,'Capacity Plan'!T38,'Process 18 - Actual Run Data'!U$41)),"") ->  | W38: =IF($F38=0,"",'Process 18 - Actual Run Data'!$X$42) ->  | Y38: 0 | Z38: =IF('Process 18 - Actual Run Data'!$X$42="","",$Y38) ->  | AB38: =IF(F38=0,"",'Capacity Plan'!Z38) ->  | AC38: 0 | AD38: ='Capacity Plan'!AB38 ->  | AF38: ='Capacity Plan'!AD38 ->  | AI38: ='Capacity Plan'!AG38 ->  | AK38: ='Capacity Plan'!AI38 ->  | AL38: ='Capacity Plan'!AJ38 -> 
A39: 0 | B39: 0 | C39: 0 | D39: =IF('Capacity Plan'!B39=0,"",'Capacity Plan'!B39) ->  | E39: 19 | F39: =IFERROR('Capacity Plan'!D39,"") -> 0 | J39: =IFERROR('Capacity Plan'!H39,"") -> 0 | K39: ='Capacity Plan'!I39 -> 0 | L39: ='Capacity Plan'!J39 -> 0 | M39: ='Capacity Plan'!K39 -> 0 | N39: =IFERROR(IF(F39=0,"",'Process 19 - Actual Run Data'!S$10*O39),"") ->  | O39: =IF(F39=0,"",'Capacity Plan'!M39) ->  | P39: =IFERROR(((K39*(L39-(('Capacity Plan'!O39+'Capacity Plan'!R39)/60))*3600)/N39)*O39,"") ->  | Q39: =IF($F39=0,"",'Process 19 - Actual Run Data'!D$19) ->  | R39: =IF($F39=0,"",'Process 19 - Actual Run Data'!$D$20) ->  | S39: =IF($F39=0,"",'Process 19 - Actual Run Data'!$D$21) ->  | T39: =IF($F39=0,"",'Process 19 - Actual Run Data'!$D$22) ->  | U39: =IF($F39=0,"",'Process 19 - Actual Run Data'!$D$23) ->  | V39: =IFERROR(IF(D39=0,"",IF('Capacity Plan'!T39<'Process 19 - Actual Run Data'!U$41,'Capacity Plan'!T39,'Process 19 - Actual Run Data'!U$41)),"") ->  | W39: =IF($F39=0,"",'Process 19 - Actual Run Data'!$X$42) ->  | Y39: 0 | Z39: =IF('Process 19 - Actual Run Data'!$X$42="","",$Y39) ->  | AB39: =IF(F39=0,"",'Capacity Plan'!Z39) ->  | AC39: 0 | AD39: ='Capacity Plan'!AB39 ->  | AF39: ='Capacity Plan'!AD39 ->  | AI39: ='Capacity Plan'!AG39 ->  | AK39: ='Capacity Plan'!AI39 ->  | AL39: ='Capacity Plan'!AJ39 -> 
A40: 0 | B40: 0 | C40: 0 | D40: =IF('Capacity Plan'!B40=0,"",'Capacity Plan'!B40) ->  | E40: 20 | F40: =IFERROR('Capacity Plan'!D40,"") -> 0 | J40: =IFERROR('Capacity Plan'!H40,"") -> 0 | K40: ='Capacity Plan'!I40 -> 0 | L40: ='Capacity Plan'!J40 -> 0 | M40: ='Capacity Plan'!K40 -> 0 | N40: =IFERROR(IF(F40=0,"",'Process 20 - Actual Run Data'!S$10*O40),"") ->  | O40: =IF(F40=0,"",'Capacity Plan'!M40) ->  | P40: =IFERROR(((K40*(L40-(('Capacity Plan'!O40+'Capacity Plan'!R40)/60))*3600)/N40)*O40,"") ->  | Q40: =IF($F40=0,"",'Process 20 - Actual Run Data'!D$19) ->  | R40: =IF($F40=0,"",'Process 20 - Actual Run Data'!$D$20) ->  | S40: =IF($F40=0,"",'Process 20 - Actual Run Data'!$D$21) ->  | T40: =IF($F40=0,"",'Process 20 - Actual Run Data'!$D$22) ->  | U40: =IF($F40=0,"",'Process 20 - Actual Run Data'!$D$23) ->  | V40: =IFERROR(IF(D40=0,"",IF('Capacity Plan'!T40<'Process 20 - Actual Run Data'!U$41,'Capacity Plan'!T40,'Process 20 - Actual Run Data'!U$41)),"") ->  | W40: =IF($F40=0,"",'Process 20 - Actual Run Data'!$X$42) ->  | Y40: =IF(F40="","",IF(D40<D41,(SUMIF(D$21:D$50,D40,X$21:X$50)/A40)+Y41,Y41)) -> 0 | Z40: =IF('Process 20 - Actual Run Data'!$X$42="","",$Y40) ->  | AB40: =IF(F40=0,"",'Capacity Plan'!Z40) ->  | AC40: 0 | AD40: ='Capacity Plan'!AB40 ->  | AF40: ='Capacity Plan'!AD40 ->  | AI40: ='Capacity Plan'!AG40 ->  | AK40: ='Capacity Plan'!AI40 ->  | AL40: ='Capacity Plan'!AJ40 -> 
A41: 0 | B41: 0 | C41: 0 | D41: =IF('Capacity Plan'!B41=0,"",'Capacity Plan'!B41) ->  | E41: 21 | F41: =IFERROR('Capacity Plan'!D41,"") -> 0 | J41: =IFERROR('Capacity Plan'!H41,"") -> 0 | K41: ='Capacity Plan'!I41 -> 0 | L41: ='Capacity Plan'!J41 -> 0 | M41: ='Capacity Plan'!K41 -> 0 | N41: =IFERROR(IF(F41=0,"",'Process 21 - Actual Run Data'!S$10*O41),"") ->  | O41: =IF(F41=0,"",'Capacity Plan'!M41) ->  | P41: =IFERROR(((K41*(L41-(('Capacity Plan'!O41+'Capacity Plan'!R41)/60))*3600)/N41)*O41,"") ->  | Q41: =IF($F41=0,"",'Process 21 - Actual Run Data'!D$19) ->  | R41: =IF($F41=0,"",'Process 21 - Actual Run Data'!$D$20) ->  | S41: =IF($F41=0,"",'Process 21 - Actual Run Data'!$D$21) ->  | T41: =IF($F41=0,"",'Process 21 - Actual Run Data'!$D$22) ->  | U41: =IF($F41=0,"",'Process 21 - Actual Run Data'!$D$23) ->  | V41: =IFERROR(IF(D41=0,"",IF('Capacity Plan'!T41<'Process 21 - Actual Run Data'!U$41,'Capacity Plan'!T41,'Process 21 - Actual Run Data'!U$41)),"") ->  | W41: =IF($F41=0,"",'Process 21 - Actual Run Data'!$X$42) ->  | Y41: =IF(D41<D42,(SUMIF(D$21:D$50,D41,X$21:X$50)/A41)+Y42,Y42) -> 0 | Z41: =IF('Process 21 - Actual Run Data'!$X$42="","",$Y41) ->  | AB41: =IF(F41=0,"",'Capacity Plan'!Z41) ->  | AC41: 0 | AD41: ='Capacity Plan'!AB41 ->  | AF41: ='Capacity Plan'!AD41 ->  | AI41: ='Capacity Plan'!AG41 ->  | AK41: ='Capacity Plan'!AI41 ->  | AL41: ='Capacity Plan'!AJ41 -> 
A42: 0 | B42: 0 | C42: 0 | D42: =IF('Capacity Plan'!B42=0,"",'Capacity Plan'!B42) ->  | E42: 22 | F42: =IFERROR('Capacity Plan'!D42,"") -> 0 | J42: =IFERROR('Capacity Plan'!H42,"") -> 0 | K42: ='Capacity Plan'!I42 -> 0 | L42: ='Capacity Plan'!J42 -> 0 | M42: ='Capacity Plan'!K42 -> 0 | N42: =IFERROR(IF(F42=0,"",'Process 22 - Actual Run Data'!S$10*O42),"") ->  | O42: =IF(F42=0,"",'Capacity Plan'!M42) ->  | P42: =IFERROR(((K42*(L42-(('Capacity Plan'!O42+'Capacity Plan'!R42)/60))*3600)/N42)*O42,"") ->  | Q42: =IF($F42=0,"",'Process 22 - Actual Run Data'!D$19) ->  | R42: =IF($F42=0,"",'Process 22 - Actual Run Data'!$D$20) ->  | S42: =IF($F42=0,"",'Process 22 - Actual Run Data'!$D$21) ->  | T42: =IF($F42=0,"",'Process 22 - Actual Run Data'!$D$22) ->  | U42: =IF($F42=0,"",'Process 22 - Actual Run Data'!$D$23) ->  | V42: =IFERROR(IF(D42=0,"",IF('Capacity Plan'!T42<'Process 22 - Actual Run Data'!U$41,'Capacity Plan'!T42,'Process 22 - Actual Run Data'!U$41)),"") ->  | W42: =IF($F42=0,"",'Process 22 - Actual Run Data'!$X$42) ->  | Y42: 0 | Z42: =IF('Process 22 - Actual Run Data'!$X$42="","",$Y42) ->  | AB42: =IF(F42=0,"",'Capacity Plan'!Z42) ->  | AC42: 0 | AD42: ='Capacity Plan'!AB42 ->  | AF42: ='Capacity Plan'!AD42 ->  | AI42: ='Capacity Plan'!AG42 ->  | AK42: ='Capacity Plan'!AI42 ->  | AL42: ='Capacity Plan'!AJ42 -> 
A43: 0 | B43: 0 | C43: 0 | D43: =IF('Capacity Plan'!B43=0,"",'Capacity Plan'!B43) ->  | E43: 23 | F43: =IFERROR('Capacity Plan'!D43,"") -> 0 | J43: =IFERROR('Capacity Plan'!H43,"") -> 0 | K43: ='Capacity Plan'!I43 -> 0 | L43: ='Capacity Plan'!J43 -> 0 | M43: ='Capacity Plan'!K43 -> 0 | N43: =IFERROR(IF(F43=0,"",'Process 23 - Actual Run Data'!S$10*O43),"") ->  | O43: =IF(F43=0,"",'Capacity Plan'!M43) ->  | P43: =IFERROR(((K43*(L43-(('Capacity Plan'!O43+'Capacity Plan'!R43)/60))*3600)/N43)*O43,"") ->  | Q43: =IF($F43=0,"",'Process 23 - Actual Run Data'!D$19) ->  | R43: =IF($F43=0,"",'Process 23 - Actual Run Data'!$D$20) ->  | S43: =IF($F43=0,"",'Process 23 - Actual Run Data'!$D$21) ->  | T43: =IF($F43=0,"",'Process 23 - Actual Run Data'!$D$22) ->  | U43: =IF($F43=0,"",'Process 23 - Actual Run Data'!$D$23) ->  | V43: =IFERROR(IF(D43=0,"",IF('Capacity Plan'!T43<'Process 23 - Actual Run Data'!U$41,'Capacity Plan'!T43,'Process 23 - Actual Run Data'!U$41)),"") ->  | W43: =IF($F43=0,"",'Process 23 - Actual Run Data'!$X$42) ->  | Y43: 0 | Z43: =IF('Process 23 - Actual Run Data'!$X$42="","",$Y43) ->  | AB43: =IF(F43=0,"",'Capacity Plan'!Z43) ->  | AC43: 0 | AD43: ='Capacity Plan'!AB43 ->  | AF43: ='Capacity Plan'!AD43 ->  | AI43: ='Capacity Plan'!AG43 ->  | AK43: ='Capacity Plan'!AI43 ->  | AL43: ='Capacity Plan'!AJ43 -> 
A44: 0 | B44: 0 | C44: 0 | D44: =IF('Capacity Plan'!B44=0,"",'Capacity Plan'!B44) ->  | E44: 24 | F44: =IFERROR('Capacity Plan'!D44,"") -> 0 | J44: =IFERROR('Capacity Plan'!H44,"") -> 0 | K44: ='Capacity Plan'!I44 -> 0 | L44: ='Capacity Plan'!J44 -> 0 | M44: ='Capacity Plan'!K44 -> 0 | N44: =IFERROR(IF(F44=0,"",'Process 24 - Actual Run Data'!S$10*O44),"") ->  | O44: =IF(F44=0,"",'Capacity Plan'!M44) ->  | P44: =IFERROR(((K44*(L44-(('Capacity Plan'!O44+'Capacity Plan'!R44)/60))*3600)/N44)*O44,"") ->  | Q44: =IF($F44=0,"",'Process 24 - Actual Run Data'!D$19) ->  | R44: =IF($F44=0,"",'Process 24 - Actual Run Data'!$D$20) ->  | S44: =IF($F44=0,"",'Process 24 - Actual Run Data'!$D$21) ->  | T44: =IF($F44=0,"",'Process 24 - Actual Run Data'!$D$22) ->  | U44: =IF($F44=0,"",'Process 24 - Actual Run Data'!$D$23) ->  | V44: =IFERROR(IF(D44=0,"",IF('Capacity Plan'!T44<'Process 24 - Actual Run Data'!U$41,'Capacity Plan'!T44,'Process 24 - Actual Run Data'!U$41)),"") ->  | W44: =IF($F44=0,"",'Process 24 - Actual Run Data'!$X$42) ->  | Y44: 0 | Z44: =IF('Process 24 - Actual Run Data'!$X$42="","",$Y44) ->  | AB44: =IF(F44=0,"",'Capacity Plan'!Z44) ->  | AC44: 0 | AD44: ='Capacity Plan'!AB44 ->  | AF44: ='Capacity Plan'!AD44 ->  | AH44: =IF(M44=0,"",U$12/U$9) ->  | AI44: ='Capacity Plan'!AG44 ->  | AK44: ='Capacity Plan'!AI44 ->  | AL44: ='Capacity Plan'!AJ44 -> 
A45: 0 | B45: 0 | C45: 0 | D45: =IF('Capacity Plan'!B45=0,"",'Capacity Plan'!B45) ->  | E45: 25 | F45: =IFERROR('Capacity Plan'!D45,"") -> 0 | J45: =IFERROR('Capacity Plan'!H45,"") -> 0 | K45: ='Capacity Plan'!I45 -> 0 | L45: ='Capacity Plan'!J45 -> 0 | M45: ='Capacity Plan'!K45 -> 0 | N45: =IFERROR(IF(F45=0,"",'Process 25 - Actual Run Data'!S$10*O45),"") ->  | O45: =IF(F45=0,"",'Capacity Plan'!M45) ->  | P45: =IFERROR(((K45*(L45-(('Capacity Plan'!O45+'Capacity Plan'!R45)/60))*3600)/N45)*O45,"") ->  | Q45: =IF($F45=0,"",'Process 25 - Actual Run Data'!D$19) ->  | R45: =IF($F45=0,"",'Process 25 - Actual Run Data'!$D$20) ->  | S45: =IF($F45=0,"",'Process 25 - Actual Run Data'!$D$21) ->  | T45: =IF($F45=0,"",'Process 25 - Actual Run Data'!$D$22) ->  | U45: =IF($F45=0,"",'Process 25 - Actual Run Data'!$D$23) ->  | V45: =IFERROR(IF(D45=0,"",IF('Capacity Plan'!T45<'Process 25 - Actual Run Data'!U$41,'Capacity Plan'!T45,'Process 25 - Actual Run Data'!U$41)),"") ->  | W45: =IF($F45=0,"",'Process 25 - Actual Run Data'!$X$42) ->  | Y45: 0 | Z45: =IF('Process 25 - Actual Run Data'!$X$42="","",$Y45) ->  | AB45: =IF(F45=0,"",'Capacity Plan'!Z45) ->  | AC45: 0 | AD45: ='Capacity Plan'!AB45 ->  | AF45: ='Capacity Plan'!AD45 ->  | AH45: =IF(M45=0,"",U$12/U$9) ->  | AI45: ='Capacity Plan'!AG45 ->  | AK45: ='Capacity Plan'!AI45 ->  | AL45: ='Capacity Plan'!AJ45 -> 
A46: 0 | B46: 0 | C46: 0 | D46: =IF('Capacity Plan'!B46=0,"",'Capacity Plan'!B46) ->  | E46: 26 | F46: =IFERROR('Capacity Plan'!D46,"") -> 0 | J46: =IFERROR('Capacity Plan'!H46,"") -> 0 | K46: ='Capacity Plan'!I46 -> 0 | L46: ='Capacity Plan'!J46 -> 0 | M46: ='Capacity Plan'!K46 -> 0 | N46: =IFERROR(IF(F46=0,"",'Process 26 - Actual Run Data'!S$10*O46),"") ->  | O46: =IF(F46=0,"",'Capacity Plan'!M46) ->  | P46: =IFERROR(((K46*(L46-(('Capacity Plan'!O46+'Capacity Plan'!R46)/60))*3600)/N46)*O46,"") ->  | Q46: =IF($F46=0,"",'Process 26 - Actual Run Data'!D$19) ->  | R46: =IF($F46=0,"",'Process 26 - Actual Run Data'!$D$20) ->  | S46: =IF($F46=0,"",'Process 26 - Actual Run Data'!$D$21) ->  | T46: =IF($F46=0,"",'Process 26 - Actual Run Data'!$D$22) ->  | U46: =IF($F46=0,"",'Process 26 - Actual Run Data'!$D$23) ->  | V46: =IFERROR(IF(D46=0,"",IF('Capacity Plan'!T46<'Process 26 - Actual Run Data'!U$41,'Capacity Plan'!T46,'Process 26 - Actual Run Data'!U$41)),"") ->  | W46: =IF($F46=0,"",'Process 26 - Actual Run Data'!$X$42) ->  | Y46: 0 | Z46: =IF('Process 26 - Actual Run Data'!$X$42="","",$Y46) ->  | AB46: =IF(F46=0,"",'Capacity Plan'!Z46) ->  | AC46: 0 | AD46: ='Capacity Plan'!AB46 ->  | AF46: ='Capacity Plan'!AD46 ->  | AI46: ='Capacity Plan'!AG46 ->  | AK46: ='Capacity Plan'!AI46 ->  | AL46: ='Capacity Plan'!AJ46 -> 
A47: 0 | B47: 0 | C47: 0 | D47: =IF('Capacity Plan'!B47=0,"",'Capacity Plan'!B47) ->  | E47: 27 | F47: =IFERROR('Capacity Plan'!D47,"") -> 0 | J47: =IFERROR('Capacity Plan'!H47,"") -> 0 | K47: ='Capacity Plan'!I47 -> 0 | L47: ='Capacity Plan'!J47 -> 0 | M47: ='Capacity Plan'!K47 -> 0 | N47: =IFERROR(IF(F47=0,"",'Process 27 - Actual Run Data'!S$10*O47),"") ->  | O47: =IF(F47=0,"",'Capacity Plan'!M47) ->  | P47: =IFERROR(((K47*(L47-(('Capacity Plan'!O47+'Capacity Plan'!R47)/60))*3600)/N47)*O47,"") ->  | Q47: =IF($F47=0,"",'Process 27 - Actual Run Data'!D$19) ->  | R47: =IF($F47=0,"",'Process 27 - Actual Run Data'!$D$20) ->  | S47: =IF($F47=0,"",'Process 27 - Actual Run Data'!$D$21) ->  | T47: =IF($F47=0,"",'Process 27 - Actual Run Data'!$D$22) ->  | U47: =IF($F47=0,"",'Process 27 - Actual Run Data'!$D$23) ->  | V47: =IFERROR(IF(D47=0,"",IF('Capacity Plan'!T47<'Process 27 - Actual Run Data'!U$41,'Capacity Plan'!T47,'Process 27 - Actual Run Data'!U$41)),"") ->  | W47: =IF($F47=0,"",'Process 27 - Actual Run Data'!$X$42) ->  | Y47: 0 | Z47: =IF('Process 27 - Actual Run Data'!$X$42="","",$Y47) ->  | AB47: =IF(F47=0,"",'Capacity Plan'!Z47) ->  | AC47: 0 | AD47: ='Capacity Plan'!AB47 ->  | AF47: ='Capacity Plan'!AD47 ->  | AI47: ='Capacity Plan'!AG47 ->  | AK47: ='Capacity Plan'!AI47 ->  | AL47: ='Capacity Plan'!AJ47 -> 
A48: 0 | B48: 0 | C48: 0 | D48: =IF('Capacity Plan'!B48=0,"",'Capacity Plan'!B48) ->  | E48: 28 | F48: =IFERROR('Capacity Plan'!D48,"") -> 0 | J48: =IFERROR('Capacity Plan'!H48,"") -> 0 | K48: ='Capacity Plan'!I48 -> 0 | L48: ='Capacity Plan'!J48 -> 0 | M48: ='Capacity Plan'!K48 -> 0 | N48: =IFERROR(IF(F48=0,"",'Process 28 - Actual Run Data'!S$10*O48),"") ->  | O48: =IF(F48=0,"",'Capacity Plan'!M48) ->  | P48: =IFERROR(((K48*(L48-(('Capacity Plan'!O48+'Capacity Plan'!R48)/60))*3600)/N48)*O48,"") ->  | Q48: =IF($F48=0,"",'Process 28 - Actual Run Data'!D$19) ->  | R48: =IF($F48=0,"",'Process 28 - Actual Run Data'!$D$20) ->  | S48: =IF($F48=0,"",'Process 28 - Actual Run Data'!$D$21) ->  | T48: =IF($F48=0,"",'Process 28 - Actual Run Data'!$D$22) ->  | U48: =IF($F48=0,"",'Process 28 - Actual Run Data'!$D$23) ->  | V48: =IFERROR(IF(D48=0,"",IF('Capacity Plan'!T48<'Process 28 - Actual Run Data'!U$41,'Capacity Plan'!T48,'Process 28 - Actual Run Data'!U$41)),"") ->  | W48: =IF($F48=0,"",'Process 28 - Actual Run Data'!$X$42) ->  | Y48: 0 | Z48: =IF('Process 28 - Actual Run Data'!$X$42="","",$Y48) ->  | AB48: =IF(F48=0,"",'Capacity Plan'!Z48) ->  | AC48: 0 | AD48: ='Capacity Plan'!AB48 ->  | AF48: ='Capacity Plan'!AD48 ->  | AI48: ='Capacity Plan'!AG48 ->  | AK48: ='Capacity Plan'!AI48 ->  | AL48: ='Capacity Plan'!AJ48 -> 
A49: 0 | B49: 0 | C49: 0 | D49: =IF('Capacity Plan'!B49=0,"",'Capacity Plan'!B49) ->  | E49: 29 | F49: =IFERROR('Capacity Plan'!D49,"") -> 0 | J49: =IFERROR('Capacity Plan'!H49,"") -> 0 | K49: ='Capacity Plan'!I49 -> 0 | L49: ='Capacity Plan'!J49 -> 0 | M49: ='Capacity Plan'!K49 -> 0 | N49: =IFERROR(IF(F49=0,"",'Process 29 - Actual Run Data'!S$10*O49),"") ->  | O49: =IF(F49=0,"",'Capacity Plan'!M49) ->  | P49: =IFERROR(((K49*(L49-(('Capacity Plan'!O49+'Capacity Plan'!R49)/60))*3600)/N49)*O49,"") ->  | Q49: =IF($F49=0,"",'Process 29 - Actual Run Data'!D$19) ->  | R49: =IF($F49=0,"",'Process 29 - Actual Run Data'!$D$20) ->  | S49: =IF($F49=0,"",'Process 29 - Actual Run Data'!$D$21) ->  | T49: =IF($F49=0,"",'Process 29 - Actual Run Data'!$D$22) ->  | U49: =IF($F49=0,"",'Process 29 - Actual Run Data'!$D$23) ->  | V49: =IFERROR(IF(D49=0,"",IF('Capacity Plan'!T49<'Process 29 - Actual Run Data'!U$41,'Capacity Plan'!T49,'Process 29 - Actual Run Data'!U$41)),"") ->  | W49: =IF($F49=0,"",'Process 29 - Actual Run Data'!$X$42) ->  | Y49: 0 | Z49: =IF('Process 29 - Actual Run Data'!$X$42="","",$Y49) ->  | AB49: =IF(F49=0,"",'Capacity Plan'!Z49) ->  | AC49: 0 | AD49: ='Capacity Plan'!AB49 ->  | AF49: ='Capacity Plan'!AD49 ->  | AI49: ='Capacity Plan'!AG49 ->  | AK49: ='Capacity Plan'!AI49 ->  | AL49: ='Capacity Plan'!AJ49 -> 
A50: 0 | B50: 0 | C50: 0 | D50: =IF('Capacity Plan'!B50=0,"",'Capacity Plan'!B50) ->  | E50: 30 | F50: =IFERROR('Capacity Plan'!D50,"") -> 0 | J50: =IFERROR('Capacity Plan'!H50,"") -> 0 | K50: ='Capacity Plan'!I50 -> 0 | L50: ='Capacity Plan'!J50 -> 0 | M50: ='Capacity Plan'!K50 -> 0 | N50: =IFERROR(IF(F50=0,"",'Process 30 - Actual Run Data'!S$10*O50),"") ->  | O50: =IF(F50=0,"",'Capacity Plan'!M50) ->  | P50: =IFERROR(((K50*(L50-(('Capacity Plan'!O50+'Capacity Plan'!R50)/60))*3600)/N50)*O50,"") ->  | Q50: =IF($F50=0,"",'Process 30 - Actual Run Data'!D$19) ->  | R50: =IF($F50=0,"",'Process 30 - Actual Run Data'!$D$20) ->  | S50: =IF($F50=0,"",'Process 30 - Actual Run Data'!$D$21) ->  | T50: =IF($F50=0,"",'Process 30 - Actual Run Data'!$D$22) ->  | U50: =IF($F50=0,"",'Process 30 - Actual Run Data'!$D$23) ->  | V50: =IFERROR(IF(D50=0,"",IF('Capacity Plan'!T50<'Process 30 - Actual Run Data'!U$41,'Capacity Plan'!T50,'Process 30 - Actual Run Data'!U$41)),"") ->  | W50: =IF($F50=0,"",'Process 30 - Actual Run Data'!$X$42) ->  | Y50: 0 | Z50: =IF('Process 30 - Actual Run Data'!$X$42="","",$Y50) ->  | AB50: =IF(F50=0,"",'Capacity Plan'!Z50) ->  | AC50: 0 | AD50: ='Capacity Plan'!AB50 ->  | AF50: ='Capacity Plan'!AD50 ->  | AI50: ='Capacity Plan'!AG50 ->  | AK50: ='Capacity Plan'!AI50 ->  | AL50: ='Capacity Plan'!AJ50 -> 
AO51: =IFERROR(IF(AG51*1.15=0,"",(AG51*1.15)),"") -> 
X53: Comments:

Sheet Run @ Rate Status Form
B1: Global Supply Management
A2: Run @ Rate Status Sheet
B4: Supplier Name: | C4: =IF('Capacity Plan'!$F$3="","",'Capacity Plan'!$F$3) ->  | G4: Nexteer Part Number: | H4: =IFERROR('Capacity Plan'!Q3,"") -> 0
B5: Supplier Duns Code: | C5: =IFERROR('Capacity Plan'!F4,"") -> 0 | G5: Nexteer Part Name: | H5: =IFERROR('Capacity Plan'!Q4,"") -> 0
B6: Plant (Mfg) Location: | C6: =IFERROR('Capacity Plan'!F5,"") -> 0 | G6: Revision Level: | H6: =IFERROR('Capacity Plan'!Q5,"") -> 0
G7: Nexteer Program: | H7: =IFERROR('Capacity Plan'!Q6,"") -> 0
B8: Run@Rate Date: | C8: =IFERROR('Run @ Rate Summary Data'!K14,"") -> 00:00:00
G9: Type of Run@Rate: | H9: Nexteer monitored:
A10: Quoted Tool Capacity: | C10: =IFERROR('Capacity Plan'!S12,"") -> 0 | H10: Supplier monitored:
B11: Capacity Plan | E11: **Red cell denotes issue between planned and actual
E12: Planned | H12: Actual
B13: Process Name | C13: Daily MSV | D13: 15% above daily MSV | E13: % uptime | F13: % scrap | G13: Daily Capacity | H13: % uptime | I13: % scrap | J13: Daily Capacity
A14: 1 | B14: =IFERROR('Capacity Plan'!D21,"") -> 0 | C14: ='Capacity Plan'!AD21 ->  | D14: ='Capacity Plan'!AM21 ->  | E14: ='Capacity Plan'!T21 ->  | F14: =IF(C14="","",'Capacity Plan'!U21) ->  | G14: ='Capacity Plan'!AC21 ->  | H14: =('Run @ Rate Summary Data'!V21) ->  | I14: =IF('Run @ Rate Summary Data'!W21=0,0,'Run @ Rate Summary Data'!W21) ->  | J14: =('Run @ Rate Summary Data'!AE21) ->  | K14: =IF(I14="",0,IF(I14>F14,1,0)) -> 0 | L14: =IF(J14="",0,IF(AND(K14=1,(J14<C14)),1,0)) -> 0
A15: 2 | B15: =IFERROR('Capacity Plan'!D22,"") -> 0 | C15: ='Capacity Plan'!AD22 ->  | D15: ='Capacity Plan'!AM22 ->  | E15: ='Capacity Plan'!T22 ->  | F15: =IF(C15="","",'Capacity Plan'!U22) ->  | G15: ='Capacity Plan'!AC22 ->  | H15: =('Run @ Rate Summary Data'!V22) ->  | I15: =IF('Run @ Rate Summary Data'!W22=0,0,'Run @ Rate Summary Data'!W22) ->  | J15: =('Run @ Rate Summary Data'!AE22) ->  | K15: =IF(I15="",0,IF(I15>F15,1,0)) -> 0 | L15: =IF(J15="",0,IF(AND(K15=1,(J15<C15)),1,0)) -> 0
A16: 3 | B16: =IFERROR('Capacity Plan'!D23,"") -> 0 | C16: ='Capacity Plan'!AD23 ->  | D16: ='Capacity Plan'!AM23 ->  | E16: ='Capacity Plan'!T23 ->  | F16: =IF(C16="","",'Capacity Plan'!U23) ->  | G16: ='Capacity Plan'!AC23 ->  | H16: =('Run @ Rate Summary Data'!V23) ->  | I16: =IF('Run @ Rate Summary Data'!W23=0,0,'Run @ Rate Summary Data'!W23) ->  | J16: =('Run @ Rate Summary Data'!AE23) ->  | K16: 0 | L16: 0
A17: 4 | B17: =IFERROR('Capacity Plan'!D24,"") -> 0 | C17: ='Capacity Plan'!AD24 ->  | D17: ='Capacity Plan'!AM24 ->  | E17: ='Capacity Plan'!T24 ->  | F17: =IF(C17="","",'Capacity Plan'!U24) ->  | G17: ='Capacity Plan'!AC24 ->  | H17: =('Run @ Rate Summary Data'!V24) ->  | I17: =IF('Run @ Rate Summary Data'!W24=0,0,'Run @ Rate Summary Data'!W24) ->  | J17: =('Run @ Rate Summary Data'!AE24) ->  | K17: 0 | L17: 0
A18: 5 | B18: =IFERROR('Capacity Plan'!D25,"") -> 0 | C18: ='Capacity Plan'!AD25 ->  | D18: ='Capacity Plan'!AM25 ->  | E18: ='Capacity Plan'!T25 ->  | F18: =IF(C18="","",'Capacity Plan'!U25) ->  | G18: ='Capacity Plan'!AC25 ->  | H18: =('Run @ Rate Summary Data'!V25) ->  | I18: =IF('Run @ Rate Summary Data'!W25=0,0,'Run @ Rate Summary Data'!W25) ->  | J18: =('Run @ Rate Summary Data'!AE25) ->  | K18: 0 | L18: 0
A19: 6 | B19: =IFERROR('Capacity Plan'!D26,"") -> 0 | C19: ='Capacity Plan'!AD26 ->  | D19: ='Capacity Plan'!AM26 ->  | E19: ='Capacity Plan'!T26 ->  | F19: =IF(C19="","",'Capacity Plan'!U26) ->  | G19: ='Capacity Plan'!AC26 ->  | H19: =('Run @ Rate Summary Data'!V26) ->  | I19: =IF('Run @ Rate Summary Data'!W26=0,0,'Run @ Rate Summary Data'!W26) ->  | J19: =('Run @ Rate Summary Data'!AE26) ->  | K19: 0 | L19: =IF(J19="",0,IF(AND(K19=1,(J19<C19)),1,0)) -> 0
A20: 7 | B20: =IFERROR('Capacity Plan'!D27,"") -> 0 | C20: ='Capacity Plan'!AD27 ->  | D20: ='Capacity Plan'!AM27 ->  | E20: ='Capacity Plan'!T27 ->  | F20: =IF(C20="","",'Capacity Plan'!U27) ->  | G20: ='Capacity Plan'!AC27 ->  | H20: =('Run @ Rate Summary Data'!V27) ->  | I20: =IF('Run @ Rate Summary Data'!W27=0,0,'Run @ Rate Summary Data'!W27) ->  | J20: =('Run @ Rate Summary Data'!AE27) ->  | K20: 0 | L20: 0
A21: 8 | B21: =IFERROR('Capacity Plan'!D28,"") -> 0 | C21: ='Capacity Plan'!AD28 ->  | D21: ='Capacity Plan'!AM28 ->  | E21: ='Capacity Plan'!T28 ->  | F21: =IF(C21="","",'Capacity Plan'!U28) ->  | G21: ='Capacity Plan'!AC28 ->  | H21: =('Run @ Rate Summary Data'!V28) ->  | I21: =IF('Run @ Rate Summary Data'!W28=0,0,'Run @ Rate Summary Data'!W28) ->  | J21: =('Run @ Rate Summary Data'!AE28) ->  | K21: 0 | L21: 0
A22: 9 | B22: =IFERROR('Capacity Plan'!D29,"") -> 0 | C22: ='Capacity Plan'!AD29 ->  | D22: ='Capacity Plan'!AM29 ->  | E22: ='Capacity Plan'!T29 ->  | F22: =IF(C22="","",'Capacity Plan'!U29) ->  | G22: ='Capacity Plan'!AC29 ->  | H22: =('Run @ Rate Summary Data'!V29) ->  | I22: =IF('Run @ Rate Summary Data'!W29=0,0,'Run @ Rate Summary Data'!W29) ->  | J22: =('Run @ Rate Summary Data'!AE29) ->  | K22: =IF(I22="",0,IF(I22>F22,1,0)) -> 0 | L22: 0
A23: 10 | B23: =IFERROR('Capacity Plan'!D30,"") -> 0 | C23: ='Capacity Plan'!AD30 ->  | D23: ='Capacity Plan'!AM30 ->  | E23: ='Capacity Plan'!T30 ->  | F23: =IF(C23="","",'Capacity Plan'!U30) ->  | G23: ='Capacity Plan'!AC30 ->  | H23: =('Run @ Rate Summary Data'!V30) ->  | I23: =IF('Run @ Rate Summary Data'!W30=0,0,'Run @ Rate Summary Data'!W30) ->  | J23: =('Run @ Rate Summary Data'!AE30) ->  | K23: =IF(I23="",0,IF(I23>F23,1,0)) -> 0 | L23: 0
A24: 11 | B24: =IFERROR('Capacity Plan'!D31,"") -> 0 | C24: ='Capacity Plan'!AD31 ->  | D24: ='Capacity Plan'!AM31 ->  | E24: ='Capacity Plan'!T31 ->  | F24: =IF(C24="","",'Capacity Plan'!U31) ->  | G24: ='Capacity Plan'!AC31 ->  | H24: =('Run @ Rate Summary Data'!V31) ->  | I24: =IF('Run @ Rate Summary Data'!W31=0,0,'Run @ Rate Summary Data'!W31) ->  | J24: =('Run @ Rate Summary Data'!AE31) ->  | K24: 0 | L24: 0
A25: 12 | B25: =IFERROR('Capacity Plan'!D32,"") -> 0 | C25: ='Capacity Plan'!AD32 ->  | D25: ='Capacity Plan'!AM32 ->  | E25: ='Capacity Plan'!T32 ->  | F25: =IF(C25="","",'Capacity Plan'!U32) ->  | G25: ='Capacity Plan'!AC32 ->  | H25: =('Run @ Rate Summary Data'!V32) ->  | I25: =IF('Run @ Rate Summary Data'!W32=0,0,'Run @ Rate Summary Data'!W32) ->  | J25: =('Run @ Rate Summary Data'!AE32) ->  | K25: 0 | L25: 0
A26: 13 | B26: =IFERROR('Capacity Plan'!D33,"") -> 0 | C26: ='Capacity Plan'!AD33 ->  | D26: ='Capacity Plan'!AM33 ->  | E26: ='Capacity Plan'!T33 ->  | F26: =IF(C26="","",'Capacity Plan'!U33) ->  | G26: ='Capacity Plan'!AC33 ->  | H26: =('Run @ Rate Summary Data'!V33) ->  | I26: =IF('Run @ Rate Summary Data'!W33=0,0,'Run @ Rate Summary Data'!W33) ->  | J26: =('Run @ Rate Summary Data'!AE33) ->  | K26: 0 | L26: 0
A27: 14 | B27: =IFERROR('Capacity Plan'!D34,"") -> 0 | C27: ='Capacity Plan'!AD34 ->  | D27: ='Capacity Plan'!AM34 ->  | E27: ='Capacity Plan'!T34 ->  | F27: =IF(C27="","",'Capacity Plan'!U34) ->  | G27: ='Capacity Plan'!AC34 ->  | H27: =('Run @ Rate Summary Data'!V34) ->  | I27: =IF('Run @ Rate Summary Data'!W34=0,0,'Run @ Rate Summary Data'!W34) ->  | J27: =('Run @ Rate Summary Data'!AE34) ->  | K27: 0 | L27: 0
A28: 15 | B28: =IFERROR('Capacity Plan'!D35,"") -> 0 | C28: ='Capacity Plan'!AD35 ->  | D28: ='Capacity Plan'!AM35 ->  | E28: ='Capacity Plan'!T35 ->  | F28: =IF(C28="","",'Capacity Plan'!U35) ->  | G28: ='Capacity Plan'!AC35 ->  | H28: =('Run @ Rate Summary Data'!V35) ->  | I28: =IF('Run @ Rate Summary Data'!W35=0,0,'Run @ Rate Summary Data'!W35) ->  | J28: =('Run @ Rate Summary Data'!AE35) ->  | K28: 0 | L28: 0
A29: 16 | B29: =IFERROR('Capacity Plan'!D36,"") -> 0 | C29: ='Capacity Plan'!AD36 ->  | D29: ='Capacity Plan'!AM36 ->  | E29: ='Capacity Plan'!T36 ->  | F29: =IF(C29="","",'Capacity Plan'!U36) ->  | G29: ='Capacity Plan'!AC36 ->  | H29: =('Run @ Rate Summary Data'!V36) ->  | I29: =IF('Run @ Rate Summary Data'!W36=0,0,'Run @ Rate Summary Data'!W36) ->  | J29: =('Run @ Rate Summary Data'!AE36) ->  | K29: 0 | L29: 0
A30: 17 | B30: =IFERROR('Capacity Plan'!D37,"") -> 0 | C30: ='Capacity Plan'!AD37 ->  | D30: ='Capacity Plan'!AM37 ->  | E30: ='Capacity Plan'!T37 ->  | F30: =IF(C30="","",'Capacity Plan'!U37) ->  | G30: ='Capacity Plan'!AC37 ->  | H30: =('Run @ Rate Summary Data'!V37) ->  | I30: =IF('Run @ Rate Summary Data'!W37=0,0,'Run @ Rate Summary Data'!W37) ->  | J30: =('Run @ Rate Summary Data'!AE37) ->  | K30: 0 | L30: 0
A31: 18 | B31: =IFERROR('Capacity Plan'!D38,"") -> 0 | C31: ='Capacity Plan'!AD38 ->  | D31: ='Capacity Plan'!AM38 ->  | E31: ='Capacity Plan'!T38 ->  | F31: =IF(C31="","",'Capacity Plan'!U38) ->  | G31: ='Capacity Plan'!AC38 ->  | H31: =('Run @ Rate Summary Data'!V38) ->  | I31: =IF('Run @ Rate Summary Data'!W38=0,0,'Run @ Rate Summary Data'!W38) ->  | J31: =('Run @ Rate Summary Data'!AE38) ->  | K31: 0 | L31: 0
A32: 19 | B32: =IFERROR('Capacity Plan'!D39,"") -> 0 | C32: ='Capacity Plan'!AD39 ->  | D32: ='Capacity Plan'!AM39 ->  | E32: ='Capacity Plan'!T39 ->  | F32: =IF(C32="","",'Capacity Plan'!U39) ->  | G32: ='Capacity Plan'!AC39 ->  | H32: =('Run @ Rate Summary Data'!V39) ->  | I32: =IF('Run @ Rate Summary Data'!W39=0,0,'Run @ Rate Summary Data'!W39) ->  | J32: =('Run @ Rate Summary Data'!AE39) ->  | K32: 0 | L32: 0
A33: 20 | B33: =IFERROR('Capacity Plan'!D40,"") -> 0 | C33: ='Capacity Plan'!AD40 ->  | D33: ='Capacity Plan'!AM40 ->  | E33: ='Capacity Plan'!T40 ->  | F33: =IF(C33="","",'Capacity Plan'!U40) ->  | G33: ='Capacity Plan'!AC40 ->  | H33: =('Run @ Rate Summary Data'!V40) ->  | I33: =IF('Run @ Rate Summary Data'!W40=0,0,'Run @ Rate Summary Data'!W40) ->  | J33: =('Run @ Rate Summary Data'!AE40) ->  | K33: 0 | L33: 0
A34: 21 | B34: =IFERROR('Capacity Plan'!D41,"") -> 0 | C34: ='Capacity Plan'!AD41 ->  | D34: ='Capacity Plan'!AM41 ->  | E34: ='Capacity Plan'!T41 ->  | F34: =IF(C34="","",'Capacity Plan'!U41) ->  | G34: ='Capacity Plan'!AC41 ->  | H34: =('Run @ Rate Summary Data'!V41) ->  | I34: =IF('Run @ Rate Summary Data'!W41=0,0,'Run @ Rate Summary Data'!W41) ->  | J34: =('Run @ Rate Summary Data'!AE41) ->  | K34: 0 | L34: 0
A35: 22 | B35: =IFERROR('Capacity Plan'!D42,"") -> 0 | C35: ='Capacity Plan'!AD42 ->  | D35: ='Capacity Plan'!AM42 ->  | E35: ='Capacity Plan'!T42 ->  | F35: =IF(C35="","",'Capacity Plan'!U42) ->  | G35: ='Capacity Plan'!AC42 ->  | H35: =('Run @ Rate Summary Data'!V42) ->  | I35: =IF('Run @ Rate Summary Data'!W42=0,0,'Run @ Rate Summary Data'!W42) ->  | J35: =('Run @ Rate Summary Data'!AE42) ->  | K35: 0 | L35: 0
A36: 23 | B36: =IFERROR('Capacity Plan'!D43,"") -> 0 | C36: ='Capacity Plan'!AD43 ->  | D36: ='Capacity Plan'!AM43 ->  | E36: ='Capacity Plan'!T43 ->  | F36: =IF(C36="","",'Capacity Plan'!U43) ->  | G36: ='Capacity Plan'!AC43 ->  | H36: =('Run @ Rate Summary Data'!V43) ->  | I36: =IF('Run @ Rate Summary Data'!W43=0,0,'Run @ Rate Summary Data'!W43) ->  | J36: =('Run @ Rate Summary Data'!AE43) ->  | K36: 0 | L36: 0
A37: 24 | B37: =IFERROR('Capacity Plan'!D44,"") -> 0 | C37: ='Capacity Plan'!AD44 ->  | D37: ='Capacity Plan'!AM44 ->  | E37: ='Capacity Plan'!T44 ->  | F37: =IF(C37="","",'Capacity Plan'!U44) ->  | G37: ='Capacity Plan'!AC44 ->  | H37: =('Run @ Rate Summary Data'!V44) ->  | I37: =IF('Run @ Rate Summary Data'!W44=0,0,'Run @ Rate Summary Data'!W44) ->  | J37: =('Run @ Rate Summary Data'!AE44) ->  | K37: 0 | L37: 0
A38: 25 | B38: =IFERROR('Capacity Plan'!D45,"") -> 0 | C38: ='Capacity Plan'!AD45 ->  | D38: ='Capacity Plan'!AM45 ->  | E38: ='Capacity Plan'!T45 ->  | F38: =IF(C38="","",'Capacity Plan'!U45) ->  | G38: ='Capacity Plan'!AC45 ->  | H38: =('Run @ Rate Summary Data'!V45) ->  | I38: =IF('Run @ Rate Summary Data'!W45=0,0,'Run @ Rate Summary Data'!W45) ->  | J38: =('Run @ Rate Summary Data'!AE45) ->  | K38: 0 | L38: 0
A39: 26 | B39: =IFERROR('Capacity Plan'!D46,"") -> 0 | C39: ='Capacity Plan'!AD46 ->  | D39: ='Capacity Plan'!AM46 ->  | E39: ='Capacity Plan'!T46 ->  | F39: =IF(C39="","",'Capacity Plan'!U46) ->  | G39: ='Capacity Plan'!AC46 ->  | H39: =('Run @ Rate Summary Data'!V46) ->  | I39: =IF('Run @ Rate Summary Data'!W46=0,0,'Run @ Rate Summary Data'!W46) ->  | J39: =('Run @ Rate Summary Data'!AE46) ->  | K39: 0 | L39: 0
A40: 27 | B40: =IFERROR('Capacity Plan'!D47,"") -> 0 | C40: ='Capacity Plan'!AD47 ->  | D40: ='Capacity Plan'!AM47 ->  | E40: ='Capacity Plan'!T47 ->  | F40: =IF(C40="","",'Capacity Plan'!U47) ->  | G40: ='Capacity Plan'!AC47 ->  | H40: =('Run @ Rate Summary Data'!V47) ->  | I40: =IF('Run @ Rate Summary Data'!W47=0,0,'Run @ Rate Summary Data'!W47) ->  | J40: =('Run @ Rate Summary Data'!AE47) ->  | K40: 0 | L40: 0
A41: 28 | B41: =IFERROR('Capacity Plan'!D48,"") -> 0 | C41: ='Capacity Plan'!AD48 ->  | D41: ='Capacity Plan'!AM48 ->  | E41: ='Capacity Plan'!T48 ->  | F41: =IF(C41="","",'Capacity Plan'!U48) ->  | G41: ='Capacity Plan'!AC48 ->  | H41: =('Run @ Rate Summary Data'!V48) ->  | I41: =IF('Run @ Rate Summary Data'!W48=0,0,'Run @ Rate Summary Data'!W48) ->  | J41: =('Run @ Rate Summary Data'!AE48) ->  | K41: 0 | L41: 0
A42: 29 | B42: =IFERROR('Capacity Plan'!D49,"") -> 0 | C42: ='Capacity Plan'!AD49 ->  | D42: ='Capacity Plan'!AM49 ->  | E42: ='Capacity Plan'!T49 ->  | F42: =IF(C42="","",'Capacity Plan'!U49) ->  | G42: ='Capacity Plan'!AC49 ->  | H42: =('Run @ Rate Summary Data'!V49) ->  | I42: =IF('Run @ Rate Summary Data'!W49=0,0,'Run @ Rate Summary Data'!W49) ->  | J42: =('Run @ Rate Summary Data'!AE49) ->  | K42: 0 | L42: 0
A43: 30 | B43: =IFERROR('Capacity Plan'!D50,"") -> 0 | C43: ='Capacity Plan'!AD50 ->  | D43: ='Capacity Plan'!AM50 ->  | E43: ='Capacity Plan'!T50 ->  | F43: =IF(C43="","",'Capacity Plan'!U50) ->  | G43: ='Capacity Plan'!AC50 ->  | H43: =('Run @ Rate Summary Data'!V50) ->  | I43: =IF('Run @ Rate Summary Data'!W50=0,0,'Run @ Rate Summary Data'!W50) ->  | J43: =('Run @ Rate Summary Data'!AE50) ->  | K43: 0 | L43: 0
H44: Answ:
A45: Were the planned downtime items consistent with the capacity plan: i.e.(maintenance, change-overs, breaks, and lunches)?
A46: Was the unplanned downtime within the forecasted daily expectations?(Capacity Plan)
A47: Was the line staffed by operators who work during normal production?
A48: Did the suppliers and subsuppliers have all subcontractors confirm their ability to meet capacity, quality and delivery requirements in writing?
A49: Is the planned scrap % equal to or greater than the actual scrap %? (Autocalculated) | J49: =IF(SUM(K14:K43)>0,"Yes","No") -> No
A50: =IF(J49="YES",J52,D44) -> 0 | J50: =IF(SUM(L14:L43)>0,"Yes","No") -> No
A51: =IF(J49="YES",J54,D44) -> 0
J52: If the actual scrap % is higher than the planned does it jeopardize QTC?
A53: Least Efficient OEE: | D53: Constraint Process OEE:
A54: =MIN('Run @ Rate Summary Data'!AG21:AG50) -> 0 | D54: =MAX('Run @ Rate Summary Data'!AG21:AG50) -> 0 | I54: Pass: | J54: Has the sub-supplier's Run @ Rate been validated to plan for this additional scrap?
A55: Operation Responsible | D55: Operation Responsible | I55: Fail: | J55: Yes
A56: =IFERROR(VLOOKUP(2,'Run @ Rate Summary Data'!B21:D50,3,FALSE),"") ->  | D56: =IFERROR(VLOOKUP(1,'Run @ Rate Summary Data'!C21:D50,2,FALSE),"") ->  | J56: No
A58: Responsibility | C58: Name | E58: Signature | H58: Contact Number | J58: Date
A59: Supplier Representative
A60: Nexteer Automotive AQE/SQE
A62: Comments:
A66: Note: Refer to the rest of the Run@Rate workbook to see more detailed information.

Sheet Extended R@R
A1: Extended R@R = (This form is used if % machine loading allocation is >50% and not a batch process)
CO2: =IF(E140=CO3,2,0) -> 2
C6: =E16 -> 0
C7: =E17 -> 0
C8: ='Capacity Plan'!D21 -> 0 | E8: Inv End of Shift | F8: ='Capacity Plan'!$D22 -> 0 | H8: Inv End of Shift | I8: ='Capacity Plan'!$D23 -> 0 | K8: Inv End of Shift | L8: ='Capacity Plan'!$D24 -> 0 | N8: Inv End of Shift | O8: ='Capacity Plan'!$D25 -> 0 | Q8: Inv End of Shift | R8: ='Capacity Plan'!$D26 -> 0 | T8: Inv End of Shift | U8: ='Capacity Plan'!$D27 -> 0 | W8: Inv End of Shift | X8: ='Capacity Plan'!$D28 -> 0 | Z8: Inv End of Shift | AA8: ='Capacity Plan'!$D29 -> 0 | AC8: Inv End of Shift | AD8: ='Capacity Plan'!$D30 -> 0 | AF8: Inv End of Shift | AG8: ='Capacity Plan'!$D31 -> 0 | AI8: Inv End of Shift | AJ8: ='Capacity Plan'!$D32 -> 0 | AL8: Inv End of Shift | AM8: ='Capacity Plan'!$D33 -> 0 | AO8: Inv End of Shift | AP8: ='Capacity Plan'!$D34 -> 0 | AR8: Inv End of Shift | AS8: ='Capacity Plan'!$D35 -> 0 | AU8: Inv End of Shift | AV8: ='Capacity Plan'!$D36 -> 0 | AX8: Inv End of Shift | AY8: ='Capacity Plan'!$D37 -> 0 | BA8: Inv End of Shift | BB8: ='Capacity Plan'!$D38 -> 0 | BD8: Inv End of Shift | BE8: ='Capacity Plan'!$D39 -> 0 | BG8: Inv End of Shift | BH8: ='Capacity Plan'!$D40 -> 0 | BJ8: Inv End of Shift | BK8: ='Capacity Plan'!$D41 -> 0 | BM8: Inv End of Shift | BN8: ='Capacity Plan'!$D42 -> 0 | BP8: Inv End of Shift | BQ8: ='Capacity Plan'!$D43 -> 0 | BS8: Inv End of Shift | BT8: ='Capacity Plan'!$D44 -> 0 | BV8: Inv End of Shift | BW8: ='Capacity Plan'!$D45 -> 0 | BY8: Inv End of Shift | BZ8: ='Capacity Plan'!$D46 -> 0 | CB8: Inv End of Shift | CC8: ='Capacity Plan'!$D47 -> 0 | CE8: Inv End of Shift | CF8: ='Capacity Plan'!$D48 -> 0 | CH8: Inv End of Shift | CI8: ='Capacity Plan'!$D49 -> 0 | CK8: Inv End of Shift | CL8: ='Capacity Plan'!$D50 -> 0 | CN8: Inv End of Shift | CO8: Actual Daily Production | CP8: Planned Daily Production | CQ8: Inventory Shipped | CR8: Comments
C9: cycle time (s): | F9: cycle time (s): | I9: cycle time (s): | L9: cycle time (s): | O9: cycle time (s): | R9: cycle time (s): | U9: cycle time (s): | X9: cycle time (s): | AA9: cycle time (s): | AD9: cycle time (s): | AG9: cycle time (s): | AJ9: cycle time (s): | AM9: cycle time (s): | AP9: cycle time (s): | AS9: cycle time (s): | AV9: cycle time (s): | AY9: cycle time (s): | BB9: cycle time (s): | BE9: cycle time (s): | BH9: cycle time (s): | BK9: cycle time (s): | BN9: cycle time (s): | BQ9: cycle time (s): | BT9: cycle time (s): | BW9: cycle time (s): | BZ9: cycle time (s): | CC9: cycle time (s): | CF9: cycle time (s): | CI9: cycle time (s): | CL9: cycle time (s):
C10: ='Capacity Plan'!$L21 -> 0 | F10: ='Capacity Plan'!$L22 -> 0 | I10: ='Capacity Plan'!$L23 -> 0 | L10: ='Capacity Plan'!$L24 -> 0 | O10: ='Capacity Plan'!$L25 -> 0 | R10: ='Capacity Plan'!$L26 -> 0 | U10: ='Capacity Plan'!$L27 -> 0 | X10: ='Capacity Plan'!$L28 -> 0 | AA10: ='Capacity Plan'!$L29 -> 0 | AD10: ='Capacity Plan'!$L30 -> 0 | AG10: ='Capacity Plan'!$L31 -> 0 | AJ10: ='Capacity Plan'!$L32 -> 0 | AM10: ='Capacity Plan'!$L33 -> 0 | AP10: ='Capacity Plan'!$L34 -> 0 | AS10: ='Capacity Plan'!$L35 -> 0 | AV10: ='Capacity Plan'!$L36 -> 0 | AY10: ='Capacity Plan'!$L37 -> 0 | BB10: ='Capacity Plan'!$L38 -> 0 | BE10: ='Capacity Plan'!$L39 -> 0 | BH10: ='Capacity Plan'!$L40 -> 0 | BK10: ='Capacity Plan'!$L41 -> 0 | BN10: ='Capacity Plan'!$L42 -> 0 | BQ10: ='Capacity Plan'!$L43 -> 0 | BT10: ='Capacity Plan'!$L44 -> 0 | BW10: ='Capacity Plan'!$L45 -> 0 | BZ10: ='Capacity Plan'!$L46 -> 0 | CC10: ='Capacity Plan'!$L47 -> 0 | CF10: ='Capacity Plan'!$L48 -> 0 | CI10: ='Capacity Plan'!$L49 -> 0 | CL10: ='Capacity Plan'!$L50 -> 0
C11: prts/cycle: | F11: prts/cycle: | I11: prts/cycle: | L11: prts/cycle: | O11: prts/cycle: | R11: prts/cycle: | U11: prts/cycle: | X11: prts/cycle: | AA11: prts/cycle: | AD11: prts/cycle: | AG11: prts/cycle: | AJ11: prts/cycle: | AM11: prts/cycle: | AP11: prts/cycle: | AS11: prts/cycle: | AV11: prts/cycle: | AY11: prts/cycle: | BB11: prts/cycle: | BE11: prts/cycle: | BH11: prts/cycle: | BK11: prts/cycle: | BN11: prts/cycle: | BQ11: prts/cycle: | BT11: prts/cycle: | BW11: prts/cycle: | BZ11: prts/cycle: | CC11: prts/cycle: | CF11: prts/cycle: | CI11: prts/cycle: | CL11: prts/cycle:
C12: ='Capacity Plan'!$M21 -> 0 | F12: ='Capacity Plan'!$M22 -> 0 | I12: ='Capacity Plan'!$M23 -> 0 | L12: ='Capacity Plan'!$M24 -> 0 | O12: ='Capacity Plan'!$M25 -> 0 | R12: ='Capacity Plan'!$M26 -> 0 | U12: ='Capacity Plan'!$M27 -> 0 | X12: ='Capacity Plan'!$M28 -> 0 | AA12: ='Capacity Plan'!$M29 -> 0 | AD12: ='Capacity Plan'!$M30 -> 0 | AG12: ='Capacity Plan'!$M31 -> 0 | AJ12: ='Capacity Plan'!$M32 -> 0 | AM12: ='Capacity Plan'!$M32 -> 0 | AP12: ='Capacity Plan'!$M33 -> 0 | AS12: ='Capacity Plan'!$M34 -> 0 | AV12: ='Capacity Plan'!$M35 -> 0 | AY12: ='Capacity Plan'!$M36 -> 0 | BB12: ='Capacity Plan'!$M37 -> 0 | BE12: ='Capacity Plan'!$M38 -> 0 | BH12: ='Capacity Plan'!$M39 -> 0 | BK12: ='Capacity Plan'!$M40 -> 0 | BN12: ='Capacity Plan'!$M41 -> 0 | BQ12: ='Capacity Plan'!$M42 -> 0 | BT12: ='Capacity Plan'!$M43 -> 0 | BW12: ='Capacity Plan'!$M44 -> 0 | BZ12: ='Capacity Plan'!$M45 -> 0 | CC12: ='Capacity Plan'!$M46 -> 0 | CF12: ='Capacity Plan'!$M47 -> 0 | CI12: ='Capacity Plan'!$M48 -> 0 | CL12: ='Capacity Plan'!$M49 -> 0
C13: Good | D13: Reject | F13: Good | G13: Reject | I13: Good | J13: Reject | L13: Good | M13: Reject | O13: Good | P13: Reject | R13: Good | S13: Reject | U13: Good | V13: Reject | X13: Good | Y13: Reject | AA13: Good | AB13: Reject | AD13: Good | AE13: Reject | AG13: Good | AH13: Reject | AJ13: Good | AK13: Reject | AM13: Good | AN13: Reject | AP13: Good | AQ13: Reject | AS13: Good | AT13: Reject | AV13: Good | AW13: Reject | AY13: Good | AZ13: Reject | BB13: Good | BC13: Reject | BE13: Good | BF13: Reject | BH13: Good | BI13: Reject | BK13: Good | BL13: Reject | BN13: Good | BO13: Reject | BQ13: Good | BR13: Reject | BT13: Good | BU13: Reject | BW13: Good | BX13: Reject | BZ13: Good | CA13: Reject | CC13: Good | CD13: Reject | CF13: Good | CG13: Reject | CI13: Good | CJ13: Reject | CL13: Good | CM13: Reject
A14: Date | B14: Shift
A15: 2019-01-01 | B15: 3rd | CO15: =MIN(CN15,CK15,CH15,CE15,CB15,BY15,BV15,BS15,BP15,BM15,BJ15,BG15,BD15,BA15,AX15,AU15,AR15,AO15,AL15,AI15,AF15,AC15,Z15,W15,T15,Q15,N15,K15,H15,E15) -> 0 | CP15: =CP18/3 -> 0 | CQ15: =HLOOKUP(MAX(E$140:CN$140),$E$140:$CN$145,4,FALSE) -> 0 | CU15: =IF(SUMIF('Capacity Plan'!$B$21:$B$50,'Capacity Plan'!$B21,'Capacity Plan'!$AC$21:$AC$50)=0,"",SUMIF('Capacity Plan'!$B$21:$B$50,'Capacity Plan'!$B21,'Capacity Plan'!$AC$21:$AC$50)) -> 
B16: 1st | CO16: =MIN(CN16,CK16,CH16,CE16,CB16,BY16,BV16,BS16,BP16,BM16,BJ16,BG16,BD16,BA16,AX16,AU16,AR16,AO16,AL16,AI16,AF16,AC16,Z16,W16,T16,Q16,N16,K16,H16,E16) -> 0 | CP16: =CP18/3 -> 0 | CQ16: =HLOOKUP(MAX(E$140:CN$140),$E$140:$CN$145,5,FALSE) -> 0 | CU16: =IF(SUMIF('Capacity Plan'!$B$21:$B$50,'Capacity Plan'!$B22,'Capacity Plan'!$AC$21:$AC$50)=0,"",SUMIF('Capacity Plan'!$B$21:$B$50,'Capacity Plan'!$B22,'Capacity Plan'!$AC$21:$AC$50)) -> 
B17: 2nd | CO17: 0 | CP17: =CP18/3 -> 0 | CQ17: =HLOOKUP(MAX(E$140:CN$140),$E$140:$CN$145,6,FALSE) -> 0 | CU17: =IF(SUMIF('Capacity Plan'!$B$21:$B$50,'Capacity Plan'!$B23,'Capacity Plan'!$AC$21:$AC$50)=0,"",SUMIF('Capacity Plan'!$B$21:$B$50,'Capacity Plan'!$B23,'Capacity Plan'!$AC$21:$AC$50)) -> 
B18: Total | C18: =SUM(C15:C17) -> 0 | D18: =SUM(D15:D17) -> 0 | E18: =IF(E15+E16+E17=0,"",E15+E16+E17) ->  | F18: =SUM(F15:F17) -> 0 | G18: 0 | H18: =IF(H15+H16+H17=0,"",H15+H16+H17) ->  | I18: 0 | J18: 0 | K18: =IF(K15+K16+K17=0,"",K15+K16+K17) ->  | L18: 0 | M18: 0 | N18: =IF(N15+N16+N17=0,"",N15+N16+N17) ->  | O18: 0 | P18: 0 | Q18: =IF(Q15+Q16+Q17=0,"",Q15+Q16+Q17) ->  | R18: 0 | S18: 0 | T18: =IF(T15+T16+T17=0,"",T15+T16+T17) ->  | U18: 0 | V18: 0 | W18: =IF(W15+W16+W17=0,"",W15+W16+W17) ->  | X18: 0 | Y18: 0 | Z18: =IF(Z15+Z16+Z17=0,"",Z15+Z16+Z17) ->  | AA18: 0 | AB18: 0 | AC18: =IF(AC15+AC16+AC17=0,"",AC15+AC16+AC17) ->  | AD18: 0 | AE18: 0 | AF18: =IF(AF15+AF16+AF17=0,"",AF15+AF16+AF17) ->  | AG18: =SUM(AG15:AG17) -> 0 | AH18: =SUM(AH15:AH17) -> 0 | AI18: =IF(AI15+AI16+AI17=0,"",AI15+AI16+AI17) ->  | AJ18: =SUM(AJ15:AJ17) -> 0 | AK18: =SUM(AK15:AK17) -> 0 | AL18: =IF(AL15+AL16+AL17=0,"",AL15+AL16+AL17) ->  | AM18: =SUM(AM15:AM17) -> 0 | AN18: =SUM(AN15:AN17) -> 0 | AO18: =IF(AO15+AO16+AO17=0,"",AO15+AO16+AO17) ->  | AP18: =SUM(AP15:AP17) -> 0 | AQ18: =SUM(AQ15:AQ17) -> 0 | AR18: =IF(AR15+AR16+AR17=0,"",AR15+AR16+AR17) ->  | AS18: =SUM(AS15:AS17) -> 0 | AT18: =SUM(AT15:AT17) -> 0 | AU18: =IF(AU15+AU16+AU17=0,"",AU15+AU16+AU17) ->  | AV18: =SUM(AV15:AV17) -> 0 | AW18: =SUM(AW15:AW17) -> 0 | AX18: =IF(AX15+AX16+AX17=0,"",AX15+AX16+AX17) ->  | AY18: =SUM(AY15:AY17) -> 0 | AZ18: =SUM(AZ15:AZ17) -> 0 | BA18: =IF(BA15+BA16+BA17=0,"",BA15+BA16+BA17) ->  | BB18: =SUM(BB15:BB17) -> 0 | BC18: =SUM(BC15:BC17) -> 0 | BD18: =IF(BD15+BD16+BD17=0,"",BD15+BD16+BD17) ->  | BE18: =SUM(BE15:BE17) -> 0 | BF18: =SUM(BF15:BF17) -> 0 | BG18: =IF(BG15+BG16+BG17=0,"",BG15+BG16+BG17) ->  | BH18: =SUM(BH15:BH17) -> 0 | BI18: =SUM(BI15:BI17) -> 0 | BJ18: =IF(BJ15+BJ16+BJ17=0,"",BJ15+BJ16+BJ17) ->  | BK18: =SUM(BK15:BK17) -> 0 | BL18: =SUM(BL15:BL17) -> 0 | BM18: =IF(BM15+BM16+BM17=0,"",BM15+BM16+BM17) ->  | BN18: =SUM(BN15:BN17) -> 0 | BO18: =SUM(BO15:BO17) -> 0 | BP18: =IF(BP15+BP16+BP17=0,"",BP15+BP16+BP17) ->  | BQ18: =SUM(BQ15:BQ17) -> 0 | BR18: =SUM(BR15:BR17) -> 0 | BS18: =IF(BS15+BS16+BS17=0,"",BS15+BS16+BS17) ->  | BT18: =SUM(BT15:BT17) -> 0 | BU18: =SUM(BU15:BU17) -> 0 | BV18: =IF(BV15+BV16+BV17=0,"",BV15+BV16+BV17) ->  | BW18: =SUM(BW15:BW17) -> 0 | BX18: =SUM(BX15:BX17) -> 0 | BY18: =IF(BY15+BY16+BY17=0,"",BY15+BY16+BY17) ->  | BZ18: =SUM(BZ15:BZ17) -> 0 | CA18: =SUM(CA15:CA17) -> 0 | CB18: =IF(CB15+CB16+CB17=0,"",CB15+CB16+CB17) ->  | CC18: =SUM(CC15:CC17) -> 0 | CD18: =SUM(CD15:CD17) -> 0 | CE18: =IF(CE15+CE16+CE17=0,"",CE15+CE16+CE17) ->  | CF18: =SUM(CF15:CF17) -> 0 | CG18: =SUM(CG15:CG17) -> 0 | CH18: =IF(CH15+CH16+CH17=0,"",CH15+CH16+CH17) ->  | CI18: =SUM(CI15:CI17) -> 0 | CJ18: =SUM(CJ15:CJ17) -> 0 | CK18: =IF(CK15+CK16+CK17=0,"",CK15+CK16+CK17) ->  | CL18: =SUM(CL15:CL17) -> 0 | CM18: =SUM(CM15:CM17) -> 0 | CN18: =IF(CN15+CN16+CN17=0,"",CN15+CN16+CN17) ->  | CO18: 0 | CP18: =MIN(CU15:CU44) -> 0 | CQ18: =SUM(CQ15:CQ17) -> 0 | CU18: =IF(SUMIF('Capacity Plan'!$B$21:$B$50,'Capacity Plan'!$B24,'Capacity Plan'!$AC$21:$AC$50)=0,"",SUMIF('Capacity Plan'!$B$21:$B$50,'Capacity Plan'!$B24,'Capacity Plan'!$AC$21:$AC$50)) -> 
A19: =A15+1 -> 2019-01-02 | B19: 3rd | CO19: 0 | CQ19: =HLOOKUP(MAX(E$140:CN$140),$E$140:$CN$250,8,FALSE) -> 0 | CU19: =IF(SUMIF('Capacity Plan'!$B$21:$B$50,'Capacity Plan'!$B25,'Capacity Plan'!$AC$21:$AC$50)=0,"",SUMIF('Capacity Plan'!$B$21:$B$50,'Capacity Plan'!$B25,'Capacity Plan'!$AC$21:$AC$50)) -> 
B20: 1st | CO20: 0 | CQ20: =HLOOKUP(MAX(E$140:CN$140),$E$140:$CN$250,9,FALSE) -> 0 | CU20: =IF(SUMIF('Capacity Plan'!$B$21:$B$50,'Capacity Plan'!$B26,'Capacity Plan'!$AC$21:$AC$50)=0,"",SUMIF('Capacity Plan'!$B$21:$B$50,'Capacity Plan'!$B26,'Capacity Plan'!$AC$21:$AC$50)) -> 
B21: 2nd | CO21: 0 | CQ21: =HLOOKUP(MAX(E$140:CN$140),$E$140:$CN$250,10,FALSE) -> 0 | CU21: =IF(SUMIF('Capacity Plan'!$B$21:$B$50,'Capacity Plan'!$B27,'Capacity Plan'!$AC$21:$AC$50)=0,"",SUMIF('Capacity Plan'!$B$21:$B$50,'Capacity Plan'!$B27,'Capacity Plan'!$AC$21:$AC$50)) -> 
